Workbook

Sheet Cover
A1: Title
A2: [Optional comments]

Sheet User Section
A1: Grant Equivalent Calculator - model overview
C11: MODEL OBJECTIVES | L11: KEY
C13: 1 | D13: This GEC tool is developed for the sole purpose of measuring concessionality of funding proposals submitted to / approved by the GCF | M13: User inputs
C14: 2 | D14: To enable comparison of the concessionality across funding proposals and to measure GCF portfolio level concessionality | M14: Calculations
M15: Outputs
C19: NOTE
C21: 1 a | D21: Overall formula: Grant equivalent = Present Value of funding under market conditions (estimated) - Present Value of reflows to the GCF (based on proposal term sheets)
C22: 1 b | D22: Grant equivalent (GE) is a standardised measurement to evaluate the concessionality of a funding proposal
C23: 2 a | D23: GE is presented in either portion of the overall GCF funding size (%) or absolute terms
C24: 3 | D24: Present Value of reflows and principal may include: interest and principal repayment received from the borrower of loans, dividend received from the project, fees charged by GCF, etc.
C25: 4 a | D25: If the user inputs conditions, which are outside the acceptable limits (e.g. grace period longer than tenor), an error message is displayed.
C26: 4 b | D26: The user is encouraged to follow parameters stated in the term sheets.
C27: 4 c | D27: If a term sheet consists of multiple non-grant financial instruments (e.g. grant + loan + equity), the user should treat them separately.
C28: 5 | D28: The User Panel is pre-populated with sample data.
C32: GENERAL ASSUMPTIONS
D34: Inputs | E34: Funding instrument | F34: Notes
D35: General | E35: All | F35: A single period is one year
F36: Day 0 is the day the Funded Activity Agreement is signed and in effect; Year 0 is one year (or 365 days) immediately following Day 0
F37: Assumed all disbursements occur at the beginning of each period, and interest and commitment fee reflows occur at the end of each period, with interest accrued throughout the year
F38: Principal repayments are also assumed to occur at the beginning of each period, starting from year 1
G39: i.e. If grace period = 0, the first disbursement will occur at beginning of Year 0, first fee reflows will occur at the end of Year 0, and first principal repayments will occur at the beginning of Year 1.
D40: Grace period | E40: Loan | F40: During grace period, the borrower does not need to pay principal repayment.
F41: Interest repayment can happen during the grace period (the user can choose)
F42: Assumed all payments occur at end of each period
G43: i.e. If grace period = 0, the first principal payment will occur at end of Year 0
E44: Equity | F44: During grace period / investment period, GCF will not receive dividends
D45: Interest | E45: Loan | F45: No interest on the amount not disbursed yet
D46: Dividend payout | E46: Equity | F46: Unless specified, assumed 0%
D47: Payment type | E47: Loan | F47: Unless specified, assumed all loan repayment follows the “equal principal repayment” approach
D48: Discount rate | E48: All | F48: Uniform discount rate for debt and guarantees, and uniform discount rate for equity.
F49: Used to discount the exposure amount of the reflows to the GCF, at market conditions.
D50: Risks | E50: All | F50: No repayment risks are assumed in this model, i.e. full repayments are expected under the inputs assumed by the user. The user shall input repayment as expected.
C54: MODEL STRUCTURE

Sheet User Panel
A1: Grant Equivalent Calculator
D5: LEGEND
D6: Input
D7: Output
B9: LOAN
C11: Please select the input mode | E11: Standard
C13: Standard mode | D13: Please leave the relevant input cells blank if you wish to use the manual input mode | R13: Manual mode | S13: Please leave the relevant input cells blank if you wish to use the standard input mode
R14: All figures in US$M
C15: Total nominal loan amount (GCF portion) | D15: US$M | E15: 100
S16: Year of disbursement | T16: 0 | U16: =T16+1 -> 1 | V16: 2 | W16: 3 | X16: 4 | Y16: 5 | Z16: 6 | AA16: 7 | AB16: 8 | AC16: 9 | AD16: 10 | AE16: 11 | AF16: 12 | AG16: 13 | AH16: 14 | AI16: 15 | AJ16: 16 | AK16: 17 | AL16: 18 | AM16: 19 | AN16: 20 | AO16: 21 | AP16: 22 | AQ16: 23 | AR16: 24 | AS16: 25 | AT16: 26 | AU16: 27 | AV16: 28 | AW16: 29 | AX16: 30 | AY16: 31 | AZ16: 32 | BA16: =AZ16+1 -> 33 | BB16: 34 | BC16: 35 | BD16: 36 | BE16: 37 | BF16: 38 | BG16: 39 | BH16: 40 | BI16: 41 | BJ16: 42 | BK16: 43 | BL16: 44 | BM16: 45 | BN16: 46 | BO16: 47 | BP16: 48 | BQ16: 49 | BR16: 50 | BS16: 51 | BT16: 52 | BU16: 53 | BV16: 54 | BW16: 55 | BX16: 56 | BY16: 57 | BZ16: 58 | CA16: 59 | CB16: 60 | CC16: 61 | CD16: 62 | CE16: 63 | CF16: 64 | CG16: =CF16+1 -> 65 | CH16: 66 | CI16: 67 | CJ16: 68 | CK16: 69 | CL16: 70 | CM16: 71 | CN16: 72 | CO16: 73 | CP16: 74 | CQ16: 75 | CR16: 76 | CS16: 77 | CT16: 78 | CU16: 79 | CV16: 80 | CW16: 81 | CX16: 82 | CY16: 83 | CZ16: 84 | DA16: 85 | DB16: 86 | DC16: 87 | DD16: 88 | DE16: 89 | DF16: 90 | DG16: 91 | DH16: 92 | DI16: 93 | DJ16: 94 | DK16: 95 | DL16: 96 | DM16: =DL16+1 -> 97 | DN16: 98 | DO16: 99 | DP16: 100 | DQ16: 101 | DR16: 102 | DS16: 103 | DT16: 104 | DU16: 105 | DV16: 106 | DW16: 107 | DX16: 108 | DY16: 109 | DZ16: 110 | EA16: 111 | EB16: 112 | EC16: 113 | ED16: 114 | EE16: 115 | EF16: 116 | EG16: 117 | EH16: 118 | EI16: 119 | EJ16: 120
C17: Total nominal grant amount (GCF portion) | D17: US$M | E17: 2 | R17: Cash Out | S17: Loan disbursement amount (GCF portion)
S18: Grant disbursement amount (GCF portion)
C19: Annual commitment fee due to GCF | D19: % of undisbursed amount (at the end of each year) | E19: 0 | R19: Cash In | S19: Fee payment due to GCF
C20: Total other fees due to GCF on Day 0 | D20: US$M (on Day 0) | E20: 0 | S20: Interest payment due to GCF
S21: Principal repayment due to GCF
C22: Tenor of GCF Loan | D22: Years | E22: 20
C23: Grace period of GCF Loan | D23: Years | E23: 3 | R23: Note: Disbursements are assumed to occur at the beginning of each period, and interest and commitment fee reflows at the end of each period, with interest accrued throughout the year.
C24: Does the grace period also apply to interest payments due to GCF? | E24: No | F24: Do not leave blank if there is a Grace Period. If selected 'No', grace period only affects principal repayment. | R24: Note: Principal repayments are also assumed to occur at the beginning of each period, starting from year 1.
C25: Repayment type | E25: Equal principal payment | F25: Please select the repayment type
C26: Interest rate charged by GCF | D26: % p.a. (to the outstanding amount at the end of each year) | E26: 2
C29: Loan Disbursement Schedule (GCF Portion) | E29: =IF(Calculation_Loan!E35>0,E30,0) -> 0 | F29: =IF(Calculation_Loan!F35>0,F30,0) -> 1 | G29: =IF(Calculation_Loan!G35>0,G30,0) -> 0 | H29: =IF(Calculation_Loan!H35>0,H30,0) -> 0 | I29: =IF(Calculation_Loan!I35>0,I30,0) -> 0 | J29: =IF(Calculation_Loan!J35>0,J30,0) -> 0 | K29: =IF(Calculation_Loan!K35>0,K30,0) -> 0 | L29: =IF(Calculation_Loan!L35>0,L30,0) -> 0 | M29: =IF(Calculation_Loan!M35>0,M30,0) -> 0 | N29: =IF(Calculation_Loan!N35>0,N30,0) -> 0 | O29: =IF(Calculation_Loan!O35>0,O30,0) -> 0
D30: Year of disbursement | E30: 0 | F30: =E30+1 -> 1 | G30: =F30+1 -> 2 | H30: 3 | I30: 4 | J30: 5 | K30: 6 | L30: 7 | M30: 8 | N30: 9 | O30: 10
D31: % of Total Nominal Loan Amount Disbursed (at the beginning of each year) | E31: 30 | F31: 70
D32: Sum | E32: =IF(E15>0,IF(SUM(Calculation_Loan!E35:O35)=1,"100%: Correct","ERROR - Please check the inputs"),0) -> 100%: Correct
C34: Grant Disbursement Schedule (GCF Portion) | E34: =IF(Calculation_Loan!E36>0,E35,0) -> 0 | F34: =IF(Calculation_Loan!F36>0,F35,0) -> 0 | G34: =IF(Calculation_Loan!G36>0,G35,0) -> 0 | H34: =IF(Calculation_Loan!H36>0,H35,0) -> 0 | I34: =IF(Calculation_Loan!I36>0,I35,0) -> 0 | J34: =IF(Calculation_Loan!J36>0,J35,0) -> 0 | K34: =IF(Calculation_Loan!K36>0,K35,0) -> 0 | L34: =IF(Calculation_Loan!L36>0,L35,0) -> 0 | M34: =IF(Calculation_Loan!M36>0,M35,0) -> 0 | N34: =IF(Calculation_Loan!N36>0,N35,0) -> 0 | O34: =IF(Calculation_Loan!O36>0,O35,0) -> 0
D35: Year of disbursement | E35: 0 | F35: =E35+1 -> 1 | G35: =F35+1 -> 2 | H35: 3 | I35: 4 | J35: 5 | K35: 6 | L35: 7 | M35: 8 | N35: 9 | O35: 10
D36: % of Total Nominal Grant Amount Disbursed (at the beginning of each year) | E36: 100
D37: Sum | E37: =IF(E17>0,IF(SUM(Calculation_Loan!E36:O36)=1,"100%: Correct","ERROR - Please check the inputs"),0) -> 100%: Correct
C39: Note: Disbursements are assumed to occur at the beginning of each period, and interest and commitment fee reflows at the end of each period, with interest accrued throughout the year.
C40: Note: Principal repayments are also assumed to occur at the beginning of each period, starting from year 1.
C42: Discount Rate Input (applicable both to Standard and Manual Modes) | D42: Please fill all input cells
C44: Type of discount rate to be used | E44: Uniform discount rate | F44: Please select the discount rate to be used based on the loan structure
C45: Manually input discount rate (if applicable) | D45: % p.a. | F45: Leave it empty if not available
C46: Discount rate adopted | D46: % p.a. | E46: =CHOOSE('Discount Rate'!D28,'Discount Rate'!H7,'Discount Rate'!H10,'Discount Rate'!H13,'Discount Rate'!H16,E45) -> 5
C49: RESULT
C51: Grant Equivalent: GCF Loan Disbursement | D51: % of Total Nominal Loan Amount | E51: =IF(AND(E15=0, SUM(T17:EJ17)=0),"",IFERROR(Calculation_Loan!I8/100, "ERROR - Please check the inputs")) -> 0.2265733363
C52: Grant Equivalent: GCF Loan Disbursement | D52: US$M | E52: =IFERROR(Calculation_Loan!I9, "ERROR - Please check the inputs") -> 22.65733363
C54: Grant Equivalent: Total GCF Funding | D54: % of Total Nominal Loan and Grant Amount | E54: =IF(AND(E15=0, SUM(T17:EJ17)=0),"",IF($E$11="Standard",IFERROR(E55/(E15+E17), "ERROR - Please check the inputs"), IFERROR(Calculation_Loan!D281/100,"ERROR - Please check the inputs"))) -> 0.241738565
C55: Grant Equivalent: Total GCF Funding | D55: US$M | E55: =IF($E$11="Standard",IFERROR(Calculation_Loan!I9+E17,"ERROR - Please check the inputs"),IFERROR(Calculation_Loan!D282,"ERROR - Please check the inputs")) -> 24.65733363
B60: EQUITY
C62: Please select the input mode | E62: Standard
C64: Standard mode | D64: Please leave the relevant input cells blank if you wish to use the manual input mode | R64: Manual mode | S64: Please leave the relevant input cells blank if you wish to use the standard input mode
R65: All figures in US$M
C66: Total nominal equity amount (GCF portion) | D66: US$M | E66: 40
S67: Year of disbursement | U67: 0 | V67: =U67+1 -> 1 | W67: =V67+1 -> 2 | X67: =W67+1 -> 3 | Y67: =X67+1 -> 4 | Z67: =Y67+1 -> 5 | AA67: =Z67+1 -> 6 | AB67: =AA67+1 -> 7 | AC67: =AB67+1 -> 8 | AD67: =AC67+1 -> 9 | AE67: =AD67+1 -> 10 | AF67: =AE67+1 -> 11 | AG67: =AF67+1 -> 12 | AH67: =AG67+1 -> 13 | AI67: =AH67+1 -> 14 | AJ67: =AI67+1 -> 15 | AK67: =AJ67+1 -> 16 | AL67: =AK67+1 -> 17 | AM67: =AL67+1 -> 18 | AN67: =AM67+1 -> 19 | AO67: =AN67+1 -> 20 | AP67: =AO67+1 -> 21 | AQ67: =AP67+1 -> 22 | AR67: =AQ67+1 -> 23 | AS67: =AR67+1 -> 24 | AT67: =AS67+1 -> 25 | AU67: =AT67+1 -> 26 | AV67: =AU67+1 -> 27 | AW67: =AV67+1 -> 28 | AX67: =AW67+1 -> 29 | AY67: =AX67+1 -> 30 | AZ67: =AY67+1 -> 31 | BA67: =AZ67+1 -> 32 | BB67: =BA67+1 -> 33 | BC67: =BB67+1 -> 34 | BD67: =BC67+1 -> 35 | BE67: =BD67+1 -> 36 | BF67: =BE67+1 -> 37 | BG67: =BF67+1 -> 38 | BH67: =BG67+1 -> 39 | BI67: =BH67+1 -> 40 | BJ67: =BI67+1 -> 41 | BK67: =BJ67+1 -> 42 | BL67: =BK67+1 -> 43 | BM67: =BL67+1 -> 44 | BN67: =BM67+1 -> 45 | BO67: =BN67+1 -> 46 | BP67: =BO67+1 -> 47 | BQ67: =BP67+1 -> 48 | BR67: =BQ67+1 -> 49 | BS67: =BR67+1 -> 50 | BT67: =BS67+1 -> 51 | BU67: =BT67+1 -> 52 | BV67: =BU67+1 -> 53 | BW67: =BV67+1 -> 54 | BX67: =BW67+1 -> 55 | BY67: =BX67+1 -> 56 | BZ67: =BY67+1 -> 57 | CA67: =BZ67+1 -> 58 | CB67: =CA67+1 -> 59 | CC67: =CB67+1 -> 60 | CD67: =CC67+1 -> 61 | CE67: =CD67+1 -> 62 | CF67: =CE67+1 -> 63 | CG67: =CF67+1 -> 64 | CH67: =CG67+1 -> 65 | CI67: =CH67+1 -> 66 | CJ67: =CI67+1 -> 67 | CK67: =CJ67+1 -> 68 | CL67: =CK67+1 -> 69 | CM67: =CL67+1 -> 70 | CN67: =CM67+1 -> 71 | CO67: =CN67+1 -> 72 | CP67: =CO67+1 -> 73 | CQ67: =CP67+1 -> 74 | CR67: =CQ67+1 -> 75 | CS67: =CR67+1 -> 76 | CT67: =CS67+1 -> 77 | CU67: =CT67+1 -> 78 | CV67: =CU67+1 -> 79 | CW67: =CV67+1 -> 80 | CX67: =CW67+1 -> 81 | CY67: =CX67+1 -> 82 | CZ67: =CY67+1 -> 83 | DA67: =CZ67+1 -> 84 | DB67: =DA67+1 -> 85 | DC67: =DB67+1 -> 86 | DD67: =DC67+1 -> 87 | DE67: =DD67+1 -> 88 | DF67: =DE67+1 -> 89 | DG67: =DF67+1 -> 90 | DH67: =DG67+1 -> 91 | DI67: =DH67+1 -> 92 | DJ67: =DI67+1 -> 93 | DK67: =DJ67+1 -> 94 | DL67: =DK67+1 -> 95 | DM67: =DL67+1 -> 96 | DN67: =DM67+1 -> 97 | DO67: =DN67+1 -> 98 | DP67: =DO67+1 -> 99 | DQ67: =DP67+1 -> 100 | DR67: =DQ67+1 -> 101 | DS67: =DR67+1 -> 102 | DT67: =DS67+1 -> 103 | DU67: =DT67+1 -> 104 | DV67: =DU67+1 -> 105 | DW67: =DV67+1 -> 106 | DX67: =DW67+1 -> 107 | DY67: =DX67+1 -> 108 | DZ67: =DY67+1 -> 109 | EA67: =DZ67+1 -> 110 | EB67: =EA67+1 -> 111 | EC67: =EB67+1 -> 112 | ED67: =EC67+1 -> 113 | EE67: =ED67+1 -> 114 | EF67: =EE67+1 -> 115 | EG67: =EF67+1 -> 116 | EH67: =EG67+1 -> 117 | EI67: =EH67+1 -> 118 | EJ67: =EI67+1 -> 119 | EK67: =EJ67+1 -> 120
C68: Total nominal grant amount (GCF portion) | D68: US$M | E68: 0 | R68: Cash Out | S68: Equity disbursement amount (GCF portion)
S69: Grant disbursement amount (GCF portion)
C70: Annual commitment fee due to GCF | D70: % of undisbursed amount (at the end of each year) | R70: Cash In | S70: Fee payment due to GCF
C71: Total other fees due to GCF on Day 0 | D71: US$M (on Day 0) | S71: Dividend due to GCF
S72: Expected exit value of the GCF Portion
C73: Estimated GCF exit year | D73: Years | E73: 15 | F73: Leave it empty if not available
C74: Dividend grace period | D74: Years
C75: Expected annual dividend rate due to GCF | D75: % of book value p.a. (at the end of each year) | E75: 0
C76: How dividend is calculated beyond Year 0 | E76: Varies with the book value of equity
C77: Expected IRR for GCF | D77: % p.a. | E77: 1
C79: Equity Disbursement Schedule (GCF Portion)
D80: Year of disbursement | E80: 0 | F80: =E80+1 -> 1 | G80: =F80+1 -> 2 | H80: 3 | I80: 4 | J80: 5 | K80: 6 | L80: 7 | M80: 8 | N80: 9 | O80: 10
D81: % of Total Nominal Equity Amount Disbursed (at the beginning of each year) | E81: 20 | F81: 50 | G81: 30
D82: Sum | E82: =IF(E66>0,IF(SUM(Calculation_Equity!E30:O30)=1,"100%: Correct","ERROR - Please check the inputs"),0) -> 100%: Correct
C84: Grant Disbursement Schedule (GCF Portion)
D85: Year of disbursement | E85: 0 | F85: =E85+1 -> 1 | G85: =F85+1 -> 2 | H85: 3 | I85: 4 | J85: 5 | K85: 6 | L85: 7 | M85: 8 | N85: 9 | O85: 10
D86: % of Total Nominal Grant Amount Disbursed (at the beginning of each year) | E86: 100
D87: Sum | E87: =IF(E68>0,IF(SUM(Calculation_Equity!E31:O31)=1,"100%: Correct","ERROR - Please check the inputs"),0) -> 0
C89: Note: Disbursements are assumed to occur at the beginning of each period, and interest and commitment fee reflows at the end of each period, with interest accrued throughout the year.
C90: Note: Principal repayments are also assumed to occur at the beginning of each period, starting from year 1.
C92: Discount Rate Input (applicable both to Standard and Manual Modes) | D92: Please fill all input cells
C94: Type of discount rate to be used | E94: Uniform discount rate | F94: Please select the discount rate to be used
C95: Manually input discount rate (if applicable) | D95: % p.a. | F95: Leave it empty if not available
C96: Discount rate adopted | D96: % p.a. | E96: =CHOOSE('Discount Rate'!D35,'Discount Rate'!H7,'Discount Rate'!H22,E95) -> 5
C99: RESULT
C101: Grant Equivalent: GCF Equity disbursement | D101: % of Total Nominal Equity Amount | E101: =IF(AND(E66=0, SUM(U68:EK68)=0),"",IFERROR(Calculation_Equity!I8/100,"ERROR - Please check the inputs")) -> 0.3959190628
C102: Grant Equivalent: GCF Equity disbursement | D102: US$M | E102: =IFERROR(Calculation_Equity!I9, "ERROR - Please check the inputs") -> 15.83676251
C104: Grant Equivalent: Total GCF Funding | D104: % of Total Nominal Equity and Grant Amount | E104: =IF(AND(E66=0, SUM(U68:EK68)=0),"",IF($E$62="Standard",IFERROR(E105/(E66+E68),"ERROR - Please check the inputs"),IFERROR(Calculation_Equity!D82/100,"ERROR - Please check the inputs"))) -> 0.3959190628
C105: Grant Equivalent: Total GCF Funding | D105: US$M | E105: =IF($E$62="Standard",IFERROR(E102+E68, "ERROR - Please check the inputs"), IFERROR(Calculation_Equity!D83,"ERROR - Please check the inputs")) -> 15.83676251
B110: GUARANTEE
C112: Please select the input mode | E112: Standard
C114: Standard mode | D114: Please leave the relevant input cells blank if you wish to use the manual input mode | R114: Manual mode | S114: Please leave the relevant input cells blank if you wish to use the standard input mode
R115: All figures in US$M
C116: Total nominal amount of loan guaranteed by GCF | D116: US$M | E116: 20
S117: Year | U117: 0 | V117: =U117+1 -> 1 | W117: =V117+1 -> 2 | X117: =W117+1 -> 3 | Y117: =X117+1 -> 4 | Z117: =Y117+1 -> 5 | AA117: =Z117+1 -> 6 | AB117: =AA117+1 -> 7 | AC117: =AB117+1 -> 8 | AD117: =AC117+1 -> 9 | AE117: =AD117+1 -> 10 | AF117: =AE117+1 -> 11 | AG117: =AF117+1 -> 12 | AH117: =AG117+1 -> 13 | AI117: =AH117+1 -> 14 | AJ117: =AI117+1 -> 15 | AK117: =AJ117+1 -> 16 | AL117: =AK117+1 -> 17 | AM117: =AL117+1 -> 18 | AN117: =AM117+1 -> 19 | AO117: =AN117+1 -> 20 | AP117: =AO117+1 -> 21 | AQ117: =AP117+1 -> 22 | AR117: =AQ117+1 -> 23 | AS117: =AR117+1 -> 24 | AT117: =AS117+1 -> 25 | AU117: =AT117+1 -> 26 | AV117: =AU117+1 -> 27 | AW117: =AV117+1 -> 28 | AX117: =AW117+1 -> 29 | AY117: =AX117+1 -> 30 | AZ117: =AY117+1 -> 31 | BA117: =AZ117+1 -> 32 | BB117: =BA117+1 -> 33 | BC117: =BB117+1 -> 34 | BD117: =BC117+1 -> 35 | BE117: =BD117+1 -> 36 | BF117: =BE117+1 -> 37 | BG117: =BF117+1 -> 38 | BH117: =BG117+1 -> 39 | BI117: =BH117+1 -> 40 | BJ117: =BI117+1 -> 41 | BK117: =BJ117+1 -> 42 | BL117: =BK117+1 -> 43 | BM117: =BL117+1 -> 44 | BN117: =BM117+1 -> 45 | BO117: =BN117+1 -> 46 | BP117: =BO117+1 -> 47 | BQ117: =BP117+1 -> 48 | BR117: =BQ117+1 -> 49 | BS117: =BR117+1 -> 50 | BT117: =BS117+1 -> 51 | BU117: =BT117+1 -> 52 | BV117: =BU117+1 -> 53 | BW117: =BV117+1 -> 54 | BX117: =BW117+1 -> 55 | BY117: =BX117+1 -> 56 | BZ117: =BY117+1 -> 57 | CA117: =BZ117+1 -> 58 | CB117: =CA117+1 -> 59 | CC117: =CB117+1 -> 60 | CD117: =CC117+1 -> 61 | CE117: =CD117+1 -> 62 | CF117: =CE117+1 -> 63 | CG117: =CF117+1 -> 64 | CH117: =CG117+1 -> 65 | CI117: =CH117+1 -> 66 | CJ117: =CI117+1 -> 67 | CK117: =CJ117+1 -> 68 | CL117: =CK117+1 -> 69 | CM117: =CL117+1 -> 70 | CN117: =CM117+1 -> 71 | CO117: =CN117+1 -> 72 | CP117: =CO117+1 -> 73 | CQ117: =CP117+1 -> 74 | CR117: =CQ117+1 -> 75 | CS117: =CR117+1 -> 76 | CT117: =CS117+1 -> 77 | CU117: =CT117+1 -> 78 | CV117: =CU117+1 -> 79 | CW117: =CV117+1 -> 80 | CX117: =CW117+1 -> 81 | CY117: =CX117+1 -> 82 | CZ117: =CY117+1 -> 83 | DA117: =CZ117+1 -> 84 | DB117: =DA117+1 -> 85 | DC117: =DB117+1 -> 86 | DD117: =DC117+1 -> 87 | DE117: =DD117+1 -> 88 | DF117: =DE117+1 -> 89 | DG117: =DF117+1 -> 90 | DH117: =DG117+1 -> 91 | DI117: =DH117+1 -> 92 | DJ117: =DI117+1 -> 93 | DK117: =DJ117+1 -> 94 | DL117: =DK117+1 -> 95 | DM117: =DL117+1 -> 96 | DN117: =DM117+1 -> 97 | DO117: =DN117+1 -> 98 | DP117: =DO117+1 -> 99 | DQ117: =DP117+1 -> 100 | DR117: =DQ117+1 -> 101 | DS117: =DR117+1 -> 102 | DT117: =DS117+1 -> 103 | DU117: =DT117+1 -> 104 | DV117: =DU117+1 -> 105 | DW117: =DV117+1 -> 106 | DX117: =DW117+1 -> 107 | DY117: =DX117+1 -> 108 | DZ117: =DY117+1 -> 109 | EA117: =DZ117+1 -> 110 | EB117: =EA117+1 -> 111 | EC117: =EB117+1 -> 112 | ED117: =EC117+1 -> 113 | EE117: =ED117+1 -> 114 | EF117: =EE117+1 -> 115 | EG117: =EF117+1 -> 116 | EH117: =EG117+1 -> 117 | EI117: =EH117+1 -> 118 | EJ117: =EI117+1 -> 119 | EK117: =EJ117+1 -> 120
C118: Total nominal grant amount (GCF portion) | D118: US$M | R118: Cash Out | S118: Total outstanding amount of loan disbursed (guaranteed by GCF )*
S119: Grant disbursement amount (GCF portion)
C120: Tenor of loans guaranteed by GCF | D120: Years | E120: 10 | R120: Cash In | S120: Guarantee fee payment due to GCF
C121: Guarantee fee grace period | D121: Years | E121: 0
C122: Guarantee Fee charged by GCF | D122: % p.a. (at the end of each year) | E122: 1.25 | R122: *Input the total amount of loan guaranteed by the GCF at the beginning of each year, not the amount of guaranteed loan disbursed
C123: Total other fees due to GCF on Day 0 | D123: US$M (on Day 0) | R123: Note: Disbursements are assumed to occur at the beginning of each period, and interest and commitment fee reflows at the end of each period, with interest accrued throughout the year.
C124: Loan (Guaranteed by GCF) Repayment assumption | D124: (at the beginning of each year) | E124: Equal principal payment | R124: Note: Principal repayments are also assumed to occur at the beginning of each period, starting from year 1.
C126: Loan (Guaranteed by GCF) Disbursement Schedule | E126: =IF(Calculation_Guarantee!E35>0,E127,0) -> 0 | F126: =IF(Calculation_Guarantee!F35>0,F127,0) -> 1 | G126: =IF(Calculation_Guarantee!G35>0,G127,0) -> 2 | H126: =IF(Calculation_Guarantee!H35>0,H127,0) -> 0 | I126: =IF(Calculation_Guarantee!I35>0,I127,0) -> 0 | J126: =IF(Calculation_Guarantee!J35>0,J127,0) -> 0 | K126: =IF(Calculation_Guarantee!K35>0,K127,0) -> 0 | L126: =IF(Calculation_Guarantee!L35>0,L127,0) -> 0 | M126: =IF(Calculation_Guarantee!M35>0,M127,0) -> 0 | N126: =IF(Calculation_Guarantee!N35>0,N127,0) -> 0 | O126: =IF(Calculation_Guarantee!O35>0,O127,0) -> 0
D127: Year of disbursement | E127: 0 | F127: =E127+1 -> 1 | G127: =F127+1 -> 2 | H127: 3 | I127: 4 | J127: 5 | K127: 6 | L127: 7 | M127: 8 | N127: 9 | O127: 10
D128: % of Total Nominal Amount Guaranteed by GCF (at the beginning of each year) | E128: 30 | F128: 30 | G128: 40
D129: Sum | E129: =IF(E116>0,IF(SUM(Calculation_Guarantee!E35:O35)=1,"100%: Correct","ERROR - Please check the inputs"),0) -> 100%: Correct
C131: Grant Disbursement Schedule (GCF Portion) | E131: =IF(Calculation_Guarantee!E36>0,E132,0) -> 0 | F131: =IF(Calculation_Guarantee!F36>0,F132,0) -> 0 | G131: =IF(Calculation_Guarantee!G36>0,G132,0) -> 0 | H131: =IF(Calculation_Guarantee!H36>0,H132,0) -> 0 | I131: =IF(Calculation_Guarantee!I36>0,I132,0) -> 0 | J131: =IF(Calculation_Guarantee!J36>0,J132,0) -> 0 | K131: =IF(Calculation_Guarantee!K36>0,K132,0) -> 0 | L131: =IF(Calculation_Guarantee!L36>0,L132,0) -> 0 | M131: =IF(Calculation_Guarantee!M36>0,M132,0) -> 0 | N131: =IF(Calculation_Guarantee!N36>0,N132,0) -> 0 | O131: =IF(Calculation_Guarantee!O36>0,O132,0) -> 0
D132: Year of disbursement | E132: 0 | F132: =E132+1 -> 1 | G132: =F132+1 -> 2 | H132: 3 | I132: 4 | J132: 5 | K132: 6 | L132: 7 | M132: 8 | N132: 9 | O132: 10
D133: % of Total Nominal Grant Amount Disbursed (GCF portion) (at the beginning of each year) | E133: 100
D134: Sum | E134: =IF(E118>0,IF(SUM(Calculation_Guarantee!E36:O36)=1,"100%: Correct","ERROR - Please check the inputs"),0) -> 0
C136: Note: Disbursements are assumed to occur at the beginning of each period, and interest and commitment fee reflows at the end of each period, with interest accrued throughout the year.
C137: Note: Principal repayments are also assumed to occur at the beginning of each period, starting from year 1.
C139: Discount Rate Input (applicable both to Standard and Manual Modes) | D139: Please fill all input cells
C141: Type of guarantee fee rate to be used | E141: Uniform discount rate
C142: Manually input guarantee rate (if applicable) | D142: % p.a. | F142: Leave it empty if not available
C143: Manually input discount rate (if applicable) | D143: % p.a. | F143: Leave it empty if not available
C144: Guarantee rate adopted | D144: % p.a. | E144: =CHOOSE('Discount Rate'!D40,'Discount Rate'!H7,'Discount Rate'!H19,E142) -> 5
C145: Discount rate adopted | D145: % p.a. | E145: =CHOOSE('Discount Rate'!D40,'Discount Rate'!H7,'Discount Rate'!H16,E143) -> 5
C149: RESULT
C151: Grant Equivalent: GCF Guarantee disbursement | D151: % of Total Amount Guaranteed | E151: =IF(AND(E116=0, SUM(U118:EK118)=0),"",IFERROR(Calculation_Guarantee!I8/100,"ERROR - Please check the inputs")) -> 0.1485845038
C152: Grant Equivalent: GCF Guarantee disbursement | D152: US$M | E152: =IFERROR(Calculation_Guarantee!I9, "ERROR - Please check the inputs") -> 2.971690076
C154: Grant Equivalent: Total GCF Funding | D154: % of Total Amount Guaranteed and Nominal Grant Amount | E154: =IF(AND(E116=0, SUM(U118:EK118)=0),"",IF($E$112="Standard",IFERROR(E155/(E116+E118),"ERROR - Please check the inputs"),IFERROR(Calculation_Guarantee!D181/100,"ERROR - Please check the inputs"))) -> 0.1485845038
C155: Grant Equivalent: Total GCF Funding | D155: US$M | E155: =IF($E$112="Standard",IFERROR(E152+E118, "ERROR - Please check the inputs"), IFERROR(Calculation_Guarantee!D182, "ERROR - Please check the inputs")) -> 2.971690076
B160: NOTE: If the discount rates used for any of the instruments above have been input manually, please include a brief explanation for the rationale below:

Sheet Results Chart (hidden)
A1: Calculation result
B4: Funding Instruments Used | C4: =IF(ISNUMBER(M5),"Loan","")&IF(ISNUMBER(T5),"+Equity","")&IF(ISNUMBER(AA5),"+Guarantee","") -> Loan+Equity+Guarantee | L4: Funding instrument | M4: Loan | S4: Funding instrument | T4: Equity | Z4: Funding instrument | AA4: Guarantee
B5: Grant equivalent of non-grant funding (%) | C5: =SUM(C22,E22,G22)/SUM(C19,E19,G19) -> 0.2591611639 | L5: Grant equivalent of non-grant funding (%) | M5: ='User Panel'!E51 -> 0.2265733363 | S5: Grant equivalent of non-grant funding (%) | T5: ='User Panel'!E101 -> 0.3959190628 | Z5: Grant equivalent of non-grant funding (%) | AA5: ='User Panel'!E151 -> 0.1485845038
B6: Total Grant Equivalent of GCF Funding(%) | C6: =SUM(C22,D22,E22,F22,G22,H22)/SUM(C19,E19,G19) -> 0.2716611639 | L6: Total Grant Equivalent of GCF Funding(%) | M6: ='User Panel'!E54 -> 0.241738565 | S6: Total Grant Equivalent of GCF Funding(%) | T6: ='User Panel'!E104 -> 0.3959190628 | Z6: Total Grant Equivalent of GCF Funding(%) | AA6: ='User Panel'!E154 -> 0.1485845038
B11: Column Titles | C11: Total nominal investment amount provided/guaranteed by the GCF | D11: Total nominal investment amount provided by the GCF | F11: Total nominal investment amount guaranteed by the GCF
C12: Present Value of GCF's outflows* | D12: Present Value of GCF's outflows | F12: Present Value of Fees based on risk level of an average GCF proposal
C13: Present Value of GCF's inflows* | D13: Present Value of GCF's inflows | F13: Present Value of Fees charged by GCF
C14: Grant equivalent amount | D14: Grant equivalent amount | F14: Grant equivalent amount
B18: Individual Instruemtsn | C18: Loan | E18: Equity | G18: Guarantee
B19: Total nominal investment amount provided by the GCF | C19: =Calculation_Loan!I5 -> 100 | E19: =Calculation_Equity!I5 -> 40 | G19: =Calculation_Guarantee!I5 -> 20
B20: Present Value of GCF's outflows | C20: =Calculation_Loan!I6 -> 96.66666667 | E20: =Calculation_Equity!I6 -> 37.93197279 | G20: =Calculation_Guarantee!I6 -> 3.962253435
B21: Present Value of GCF's inflows (2nd Column) | C21: =$C$20-$D$21 -> 22.65733363 | D21: =Calculation_Loan!I7 -> 74.00933304 | E21: =$E$20-$F$21 -> 15.83676251 | F21: =Calculation_Equity!I7 -> 22.09521028 | G21: =$G$20-$H$21 -> 2.971690076 | H21: =Calculation_Guarantee!I7 -> 0.9905633587
B22: Grant equivalent amount + Nominal Grant Amount (2nd Column) | C22: =Calculation_Loan!I9 -> 22.65733363 | D22: ='User Panel'!E17 -> 2 | E22: =Calculation_Equity!I9 -> 15.83676251 | F22: ='User Panel'!E68 -> 0 | G22: =Calculation_Guarantee!I9 -> 2.971690076 | H22: ='User Panel'!E118 -> 0
B25: Total Funding | C25: Loan | D25: Equity | E25: Gurantee
B26: Total nominal investment amount provided by the GCF | C26: =Calculation_Loan!I5 -> 100 | D26: =Calculation_Equity!I5 -> 40 | E26: =Calculation_Guarantee!I5 -> 20
B27: Present Value of GCF's outflows | C27: =Calculation_Loan!I6 -> 96.66666667 | D27: =Calculation_Equity!I6 -> 37.93197279 | E27: =Calculation_Guarantee!I6 -> 3.962253435
B28: Present Value of GCF's inflows | C28: =$C$20-$D$21 -> 22.65733363 | D28: =$E$20-$F$21 -> 15.83676251 | E28: =$G$20-$H$21 -> 2.971690076 | F28: =Calculation_Loan!I7 -> 74.00933304 | G28: =Calculation_Equity!I7 -> 22.09521028 | H28: =Calculation_Guarantee!I7 -> 0.9905633587
B29: Grant equivalent amount + Total nominal Grant Amount | C29: =Calculation_Loan!I9 -> 22.65733363 | D29: =Calculation_Equity!I9 -> 15.83676251 | E29: =Calculation_Guarantee!I9 -> 2.971690076 | I29: ='User Panel'!E17+'User Panel'!E68+'User Panel'!E118 -> 2

Sheet GE Calculation >> (hidden)

Sheet Calculation_Loan (hidden)
B1: Grant Equivalent Calculator - Loan
B3: INPUT | D3: ='User Panel'!E11 -> Standard | F3: OUTPUT
B5: Total loan amount | C5: US$M | D5: ='User Panel'!E15 -> 100 | F5: Total GCF investment | I5: =IF($D$3="Standard",D107,$D$256) -> 100
B6: Commitment fee | C6: % of undisbursed amount | D6: ='User Panel'!E19 -> 0 | F6: PV of repayments in the market | I6: =IF($I$12=TRUE,IF($D$3="Standard",CHOOSE('Instrument Type Selected'!$D$19,D119,D166,D192,D218,D243,D143),D270),"ERROR - Please check the inputs") -> 96.66666667
B7: Other fees | C7: US$M | D7: ='User Panel'!E20 -> 0 | F7: PV of repayments to the GCF | I7: =IF($I$12=TRUE,IF($D$3="Standard",CHOOSE('Instrument Type Selected'!$D$19,D120,D167,D193,D219,D244,D144),D271),"ERROR - Please check the inputs") -> 74.00933304
B8: Grace period | C8: Year | D8: =IF('User Panel'!E23-1<0,0,'User Panel'!E23-1) -> 2 | F8: Grant Equivalent (%) | I8: =IF($I$12=TRUE,IF($D$3="Standard",CHOOSE('Instrument Type Selected'!$D$19,D123,D170,D196,D222,D247,D147),D278),"ERROR - Please check the inputs") -> 22.65733363
B9: Does the grace period apply to interest payment? | D9: ='User Panel'!E24 -> No | F9: Grant Equivalent (amount) | I9: =IF($I$12=TRUE,IF($D$3="Standard",CHOOSE('Instrument Type Selected'!$D$19,D124,D171,D197,D223,D248,D148),D279),"ERROR - Please check the inputs") -> 22.65733363
B10: Repayment type | D10: ='User Panel'!E25 -> Equal principal payment
B11: GCF interest rate | C11: % p.a. | D11: ='User Panel'!E26 -> 2
B12: Tenor | C12: Year | D12: ='User Panel'!E22 -> 20 | F12: ERROR CHECK | I12: =COUNTIF($I$14:$I$24,"ERROR - Please check the inputs")=0 -> TRUE
B13: Repayment per year (unused - leave at 1) | D13: 1 | F13: Standard mode
B14: Discount rate | C14: % p.a. | D14: ='User Panel'!E46 -> 5 | F14: Residual principal = 0 | I14: =IF($D$3="Standard",IF(ROUND(SUM(DU139,DU187,DU115,DU162,DU213,DU239),4)=0,0,"ERROR - Please check the inputs"),0) -> 0
B15: Loan instrument chosen | D15: ='User Panel'!E44 -> Uniform discount rate | F15: Tenor > Grace period | I15: =IF($D$3="Standard",IF(L_TENOR>L_GRACE,0,"ERROR - Please check the inputs"),0) -> 0
F16: Tenor > Disbursement period | I16: =IF($D$3="Standard",IF((L_TENOR>MAX('User Panel'!E29:O29)),0,"ERROR - Please check the inputs"),0) -> 0
F17: Tenor within limit | I17: =IF($D$3="Standard",IF(L_TENOR<=DU29,0,"ERROR - Please check the inputs"),0) -> 0
F18: PV of outflow > 0 | I18: =IF($D$3="Standard",IF(AND(D192>0,D119>0,D166>0,D218>0,D243>0, D143>0),0,"ERROR - Please check the inputs"),0) -> 0
F19: PV of inflow > 0 | I19: =IF($D$3="Standard",IF(AND(D193>0,D120>0,D167>0,D219>0,D244>0),0,"ERROR - Please check the inputs"),0) -> 0
F20: Full year | I20: =IF($D$3="Standard",IF(AND(MOD(L_GRACE,1)=0,MOD(L_TENOR,1)=0),0,"ERROR - Please check the inputs"),0) -> 0
F21: Full disbursement of Loan | I21: =IF($D$3="Standard",IF(AND(D106=L_TOTAL_LOAN, SUM(Calculation_Loan!E35:O35)=1),0,"ERROR - Please check the inputs"),0) -> 0
F22: Full disbursement of Grant | I22: =IF($D$3="Standard",IF('User Panel'!E16>0,IF(D101='User Panel'!E16,0,"ERROR - Please check the inputs"),0),0) -> 0
F23: Manual mode
F24: Residual principal = 0 | I24: =IF(AND($D$3="MANUAL",ROUND($DU$266,5)<>0),"ERROR - Please check the inputs",0) -> 0
B27: Intermediate calculation steps hidden below (for all repayment schedules)
B28: Period | D28: SUM | E28: 0 | F28: =E28+1 -> 1 | G28: =F28+1 -> 2 | H28: 3 | I28: 4 | J28: 5 | K28: 6 | L28: 7 | M28: 8 | N28: 9 | O28: 10 | P28: 11 | Q28: 12 | R28: 13 | S28: 14 | T28: 15 | U28: 16 | V28: 17 | W28: 18 | X28: 19 | Y28: 20 | Z28: 21 | AA28: 22 | AB28: 23 | AC28: 24 | AD28: 25 | AE28: 26 | AF28: 27 | AG28: 28 | AH28: 29 | AI28: 30 | AJ28: 31 | AK28: 32 | AL28: 33 | AM28: 34 | AN28: 35 | AO28: 36 | AP28: 37 | AQ28: 38 | AR28: 39 | AS28: 40 | AT28: 41 | AU28: 42 | AV28: 43 | AW28: 44 | AX28: 45 | AY28: 46 | AZ28: 47 | BA28: 48 | BB28: 49 | BC28: 50 | BD28: =BC28+1 -> 51 | BE28: 52 | BF28: 53 | BG28: 54 | BH28: 55 | BI28: 56 | BJ28: 57 | BK28: 58 | BL28: 59 | BM28: 60 | BN28: 61 | BO28: 62 | BP28: 63 | BQ28: 64 | BR28: 65 | BS28: 66 | BT28: 67 | BU28: 68 | BV28: 69 | BW28: 70 | BX28: 71 | BY28: 72 | BZ28: 73 | CA28: 74 | CB28: 75 | CC28: 76 | CD28: 77 | CE28: 78 | CF28: 79 | CG28: 80 | CH28: 81 | CI28: 82 | CJ28: =CI28+1 -> 83 | CK28: 84 | CL28: 85 | CM28: 86 | CN28: 87 | CO28: 88 | CP28: 89 | CQ28: 90 | CR28: 91 | CS28: 92 | CT28: 93 | CU28: 94 | CV28: 95 | CW28: 96 | CX28: 97 | CY28: 98 | CZ28: 99 | DA28: 100 | DB28: 101 | DC28: 102 | DD28: 103 | DE28: 104 | DF28: 105 | DG28: 106 | DH28: 107 | DI28: 108 | DJ28: 109 | DK28: 110 | DL28: 111 | DM28: 112 | DN28: 113 | DO28: 114 | DP28: =DO28+1 -> 115 | DQ28: 116 | DR28: 117 | DS28: 118 | DT28: 119 | DU28: 120
B29: Year | E29: =E28/L_NUM_REPAY -> 0 | F29: =ROUNDUP(F28/L_NUM_REPAY,0) -> 1 | G29: 2 | H29: 3 | I29: 4 | J29: 5 | K29: 6 | L29: 7 | M29: 8 | N29: 9 | O29: 10 | P29: 11 | Q29: 12 | R29: 13 | S29: 14 | T29: 15 | U29: 16 | V29: 17 | W29: 18 | X29: 19 | Y29: 20 | Z29: 21 | AA29: 22 | AB29: 23 | AC29: 24 | AD29: 25 | AE29: 26 | AF29: 27 | AG29: 28 | AH29: 29 | AI29: 30 | AJ29: 31 | AK29: 32 | AL29: =ROUNDUP(AL28/L_NUM_REPAY,0) -> 33 | AM29: 34 | AN29: 35 | AO29: 36 | AP29: 37 | AQ29: 38 | AR29: 39 | AS29: 40 | AT29: 41 | AU29: 42 | AV29: 43 | AW29: 44 | AX29: 45 | AY29: 46 | AZ29: 47 | BA29: 48 | BB29: 49 | BC29: 50 | BD29: =ROUNDUP(BD28/L_NUM_REPAY,0) -> 51 | BE29: 52 | BF29: 53 | BG29: 54 | BH29: 55 | BI29: 56 | BJ29: 57 | BK29: 58 | BL29: 59 | BM29: 60 | BN29: 61 | BO29: 62 | BP29: 63 | BQ29: 64 | BR29: 65 | BS29: 66 | BT29: 67 | BU29: 68 | BV29: 69 | BW29: 70 | BX29: 71 | BY29: 72 | BZ29: 73 | CA29: 74 | CB29: 75 | CC29: 76 | CD29: 77 | CE29: 78 | CF29: 79 | CG29: 80 | CH29: 81 | CI29: 82 | CJ29: 83 | CK29: 84 | CL29: 85 | CM29: 86 | CN29: 87 | CO29: 88 | CP29: 89 | CQ29: 90 | CR29: 91 | CS29: 92 | CT29: 93 | CU29: 94 | CV29: 95 | CW29: 96 | CX29: 97 | CY29: 98 | CZ29: 99 | DA29: 100 | DB29: =ROUNDUP(DB28/L_NUM_REPAY,0) -> 101 | DC29: 102 | DD29: 103 | DE29: 104 | DF29: 105 | DG29: 106 | DH29: 107 | DI29: 108 | DJ29: 109 | DK29: 110 | DL29: 111 | DM29: 112 | DN29: 113 | DO29: 114 | DP29: 115 | DQ29: 116 | DR29: 117 | DS29: 118 | DT29: 119 | DU29: 120
B30: Remaining tenor (at end of period) | E30: =MAX(0,L_TENOR*L_NUM_REPAY-E$28) -> 20 | F30: =MAX(0,L_TENOR*L_NUM_REPAY-F$28) -> 19 | G30: 18 | H30: 17 | I30: 16 | J30: 15 | K30: 14 | L30: 13 | M30: 12 | N30: 11 | O30: 10 | P30: 9 | Q30: 8 | R30: 7 | S30: 6 | T30: 5 | U30: 4 | V30: 3 | W30: 2 | X30: 1 | Y30: 0 | Z30: 0 | AA30: 0 | AB30: 0 | AC30: 0 | AD30: 0 | AE30: 0 | AF30: 0 | AG30: 0 | AH30: 0 | AI30: 0 | AJ30: 0 | AK30: =MAX(0,L_TENOR*L_NUM_REPAY-AK$28) -> 0 | AL30: 0 | AM30: 0 | AN30: 0 | AO30: 0 | AP30: 0 | AQ30: 0 | AR30: 0 | AS30: 0 | AT30: 0 | AU30: 0 | AV30: 0 | AW30: 0 | AX30: 0 | AY30: 0 | AZ30: 0 | BA30: 0 | BB30: 0 | BC30: 0 | BD30: 0 | BE30: 0 | BF30: 0 | BG30: 0 | BH30: 0 | BI30: 0 | BJ30: 0 | BK30: 0 | BL30: 0 | BM30: 0 | BN30: 0 | BO30: 0 | BP30: 0 | BQ30: =MAX(0,L_TENOR*L_NUM_REPAY-BQ$28) -> 0 | BR30: 0 | BS30: 0 | BT30: 0 | BU30: 0 | BV30: 0 | BW30: 0 | BX30: 0 | BY30: 0 | BZ30: 0 | CA30: 0 | CB30: 0 | CC30: 0 | CD30: 0 | CE30: 0 | CF30: 0 | CG30: 0 | CH30: 0 | CI30: 0 | CJ30: 0 | CK30: 0 | CL30: 0 | CM30: 0 | CN30: 0 | CO30: 0 | CP30: 0 | CQ30: 0 | CR30: 0 | CS30: 0 | CT30: 0 | CU30: 0 | CV30: 0 | CW30: =MAX(0,L_TENOR*L_NUM_REPAY-CW$28) -> 0 | CX30: 0 | CY30: 0 | CZ30: 0 | DA30: 0 | DB30: 0 | DC30: 0 | DD30: 0 | DE30: 0 | DF30: 0 | DG30: 0 | DH30: 0 | DI30: 0 | DJ30: 0 | DK30: 0 | DL30: 0 | DM30: 0 | DN30: 0 | DO30: 0 | DP30: 0 | DQ30: 0 | DR30: 0 | DS30: 0 | DT30: 0 | DU30: 0
B31: Remaining number of payment (at end of period) | E31: =MAX(0,L_TENOR*L_NUM_REPAY-E$28)-L_GRACE*L_NUM_REPAY -> 18 | F31: =E31-F32 -> 18 | G31: =F31-G32 -> 18 | H31: 17 | I31: 16 | J31: 15 | K31: 14 | L31: 13 | M31: 12 | N31: 11 | O31: 10 | P31: 9 | Q31: 8 | R31: 7 | S31: 6 | T31: 5 | U31: 4 | V31: 3 | W31: 2 | X31: 1 | Y31: 0 | Z31: 0 | AA31: 0 | AB31: 0 | AC31: 0 | AD31: 0 | AE31: 0 | AF31: 0 | AG31: 0 | AH31: 0 | AI31: 0 | AJ31: 0 | AK31: 0 | AL31: =AK31-AL32 -> 0 | AM31: 0 | AN31: 0 | AO31: 0 | AP31: 0 | AQ31: 0 | AR31: 0 | AS31: 0 | AT31: 0 | AU31: 0 | AV31: 0 | AW31: 0 | AX31: 0 | AY31: 0 | AZ31: 0 | BA31: 0 | BB31: 0 | BC31: 0 | BD31: 0 | BE31: 0 | BF31: 0 | BG31: 0 | BH31: 0 | BI31: 0 | BJ31: 0 | BK31: 0 | BL31: 0 | BM31: 0 | BN31: 0 | BO31: 0 | BP31: 0 | BQ31: 0 | BR31: =BQ31-BR32 -> 0 | BS31: 0 | BT31: 0 | BU31: 0 | BV31: 0 | BW31: 0 | BX31: 0 | BY31: 0 | BZ31: 0 | CA31: 0 | CB31: 0 | CC31: 0 | CD31: 0 | CE31: 0 | CF31: 0 | CG31: 0 | CH31: 0 | CI31: 0 | CJ31: 0 | CK31: 0 | CL31: 0 | CM31: 0 | CN31: 0 | CO31: 0 | CP31: 0 | CQ31: 0 | CR31: 0 | CS31: 0 | CT31: 0 | CU31: 0 | CV31: 0 | CW31: 0 | CX31: =CW31-CX32 -> 0 | CY31: 0 | CZ31: 0 | DA31: 0 | DB31: 0 | DC31: 0 | DD31: 0 | DE31: 0 | DF31: 0 | DG31: 0 | DH31: 0 | DI31: 0 | DJ31: 0 | DK31: 0 | DL31: 0 | DM31: 0 | DN31: 0 | DO31: 0 | DP31: 0 | DQ31: 0 | DR31: 0 | DS31: 0 | DT31: 0 | DU31: 0
B32: Repayment period | E32: =IF(E$28<=L_TENOR*L_NUM_REPAY,IF(E$28<>0,IF(E$28>L_GRACE*L_NUM_REPAY,1,0),0),0) -> 0 | F32: =IF(F$28<=L_TENOR*L_NUM_REPAY,IF(F$28<>0,IF(F$28>L_GRACE*L_NUM_REPAY,1,0),0),0) -> 0 | G32: 0 | H32: 1 | I32: 1 | J32: 1 | K32: 1 | L32: 1 | M32: 1 | N32: 1 | O32: 1 | P32: 1 | Q32: 1 | R32: 1 | S32: 1 | T32: 1 | U32: 1 | V32: 1 | W32: 1 | X32: 1 | Y32: 1 | Z32: 0 | AA32: 0 | AB32: 0 | AC32: 0 | AD32: 0 | AE32: 0 | AF32: 0 | AG32: 0 | AH32: 0 | AI32: 0 | AJ32: 0 | AK32: =IF(AK$28<=L_TENOR*L_NUM_REPAY,IF(AK$28<>0,IF(AK$28>L_GRACE*L_NUM_REPAY,1,0),0),0) -> 0 | AL32: 0 | AM32: 0 | AN32: 0 | AO32: 0 | AP32: 0 | AQ32: 0 | AR32: 0 | AS32: 0 | AT32: 0 | AU32: 0 | AV32: 0 | AW32: 0 | AX32: 0 | AY32: 0 | AZ32: 0 | BA32: 0 | BB32: 0 | BC32: 0 | BD32: 0 | BE32: 0 | BF32: 0 | BG32: 0 | BH32: 0 | BI32: 0 | BJ32: 0 | BK32: 0 | BL32: 0 | BM32: 0 | BN32: 0 | BO32: 0 | BP32: 0 | BQ32: 0 | BR32: 0 | BS32: 0 | BT32: 0 | BU32: 0 | BV32: 0 | BW32: 0 | BX32: 0 | BY32: 0 | BZ32: 0 | CA32: 0 | CB32: 0 | CC32: 0 | CD32: 0 | CE32: 0 | CF32: 0 | CG32: 0 | CH32: 0 | CI32: 0 | CJ32: 0 | CK32: 0 | CL32: 0 | CM32: 0 | CN32: 0 | CO32: 0 | CP32: 0 | CQ32: 0 | CR32: 0 | CS32: 0 | CT32: 0 | CU32: 0 | CV32: 0 | CW32: =IF(CW$28<=L_TENOR*L_NUM_REPAY,IF(CW$28<>0,IF(CW$28>L_GRACE*L_NUM_REPAY,1,0),0),0) -> 0 | CX32: 0 | CY32: 0 | CZ32: 0 | DA32: 0 | DB32: 0 | DC32: 0 | DD32: 0 | DE32: 0 | DF32: 0 | DG32: 0 | DH32: 0 | DI32: 0 | DJ32: 0 | DK32: 0 | DL32: 0 | DM32: 0 | DN32: 0 | DO32: 0 | DP32: 0 | DQ32: 0 | DR32: 0 | DS32: 0 | DT32: 0 | DU32: 0
B33: Repayment period - lump sum principal | E33: =IF(E$28=L_TENOR*L_NUM_REPAY,1,0) -> 0 | F33: =IF(F$28=L_TENOR*L_NUM_REPAY,1,0) -> 0 | G33: 0 | H33: 0 | I33: 0 | J33: 0 | K33: 0 | L33: 0 | M33: 0 | N33: 0 | O33: 0 | P33: 0 | Q33: 0 | R33: 0 | S33: 0 | T33: 0 | U33: 0 | V33: 0 | W33: 0 | X33: 0 | Y33: 1 | Z33: 0 | AA33: 0 | AB33: 0 | AC33: 0 | AD33: 0 | AE33: 0 | AF33: 0 | AG33: 0 | AH33: 0 | AI33: 0 | AJ33: 0 | AK33: =IF(AK$28=L_TENOR*L_NUM_REPAY,1,0) -> 0 | AL33: 0 | AM33: 0 | AN33: 0 | AO33: 0 | AP33: 0 | AQ33: 0 | AR33: 0 | AS33: 0 | AT33: 0 | AU33: 0 | AV33: 0 | AW33: 0 | AX33: 0 | AY33: 0 | AZ33: 0 | BA33: 0 | BB33: 0 | BC33: 0 | BD33: 0 | BE33: 0 | BF33: 0 | BG33: 0 | BH33: 0 | BI33: 0 | BJ33: 0 | BK33: 0 | BL33: 0 | BM33: 0 | BN33: 0 | BO33: 0 | BP33: 0 | BQ33: 0 | BR33: 0 | BS33: 0 | BT33: 0 | BU33: 0 | BV33: 0 | BW33: 0 | BX33: 0 | BY33: 0 | BZ33: 0 | CA33: 0 | CB33: 0 | CC33: 0 | CD33: 0 | CE33: 0 | CF33: 0 | CG33: 0 | CH33: 0 | CI33: 0 | CJ33: 0 | CK33: 0 | CL33: 0 | CM33: 0 | CN33: 0 | CO33: 0 | CP33: 0 | CQ33: 0 | CR33: 0 | CS33: 0 | CT33: 0 | CU33: 0 | CV33: 0 | CW33: =IF(CW$28=L_TENOR*L_NUM_REPAY,1,0) -> 0 | CX33: 0 | CY33: 0 | CZ33: 0 | DA33: 0 | DB33: 0 | DC33: 0 | DD33: 0 | DE33: 0 | DF33: 0 | DG33: 0 | DH33: 0 | DI33: 0 | DJ33: 0 | DK33: 0 | DL33: 0 | DM33: 0 | DN33: 0 | DO33: 0 | DP33: 0 | DQ33: 0 | DR33: 0 | DS33: 0 | DT33: 0 | DU33: 0
E35: ='User Panel'!E31/100 -> 0.3 | F35: ='User Panel'!F31/100 -> 0.7 | G35: ='User Panel'!G31/100 -> 0 | H35: ='User Panel'!H31/100 -> 0 | I35: ='User Panel'!I31/100 -> 0 | J35: ='User Panel'!J31/100 -> 0 | K35: ='User Panel'!K31/100 -> 0 | L35: ='User Panel'!L31/100 -> 0 | M35: ='User Panel'!M31/100 -> 0 | N35: ='User Panel'!N31/100 -> 0 | O35: ='User Panel'!O31/100 -> 0
E36: ='User Panel'!E36/100 -> 1 | F36: ='User Panel'!F36/100 -> 0 | G36: ='User Panel'!G36/100 -> 0 | H36: ='User Panel'!H36/100 -> 0 | I36: ='User Panel'!I36/100 -> 0 | J36: ='User Panel'!J36/100 -> 0 | K36: ='User Panel'!K36/100 -> 0 | L36: ='User Panel'!L36/100 -> 0 | M36: ='User Panel'!M36/100 -> 0 | N36: ='User Panel'!N36/100 -> 0 | O36: ='User Panel'!O36/100 -> 0
B38: EQUAL PRINCIPAL PAYMENT | DV38: Repayment start year | DW38: Disbursement
B39: Principal Tranche 0 | D39: =SUM(E39:DU39) -> 30 | E39: 0 | F39: =IF($DW39>0, IF(F$28<=(L_TENOR*L_NUM_REPAY),IF(F$28<>0,IF(F$28>(L_GRACE*L_NUM_REPAY),(($DW39-SUM($E39:E39))/E$31),0),0),0),0) -> 0 | G39: =(IF($DW39>0,IF(G$28<=(L_TENOR*L_NUM_REPAY),IF(G$28<>0,IF(G$28>(L_GRACE*L_NUM_REPAY),(($DW39-SUM($E39:F39))/F$31),0),0),0),0)) -> 0 | H39: =(IF($DW39>0,IF(H$28<=(L_TENOR*L_NUM_REPAY),IF(H$28<>0,IF(H$28>(L_GRACE*L_NUM_REPAY),(($DW39-SUM($E39:G39))/G$31),0),0),0),0)) -> 1.666666667 | I39: =(IF($DW39>0,IF(I$28<=(L_TENOR*L_NUM_REPAY),IF(I$28<>0,IF(I$28>(L_GRACE*L_NUM_REPAY),(($DW39-SUM($E39:H39))/H$31),0),0),0),0)) -> 1.666666667 | J39: =(IF($DW39>0,IF(J$28<=(L_TENOR*L_NUM_REPAY),IF(J$28<>0,IF(J$28>(L_GRACE*L_NUM_REPAY),(($DW39-SUM($E39:I39))/I$31),0),0),0),0)) -> 1.666666667 | K39: =(IF($DW39>0,IF(K$28<=(L_TENOR*L_NUM_REPAY),IF(K$28<>0,IF(K$28>(L_GRACE*L_NUM_REPAY),(($DW39-SUM($E39:J39))/J$31),0),0),0),0)) -> 1.666666667 | L39: =(IF($DW39>0,IF(L$28<=(L_TENOR*L_NUM_REPAY),IF(L$28<>0,IF(L$28>(L_GRACE*L_NUM_REPAY),(($DW39-SUM($E39:K39))/K$31),0),0),0),0)) -> 1.666666667 | M39: =(IF($DW39>0,IF(M$28<=(L_TENOR*L_NUM_REPAY),IF(M$28<>0,IF(M$28>(L_GRACE*L_NUM_REPAY),(($DW39-SUM($E39:L39))/L$31),0),0),0),0)) -> 1.666666667 | N39: =(IF($DW39>0,IF(N$28<=(L_TENOR*L_NUM_REPAY),IF(N$28<>0,IF(N$28>(L_GRACE*L_NUM_REPAY),(($DW39-SUM($E39:M39))/M$31),0),0),0),0)) -> 1.666666667 | O39: =(IF($DW39>0,IF(O$28<=(L_TENOR*L_NUM_REPAY),IF(O$28<>0,IF(O$28>(L_GRACE*L_NUM_REPAY),(($DW39-SUM($E39:N39))/N$31),0),0),0),0)) -> 1.666666667 | P39: =(IF($DW39>0,IF(P$28<=(L_TENOR*L_NUM_REPAY),IF(P$28<>0,IF(P$28>(L_GRACE*L_NUM_REPAY),(($DW39-SUM($E39:O39))/O$31),0),0),0),0)) -> 1.666666667 | Q39: =(IF($DW39>0,IF(Q$28<=(L_TENOR*L_NUM_REPAY),IF(Q$28<>0,IF(Q$28>(L_GRACE*L_NUM_REPAY),(($DW39-SUM($E39:P39))/P$31),0),0),0),0)) -> 1.666666667 | R39: =(IF($DW39>0,IF(R$28<=(L_TENOR*L_NUM_REPAY),IF(R$28<>0,IF(R$28>(L_GRACE*L_NUM_REPAY),(($DW39-SUM($E39:Q39))/Q$31),0),0),0),0)) -> 1.666666667 | S39: =(IF($DW39>0,IF(S$28<=(L_TENOR*L_NUM_REPAY),IF(S$28<>0,IF(S$28>(L_GRACE*L_NUM_REPAY),(($DW39-SUM($E39:R39))/R$31),0),0),0),0)) -> 1.666666667 | T39: =(IF($DW39>0,IF(T$28<=(L_TENOR*L_NUM_REPAY),IF(T$28<>0,IF(T$28>(L_GRACE*L_NUM_REPAY),(($DW39-SUM($E39:S39))/S$31),0),0),0),0)) -> 1.666666667 | U39: =(IF($DW39>0,IF(U$28<=(L_TENOR*L_NUM_REPAY),IF(U$28<>0,IF(U$28>(L_GRACE*L_NUM_REPAY),(($DW39-SUM($E39:T39))/T$31),0),0),0),0)) -> 1.666666667 | V39: =(IF($DW39>0,IF(V$28<=(L_TENOR*L_NUM_REPAY),IF(V$28<>0,IF(V$28>(L_GRACE*L_NUM_REPAY),(($DW39-SUM($E39:U39))/U$31),0),0),0),0)) -> 1.666666667 | W39: =(IF($DW39>0,IF(W$28<=(L_TENOR*L_NUM_REPAY),IF(W$28<>0,IF(W$28>(L_GRACE*L_NUM_REPAY),(($DW39-SUM($E39:V39))/V$31),0),0),0),0)) -> 1.666666667 | X39: =(IF($DW39>0,IF(X$28<=(L_TENOR*L_NUM_REPAY),IF(X$28<>0,IF(X$28>(L_GRACE*L_NUM_REPAY),(($DW39-SUM($E39:W39))/W$31),0),0),0),0)) -> 1.666666667 | Y39: =(IF($DW39>0,IF(Y$28<=(L_TENOR*L_NUM_REPAY),IF(Y$28<>0,IF(Y$28>(L_GRACE*L_NUM_REPAY),(($DW39-SUM($E39:X39))/X$31),0),0),0),0)) -> 1.666666667 | Z39: =(IF($DW39>0,IF(Z$28<=(L_TENOR*L_NUM_REPAY),IF(Z$28<>0,IF(Z$28>(L_GRACE*L_NUM_REPAY),(($DW39-SUM($E39:Y39))/Y$31),0),0),0),0)) -> 0 | AA39: =(IF($DW39>0,IF(AA$28<=(L_TENOR*L_NUM_REPAY),IF(AA$28<>0,IF(AA$28>(L_GRACE*L_NUM_REPAY),(($DW39-SUM($E39:Z39))/Z$31),0),0),0),0)) -> 0 | AB39: =(IF($DW39>0,IF(AB$28<=(L_TENOR*L_NUM_REPAY),IF(AB$28<>0,IF(AB$28>(L_GRACE*L_NUM_REPAY),(($DW39-SUM($E39:AA39))/AA$31),0),0),0),0)) -> 0 | AC39: =(IF($DW39>0,IF(AC$28<=(L_TENOR*L_NUM_REPAY),IF(AC$28<>0,IF(AC$28>(L_GRACE*L_NUM_REPAY),(($DW39-SUM($E39:AB39))/AB$31),0),0),0),0)) -> 0 | AD39: =(IF($DW39>0,IF(AD$28<=(L_TENOR*L_NUM_REPAY),IF(AD$28<>0,IF(AD$28>(L_GRACE*L_NUM_REPAY),(($DW39-SUM($E39:AC39))/AC$31),0),0),0),0)) -> 0 | AE39: =(IF($DW39>0,IF(AE$28<=(L_TENOR*L_NUM_REPAY),IF(AE$28<>0,IF(AE$28>(L_GRACE*L_NUM_REPAY),(($DW39-SUM($E39:AD39))/AD$31),0),0),0),0)) -> 0 | AF39: =(IF($DW39>0,IF(AF$28<=(L_TENOR*L_NUM_REPAY),IF(AF$28<>0,IF(AF$28>(L_GRACE*L_NUM_REPAY),(($DW39-SUM($E39:AE39))/AE$31),0),0),0),0)) -> 0 | AG39: =(IF($DW39>0,IF(AG$28<=(L_TENOR*L_NUM_REPAY),IF(AG$28<>0,IF(AG$28>(L_GRACE*L_NUM_REPAY),(($DW39-SUM($E39:AF39))/AF$31),0),0),0),0)) -> 0 | AH39: =(IF($DW39>0,IF(AH$28<=(L_TENOR*L_NUM_REPAY),IF(AH$28<>0,IF(AH$28>(L_GRACE*L_NUM_REPAY),(($DW39-SUM($E39:AG39))/AG$31),0),0),0),0)) -> 0 | AI39: =(IF($DW39>0,IF(AI$28<=(L_TENOR*L_NUM_REPAY),IF(AI$28<>0,IF(AI$28>(L_GRACE*L_NUM_REPAY),(($DW39-SUM($E39:AH39))/AH$31),0),0),0),0)) -> 0 | AJ39: =(IF($DW39>0,IF(AJ$28<=(L_TENOR*L_NUM_REPAY),IF(AJ$28<>0,IF(AJ$28>(L_GRACE*L_NUM_REPAY),(($DW39-SUM($E39:AI39))/AI$31),0),0),0),0)) -> 0 | AK39: =(IF($DW39>0,IF(AK$28<=(L_TENOR*L_NUM_REPAY),IF(AK$28<>0,IF(AK$28>(L_GRACE*L_NUM_REPAY),(($DW39-SUM($E39:AJ39))/AJ$31),0),0),0),0)) -> 0 | AL39: =(IF($DW39>0,IF(AL$28<=(L_TENOR*L_NUM_REPAY),IF(AL$28<>0,IF(AL$28>(L_GRACE*L_NUM_REPAY),(($DW39-SUM($E39:AK39))/AK$31),0),0),0),0)) -> 0 | AM39: =(IF($DW39>0,IF(AM$28<=(L_TENOR*L_NUM_REPAY),IF(AM$28<>0,IF(AM$28>(L_GRACE*L_NUM_REPAY),(($DW39-SUM($E39:AL39))/AL$31),0),0),0),0)) -> 0 | AN39: =(IF($DW39>0,IF(AN$28<=(L_TENOR*L_NUM_REPAY),IF(AN$28<>0,IF(AN$28>(L_GRACE*L_NUM_REPAY),(($DW39-SUM($E39:AM39))/AM$31),0),0),0),0)) -> 0 | AO39: =(IF($DW39>0,IF(AO$28<=(L_TENOR*L_NUM_REPAY),IF(AO$28<>0,IF(AO$28>(L_GRACE*L_NUM_REPAY),(($DW39-SUM($E39:AN39))/AN$31),0),0),0),0)) -> 0 | AP39: =(IF($DW39>0,IF(AP$28<=(L_TENOR*L_NUM_REPAY),IF(AP$28<>0,IF(AP$28>(L_GRACE*L_NUM_REPAY),(($DW39-SUM($E39:AO39))/AO$31),0),0),0),0)) -> 0 | AQ39: =(IF($DW39>0,IF(AQ$28<=(L_TENOR*L_NUM_REPAY),IF(AQ$28<>0,IF(AQ$28>(L_GRACE*L_NUM_REPAY),(($DW39-SUM($E39:AP39))/AP$31),0),0),0),0)) -> 0 | AR39: =(IF($DW39>0,IF(AR$28<=(L_TENOR*L_NUM_REPAY),IF(AR$28<>0,IF(AR$28>(L_GRACE*L_NUM_REPAY),(($DW39-SUM($E39:AQ39))/AQ$31),0),0),0),0)) -> 0 | AS39: =(IF($DW39>0,IF(AS$28<=(L_TENOR*L_NUM_REPAY),IF(AS$28<>0,IF(AS$28>(L_GRACE*L_NUM_REPAY),(($DW39-SUM($E39:AR39))/AR$31),0),0),0),0)) -> 0 | AT39: =(IF($DW39>0,IF(AT$28<=(L_TENOR*L_NUM_REPAY),IF(AT$28<>0,IF(AT$28>(L_GRACE*L_NUM_REPAY),(($DW39-SUM($E39:AS39))/AS$31),0),0),0),0)) -> 0 | AU39: =(IF($DW39>0,IF(AU$28<=(L_TENOR*L_NUM_REPAY),IF(AU$28<>0,IF(AU$28>(L_GRACE*L_NUM_REPAY),(($DW39-SUM($E39:AT39))/AT$31),0),0),0),0)) -> 0 | AV39: =(IF($DW39>0,IF(AV$28<=(L_TENOR*L_NUM_REPAY),IF(AV$28<>0,IF(AV$28>(L_GRACE*L_NUM_REPAY),(($DW39-SUM($E39:AU39))/AU$31),0),0),0),0)) -> 0 | AW39: =(IF($DW39>0,IF(AW$28<=(L_TENOR*L_NUM_REPAY),IF(AW$28<>0,IF(AW$28>(L_GRACE*L_NUM_REPAY),(($DW39-SUM($E39:AV39))/AV$31),0),0),0),0)) -> 0 | AX39: =(IF($DW39>0,IF(AX$28<=(L_TENOR*L_NUM_REPAY),IF(AX$28<>0,IF(AX$28>(L_GRACE*L_NUM_REPAY),(($DW39-SUM($E39:AW39))/AW$31),0),0),0),0)) -> 0 | AY39: =(IF($DW39>0,IF(AY$28<=(L_TENOR*L_NUM_REPAY),IF(AY$28<>0,IF(AY$28>(L_GRACE*L_NUM_REPAY),(($DW39-SUM($E39:AX39))/AX$31),0),0),0),0)) -> 0 | AZ39: =(IF($DW39>0,IF(AZ$28<=(L_TENOR*L_NUM_REPAY),IF(AZ$28<>0,IF(AZ$28>(L_GRACE*L_NUM_REPAY),(($DW39-SUM($E39:AY39))/AY$31),0),0),0),0)) -> 0 | BA39: =(IF($DW39>0,IF(BA$28<=(L_TENOR*L_NUM_REPAY),IF(BA$28<>0,IF(BA$28>(L_GRACE*L_NUM_REPAY),(($DW39-SUM($E39:AZ39))/AZ$31),0),0),0),0)) -> 0 | BB39: =(IF($DW39>0,IF(BB$28<=(L_TENOR*L_NUM_REPAY),IF(BB$28<>0,IF(BB$28>(L_GRACE*L_NUM_REPAY),(($DW39-SUM($E39:BA39))/BA$31),0),0),0),0)) -> 0 | BC39: =(IF($DW39>0,IF(BC$28<=(L_TENOR*L_NUM_REPAY),IF(BC$28<>0,IF(BC$28>(L_GRACE*L_NUM_REPAY),(($DW39-SUM($E39:BB39))/BB$31),0),0),0),0)) -> 0 | BD39: =(IF($DW39>0,IF(BD$28<=(L_TENOR*L_NUM_REPAY),IF(BD$28<>0,IF(BD$28>(L_GRACE*L_NUM_REPAY),(($DW39-SUM($E39:BC39))/BC$31),0),0),0),0)) -> 0 | BE39: =(IF($DW39>0,IF(BE$28<=(L_TENOR*L_NUM_REPAY),IF(BE$28<>0,IF(BE$28>(L_GRACE*L_NUM_REPAY),(($DW39-SUM($E39:BD39))/BD$31),0),0),0),0)) -> 0 | BF39: =(IF($DW39>0,IF(BF$28<=(L_TENOR*L_NUM_REPAY),IF(BF$28<>0,IF(BF$28>(L_GRACE*L_NUM_REPAY),(($DW39-SUM($E39:BE39))/BE$31),0),0),0),0)) -> 0 | BG39: =(IF($DW39>0,IF(BG$28<=(L_TENOR*L_NUM_REPAY),IF(BG$28<>0,IF(BG$28>(L_GRACE*L_NUM_REPAY),(($DW39-SUM($E39:BF39))/BF$31),0),0),0),0)) -> 0 | BH39: =(IF($DW39>0,IF(BH$28<=(L_TENOR*L_NUM_REPAY),IF(BH$28<>0,IF(BH$28>(L_GRACE*L_NUM_REPAY),(($DW39-SUM($E39:BG39))/BG$31),0),0),0),0)) -> 0 | BI39: =(IF($DW39>0,IF(BI$28<=(L_TENOR*L_NUM_REPAY),IF(BI$28<>0,IF(BI$28>(L_GRACE*L_NUM_REPAY),(($DW39-SUM($E39:BH39))/BH$31),0),0),0),0)) -> 0 | BJ39: =(IF($DW39>0,IF(BJ$28<=(L_TENOR*L_NUM_REPAY),IF(BJ$28<>0,IF(BJ$28>(L_GRACE*L_NUM_REPAY),(($DW39-SUM($E39:BI39))/BI$31),0),0),0),0)) -> 0 | BK39: =(IF($DW39>0,IF(BK$28<=(L_TENOR*L_NUM_REPAY),IF(BK$28<>0,IF(BK$28>(L_GRACE*L_NUM_REPAY),(($DW39-SUM($E39:BJ39))/BJ$31),0),0),0),0)) -> 0 | BL39: =(IF($DW39>0,IF(BL$28<=(L_TENOR*L_NUM_REPAY),IF(BL$28<>0,IF(BL$28>(L_GRACE*L_NUM_REPAY),(($DW39-SUM($E39:BK39))/BK$31),0),0),0),0)) -> 0 | BM39: =(IF($DW39>0,IF(BM$28<=(L_TENOR*L_NUM_REPAY),IF(BM$28<>0,IF(BM$28>(L_GRACE*L_NUM_REPAY),(($DW39-SUM($E39:BL39))/BL$31),0),0),0),0)) -> 0 | BN39: =(IF($DW39>0,IF(BN$28<=(L_TENOR*L_NUM_REPAY),IF(BN$28<>0,IF(BN$28>(L_GRACE*L_NUM_REPAY),(($DW39-SUM($E39:BM39))/BM$31),0),0),0),0)) -> 0 | BO39: =(IF($DW39>0,IF(BO$28<=(L_TENOR*L_NUM_REPAY),IF(BO$28<>0,IF(BO$28>(L_GRACE*L_NUM_REPAY),(($DW39-SUM($E39:BN39))/BN$31),0),0),0),0)) -> 0 | BP39: =(IF($DW39>0,IF(BP$28<=(L_TENOR*L_NUM_REPAY),IF(BP$28<>0,IF(BP$28>(L_GRACE*L_NUM_REPAY),(($DW39-SUM($E39:BO39))/BO$31),0),0),0),0)) -> 0 | BQ39: =(IF($DW39>0,IF(BQ$28<=(L_TENOR*L_NUM_REPAY),IF(BQ$28<>0,IF(BQ$28>(L_GRACE*L_NUM_REPAY),(($DW39-SUM($E39:BP39))/BP$31),0),0),0),0)) -> 0 | BR39: =(IF($DW39>0,IF(BR$28<=(L_TENOR*L_NUM_REPAY),IF(BR$28<>0,IF(BR$28>(L_GRACE*L_NUM_REPAY),(($DW39-SUM($E39:BQ39))/BQ$31),0),0),0),0)) -> 0 | BS39: =(IF($DW39>0,IF(BS$28<=(L_TENOR*L_NUM_REPAY),IF(BS$28<>0,IF(BS$28>(L_GRACE*L_NUM_REPAY),(($DW39-SUM($E39:BR39))/BR$31),0),0),0),0)) -> 0 | BT39: =(IF($DW39>0,IF(BT$28<=(L_TENOR*L_NUM_REPAY),IF(BT$28<>0,IF(BT$28>(L_GRACE*L_NUM_REPAY),(($DW39-SUM($E39:BS39))/BS$31),0),0),0),0)) -> 0 | BU39: =(IF($DW39>0,IF(BU$28<=(L_TENOR*L_NUM_REPAY),IF(BU$28<>0,IF(BU$28>(L_GRACE*L_NUM_REPAY),(($DW39-SUM($E39:BT39))/BT$31),0),0),0),0)) -> 0 | BV39: =(IF($DW39>0,IF(BV$28<=(L_TENOR*L_NUM_REPAY),IF(BV$28<>0,IF(BV$28>(L_GRACE*L_NUM_REPAY),(($DW39-SUM($E39:BU39))/BU$31),0),0),0),0)) -> 0 | BW39: =(IF($DW39>0,IF(BW$28<=(L_TENOR*L_NUM_REPAY),IF(BW$28<>0,IF(BW$28>(L_GRACE*L_NUM_REPAY),(($DW39-SUM($E39:BV39))/BV$31),0),0),0),0)) -> 0 | BX39: =(IF($DW39>0,IF(BX$28<=(L_TENOR*L_NUM_REPAY),IF(BX$28<>0,IF(BX$28>(L_GRACE*L_NUM_REPAY),(($DW39-SUM($E39:BW39))/BW$31),0),0),0),0)) -> 0 | BY39: =(IF($DW39>0,IF(BY$28<=(L_TENOR*L_NUM_REPAY),IF(BY$28<>0,IF(BY$28>(L_GRACE*L_NUM_REPAY),(($DW39-SUM($E39:BX39))/BX$31),0),0),0),0)) -> 0 | BZ39: =(IF($DW39>0,IF(BZ$28<=(L_TENOR*L_NUM_REPAY),IF(BZ$28<>0,IF(BZ$28>(L_GRACE*L_NUM_REPAY),(($DW39-SUM($E39:BY39))/BY$31),0),0),0),0)) -> 0 | CA39: =(IF($DW39>0,IF(CA$28<=(L_TENOR*L_NUM_REPAY),IF(CA$28<>0,IF(CA$28>(L_GRACE*L_NUM_REPAY),(($DW39-SUM($E39:BZ39))/BZ$31),0),0),0),0)) -> 0 | CB39: =(IF($DW39>0,IF(CB$28<=(L_TENOR*L_NUM_REPAY),IF(CB$28<>0,IF(CB$28>(L_GRACE*L_NUM_REPAY),(($DW39-SUM($E39:CA39))/CA$31),0),0),0),0)) -> 0 | CC39: =(IF($DW39>0,IF(CC$28<=(L_TENOR*L_NUM_REPAY),IF(CC$28<>0,IF(CC$28>(L_GRACE*L_NUM_REPAY),(($DW39-SUM($E39:CB39))/CB$31),0),0),0),0)) -> 0 | CD39: =(IF($DW39>0,IF(CD$28<=(L_TENOR*L_NUM_REPAY),IF(CD$28<>0,IF(CD$28>(L_GRACE*L_NUM_REPAY),(($DW39-SUM($E39:CC39))/CC$31),0),0),0),0)) -> 0 | CE39: =(IF($DW39>0,IF(CE$28<=(L_TENOR*L_NUM_REPAY),IF(CE$28<>0,IF(CE$28>(L_GRACE*L_NUM_REPAY),(($DW39-SUM($E39:CD39))/CD$31),0),0),0),0)) -> 0 | CF39: =(IF($DW39>0,IF(CF$28<=(L_TENOR*L_NUM_REPAY),IF(CF$28<>0,IF(CF$28>(L_GRACE*L_NUM_REPAY),(($DW39-SUM($E39:CE39))/CE$31),0),0),0),0)) -> 0 | CG39: =(IF($DW39>0,IF(CG$28<=(L_TENOR*L_NUM_REPAY),IF(CG$28<>0,IF(CG$28>(L_GRACE*L_NUM_REPAY),(($DW39-SUM($E39:CF39))/CF$31),0),0),0),0)) -> 0 | CH39: =(IF($DW39>0,IF(CH$28<=(L_TENOR*L_NUM_REPAY),IF(CH$28<>0,IF(CH$28>(L_GRACE*L_NUM_REPAY),(($DW39-SUM($E39:CG39))/CG$31),0),0),0),0)) -> 0 | CI39: =(IF($DW39>0,IF(CI$28<=(L_TENOR*L_NUM_REPAY),IF(CI$28<>0,IF(CI$28>(L_GRACE*L_NUM_REPAY),(($DW39-SUM($E39:CH39))/CH$31),0),0),0),0)) -> 0 | CJ39: =(IF($DW39>0,IF(CJ$28<=(L_TENOR*L_NUM_REPAY),IF(CJ$28<>0,IF(CJ$28>(L_GRACE*L_NUM_REPAY),(($DW39-SUM($E39:CI39))/CI$31),0),0),0),0)) -> 0 | CK39: =(IF($DW39>0,IF(CK$28<=(L_TENOR*L_NUM_REPAY),IF(CK$28<>0,IF(CK$28>(L_GRACE*L_NUM_REPAY),(($DW39-SUM($E39:CJ39))/CJ$31),0),0),0),0)) -> 0 | CL39: =(IF($DW39>0,IF(CL$28<=(L_TENOR*L_NUM_REPAY),IF(CL$28<>0,IF(CL$28>(L_GRACE*L_NUM_REPAY),(($DW39-SUM($E39:CK39))/CK$31),0),0),0),0)) -> 0 | CM39: =(IF($DW39>0,IF(CM$28<=(L_TENOR*L_NUM_REPAY),IF(CM$28<>0,IF(CM$28>(L_GRACE*L_NUM_REPAY),(($DW39-SUM($E39:CL39))/CL$31),0),0),0),0)) -> 0 | CN39: =(IF($DW39>0,IF(CN$28<=(L_TENOR*L_NUM_REPAY),IF(CN$28<>0,IF(CN$28>(L_GRACE*L_NUM_REPAY),(($DW39-SUM($E39:CM39))/CM$31),0),0),0),0)) -> 0 | CO39: =(IF($DW39>0,IF(CO$28<=(L_TENOR*L_NUM_REPAY),IF(CO$28<>0,IF(CO$28>(L_GRACE*L_NUM_REPAY),(($DW39-SUM($E39:CN39))/CN$31),0),0),0),0)) -> 0 | CP39: =(IF($DW39>0,IF(CP$28<=(L_TENOR*L_NUM_REPAY),IF(CP$28<>0,IF(CP$28>(L_GRACE*L_NUM_REPAY),(($DW39-SUM($E39:CO39))/CO$31),0),0),0),0)) -> 0 | CQ39: =(IF($DW39>0,IF(CQ$28<=(L_TENOR*L_NUM_REPAY),IF(CQ$28<>0,IF(CQ$28>(L_GRACE*L_NUM_REPAY),(($DW39-SUM($E39:CP39))/CP$31),0),0),0),0)) -> 0 | CR39: =(IF($DW39>0,IF(CR$28<=(L_TENOR*L_NUM_REPAY),IF(CR$28<>0,IF(CR$28>(L_GRACE*L_NUM_REPAY),(($DW39-SUM($E39:CQ39))/CQ$31),0),0),0),0)) -> 0 | CS39: =(IF($DW39>0,IF(CS$28<=(L_TENOR*L_NUM_REPAY),IF(CS$28<>0,IF(CS$28>(L_GRACE*L_NUM_REPAY),(($DW39-SUM($E39:CR39))/CR$31),0),0),0),0)) -> 0 | CT39: =(IF($DW39>0,IF(CT$28<=(L_TENOR*L_NUM_REPAY),IF(CT$28<>0,IF(CT$28>(L_GRACE*L_NUM_REPAY),(($DW39-SUM($E39:CS39))/CS$31),0),0),0),0)) -> 0 | CU39: =(IF($DW39>0,IF(CU$28<=(L_TENOR*L_NUM_REPAY),IF(CU$28<>0,IF(CU$28>(L_GRACE*L_NUM_REPAY),(($DW39-SUM($E39:CT39))/CT$31),0),0),0),0)) -> 0 | CV39: =(IF($DW39>0,IF(CV$28<=(L_TENOR*L_NUM_REPAY),IF(CV$28<>0,IF(CV$28>(L_GRACE*L_NUM_REPAY),(($DW39-SUM($E39:CU39))/CU$31),0),0),0),0)) -> 0 | CW39: =(IF($DW39>0,IF(CW$28<=(L_TENOR*L_NUM_REPAY),IF(CW$28<>0,IF(CW$28>(L_GRACE*L_NUM_REPAY),(($DW39-SUM($E39:CV39))/CV$31),0),0),0),0)) -> 0 | CX39: =(IF($DW39>0,IF(CX$28<=(L_TENOR*L_NUM_REPAY),IF(CX$28<>0,IF(CX$28>(L_GRACE*L_NUM_REPAY),(($DW39-SUM($E39:CW39))/CW$31),0),0),0),0)) -> 0 | CY39: =(IF($DW39>0,IF(CY$28<=(L_TENOR*L_NUM_REPAY),IF(CY$28<>0,IF(CY$28>(L_GRACE*L_NUM_REPAY),(($DW39-SUM($E39:CX39))/CX$31),0),0),0),0)) -> 0 | CZ39: =(IF($DW39>0,IF(CZ$28<=(L_TENOR*L_NUM_REPAY),IF(CZ$28<>0,IF(CZ$28>(L_GRACE*L_NUM_REPAY),(($DW39-SUM($E39:CY39))/CY$31),0),0),0),0)) -> 0 | DA39: =(IF($DW39>0,IF(DA$28<=(L_TENOR*L_NUM_REPAY),IF(DA$28<>0,IF(DA$28>(L_GRACE*L_NUM_REPAY),(($DW39-SUM($E39:CZ39))/CZ$31),0),0),0),0)) -> 0 | DB39: =(IF($DW39>0,IF(DB$28<=(L_TENOR*L_NUM_REPAY),IF(DB$28<>0,IF(DB$28>(L_GRACE*L_NUM_REPAY),(($DW39-SUM($E39:DA39))/DA$31),0),0),0),0)) -> 0 | DC39: =(IF($DW39>0,IF(DC$28<=(L_TENOR*L_NUM_REPAY),IF(DC$28<>0,IF(DC$28>(L_GRACE*L_NUM_REPAY),(($DW39-SUM($E39:DB39))/DB$31),0),0),0),0)) -> 0 | DD39: =(IF($DW39>0,IF(DD$28<=(L_TENOR*L_NUM_REPAY),IF(DD$28<>0,IF(DD$28>(L_GRACE*L_NUM_REPAY),(($DW39-SUM($E39:DC39))/DC$31),0),0),0),0)) -> 0 | DE39: =(IF($DW39>0,IF(DE$28<=(L_TENOR*L_NUM_REPAY),IF(DE$28<>0,IF(DE$28>(L_GRACE*L_NUM_REPAY),(($DW39-SUM($E39:DD39))/DD$31),0),0),0),0)) -> 0 | DF39: =(IF($DW39>0,IF(DF$28<=(L_TENOR*L_NUM_REPAY),IF(DF$28<>0,IF(DF$28>(L_GRACE*L_NUM_REPAY),(($DW39-SUM($E39:DE39))/DE$31),0),0),0),0)) -> 0 | DG39: =(IF($DW39>0,IF(DG$28<=(L_TENOR*L_NUM_REPAY),IF(DG$28<>0,IF(DG$28>(L_GRACE*L_NUM_REPAY),(($DW39-SUM($E39:DF39))/DF$31),0),0),0),0)) -> 0 | DH39: =(IF($DW39>0,IF(DH$28<=(L_TENOR*L_NUM_REPAY),IF(DH$28<>0,IF(DH$28>(L_GRACE*L_NUM_REPAY),(($DW39-SUM($E39:DG39))/DG$31),0),0),0),0)) -> 0 | DI39: =(IF($DW39>0,IF(DI$28<=(L_TENOR*L_NUM_REPAY),IF(DI$28<>0,IF(DI$28>(L_GRACE*L_NUM_REPAY),(($DW39-SUM($E39:DH39))/DH$31),0),0),0),0)) -> 0 | DJ39: =(IF($DW39>0,IF(DJ$28<=(L_TENOR*L_NUM_REPAY),IF(DJ$28<>0,IF(DJ$28>(L_GRACE*L_NUM_REPAY),(($DW39-SUM($E39:DI39))/DI$31),0),0),0),0)) -> 0 | DK39: =(IF($DW39>0,IF(DK$28<=(L_TENOR*L_NUM_REPAY),IF(DK$28<>0,IF(DK$28>(L_GRACE*L_NUM_REPAY),(($DW39-SUM($E39:DJ39))/DJ$31),0),0),0),0)) -> 0 | DL39: =(IF($DW39>0,IF(DL$28<=(L_TENOR*L_NUM_REPAY),IF(DL$28<>0,IF(DL$28>(L_GRACE*L_NUM_REPAY),(($DW39-SUM($E39:DK39))/DK$31),0),0),0),0)) -> 0 | DM39: =(IF($DW39>0,IF(DM$28<=(L_TENOR*L_NUM_REPAY),IF(DM$28<>0,IF(DM$28>(L_GRACE*L_NUM_REPAY),(($DW39-SUM($E39:DL39))/DL$31),0),0),0),0)) -> 0 | DN39: =(IF($DW39>0,IF(DN$28<=(L_TENOR*L_NUM_REPAY),IF(DN$28<>0,IF(DN$28>(L_GRACE*L_NUM_REPAY),(($DW39-SUM($E39:DM39))/DM$31),0),0),0),0)) -> 0 | DO39: =(IF($DW39>0,IF(DO$28<=(L_TENOR*L_NUM_REPAY),IF(DO$28<>0,IF(DO$28>(L_GRACE*L_NUM_REPAY),(($DW39-SUM($E39:DN39))/DN$31),0),0),0),0)) -> 0 | DP39: =(IF($DW39>0,IF(DP$28<=(L_TENOR*L_NUM_REPAY),IF(DP$28<>0,IF(DP$28>(L_GRACE*L_NUM_REPAY),(($DW39-SUM($E39:DO39))/DO$31),0),0),0),0)) -> 0 | DQ39: =(IF($DW39>0,IF(DQ$28<=(L_TENOR*L_NUM_REPAY),IF(DQ$28<>0,IF(DQ$28>(L_GRACE*L_NUM_REPAY),(($DW39-SUM($E39:DP39))/DP$31),0),0),0),0)) -> 0 | DR39: =(IF($DW39>0,IF(DR$28<=(L_TENOR*L_NUM_REPAY),IF(DR$28<>0,IF(DR$28>(L_GRACE*L_NUM_REPAY),(($DW39-SUM($E39:DQ39))/DQ$31),0),0),0),0)) -> 0 | DS39: =(IF($DW39>0,IF(DS$28<=(L_TENOR*L_NUM_REPAY),IF(DS$28<>0,IF(DS$28>(L_GRACE*L_NUM_REPAY),(($DW39-SUM($E39:DR39))/DR$31),0),0),0),0)) -> 0 | DT39: =(IF($DW39>0,IF(DT$28<=(L_TENOR*L_NUM_REPAY),IF(DT$28<>0,IF(DT$28>(L_GRACE*L_NUM_REPAY),(($DW39-SUM($E39:DS39))/DS$31),0),0),0),0)) -> 0 | DU39: =(IF($DW39>0,IF(DU$28<=(L_TENOR*L_NUM_REPAY),IF(DU$28<>0,IF(DU$28>(L_GRACE*L_NUM_REPAY),(($DW39-SUM($E39:DT39))/DT$31),0),0),0),0)) -> 0 | DV39: 1 | DW39: =E106 -> 30
B40: Principal Tranche 1 | D40: 70 | E40: 0 | F40: 0 | G40: =IF($DW40>0, IF(G$28<=(L_TENOR*L_NUM_REPAY),IF(G$28<>0,IF(G$28>(L_GRACE*L_NUM_REPAY),(($DW40-SUM($E40:F40))/F$31),0),0),0),0) -> 0 | H40: =(IF($DW40>0,IF(H$28<=(L_TENOR*L_NUM_REPAY),IF(H$28<>0,IF(H$28>(L_GRACE*L_NUM_REPAY),(($DW40-SUM($E40:G40))/G$31),0),0),0),0)) -> 3.888888889 | I40: =(IF($DW40>0,IF(I$28<=(L_TENOR*L_NUM_REPAY),IF(I$28<>0,IF(I$28>(L_GRACE*L_NUM_REPAY),(($DW40-SUM($E40:H40))/H$31),0),0),0),0)) -> 3.888888889 | J40: =(IF($DW40>0,IF(J$28<=(L_TENOR*L_NUM_REPAY),IF(J$28<>0,IF(J$28>(L_GRACE*L_NUM_REPAY),(($DW40-SUM($E40:I40))/I$31),0),0),0),0)) -> 3.888888889 | K40: =(IF($DW40>0,IF(K$28<=(L_TENOR*L_NUM_REPAY),IF(K$28<>0,IF(K$28>(L_GRACE*L_NUM_REPAY),(($DW40-SUM($E40:J40))/J$31),0),0),0),0)) -> 3.888888889 | L40: =(IF($DW40>0,IF(L$28<=(L_TENOR*L_NUM_REPAY),IF(L$28<>0,IF(L$28>(L_GRACE*L_NUM_REPAY),(($DW40-SUM($E40:K40))/K$31),0),0),0),0)) -> 3.888888889 | M40: =(IF($DW40>0,IF(M$28<=(L_TENOR*L_NUM_REPAY),IF(M$28<>0,IF(M$28>(L_GRACE*L_NUM_REPAY),(($DW40-SUM($E40:L40))/L$31),0),0),0),0)) -> 3.888888889 | N40: =(IF($DW40>0,IF(N$28<=(L_TENOR*L_NUM_REPAY),IF(N$28<>0,IF(N$28>(L_GRACE*L_NUM_REPAY),(($DW40-SUM($E40:M40))/M$31),0),0),0),0)) -> 3.888888889 | O40: =(IF($DW40>0,IF(O$28<=(L_TENOR*L_NUM_REPAY),IF(O$28<>0,IF(O$28>(L_GRACE*L_NUM_REPAY),(($DW40-SUM($E40:N40))/N$31),0),0),0),0)) -> 3.888888889 | P40: =(IF($DW40>0,IF(P$28<=(L_TENOR*L_NUM_REPAY),IF(P$28<>0,IF(P$28>(L_GRACE*L_NUM_REPAY),(($DW40-SUM($E40:O40))/O$31),0),0),0),0)) -> 3.888888889 | Q40: =(IF($DW40>0,IF(Q$28<=(L_TENOR*L_NUM_REPAY),IF(Q$28<>0,IF(Q$28>(L_GRACE*L_NUM_REPAY),(($DW40-SUM($E40:P40))/P$31),0),0),0),0)) -> 3.888888889 | R40: =(IF($DW40>0,IF(R$28<=(L_TENOR*L_NUM_REPAY),IF(R$28<>0,IF(R$28>(L_GRACE*L_NUM_REPAY),(($DW40-SUM($E40:Q40))/Q$31),0),0),0),0)) -> 3.888888889 | S40: =(IF($DW40>0,IF(S$28<=(L_TENOR*L_NUM_REPAY),IF(S$28<>0,IF(S$28>(L_GRACE*L_NUM_REPAY),(($DW40-SUM($E40:R40))/R$31),0),0),0),0)) -> 3.888888889 | T40: =(IF($DW40>0,IF(T$28<=(L_TENOR*L_NUM_REPAY),IF(T$28<>0,IF(T$28>(L_GRACE*L_NUM_REPAY),(($DW40-SUM($E40:S40))/S$31),0),0),0),0)) -> 3.888888889 | U40: =(IF($DW40>0,IF(U$28<=(L_TENOR*L_NUM_REPAY),IF(U$28<>0,IF(U$28>(L_GRACE*L_NUM_REPAY),(($DW40-SUM($E40:T40))/T$31),0),0),0),0)) -> 3.888888889 | V40: =(IF($DW40>0,IF(V$28<=(L_TENOR*L_NUM_REPAY),IF(V$28<>0,IF(V$28>(L_GRACE*L_NUM_REPAY),(($DW40-SUM($E40:U40))/U$31),0),0),0),0)) -> 3.888888889 | W40: =(IF($DW40>0,IF(W$28<=(L_TENOR*L_NUM_REPAY),IF(W$28<>0,IF(W$28>(L_GRACE*L_NUM_REPAY),(($DW40-SUM($E40:V40))/V$31),0),0),0),0)) -> 3.888888889 | X40: =(IF($DW40>0,IF(X$28<=(L_TENOR*L_NUM_REPAY),IF(X$28<>0,IF(X$28>(L_GRACE*L_NUM_REPAY),(($DW40-SUM($E40:W40))/W$31),0),0),0),0)) -> 3.888888889 | Y40: =(IF($DW40>0,IF(Y$28<=(L_TENOR*L_NUM_REPAY),IF(Y$28<>0,IF(Y$28>(L_GRACE*L_NUM_REPAY),(($DW40-SUM($E40:X40))/X$31),0),0),0),0)) -> 3.888888889 | Z40: =(IF($DW40>0,IF(Z$28<=(L_TENOR*L_NUM_REPAY),IF(Z$28<>0,IF(Z$28>(L_GRACE*L_NUM_REPAY),(($DW40-SUM($E40:Y40))/Y$31),0),0),0),0)) -> 0 | AA40: =(IF($DW40>0,IF(AA$28<=(L_TENOR*L_NUM_REPAY),IF(AA$28<>0,IF(AA$28>(L_GRACE*L_NUM_REPAY),(($DW40-SUM($E40:Z40))/Z$31),0),0),0),0)) -> 0 | AB40: =(IF($DW40>0,IF(AB$28<=(L_TENOR*L_NUM_REPAY),IF(AB$28<>0,IF(AB$28>(L_GRACE*L_NUM_REPAY),(($DW40-SUM($E40:AA40))/AA$31),0),0),0),0)) -> 0 | AC40: =(IF($DW40>0,IF(AC$28<=(L_TENOR*L_NUM_REPAY),IF(AC$28<>0,IF(AC$28>(L_GRACE*L_NUM_REPAY),(($DW40-SUM($E40:AB40))/AB$31),0),0),0),0)) -> 0 | AD40: =(IF($DW40>0,IF(AD$28<=(L_TENOR*L_NUM_REPAY),IF(AD$28<>0,IF(AD$28>(L_GRACE*L_NUM_REPAY),(($DW40-SUM($E40:AC40))/AC$31),0),0),0),0)) -> 0 | AE40: =(IF($DW40>0,IF(AE$28<=(L_TENOR*L_NUM_REPAY),IF(AE$28<>0,IF(AE$28>(L_GRACE*L_NUM_REPAY),(($DW40-SUM($E40:AD40))/AD$31),0),0),0),0)) -> 0 | AF40: =(IF($DW40>0,IF(AF$28<=(L_TENOR*L_NUM_REPAY),IF(AF$28<>0,IF(AF$28>(L_GRACE*L_NUM_REPAY),(($DW40-SUM($E40:AE40))/AE$31),0),0),0),0)) -> 0 | AG40: =(IF($DW40>0,IF(AG$28<=(L_TENOR*L_NUM_REPAY),IF(AG$28<>0,IF(AG$28>(L_GRACE*L_NUM_REPAY),(($DW40-SUM($E40:AF40))/AF$31),0),0),0),0)) -> 0 | AH40: =(IF($DW40>0,IF(AH$28<=(L_TENOR*L_NUM_REPAY),IF(AH$28<>0,IF(AH$28>(L_GRACE*L_NUM_REPAY),(($DW40-SUM($E40:AG40))/AG$31),0),0),0),0)) -> 0 | AI40: =(IF($DW40>0,IF(AI$28<=(L_TENOR*L_NUM_REPAY),IF(AI$28<>0,IF(AI$28>(L_GRACE*L_NUM_REPAY),(($DW40-SUM($E40:AH40))/AH$31),0),0),0),0)) -> 0 | AJ40: =(IF($DW40>0,IF(AJ$28<=(L_TENOR*L_NUM_REPAY),IF(AJ$28<>0,IF(AJ$28>(L_GRACE*L_NUM_REPAY),(($DW40-SUM($E40:AI40))/AI$31),0),0),0),0)) -> 0 | AK40: =(IF($DW40>0,IF(AK$28<=(L_TENOR*L_NUM_REPAY),IF(AK$28<>0,IF(AK$28>(L_GRACE*L_NUM_REPAY),(($DW40-SUM($E40:AJ40))/AJ$31),0),0),0),0)) -> 0 | AL40: =(IF($DW40>0,IF(AL$28<=(L_TENOR*L_NUM_REPAY),IF(AL$28<>0,IF(AL$28>(L_GRACE*L_NUM_REPAY),(($DW40-SUM($E40:AK40))/AK$31),0),0),0),0)) -> 0 | AM40: =(IF($DW40>0,IF(AM$28<=(L_TENOR*L_NUM_REPAY),IF(AM$28<>0,IF(AM$28>(L_GRACE*L_NUM_REPAY),(($DW40-SUM($E40:AL40))/AL$31),0),0),0),0)) -> 0 | AN40: =(IF($DW40>0,IF(AN$28<=(L_TENOR*L_NUM_REPAY),IF(AN$28<>0,IF(AN$28>(L_GRACE*L_NUM_REPAY),(($DW40-SUM($E40:AM40))/AM$31),0),0),0),0)) -> 0 | AO40: =(IF($DW40>0,IF(AO$28<=(L_TENOR*L_NUM_REPAY),IF(AO$28<>0,IF(AO$28>(L_GRACE*L_NUM_REPAY),(($DW40-SUM($E40:AN40))/AN$31),0),0),0),0)) -> 0 | AP40: =(IF($DW40>0,IF(AP$28<=(L_TENOR*L_NUM_REPAY),IF(AP$28<>0,IF(AP$28>(L_GRACE*L_NUM_REPAY),(($DW40-SUM($E40:AO40))/AO$31),0),0),0),0)) -> 0 | AQ40: =(IF($DW40>0,IF(AQ$28<=(L_TENOR*L_NUM_REPAY),IF(AQ$28<>0,IF(AQ$28>(L_GRACE*L_NUM_REPAY),(($DW40-SUM($E40:AP40))/AP$31),0),0),0),0)) -> 0 | AR40: =(IF($DW40>0,IF(AR$28<=(L_TENOR*L_NUM_REPAY),IF(AR$28<>0,IF(AR$28>(L_GRACE*L_NUM_REPAY),(($DW40-SUM($E40:AQ40))/AQ$31),0),0),0),0)) -> 0 | AS40: =(IF($DW40>0,IF(AS$28<=(L_TENOR*L_NUM_REPAY),IF(AS$28<>0,IF(AS$28>(L_GRACE*L_NUM_REPAY),(($DW40-SUM($E40:AR40))/AR$31),0),0),0),0)) -> 0 | AT40: =(IF($DW40>0,IF(AT$28<=(L_TENOR*L_NUM_REPAY),IF(AT$28<>0,IF(AT$28>(L_GRACE*L_NUM_REPAY),(($DW40-SUM($E40:AS40))/AS$31),0),0),0),0)) -> 0 | AU40: =(IF($DW40>0,IF(AU$28<=(L_TENOR*L_NUM_REPAY),IF(AU$28<>0,IF(AU$28>(L_GRACE*L_NUM_REPAY),(($DW40-SUM($E40:AT40))/AT$31),0),0),0),0)) -> 0 | AV40: =(IF($DW40>0,IF(AV$28<=(L_TENOR*L_NUM_REPAY),IF(AV$28<>0,IF(AV$28>(L_GRACE*L_NUM_REPAY),(($DW40-SUM($E40:AU40))/AU$31),0),0),0),0)) -> 0 | AW40: =(IF($DW40>0,IF(AW$28<=(L_TENOR*L_NUM_REPAY),IF(AW$28<>0,IF(AW$28>(L_GRACE*L_NUM_REPAY),(($DW40-SUM($E40:AV40))/AV$31),0),0),0),0)) -> 0 | AX40: =(IF($DW40>0,IF(AX$28<=(L_TENOR*L_NUM_REPAY),IF(AX$28<>0,IF(AX$28>(L_GRACE*L_NUM_REPAY),(($DW40-SUM($E40:AW40))/AW$31),0),0),0),0)) -> 0 | AY40: =(IF($DW40>0,IF(AY$28<=(L_TENOR*L_NUM_REPAY),IF(AY$28<>0,IF(AY$28>(L_GRACE*L_NUM_REPAY),(($DW40-SUM($E40:AX40))/AX$31),0),0),0),0)) -> 0 | AZ40: =(IF($DW40>0,IF(AZ$28<=(L_TENOR*L_NUM_REPAY),IF(AZ$28<>0,IF(AZ$28>(L_GRACE*L_NUM_REPAY),(($DW40-SUM($E40:AY40))/AY$31),0),0),0),0)) -> 0 | BA40: =(IF($DW40>0,IF(BA$28<=(L_TENOR*L_NUM_REPAY),IF(BA$28<>0,IF(BA$28>(L_GRACE*L_NUM_REPAY),(($DW40-SUM($E40:AZ40))/AZ$31),0),0),0),0)) -> 0 | BB40: =(IF($DW40>0,IF(BB$28<=(L_TENOR*L_NUM_REPAY),IF(BB$28<>0,IF(BB$28>(L_GRACE*L_NUM_REPAY),(($DW40-SUM($E40:BA40))/BA$31),0),0),0),0)) -> 0 | BC40: =(IF($DW40>0,IF(BC$28<=(L_TENOR*L_NUM_REPAY),IF(BC$28<>0,IF(BC$28>(L_GRACE*L_NUM_REPAY),(($DW40-SUM($E40:BB40))/BB$31),0),0),0),0)) -> 0 | BD40: =(IF($DW40>0,IF(BD$28<=(L_TENOR*L_NUM_REPAY),IF(BD$28<>0,IF(BD$28>(L_GRACE*L_NUM_REPAY),(($DW40-SUM($E40:BC40))/BC$31),0),0),0),0)) -> 0 | BE40: =(IF($DW40>0,IF(BE$28<=(L_TENOR*L_NUM_REPAY),IF(BE$28<>0,IF(BE$28>(L_GRACE*L_NUM_REPAY),(($DW40-SUM($E40:BD40))/BD$31),0),0),0),0)) -> 0 | BF40: =(IF($DW40>0,IF(BF$28<=(L_TENOR*L_NUM_REPAY),IF(BF$28<>0,IF(BF$28>(L_GRACE*L_NUM_REPAY),(($DW40-SUM($E40:BE40))/BE$31),0),0),0),0)) -> 0 | BG40: =(IF($DW40>0,IF(BG$28<=(L_TENOR*L_NUM_REPAY),IF(BG$28<>0,IF(BG$28>(L_GRACE*L_NUM_REPAY),(($DW40-SUM($E40:BF40))/BF$31),0),0),0),0)) -> 0 | BH40: =(IF($DW40>0,IF(BH$28<=(L_TENOR*L_NUM_REPAY),IF(BH$28<>0,IF(BH$28>(L_GRACE*L_NUM_REPAY),(($DW40-SUM($E40:BG40))/BG$31),0),0),0),0)) -> 0 | BI40: =(IF($DW40>0,IF(BI$28<=(L_TENOR*L_NUM_REPAY),IF(BI$28<>0,IF(BI$28>(L_GRACE*L_NUM_REPAY),(($DW40-SUM($E40:BH40))/BH$31),0),0),0),0)) -> 0 | BJ40: =(IF($DW40>0,IF(BJ$28<=(L_TENOR*L_NUM_REPAY),IF(BJ$28<>0,IF(BJ$28>(L_GRACE*L_NUM_REPAY),(($DW40-SUM($E40:BI40))/BI$31),0),0),0),0)) -> 0 | BK40: =(IF($DW40>0,IF(BK$28<=(L_TENOR*L_NUM_REPAY),IF(BK$28<>0,IF(BK$28>(L_GRACE*L_NUM_REPAY),(($DW40-SUM($E40:BJ40))/BJ$31),0),0),0),0)) -> 0 | BL40: =(IF($DW40>0,IF(BL$28<=(L_TENOR*L_NUM_REPAY),IF(BL$28<>0,IF(BL$28>(L_GRACE*L_NUM_REPAY),(($DW40-SUM($E40:BK40))/BK$31),0),0),0),0)) -> 0 | BM40: =(IF($DW40>0,IF(BM$28<=(L_TENOR*L_NUM_REPAY),IF(BM$28<>0,IF(BM$28>(L_GRACE*L_NUM_REPAY),(($DW40-SUM($E40:BL40))/BL$31),0),0),0),0)) -> 0 | BN40: =(IF($DW40>0,IF(BN$28<=(L_TENOR*L_NUM_REPAY),IF(BN$28<>0,IF(BN$28>(L_GRACE*L_NUM_REPAY),(($DW40-SUM($E40:BM40))/BM$31),0),0),0),0)) -> 0 | BO40: =(IF($DW40>0,IF(BO$28<=(L_TENOR*L_NUM_REPAY),IF(BO$28<>0,IF(BO$28>(L_GRACE*L_NUM_REPAY),(($DW40-SUM($E40:BN40))/BN$31),0),0),0),0)) -> 0 | BP40: =(IF($DW40>0,IF(BP$28<=(L_TENOR*L_NUM_REPAY),IF(BP$28<>0,IF(BP$28>(L_GRACE*L_NUM_REPAY),(($DW40-SUM($E40:BO40))/BO$31),0),0),0),0)) -> 0 | BQ40: =(IF($DW40>0,IF(BQ$28<=(L_TENOR*L_NUM_REPAY),IF(BQ$28<>0,IF(BQ$28>(L_GRACE*L_NUM_REPAY),(($DW40-SUM($E40:BP40))/BP$31),0),0),0),0)) -> 0 | BR40: =(IF($DW40>0,IF(BR$28<=(L_TENOR*L_NUM_REPAY),IF(BR$28<>0,IF(BR$28>(L_GRACE*L_NUM_REPAY),(($DW40-SUM($E40:BQ40))/BQ$31),0),0),0),0)) -> 0 | BS40: =(IF($DW40>0,IF(BS$28<=(L_TENOR*L_NUM_REPAY),IF(BS$28<>0,IF(BS$28>(L_GRACE*L_NUM_REPAY),(($DW40-SUM($E40:BR40))/BR$31),0),0),0),0)) -> 0 | BT40: =(IF($DW40>0,IF(BT$28<=(L_TENOR*L_NUM_REPAY),IF(BT$28<>0,IF(BT$28>(L_GRACE*L_NUM_REPAY),(($DW40-SUM($E40:BS40))/BS$31),0),0),0),0)) -> 0 | BU40: =(IF($DW40>0,IF(BU$28<=(L_TENOR*L_NUM_REPAY),IF(BU$28<>0,IF(BU$28>(L_GRACE*L_NUM_REPAY),(($DW40-SUM($E40:BT40))/BT$31),0),0),0),0)) -> 0 | BV40: =(IF($DW40>0,IF(BV$28<=(L_TENOR*L_NUM_REPAY),IF(BV$28<>0,IF(BV$28>(L_GRACE*L_NUM_REPAY),(($DW40-SUM($E40:BU40))/BU$31),0),0),0),0)) -> 0 | BW40: =(IF($DW40>0,IF(BW$28<=(L_TENOR*L_NUM_REPAY),IF(BW$28<>0,IF(BW$28>(L_GRACE*L_NUM_REPAY),(($DW40-SUM($E40:BV40))/BV$31),0),0),0),0)) -> 0 | BX40: =(IF($DW40>0,IF(BX$28<=(L_TENOR*L_NUM_REPAY),IF(BX$28<>0,IF(BX$28>(L_GRACE*L_NUM_REPAY),(($DW40-SUM($E40:BW40))/BW$31),0),0),0),0)) -> 0 | BY40: =(IF($DW40>0,IF(BY$28<=(L_TENOR*L_NUM_REPAY),IF(BY$28<>0,IF(BY$28>(L_GRACE*L_NUM_REPAY),(($DW40-SUM($E40:BX40))/BX$31),0),0),0),0)) -> 0 | BZ40: =(IF($DW40>0,IF(BZ$28<=(L_TENOR*L_NUM_REPAY),IF(BZ$28<>0,IF(BZ$28>(L_GRACE*L_NUM_REPAY),(($DW40-SUM($E40:BY40))/BY$31),0),0),0),0)) -> 0 | CA40: =(IF($DW40>0,IF(CA$28<=(L_TENOR*L_NUM_REPAY),IF(CA$28<>0,IF(CA$28>(L_GRACE*L_NUM_REPAY),(($DW40-SUM($E40:BZ40))/BZ$31),0),0),0),0)) -> 0 | CB40: =(IF($DW40>0,IF(CB$28<=(L_TENOR*L_NUM_REPAY),IF(CB$28<>0,IF(CB$28>(L_GRACE*L_NUM_REPAY),(($DW40-SUM($E40:CA40))/CA$31),0),0),0),0)) -> 0 | CC40: =(IF($DW40>0,IF(CC$28<=(L_TENOR*L_NUM_REPAY),IF(CC$28<>0,IF(CC$28>(L_GRACE*L_NUM_REPAY),(($DW40-SUM($E40:CB40))/CB$31),0),0),0),0)) -> 0 | CD40: =(IF($DW40>0,IF(CD$28<=(L_TENOR*L_NUM_REPAY),IF(CD$28<>0,IF(CD$28>(L_GRACE*L_NUM_REPAY),(($DW40-SUM($E40:CC40))/CC$31),0),0),0),0)) -> 0 | CE40: =(IF($DW40>0,IF(CE$28<=(L_TENOR*L_NUM_REPAY),IF(CE$28<>0,IF(CE$28>(L_GRACE*L_NUM_REPAY),(($DW40-SUM($E40:CD40))/CD$31),0),0),0),0)) -> 0 | CF40: =(IF($DW40>0,IF(CF$28<=(L_TENOR*L_NUM_REPAY),IF(CF$28<>0,IF(CF$28>(L_GRACE*L_NUM_REPAY),(($DW40-SUM($E40:CE40))/CE$31),0),0),0),0)) -> 0 | CG40: =(IF($DW40>0,IF(CG$28<=(L_TENOR*L_NUM_REPAY),IF(CG$28<>0,IF(CG$28>(L_GRACE*L_NUM_REPAY),(($DW40-SUM($E40:CF40))/CF$31),0),0),0),0)) -> 0 | CH40: =(IF($DW40>0,IF(CH$28<=(L_TENOR*L_NUM_REPAY),IF(CH$28<>0,IF(CH$28>(L_GRACE*L_NUM_REPAY),(($DW40-SUM($E40:CG40))/CG$31),0),0),0),0)) -> 0 | CI40: =(IF($DW40>0,IF(CI$28<=(L_TENOR*L_NUM_REPAY),IF(CI$28<>0,IF(CI$28>(L_GRACE*L_NUM_REPAY),(($DW40-SUM($E40:CH40))/CH$31),0),0),0),0)) -> 0 | CJ40: =(IF($DW40>0,IF(CJ$28<=(L_TENOR*L_NUM_REPAY),IF(CJ$28<>0,IF(CJ$28>(L_GRACE*L_NUM_REPAY),(($DW40-SUM($E40:CI40))/CI$31),0),0),0),0)) -> 0 | CK40: =(IF($DW40>0,IF(CK$28<=(L_TENOR*L_NUM_REPAY),IF(CK$28<>0,IF(CK$28>(L_GRACE*L_NUM_REPAY),(($DW40-SUM($E40:CJ40))/CJ$31),0),0),0),0)) -> 0 | CL40: =(IF($DW40>0,IF(CL$28<=(L_TENOR*L_NUM_REPAY),IF(CL$28<>0,IF(CL$28>(L_GRACE*L_NUM_REPAY),(($DW40-SUM($E40:CK40))/CK$31),0),0),0),0)) -> 0 | CM40: =(IF($DW40>0,IF(CM$28<=(L_TENOR*L_NUM_REPAY),IF(CM$28<>0,IF(CM$28>(L_GRACE*L_NUM_REPAY),(($DW40-SUM($E40:CL40))/CL$31),0),0),0),0)) -> 0 | CN40: =(IF($DW40>0,IF(CN$28<=(L_TENOR*L_NUM_REPAY),IF(CN$28<>0,IF(CN$28>(L_GRACE*L_NUM_REPAY),(($DW40-SUM($E40:CM40))/CM$31),0),0),0),0)) -> 0 | CO40: =(IF($DW40>0,IF(CO$28<=(L_TENOR*L_NUM_REPAY),IF(CO$28<>0,IF(CO$28>(L_GRACE*L_NUM_REPAY),(($DW40-SUM($E40:CN40))/CN$31),0),0),0),0)) -> 0 | CP40: =(IF($DW40>0,IF(CP$28<=(L_TENOR*L_NUM_REPAY),IF(CP$28<>0,IF(CP$28>(L_GRACE*L_NUM_REPAY),(($DW40-SUM($E40:CO40))/CO$31),0),0),0),0)) -> 0 | CQ40: =(IF($DW40>0,IF(CQ$28<=(L_TENOR*L_NUM_REPAY),IF(CQ$28<>0,IF(CQ$28>(L_GRACE*L_NUM_REPAY),(($DW40-SUM($E40:CP40))/CP$31),0),0),0),0)) -> 0 | CR40: =(IF($DW40>0,IF(CR$28<=(L_TENOR*L_NUM_REPAY),IF(CR$28<>0,IF(CR$28>(L_GRACE*L_NUM_REPAY),(($DW40-SUM($E40:CQ40))/CQ$31),0),0),0),0)) -> 0 | CS40: =(IF($DW40>0,IF(CS$28<=(L_TENOR*L_NUM_REPAY),IF(CS$28<>0,IF(CS$28>(L_GRACE*L_NUM_REPAY),(($DW40-SUM($E40:CR40))/CR$31),0),0),0),0)) -> 0 | CT40: =(IF($DW40>0,IF(CT$28<=(L_TENOR*L_NUM_REPAY),IF(CT$28<>0,IF(CT$28>(L_GRACE*L_NUM_REPAY),(($DW40-SUM($E40:CS40))/CS$31),0),0),0),0)) -> 0 | CU40: =(IF($DW40>0,IF(CU$28<=(L_TENOR*L_NUM_REPAY),IF(CU$28<>0,IF(CU$28>(L_GRACE*L_NUM_REPAY),(($DW40-SUM($E40:CT40))/CT$31),0),0),0),0)) -> 0 | CV40: =(IF($DW40>0,IF(CV$28<=(L_TENOR*L_NUM_REPAY),IF(CV$28<>0,IF(CV$28>(L_GRACE*L_NUM_REPAY),(($DW40-SUM($E40:CU40))/CU$31),0),0),0),0)) -> 0 | CW40: =(IF($DW40>0,IF(CW$28<=(L_TENOR*L_NUM_REPAY),IF(CW$28<>0,IF(CW$28>(L_GRACE*L_NUM_REPAY),(($DW40-SUM($E40:CV40))/CV$31),0),0),0),0)) -> 0 | CX40: =(IF($DW40>0,IF(CX$28<=(L_TENOR*L_NUM_REPAY),IF(CX$28<>0,IF(CX$28>(L_GRACE*L_NUM_REPAY),(($DW40-SUM($E40:CW40))/CW$31),0),0),0),0)) -> 0 | CY40: =(IF($DW40>0,IF(CY$28<=(L_TENOR*L_NUM_REPAY),IF(CY$28<>0,IF(CY$28>(L_GRACE*L_NUM_REPAY),(($DW40-SUM($E40:CX40))/CX$31),0),0),0),0)) -> 0 | CZ40: =(IF($DW40>0,IF(CZ$28<=(L_TENOR*L_NUM_REPAY),IF(CZ$28<>0,IF(CZ$28>(L_GRACE*L_NUM_REPAY),(($DW40-SUM($E40:CY40))/CY$31),0),0),0),0)) -> 0 | DA40: =(IF($DW40>0,IF(DA$28<=(L_TENOR*L_NUM_REPAY),IF(DA$28<>0,IF(DA$28>(L_GRACE*L_NUM_REPAY),(($DW40-SUM($E40:CZ40))/CZ$31),0),0),0),0)) -> 0 | DB40: =(IF($DW40>0,IF(DB$28<=(L_TENOR*L_NUM_REPAY),IF(DB$28<>0,IF(DB$28>(L_GRACE*L_NUM_REPAY),(($DW40-SUM($E40:DA40))/DA$31),0),0),0),0)) -> 0 | DC40: =(IF($DW40>0,IF(DC$28<=(L_TENOR*L_NUM_REPAY),IF(DC$28<>0,IF(DC$28>(L_GRACE*L_NUM_REPAY),(($DW40-SUM($E40:DB40))/DB$31),0),0),0),0)) -> 0 | DD40: =(IF($DW40>0,IF(DD$28<=(L_TENOR*L_NUM_REPAY),IF(DD$28<>0,IF(DD$28>(L_GRACE*L_NUM_REPAY),(($DW40-SUM($E40:DC40))/DC$31),0),0),0),0)) -> 0 | DE40: =(IF($DW40>0,IF(DE$28<=(L_TENOR*L_NUM_REPAY),IF(DE$28<>0,IF(DE$28>(L_GRACE*L_NUM_REPAY),(($DW40-SUM($E40:DD40))/DD$31),0),0),0),0)) -> 0 | DF40: =(IF($DW40>0,IF(DF$28<=(L_TENOR*L_NUM_REPAY),IF(DF$28<>0,IF(DF$28>(L_GRACE*L_NUM_REPAY),(($DW40-SUM($E40:DE40))/DE$31),0),0),0),0)) -> 0 | DG40: =(IF($DW40>0,IF(DG$28<=(L_TENOR*L_NUM_REPAY),IF(DG$28<>0,IF(DG$28>(L_GRACE*L_NUM_REPAY),(($DW40-SUM($E40:DF40))/DF$31),0),0),0),0)) -> 0 | DH40: =(IF($DW40>0,IF(DH$28<=(L_TENOR*L_NUM_REPAY),IF(DH$28<>0,IF(DH$28>(L_GRACE*L_NUM_REPAY),(($DW40-SUM($E40:DG40))/DG$31),0),0),0),0)) -> 0 | DI40: =(IF($DW40>0,IF(DI$28<=(L_TENOR*L_NUM_REPAY),IF(DI$28<>0,IF(DI$28>(L_GRACE*L_NUM_REPAY),(($DW40-SUM($E40:DH40))/DH$31),0),0),0),0)) -> 0 | DJ40: =(IF($DW40>0,IF(DJ$28<=(L_TENOR*L_NUM_REPAY),IF(DJ$28<>0,IF(DJ$28>(L_GRACE*L_NUM_REPAY),(($DW40-SUM($E40:DI40))/DI$31),0),0),0),0)) -> 0 | DK40: =(IF($DW40>0,IF(DK$28<=(L_TENOR*L_NUM_REPAY),IF(DK$28<>0,IF(DK$28>(L_GRACE*L_NUM_REPAY),(($DW40-SUM($E40:DJ40))/DJ$31),0),0),0),0)) -> 0 | DL40: =(IF($DW40>0,IF(DL$28<=(L_TENOR*L_NUM_REPAY),IF(DL$28<>0,IF(DL$28>(L_GRACE*L_NUM_REPAY),(($DW40-SUM($E40:DK40))/DK$31),0),0),0),0)) -> 0 | DM40: =(IF($DW40>0,IF(DM$28<=(L_TENOR*L_NUM_REPAY),IF(DM$28<>0,IF(DM$28>(L_GRACE*L_NUM_REPAY),(($DW40-SUM($E40:DL40))/DL$31),0),0),0),0)) -> 0 | DN40: =(IF($DW40>0,IF(DN$28<=(L_TENOR*L_NUM_REPAY),IF(DN$28<>0,IF(DN$28>(L_GRACE*L_NUM_REPAY),(($DW40-SUM($E40:DM40))/DM$31),0),0),0),0)) -> 0 | DO40: =(IF($DW40>0,IF(DO$28<=(L_TENOR*L_NUM_REPAY),IF(DO$28<>0,IF(DO$28>(L_GRACE*L_NUM_REPAY),(($DW40-SUM($E40:DN40))/DN$31),0),0),0),0)) -> 0 | DP40: =(IF($DW40>0,IF(DP$28<=(L_TENOR*L_NUM_REPAY),IF(DP$28<>0,IF(DP$28>(L_GRACE*L_NUM_REPAY),(($DW40-SUM($E40:DO40))/DO$31),0),0),0),0)) -> 0 | DQ40: =(IF($DW40>0,IF(DQ$28<=(L_TENOR*L_NUM_REPAY),IF(DQ$28<>0,IF(DQ$28>(L_GRACE*L_NUM_REPAY),(($DW40-SUM($E40:DP40))/DP$31),0),0),0),0)) -> 0 | DR40: =(IF($DW40>0,IF(DR$28<=(L_TENOR*L_NUM_REPAY),IF(DR$28<>0,IF(DR$28>(L_GRACE*L_NUM_REPAY),(($DW40-SUM($E40:DQ40))/DQ$31),0),0),0),0)) -> 0 | DS40: =(IF($DW40>0,IF(DS$28<=(L_TENOR*L_NUM_REPAY),IF(DS$28<>0,IF(DS$28>(L_GRACE*L_NUM_REPAY),(($DW40-SUM($E40:DR40))/DR$31),0),0),0),0)) -> 0 | DT40: =(IF($DW40>0,IF(DT$28<=(L_TENOR*L_NUM_REPAY),IF(DT$28<>0,IF(DT$28>(L_GRACE*L_NUM_REPAY),(($DW40-SUM($E40:DS40))/DS$31),0),0),0),0)) -> 0 | DU40: =(IF($DW40>0,IF(DU$28<=(L_TENOR*L_NUM_REPAY),IF(DU$28<>0,IF(DU$28>(L_GRACE*L_NUM_REPAY),(($DW40-SUM($E40:DT40))/DT$31),0),0),0),0)) -> 0 | DV40: 2 | DW40: =F106 -> 70
B41: Principal Tranche 2 | D41: 0 | E41: 0 | F41: 0 | G41: 0 | H41: =IF($DW41>0, IF(H$28<=(L_TENOR*L_NUM_REPAY),IF(H$28<>0,IF(H$28>(L_GRACE*L_NUM_REPAY),(($DW41-SUM($E41:G41))/G$31),0),0),0),0) -> 0 | I41: =(IF($DW41>0,IF(I$28<=(L_TENOR*L_NUM_REPAY),IF(I$28<>0,IF(I$28>(L_GRACE*L_NUM_REPAY),(($DW41-SUM($E41:H41))/H$31),0),0),0),0)) -> 0 | J41: =(IF($DW41>0,IF(J$28<=(L_TENOR*L_NUM_REPAY),IF(J$28<>0,IF(J$28>(L_GRACE*L_NUM_REPAY),(($DW41-SUM($E41:I41))/I$31),0),0),0),0)) -> 0 | K41: =(IF($DW41>0,IF(K$28<=(L_TENOR*L_NUM_REPAY),IF(K$28<>0,IF(K$28>(L_GRACE*L_NUM_REPAY),(($DW41-SUM($E41:J41))/J$31),0),0),0),0)) -> 0 | L41: =(IF($DW41>0,IF(L$28<=(L_TENOR*L_NUM_REPAY),IF(L$28<>0,IF(L$28>(L_GRACE*L_NUM_REPAY),(($DW41-SUM($E41:K41))/K$31),0),0),0),0)) -> 0 | M41: =(IF($DW41>0,IF(M$28<=(L_TENOR*L_NUM_REPAY),IF(M$28<>0,IF(M$28>(L_GRACE*L_NUM_REPAY),(($DW41-SUM($E41:L41))/L$31),0),0),0),0)) -> 0 | N41: =(IF($DW41>0,IF(N$28<=(L_TENOR*L_NUM_REPAY),IF(N$28<>0,IF(N$28>(L_GRACE*L_NUM_REPAY),(($DW41-SUM($E41:M41))/M$31),0),0),0),0)) -> 0 | O41: =(IF($DW41>0,IF(O$28<=(L_TENOR*L_NUM_REPAY),IF(O$28<>0,IF(O$28>(L_GRACE*L_NUM_REPAY),(($DW41-SUM($E41:N41))/N$31),0),0),0),0)) -> 0 | P41: =(IF($DW41>0,IF(P$28<=(L_TENOR*L_NUM_REPAY),IF(P$28<>0,IF(P$28>(L_GRACE*L_NUM_REPAY),(($DW41-SUM($E41:O41))/O$31),0),0),0),0)) -> 0 | Q41: =(IF($DW41>0,IF(Q$28<=(L_TENOR*L_NUM_REPAY),IF(Q$28<>0,IF(Q$28>(L_GRACE*L_NUM_REPAY),(($DW41-SUM($E41:P41))/P$31),0),0),0),0)) -> 0 | R41: =(IF($DW41>0,IF(R$28<=(L_TENOR*L_NUM_REPAY),IF(R$28<>0,IF(R$28>(L_GRACE*L_NUM_REPAY),(($DW41-SUM($E41:Q41))/Q$31),0),0),0),0)) -> 0 | S41: =(IF($DW41>0,IF(S$28<=(L_TENOR*L_NUM_REPAY),IF(S$28<>0,IF(S$28>(L_GRACE*L_NUM_REPAY),(($DW41-SUM($E41:R41))/R$31),0),0),0),0)) -> 0 | T41: =(IF($DW41>0,IF(T$28<=(L_TENOR*L_NUM_REPAY),IF(T$28<>0,IF(T$28>(L_GRACE*L_NUM_REPAY),(($DW41-SUM($E41:S41))/S$31),0),0),0),0)) -> 0 | U41: =(IF($DW41>0,IF(U$28<=(L_TENOR*L_NUM_REPAY),IF(U$28<>0,IF(U$28>(L_GRACE*L_NUM_REPAY),(($DW41-SUM($E41:T41))/T$31),0),0),0),0)) -> 0 | V41: =(IF($DW41>0,IF(V$28<=(L_TENOR*L_NUM_REPAY),IF(V$28<>0,IF(V$28>(L_GRACE*L_NUM_REPAY),(($DW41-SUM($E41:U41))/U$31),0),0),0),0)) -> 0 | W41: =(IF($DW41>0,IF(W$28<=(L_TENOR*L_NUM_REPAY),IF(W$28<>0,IF(W$28>(L_GRACE*L_NUM_REPAY),(($DW41-SUM($E41:V41))/V$31),0),0),0),0)) -> 0 | X41: =(IF($DW41>0,IF(X$28<=(L_TENOR*L_NUM_REPAY),IF(X$28<>0,IF(X$28>(L_GRACE*L_NUM_REPAY),(($DW41-SUM($E41:W41))/W$31),0),0),0),0)) -> 0 | Y41: =(IF($DW41>0,IF(Y$28<=(L_TENOR*L_NUM_REPAY),IF(Y$28<>0,IF(Y$28>(L_GRACE*L_NUM_REPAY),(($DW41-SUM($E41:X41))/X$31),0),0),0),0)) -> 0 | Z41: =(IF($DW41>0,IF(Z$28<=(L_TENOR*L_NUM_REPAY),IF(Z$28<>0,IF(Z$28>(L_GRACE*L_NUM_REPAY),(($DW41-SUM($E41:Y41))/Y$31),0),0),0),0)) -> 0 | AA41: =(IF($DW41>0,IF(AA$28<=(L_TENOR*L_NUM_REPAY),IF(AA$28<>0,IF(AA$28>(L_GRACE*L_NUM_REPAY),(($DW41-SUM($E41:Z41))/Z$31),0),0),0),0)) -> 0 | AB41: =(IF($DW41>0,IF(AB$28<=(L_TENOR*L_NUM_REPAY),IF(AB$28<>0,IF(AB$28>(L_GRACE*L_NUM_REPAY),(($DW41-SUM($E41:AA41))/AA$31),0),0),0),0)) -> 0 | AC41: =(IF($DW41>0,IF(AC$28<=(L_TENOR*L_NUM_REPAY),IF(AC$28<>0,IF(AC$28>(L_GRACE*L_NUM_REPAY),(($DW41-SUM($E41:AB41))/AB$31),0),0),0),0)) -> 0 | AD41: =(IF($DW41>0,IF(AD$28<=(L_TENOR*L_NUM_REPAY),IF(AD$28<>0,IF(AD$28>(L_GRACE*L_NUM_REPAY),(($DW41-SUM($E41:AC41))/AC$31),0),0),0),0)) -> 0 | AE41: =(IF($DW41>0,IF(AE$28<=(L_TENOR*L_NUM_REPAY),IF(AE$28<>0,IF(AE$28>(L_GRACE*L_NUM_REPAY),(($DW41-SUM($E41:AD41))/AD$31),0),0),0),0)) -> 0 | AF41: =(IF($DW41>0,IF(AF$28<=(L_TENOR*L_NUM_REPAY),IF(AF$28<>0,IF(AF$28>(L_GRACE*L_NUM_REPAY),(($DW41-SUM($E41:AE41))/AE$31),0),0),0),0)) -> 0 | AG41: =(IF($DW41>0,IF(AG$28<=(L_TENOR*L_NUM_REPAY),IF(AG$28<>0,IF(AG$28>(L_GRACE*L_NUM_REPAY),(($DW41-SUM($E41:AF41))/AF$31),0),0),0),0)) -> 0 | AH41: =(IF($DW41>0,IF(AH$28<=(L_TENOR*L_NUM_REPAY),IF(AH$28<>0,IF(AH$28>(L_GRACE*L_NUM_REPAY),(($DW41-SUM($E41:AG41))/AG$31),0),0),0),0)) -> 0 | AI41: =(IF($DW41>0,IF(AI$28<=(L_TENOR*L_NUM_REPAY),IF(AI$28<>0,IF(AI$28>(L_GRACE*L_NUM_REPAY),(($DW41-SUM($E41:AH41))/AH$31),0),0),0),0)) -> 0 | AJ41: =(IF($DW41>0,IF(AJ$28<=(L_TENOR*L_NUM_REPAY),IF(AJ$28<>0,IF(AJ$28>(L_GRACE*L_NUM_REPAY),(($DW41-SUM($E41:AI41))/AI$31),0),0),0),0)) -> 0 | AK41: =(IF($DW41>0,IF(AK$28<=(L_TENOR*L_NUM_REPAY),IF(AK$28<>0,IF(AK$28>(L_GRACE*L_NUM_REPAY),(($DW41-SUM($E41:AJ41))/AJ$31),0),0),0),0)) -> 0 | AL41: =(IF($DW41>0,IF(AL$28<=(L_TENOR*L_NUM_REPAY),IF(AL$28<>0,IF(AL$28>(L_GRACE*L_NUM_REPAY),(($DW41-SUM($E41:AK41))/AK$31),0),0),0),0)) -> 0 | AM41: =(IF($DW41>0,IF(AM$28<=(L_TENOR*L_NUM_REPAY),IF(AM$28<>0,IF(AM$28>(L_GRACE*L_NUM_REPAY),(($DW41-SUM($E41:AL41))/AL$31),0),0),0),0)) -> 0 | AN41: =(IF($DW41>0,IF(AN$28<=(L_TENOR*L_NUM_REPAY),IF(AN$28<>0,IF(AN$28>(L_GRACE*L_NUM_REPAY),(($DW41-SUM($E41:AM41))/AM$31),0),0),0),0)) -> 0 | AO41: =(IF($DW41>0,IF(AO$28<=(L_TENOR*L_NUM_REPAY),IF(AO$28<>0,IF(AO$28>(L_GRACE*L_NUM_REPAY),(($DW41-SUM($E41:AN41))/AN$31),0),0),0),0)) -> 0 | AP41: =(IF($DW41>0,IF(AP$28<=(L_TENOR*L_NUM_REPAY),IF(AP$28<>0,IF(AP$28>(L_GRACE*L_NUM_REPAY),(($DW41-SUM($E41:AO41))/AO$31),0),0),0),0)) -> 0 | AQ41: =(IF($DW41>0,IF(AQ$28<=(L_TENOR*L_NUM_REPAY),IF(AQ$28<>0,IF(AQ$28>(L_GRACE*L_NUM_REPAY),(($DW41-SUM($E41:AP41))/AP$31),0),0),0),0)) -> 0 | AR41: =(IF($DW41>0,IF(AR$28<=(L_TENOR*L_NUM_REPAY),IF(AR$28<>0,IF(AR$28>(L_GRACE*L_NUM_REPAY),(($DW41-SUM($E41:AQ41))/AQ$31),0),0),0),0)) -> 0 | AS41: =(IF($DW41>0,IF(AS$28<=(L_TENOR*L_NUM_REPAY),IF(AS$28<>0,IF(AS$28>(L_GRACE*L_NUM_REPAY),(($DW41-SUM($E41:AR41))/AR$31),0),0),0),0)) -> 0 | AT41: =(IF($DW41>0,IF(AT$28<=(L_TENOR*L_NUM_REPAY),IF(AT$28<>0,IF(AT$28>(L_GRACE*L_NUM_REPAY),(($DW41-SUM($E41:AS41))/AS$31),0),0),0),0)) -> 0 | AU41: =(IF($DW41>0,IF(AU$28<=(L_TENOR*L_NUM_REPAY),IF(AU$28<>0,IF(AU$28>(L_GRACE*L_NUM_REPAY),(($DW41-SUM($E41:AT41))/AT$31),0),0),0),0)) -> 0 | AV41: =(IF($DW41>0,IF(AV$28<=(L_TENOR*L_NUM_REPAY),IF(AV$28<>0,IF(AV$28>(L_GRACE*L_NUM_REPAY),(($DW41-SUM($E41:AU41))/AU$31),0),0),0),0)) -> 0 | AW41: =(IF($DW41>0,IF(AW$28<=(L_TENOR*L_NUM_REPAY),IF(AW$28<>0,IF(AW$28>(L_GRACE*L_NUM_REPAY),(($DW41-SUM($E41:AV41))/AV$31),0),0),0),0)) -> 0 | AX41: =(IF($DW41>0,IF(AX$28<=(L_TENOR*L_NUM_REPAY),IF(AX$28<>0,IF(AX$28>(L_GRACE*L_NUM_REPAY),(($DW41-SUM($E41:AW41))/AW$31),0),0),0),0)) -> 0 | AY41: =(IF($DW41>0,IF(AY$28<=(L_TENOR*L_NUM_REPAY),IF(AY$28<>0,IF(AY$28>(L_GRACE*L_NUM_REPAY),(($DW41-SUM($E41:AX41))/AX$31),0),0),0),0)) -> 0 | AZ41: =(IF($DW41>0,IF(AZ$28<=(L_TENOR*L_NUM_REPAY),IF(AZ$28<>0,IF(AZ$28>(L_GRACE*L_NUM_REPAY),(($DW41-SUM($E41:AY41))/AY$31),0),0),0),0)) -> 0 | BA41: =(IF($DW41>0,IF(BA$28<=(L_TENOR*L_NUM_REPAY),IF(BA$28<>0,IF(BA$28>(L_GRACE*L_NUM_REPAY),(($DW41-SUM($E41:AZ41))/AZ$31),0),0),0),0)) -> 0 | BB41: =(IF($DW41>0,IF(BB$28<=(L_TENOR*L_NUM_REPAY),IF(BB$28<>0,IF(BB$28>(L_GRACE*L_NUM_REPAY),(($DW41-SUM($E41:BA41))/BA$31),0),0),0),0)) -> 0 | BC41: =(IF($DW41>0,IF(BC$28<=(L_TENOR*L_NUM_REPAY),IF(BC$28<>0,IF(BC$28>(L_GRACE*L_NUM_REPAY),(($DW41-SUM($E41:BB41))/BB$31),0),0),0),0)) -> 0 | BD41: =(IF($DW41>0,IF(BD$28<=(L_TENOR*L_NUM_REPAY),IF(BD$28<>0,IF(BD$28>(L_GRACE*L_NUM_REPAY),(($DW41-SUM($E41:BC41))/BC$31),0),0),0),0)) -> 0 | BE41: =(IF($DW41>0,IF(BE$28<=(L_TENOR*L_NUM_REPAY),IF(BE$28<>0,IF(BE$28>(L_GRACE*L_NUM_REPAY),(($DW41-SUM($E41:BD41))/BD$31),0),0),0),0)) -> 0 | BF41: =(IF($DW41>0,IF(BF$28<=(L_TENOR*L_NUM_REPAY),IF(BF$28<>0,IF(BF$28>(L_GRACE*L_NUM_REPAY),(($DW41-SUM($E41:BE41))/BE$31),0),0),0),0)) -> 0 | BG41: =(IF($DW41>0,IF(BG$28<=(L_TENOR*L_NUM_REPAY),IF(BG$28<>0,IF(BG$28>(L_GRACE*L_NUM_REPAY),(($DW41-SUM($E41:BF41))/BF$31),0),0),0),0)) -> 0 | BH41: =(IF($DW41>0,IF(BH$28<=(L_TENOR*L_NUM_REPAY),IF(BH$28<>0,IF(BH$28>(L_GRACE*L_NUM_REPAY),(($DW41-SUM($E41:BG41))/BG$31),0),0),0),0)) -> 0 | BI41: =(IF($DW41>0,IF(BI$28<=(L_TENOR*L_NUM_REPAY),IF(BI$28<>0,IF(BI$28>(L_GRACE*L_NUM_REPAY),(($DW41-SUM($E41:BH41))/BH$31),0),0),0),0)) -> 0 | BJ41: =(IF($DW41>0,IF(BJ$28<=(L_TENOR*L_NUM_REPAY),IF(BJ$28<>0,IF(BJ$28>(L_GRACE*L_NUM_REPAY),(($DW41-SUM($E41:BI41))/BI$31),0),0),0),0)) -> 0 | BK41: =(IF($DW41>0,IF(BK$28<=(L_TENOR*L_NUM_REPAY),IF(BK$28<>0,IF(BK$28>(L_GRACE*L_NUM_REPAY),(($DW41-SUM($E41:BJ41))/BJ$31),0),0),0),0)) -> 0 | BL41: =(IF($DW41>0,IF(BL$28<=(L_TENOR*L_NUM_REPAY),IF(BL$28<>0,IF(BL$28>(L_GRACE*L_NUM_REPAY),(($DW41-SUM($E41:BK41))/BK$31),0),0),0),0)) -> 0 | BM41: =(IF($DW41>0,IF(BM$28<=(L_TENOR*L_NUM_REPAY),IF(BM$28<>0,IF(BM$28>(L_GRACE*L_NUM_REPAY),(($DW41-SUM($E41:BL41))/BL$31),0),0),0),0)) -> 0 | BN41: =(IF($DW41>0,IF(BN$28<=(L_TENOR*L_NUM_REPAY),IF(BN$28<>0,IF(BN$28>(L_GRACE*L_NUM_REPAY),(($DW41-SUM($E41:BM41))/BM$31),0),0),0),0)) -> 0 | BO41: =(IF($DW41>0,IF(BO$28<=(L_TENOR*L_NUM_REPAY),IF(BO$28<>0,IF(BO$28>(L_GRACE*L_NUM_REPAY),(($DW41-SUM($E41:BN41))/BN$31),0),0),0),0)) -> 0 | BP41: =(IF($DW41>0,IF(BP$28<=(L_TENOR*L_NUM_REPAY),IF(BP$28<>0,IF(BP$28>(L_GRACE*L_NUM_REPAY),(($DW41-SUM($E41:BO41))/BO$31),0),0),0),0)) -> 0 | BQ41: =(IF($DW41>0,IF(BQ$28<=(L_TENOR*L_NUM_REPAY),IF(BQ$28<>0,IF(BQ$28>(L_GRACE*L_NUM_REPAY),(($DW41-SUM($E41:BP41))/BP$31),0),0),0),0)) -> 0 | BR41: =(IF($DW41>0,IF(BR$28<=(L_TENOR*L_NUM_REPAY),IF(BR$28<>0,IF(BR$28>(L_GRACE*L_NUM_REPAY),(($DW41-SUM($E41:BQ41))/BQ$31),0),0),0),0)) -> 0 | BS41: =(IF($DW41>0,IF(BS$28<=(L_TENOR*L_NUM_REPAY),IF(BS$28<>0,IF(BS$28>(L_GRACE*L_NUM_REPAY),(($DW41-SUM($E41:BR41))/BR$31),0),0),0),0)) -> 0 | BT41: =(IF($DW41>0,IF(BT$28<=(L_TENOR*L_NUM_REPAY),IF(BT$28<>0,IF(BT$28>(L_GRACE*L_NUM_REPAY),(($DW41-SUM($E41:BS41))/BS$31),0),0),0),0)) -> 0 | BU41: =(IF($DW41>0,IF(BU$28<=(L_TENOR*L_NUM_REPAY),IF(BU$28<>0,IF(BU$28>(L_GRACE*L_NUM_REPAY),(($DW41-SUM($E41:BT41))/BT$31),0),0),0),0)) -> 0 | BV41: =(IF($DW41>0,IF(BV$28<=(L_TENOR*L_NUM_REPAY),IF(BV$28<>0,IF(BV$28>(L_GRACE*L_NUM_REPAY),(($DW41-SUM($E41:BU41))/BU$31),0),0),0),0)) -> 0 | BW41: =(IF($DW41>0,IF(BW$28<=(L_TENOR*L_NUM_REPAY),IF(BW$28<>0,IF(BW$28>(L_GRACE*L_NUM_REPAY),(($DW41-SUM($E41:BV41))/BV$31),0),0),0),0)) -> 0 | BX41: =(IF($DW41>0,IF(BX$28<=(L_TENOR*L_NUM_REPAY),IF(BX$28<>0,IF(BX$28>(L_GRACE*L_NUM_REPAY),(($DW41-SUM($E41:BW41))/BW$31),0),0),0),0)) -> 0 | BY41: =(IF($DW41>0,IF(BY$28<=(L_TENOR*L_NUM_REPAY),IF(BY$28<>0,IF(BY$28>(L_GRACE*L_NUM_REPAY),(($DW41-SUM($E41:BX41))/BX$31),0),0),0),0)) -> 0 | BZ41: =(IF($DW41>0,IF(BZ$28<=(L_TENOR*L_NUM_REPAY),IF(BZ$28<>0,IF(BZ$28>(L_GRACE*L_NUM_REPAY),(($DW41-SUM($E41:BY41))/BY$31),0),0),0),0)) -> 0 | CA41: =(IF($DW41>0,IF(CA$28<=(L_TENOR*L_NUM_REPAY),IF(CA$28<>0,IF(CA$28>(L_GRACE*L_NUM_REPAY),(($DW41-SUM($E41:BZ41))/BZ$31),0),0),0),0)) -> 0 | CB41: =(IF($DW41>0,IF(CB$28<=(L_TENOR*L_NUM_REPAY),IF(CB$28<>0,IF(CB$28>(L_GRACE*L_NUM_REPAY),(($DW41-SUM($E41:CA41))/CA$31),0),0),0),0)) -> 0 | CC41: =(IF($DW41>0,IF(CC$28<=(L_TENOR*L_NUM_REPAY),IF(CC$28<>0,IF(CC$28>(L_GRACE*L_NUM_REPAY),(($DW41-SUM($E41:CB41))/CB$31),0),0),0),0)) -> 0 | CD41: =(IF($DW41>0,IF(CD$28<=(L_TENOR*L_NUM_REPAY),IF(CD$28<>0,IF(CD$28>(L_GRACE*L_NUM_REPAY),(($DW41-SUM($E41:CC41))/CC$31),0),0),0),0)) -> 0 | CE41: =(IF($DW41>0,IF(CE$28<=(L_TENOR*L_NUM_REPAY),IF(CE$28<>0,IF(CE$28>(L_GRACE*L_NUM_REPAY),(($DW41-SUM($E41:CD41))/CD$31),0),0),0),0)) -> 0 | CF41: =(IF($DW41>0,IF(CF$28<=(L_TENOR*L_NUM_REPAY),IF(CF$28<>0,IF(CF$28>(L_GRACE*L_NUM_REPAY),(($DW41-SUM($E41:CE41))/CE$31),0),0),0),0)) -> 0 | CG41: =(IF($DW41>0,IF(CG$28<=(L_TENOR*L_NUM_REPAY),IF(CG$28<>0,IF(CG$28>(L_GRACE*L_NUM_REPAY),(($DW41-SUM($E41:CF41))/CF$31),0),0),0),0)) -> 0 | CH41: =(IF($DW41>0,IF(CH$28<=(L_TENOR*L_NUM_REPAY),IF(CH$28<>0,IF(CH$28>(L_GRACE*L_NUM_REPAY),(($DW41-SUM($E41:CG41))/CG$31),0),0),0),0)) -> 0 | CI41: =(IF($DW41>0,IF(CI$28<=(L_TENOR*L_NUM_REPAY),IF(CI$28<>0,IF(CI$28>(L_GRACE*L_NUM_REPAY),(($DW41-SUM($E41:CH41))/CH$31),0),0),0),0)) -> 0 | CJ41: =(IF($DW41>0,IF(CJ$28<=(L_TENOR*L_NUM_REPAY),IF(CJ$28<>0,IF(CJ$28>(L_GRACE*L_NUM_REPAY),(($DW41-SUM($E41:CI41))/CI$31),0),0),0),0)) -> 0 | CK41: =(IF($DW41>0,IF(CK$28<=(L_TENOR*L_NUM_REPAY),IF(CK$28<>0,IF(CK$28>(L_GRACE*L_NUM_REPAY),(($DW41-SUM($E41:CJ41))/CJ$31),0),0),0),0)) -> 0 | CL41: =(IF($DW41>0,IF(CL$28<=(L_TENOR*L_NUM_REPAY),IF(CL$28<>0,IF(CL$28>(L_GRACE*L_NUM_REPAY),(($DW41-SUM($E41:CK41))/CK$31),0),0),0),0)) -> 0 | CM41: =(IF($DW41>0,IF(CM$28<=(L_TENOR*L_NUM_REPAY),IF(CM$28<>0,IF(CM$28>(L_GRACE*L_NUM_REPAY),(($DW41-SUM($E41:CL41))/CL$31),0),0),0),0)) -> 0 | CN41: =(IF($DW41>0,IF(CN$28<=(L_TENOR*L_NUM_REPAY),IF(CN$28<>0,IF(CN$28>(L_GRACE*L_NUM_REPAY),(($DW41-SUM($E41:CM41))/CM$31),0),0),0),0)) -> 0 | CO41: =(IF($DW41>0,IF(CO$28<=(L_TENOR*L_NUM_REPAY),IF(CO$28<>0,IF(CO$28>(L_GRACE*L_NUM_REPAY),(($DW41-SUM($E41:CN41))/CN$31),0),0),0),0)) -> 0 | CP41: =(IF($DW41>0,IF(CP$28<=(L_TENOR*L_NUM_REPAY),IF(CP$28<>0,IF(CP$28>(L_GRACE*L_NUM_REPAY),(($DW41-SUM($E41:CO41))/CO$31),0),0),0),0)) -> 0 | CQ41: =(IF($DW41>0,IF(CQ$28<=(L_TENOR*L_NUM_REPAY),IF(CQ$28<>0,IF(CQ$28>(L_GRACE*L_NUM_REPAY),(($DW41-SUM($E41:CP41))/CP$31),0),0),0),0)) -> 0 | CR41: =(IF($DW41>0,IF(CR$28<=(L_TENOR*L_NUM_REPAY),IF(CR$28<>0,IF(CR$28>(L_GRACE*L_NUM_REPAY),(($DW41-SUM($E41:CQ41))/CQ$31),0),0),0),0)) -> 0 | CS41: =(IF($DW41>0,IF(CS$28<=(L_TENOR*L_NUM_REPAY),IF(CS$28<>0,IF(CS$28>(L_GRACE*L_NUM_REPAY),(($DW41-SUM($E41:CR41))/CR$31),0),0),0),0)) -> 0 | CT41: =(IF($DW41>0,IF(CT$28<=(L_TENOR*L_NUM_REPAY),IF(CT$28<>0,IF(CT$28>(L_GRACE*L_NUM_REPAY),(($DW41-SUM($E41:CS41))/CS$31),0),0),0),0)) -> 0 | CU41: =(IF($DW41>0,IF(CU$28<=(L_TENOR*L_NUM_REPAY),IF(CU$28<>0,IF(CU$28>(L_GRACE*L_NUM_REPAY),(($DW41-SUM($E41:CT41))/CT$31),0),0),0),0)) -> 0 | CV41: =(IF($DW41>0,IF(CV$28<=(L_TENOR*L_NUM_REPAY),IF(CV$28<>0,IF(CV$28>(L_GRACE*L_NUM_REPAY),(($DW41-SUM($E41:CU41))/CU$31),0),0),0),0)) -> 0 | CW41: =(IF($DW41>0,IF(CW$28<=(L_TENOR*L_NUM_REPAY),IF(CW$28<>0,IF(CW$28>(L_GRACE*L_NUM_REPAY),(($DW41-SUM($E41:CV41))/CV$31),0),0),0),0)) -> 0 | CX41: =(IF($DW41>0,IF(CX$28<=(L_TENOR*L_NUM_REPAY),IF(CX$28<>0,IF(CX$28>(L_GRACE*L_NUM_REPAY),(($DW41-SUM($E41:CW41))/CW$31),0),0),0),0)) -> 0 | CY41: =(IF($DW41>0,IF(CY$28<=(L_TENOR*L_NUM_REPAY),IF(CY$28<>0,IF(CY$28>(L_GRACE*L_NUM_REPAY),(($DW41-SUM($E41:CX41))/CX$31),0),0),0),0)) -> 0 | CZ41: =(IF($DW41>0,IF(CZ$28<=(L_TENOR*L_NUM_REPAY),IF(CZ$28<>0,IF(CZ$28>(L_GRACE*L_NUM_REPAY),(($DW41-SUM($E41:CY41))/CY$31),0),0),0),0)) -> 0 | DA41: =(IF($DW41>0,IF(DA$28<=(L_TENOR*L_NUM_REPAY),IF(DA$28<>0,IF(DA$28>(L_GRACE*L_NUM_REPAY),(($DW41-SUM($E41:CZ41))/CZ$31),0),0),0),0)) -> 0 | DB41: =(IF($DW41>0,IF(DB$28<=(L_TENOR*L_NUM_REPAY),IF(DB$28<>0,IF(DB$28>(L_GRACE*L_NUM_REPAY),(($DW41-SUM($E41:DA41))/DA$31),0),0),0),0)) -> 0 | DC41: =(IF($DW41>0,IF(DC$28<=(L_TENOR*L_NUM_REPAY),IF(DC$28<>0,IF(DC$28>(L_GRACE*L_NUM_REPAY),(($DW41-SUM($E41:DB41))/DB$31),0),0),0),0)) -> 0 | DD41: =(IF($DW41>0,IF(DD$28<=(L_TENOR*L_NUM_REPAY),IF(DD$28<>0,IF(DD$28>(L_GRACE*L_NUM_REPAY),(($DW41-SUM($E41:DC41))/DC$31),0),0),0),0)) -> 0 | DE41: =(IF($DW41>0,IF(DE$28<=(L_TENOR*L_NUM_REPAY),IF(DE$28<>0,IF(DE$28>(L_GRACE*L_NUM_REPAY),(($DW41-SUM($E41:DD41))/DD$31),0),0),0),0)) -> 0 | DF41: =(IF($DW41>0,IF(DF$28<=(L_TENOR*L_NUM_REPAY),IF(DF$28<>0,IF(DF$28>(L_GRACE*L_NUM_REPAY),(($DW41-SUM($E41:DE41))/DE$31),0),0),0),0)) -> 0 | DG41: =(IF($DW41>0,IF(DG$28<=(L_TENOR*L_NUM_REPAY),IF(DG$28<>0,IF(DG$28>(L_GRACE*L_NUM_REPAY),(($DW41-SUM($E41:DF41))/DF$31),0),0),0),0)) -> 0 | DH41: =(IF($DW41>0,IF(DH$28<=(L_TENOR*L_NUM_REPAY),IF(DH$28<>0,IF(DH$28>(L_GRACE*L_NUM_REPAY),(($DW41-SUM($E41:DG41))/DG$31),0),0),0),0)) -> 0 | DI41: =(IF($DW41>0,IF(DI$28<=(L_TENOR*L_NUM_REPAY),IF(DI$28<>0,IF(DI$28>(L_GRACE*L_NUM_REPAY),(($DW41-SUM($E41:DH41))/DH$31),0),0),0),0)) -> 0 | DJ41: =(IF($DW41>0,IF(DJ$28<=(L_TENOR*L_NUM_REPAY),IF(DJ$28<>0,IF(DJ$28>(L_GRACE*L_NUM_REPAY),(($DW41-SUM($E41:DI41))/DI$31),0),0),0),0)) -> 0 | DK41: =(IF($DW41>0,IF(DK$28<=(L_TENOR*L_NUM_REPAY),IF(DK$28<>0,IF(DK$28>(L_GRACE*L_NUM_REPAY),(($DW41-SUM($E41:DJ41))/DJ$31),0),0),0),0)) -> 0 | DL41: =(IF($DW41>0,IF(DL$28<=(L_TENOR*L_NUM_REPAY),IF(DL$28<>0,IF(DL$28>(L_GRACE*L_NUM_REPAY),(($DW41-SUM($E41:DK41))/DK$31),0),0),0),0)) -> 0 | DM41: =(IF($DW41>0,IF(DM$28<=(L_TENOR*L_NUM_REPAY),IF(DM$28<>0,IF(DM$28>(L_GRACE*L_NUM_REPAY),(($DW41-SUM($E41:DL41))/DL$31),0),0),0),0)) -> 0 | DN41: =(IF($DW41>0,IF(DN$28<=(L_TENOR*L_NUM_REPAY),IF(DN$28<>0,IF(DN$28>(L_GRACE*L_NUM_REPAY),(($DW41-SUM($E41:DM41))/DM$31),0),0),0),0)) -> 0 | DO41: =(IF($DW41>0,IF(DO$28<=(L_TENOR*L_NUM_REPAY),IF(DO$28<>0,IF(DO$28>(L_GRACE*L_NUM_REPAY),(($DW41-SUM($E41:DN41))/DN$31),0),0),0),0)) -> 0 | DP41: =(IF($DW41>0,IF(DP$28<=(L_TENOR*L_NUM_REPAY),IF(DP$28<>0,IF(DP$28>(L_GRACE*L_NUM_REPAY),(($DW41-SUM($E41:DO41))/DO$31),0),0),0),0)) -> 0 | DQ41: =(IF($DW41>0,IF(DQ$28<=(L_TENOR*L_NUM_REPAY),IF(DQ$28<>0,IF(DQ$28>(L_GRACE*L_NUM_REPAY),(($DW41-SUM($E41:DP41))/DP$31),0),0),0),0)) -> 0 | DR41: =(IF($DW41>0,IF(DR$28<=(L_TENOR*L_NUM_REPAY),IF(DR$28<>0,IF(DR$28>(L_GRACE*L_NUM_REPAY),(($DW41-SUM($E41:DQ41))/DQ$31),0),0),0),0)) -> 0 | DS41: =(IF($DW41>0,IF(DS$28<=(L_TENOR*L_NUM_REPAY),IF(DS$28<>0,IF(DS$28>(L_GRACE*L_NUM_REPAY),(($DW41-SUM($E41:DR41))/DR$31),0),0),0),0)) -> 0 | DT41: =(IF($DW41>0,IF(DT$28<=(L_TENOR*L_NUM_REPAY),IF(DT$28<>0,IF(DT$28>(L_GRACE*L_NUM_REPAY),(($DW41-SUM($E41:DS41))/DS$31),0),0),0),0)) -> 0 | DU41: =(IF($DW41>0,IF(DU$28<=(L_TENOR*L_NUM_REPAY),IF(DU$28<>0,IF(DU$28>(L_GRACE*L_NUM_REPAY),(($DW41-SUM($E41:DT41))/DT$31),0),0),0),0)) -> 0 | DV41: 3 | DW41: =G106 -> 0
B42: Principal Tranche 3 | D42: 0 | E42: 0 | F42: 0 | G42: 0 | H42: 0 | I42: =IF($DW42>0, IF(I$28<=(L_TENOR*L_NUM_REPAY),IF(I$28<>0,IF(I$28>(L_GRACE*L_NUM_REPAY),(($DW42-SUM($E42:H42))/H$31),0),0),0),0) -> 0 | J42: =(IF($DW42>0,IF(J$28<=(L_TENOR*L_NUM_REPAY),IF(J$28<>0,IF(J$28>(L_GRACE*L_NUM_REPAY),(($DW42-SUM($E42:I42))/I$31),0),0),0),0)) -> 0 | K42: =(IF($DW42>0,IF(K$28<=(L_TENOR*L_NUM_REPAY),IF(K$28<>0,IF(K$28>(L_GRACE*L_NUM_REPAY),(($DW42-SUM($E42:J42))/J$31),0),0),0),0)) -> 0 | L42: =(IF($DW42>0,IF(L$28<=(L_TENOR*L_NUM_REPAY),IF(L$28<>0,IF(L$28>(L_GRACE*L_NUM_REPAY),(($DW42-SUM($E42:K42))/K$31),0),0),0),0)) -> 0 | M42: =(IF($DW42>0,IF(M$28<=(L_TENOR*L_NUM_REPAY),IF(M$28<>0,IF(M$28>(L_GRACE*L_NUM_REPAY),(($DW42-SUM($E42:L42))/L$31),0),0),0),0)) -> 0 | N42: =(IF($DW42>0,IF(N$28<=(L_TENOR*L_NUM_REPAY),IF(N$28<>0,IF(N$28>(L_GRACE*L_NUM_REPAY),(($DW42-SUM($E42:M42))/M$31),0),0),0),0)) -> 0 | O42: =(IF($DW42>0,IF(O$28<=(L_TENOR*L_NUM_REPAY),IF(O$28<>0,IF(O$28>(L_GRACE*L_NUM_REPAY),(($DW42-SUM($E42:N42))/N$31),0),0),0),0)) -> 0 | P42: =(IF($DW42>0,IF(P$28<=(L_TENOR*L_NUM_REPAY),IF(P$28<>0,IF(P$28>(L_GRACE*L_NUM_REPAY),(($DW42-SUM($E42:O42))/O$31),0),0),0),0)) -> 0 | Q42: =(IF($DW42>0,IF(Q$28<=(L_TENOR*L_NUM_REPAY),IF(Q$28<>0,IF(Q$28>(L_GRACE*L_NUM_REPAY),(($DW42-SUM($E42:P42))/P$31),0),0),0),0)) -> 0 | R42: =(IF($DW42>0,IF(R$28<=(L_TENOR*L_NUM_REPAY),IF(R$28<>0,IF(R$28>(L_GRACE*L_NUM_REPAY),(($DW42-SUM($E42:Q42))/Q$31),0),0),0),0)) -> 0 | S42: =(IF($DW42>0,IF(S$28<=(L_TENOR*L_NUM_REPAY),IF(S$28<>0,IF(S$28>(L_GRACE*L_NUM_REPAY),(($DW42-SUM($E42:R42))/R$31),0),0),0),0)) -> 0 | T42: =(IF($DW42>0,IF(T$28<=(L_TENOR*L_NUM_REPAY),IF(T$28<>0,IF(T$28>(L_GRACE*L_NUM_REPAY),(($DW42-SUM($E42:S42))/S$31),0),0),0),0)) -> 0 | U42: =(IF($DW42>0,IF(U$28<=(L_TENOR*L_NUM_REPAY),IF(U$28<>0,IF(U$28>(L_GRACE*L_NUM_REPAY),(($DW42-SUM($E42:T42))/T$31),0),0),0),0)) -> 0 | V42: =(IF($DW42>0,IF(V$28<=(L_TENOR*L_NUM_REPAY),IF(V$28<>0,IF(V$28>(L_GRACE*L_NUM_REPAY),(($DW42-SUM($E42:U42))/U$31),0),0),0),0)) -> 0 | W42: =(IF($DW42>0,IF(W$28<=(L_TENOR*L_NUM_REPAY),IF(W$28<>0,IF(W$28>(L_GRACE*L_NUM_REPAY),(($DW42-SUM($E42:V42))/V$31),0),0),0),0)) -> 0 | X42: =(IF($DW42>0,IF(X$28<=(L_TENOR*L_NUM_REPAY),IF(X$28<>0,IF(X$28>(L_GRACE*L_NUM_REPAY),(($DW42-SUM($E42:W42))/W$31),0),0),0),0)) -> 0 | Y42: =(IF($DW42>0,IF(Y$28<=(L_TENOR*L_NUM_REPAY),IF(Y$28<>0,IF(Y$28>(L_GRACE*L_NUM_REPAY),(($DW42-SUM($E42:X42))/X$31),0),0),0),0)) -> 0 | Z42: =(IF($DW42>0,IF(Z$28<=(L_TENOR*L_NUM_REPAY),IF(Z$28<>0,IF(Z$28>(L_GRACE*L_NUM_REPAY),(($DW42-SUM($E42:Y42))/Y$31),0),0),0),0)) -> 0 | AA42: =(IF($DW42>0,IF(AA$28<=(L_TENOR*L_NUM_REPAY),IF(AA$28<>0,IF(AA$28>(L_GRACE*L_NUM_REPAY),(($DW42-SUM($E42:Z42))/Z$31),0),0),0),0)) -> 0 | AB42: =(IF($DW42>0,IF(AB$28<=(L_TENOR*L_NUM_REPAY),IF(AB$28<>0,IF(AB$28>(L_GRACE*L_NUM_REPAY),(($DW42-SUM($E42:AA42))/AA$31),0),0),0),0)) -> 0 | AC42: =(IF($DW42>0,IF(AC$28<=(L_TENOR*L_NUM_REPAY),IF(AC$28<>0,IF(AC$28>(L_GRACE*L_NUM_REPAY),(($DW42-SUM($E42:AB42))/AB$31),0),0),0),0)) -> 0 | AD42: =(IF($DW42>0,IF(AD$28<=(L_TENOR*L_NUM_REPAY),IF(AD$28<>0,IF(AD$28>(L_GRACE*L_NUM_REPAY),(($DW42-SUM($E42:AC42))/AC$31),0),0),0),0)) -> 0 | AE42: =(IF($DW42>0,IF(AE$28<=(L_TENOR*L_NUM_REPAY),IF(AE$28<>0,IF(AE$28>(L_GRACE*L_NUM_REPAY),(($DW42-SUM($E42:AD42))/AD$31),0),0),0),0)) -> 0 | AF42: =(IF($DW42>0,IF(AF$28<=(L_TENOR*L_NUM_REPAY),IF(AF$28<>0,IF(AF$28>(L_GRACE*L_NUM_REPAY),(($DW42-SUM($E42:AE42))/AE$31),0),0),0),0)) -> 0 | AG42: =(IF($DW42>0,IF(AG$28<=(L_TENOR*L_NUM_REPAY),IF(AG$28<>0,IF(AG$28>(L_GRACE*L_NUM_REPAY),(($DW42-SUM($E42:AF42))/AF$31),0),0),0),0)) -> 0 | AH42: =(IF($DW42>0,IF(AH$28<=(L_TENOR*L_NUM_REPAY),IF(AH$28<>0,IF(AH$28>(L_GRACE*L_NUM_REPAY),(($DW42-SUM($E42:AG42))/AG$31),0),0),0),0)) -> 0 | AI42: =(IF($DW42>0,IF(AI$28<=(L_TENOR*L_NUM_REPAY),IF(AI$28<>0,IF(AI$28>(L_GRACE*L_NUM_REPAY),(($DW42-SUM($E42:AH42))/AH$31),0),0),0),0)) -> 0 | AJ42: =(IF($DW42>0,IF(AJ$28<=(L_TENOR*L_NUM_REPAY),IF(AJ$28<>0,IF(AJ$28>(L_GRACE*L_NUM_REPAY),(($DW42-SUM($E42:AI42))/AI$31),0),0),0),0)) -> 0 | AK42: =(IF($DW42>0,IF(AK$28<=(L_TENOR*L_NUM_REPAY),IF(AK$28<>0,IF(AK$28>(L_GRACE*L_NUM_REPAY),(($DW42-SUM($E42:AJ42))/AJ$31),0),0),0),0)) -> 0 | AL42: =(IF($DW42>0,IF(AL$28<=(L_TENOR*L_NUM_REPAY),IF(AL$28<>0,IF(AL$28>(L_GRACE*L_NUM_REPAY),(($DW42-SUM($E42:AK42))/AK$31),0),0),0),0)) -> 0 | AM42: =(IF($DW42>0,IF(AM$28<=(L_TENOR*L_NUM_REPAY),IF(AM$28<>0,IF(AM$28>(L_GRACE*L_NUM_REPAY),(($DW42-SUM($E42:AL42))/AL$31),0),0),0),0)) -> 0 | AN42: =(IF($DW42>0,IF(AN$28<=(L_TENOR*L_NUM_REPAY),IF(AN$28<>0,IF(AN$28>(L_GRACE*L_NUM_REPAY),(($DW42-SUM($E42:AM42))/AM$31),0),0),0),0)) -> 0 | AO42: =(IF($DW42>0,IF(AO$28<=(L_TENOR*L_NUM_REPAY),IF(AO$28<>0,IF(AO$28>(L_GRACE*L_NUM_REPAY),(($DW42-SUM($E42:AN42))/AN$31),0),0),0),0)) -> 0 | AP42: =(IF($DW42>0,IF(AP$28<=(L_TENOR*L_NUM_REPAY),IF(AP$28<>0,IF(AP$28>(L_GRACE*L_NUM_REPAY),(($DW42-SUM($E42:AO42))/AO$31),0),0),0),0)) -> 0 | AQ42: =(IF($DW42>0,IF(AQ$28<=(L_TENOR*L_NUM_REPAY),IF(AQ$28<>0,IF(AQ$28>(L_GRACE*L_NUM_REPAY),(($DW42-SUM($E42:AP42))/AP$31),0),0),0),0)) -> 0 | AR42: =(IF($DW42>0,IF(AR$28<=(L_TENOR*L_NUM_REPAY),IF(AR$28<>0,IF(AR$28>(L_GRACE*L_NUM_REPAY),(($DW42-SUM($E42:AQ42))/AQ$31),0),0),0),0)) -> 0 | AS42: =(IF($DW42>0,IF(AS$28<=(L_TENOR*L_NUM_REPAY),IF(AS$28<>0,IF(AS$28>(L_GRACE*L_NUM_REPAY),(($DW42-SUM($E42:AR42))/AR$31),0),0),0),0)) -> 0 | AT42: =(IF($DW42>0,IF(AT$28<=(L_TENOR*L_NUM_REPAY),IF(AT$28<>0,IF(AT$28>(L_GRACE*L_NUM_REPAY),(($DW42-SUM($E42:AS42))/AS$31),0),0),0),0)) -> 0 | AU42: =(IF($DW42>0,IF(AU$28<=(L_TENOR*L_NUM_REPAY),IF(AU$28<>0,IF(AU$28>(L_GRACE*L_NUM_REPAY),(($DW42-SUM($E42:AT42))/AT$31),0),0),0),0)) -> 0 | AV42: =(IF($DW42>0,IF(AV$28<=(L_TENOR*L_NUM_REPAY),IF(AV$28<>0,IF(AV$28>(L_GRACE*L_NUM_REPAY),(($DW42-SUM($E42:AU42))/AU$31),0),0),0),0)) -> 0 | AW42: =(IF($DW42>0,IF(AW$28<=(L_TENOR*L_NUM_REPAY),IF(AW$28<>0,IF(AW$28>(L_GRACE*L_NUM_REPAY),(($DW42-SUM($E42:AV42))/AV$31),0),0),0),0)) -> 0 | AX42: =(IF($DW42>0,IF(AX$28<=(L_TENOR*L_NUM_REPAY),IF(AX$28<>0,IF(AX$28>(L_GRACE*L_NUM_REPAY),(($DW42-SUM($E42:AW42))/AW$31),0),0),0),0)) -> 0 | AY42: =(IF($DW42>0,IF(AY$28<=(L_TENOR*L_NUM_REPAY),IF(AY$28<>0,IF(AY$28>(L_GRACE*L_NUM_REPAY),(($DW42-SUM($E42:AX42))/AX$31),0),0),0),0)) -> 0 | AZ42: =(IF($DW42>0,IF(AZ$28<=(L_TENOR*L_NUM_REPAY),IF(AZ$28<>0,IF(AZ$28>(L_GRACE*L_NUM_REPAY),(($DW42-SUM($E42:AY42))/AY$31),0),0),0),0)) -> 0 | BA42: =(IF($DW42>0,IF(BA$28<=(L_TENOR*L_NUM_REPAY),IF(BA$28<>0,IF(BA$28>(L_GRACE*L_NUM_REPAY),(($DW42-SUM($E42:AZ42))/AZ$31),0),0),0),0)) -> 0 | BB42: =(IF($DW42>0,IF(BB$28<=(L_TENOR*L_NUM_REPAY),IF(BB$28<>0,IF(BB$28>(L_GRACE*L_NUM_REPAY),(($DW42-SUM($E42:BA42))/BA$31),0),0),0),0)) -> 0 | BC42: =(IF($DW42>0,IF(BC$28<=(L_TENOR*L_NUM_REPAY),IF(BC$28<>0,IF(BC$28>(L_GRACE*L_NUM_REPAY),(($DW42-SUM($E42:BB42))/BB$31),0),0),0),0)) -> 0 | BD42: =(IF($DW42>0,IF(BD$28<=(L_TENOR*L_NUM_REPAY),IF(BD$28<>0,IF(BD$28>(L_GRACE*L_NUM_REPAY),(($DW42-SUM($E42:BC42))/BC$31),0),0),0),0)) -> 0 | BE42: =(IF($DW42>0,IF(BE$28<=(L_TENOR*L_NUM_REPAY),IF(BE$28<>0,IF(BE$28>(L_GRACE*L_NUM_REPAY),(($DW42-SUM($E42:BD42))/BD$31),0),0),0),0)) -> 0 | BF42: =(IF($DW42>0,IF(BF$28<=(L_TENOR*L_NUM_REPAY),IF(BF$28<>0,IF(BF$28>(L_GRACE*L_NUM_REPAY),(($DW42-SUM($E42:BE42))/BE$31),0),0),0),0)) -> 0 | BG42: =(IF($DW42>0,IF(BG$28<=(L_TENOR*L_NUM_REPAY),IF(BG$28<>0,IF(BG$28>(L_GRACE*L_NUM_REPAY),(($DW42-SUM($E42:BF42))/BF$31),0),0),0),0)) -> 0 | BH42: =(IF($DW42>0,IF(BH$28<=(L_TENOR*L_NUM_REPAY),IF(BH$28<>0,IF(BH$28>(L_GRACE*L_NUM_REPAY),(($DW42-SUM($E42:BG42))/BG$31),0),0),0),0)) -> 0 | BI42: =(IF($DW42>0,IF(BI$28<=(L_TENOR*L_NUM_REPAY),IF(BI$28<>0,IF(BI$28>(L_GRACE*L_NUM_REPAY),(($DW42-SUM($E42:BH42))/BH$31),0),0),0),0)) -> 0 | BJ42: =(IF($DW42>0,IF(BJ$28<=(L_TENOR*L_NUM_REPAY),IF(BJ$28<>0,IF(BJ$28>(L_GRACE*L_NUM_REPAY),(($DW42-SUM($E42:BI42))/BI$31),0),0),0),0)) -> 0 | BK42: =(IF($DW42>0,IF(BK$28<=(L_TENOR*L_NUM_REPAY),IF(BK$28<>0,IF(BK$28>(L_GRACE*L_NUM_REPAY),(($DW42-SUM($E42:BJ42))/BJ$31),0),0),0),0)) -> 0 | BL42: =(IF($DW42>0,IF(BL$28<=(L_TENOR*L_NUM_REPAY),IF(BL$28<>0,IF(BL$28>(L_GRACE*L_NUM_REPAY),(($DW42-SUM($E42:BK42))/BK$31),0),0),0),0)) -> 0 | BM42: =(IF($DW42>0,IF(BM$28<=(L_TENOR*L_NUM_REPAY),IF(BM$28<>0,IF(BM$28>(L_GRACE*L_NUM_REPAY),(($DW42-SUM($E42:BL42))/BL$31),0),0),0),0)) -> 0 | BN42: =(IF($DW42>0,IF(BN$28<=(L_TENOR*L_NUM_REPAY),IF(BN$28<>0,IF(BN$28>(L_GRACE*L_NUM_REPAY),(($DW42-SUM($E42:BM42))/BM$31),0),0),0),0)) -> 0 | BO42: =(IF($DW42>0,IF(BO$28<=(L_TENOR*L_NUM_REPAY),IF(BO$28<>0,IF(BO$28>(L_GRACE*L_NUM_REPAY),(($DW42-SUM($E42:BN42))/BN$31),0),0),0),0)) -> 0 | BP42: =(IF($DW42>0,IF(BP$28<=(L_TENOR*L_NUM_REPAY),IF(BP$28<>0,IF(BP$28>(L_GRACE*L_NUM_REPAY),(($DW42-SUM($E42:BO42))/BO$31),0),0),0),0)) -> 0 | BQ42: =(IF($DW42>0,IF(BQ$28<=(L_TENOR*L_NUM_REPAY),IF(BQ$28<>0,IF(BQ$28>(L_GRACE*L_NUM_REPAY),(($DW42-SUM($E42:BP42))/BP$31),0),0),0),0)) -> 0 | BR42: =(IF($DW42>0,IF(BR$28<=(L_TENOR*L_NUM_REPAY),IF(BR$28<>0,IF(BR$28>(L_GRACE*L_NUM_REPAY),(($DW42-SUM($E42:BQ42))/BQ$31),0),0),0),0)) -> 0 | BS42: =(IF($DW42>0,IF(BS$28<=(L_TENOR*L_NUM_REPAY),IF(BS$28<>0,IF(BS$28>(L_GRACE*L_NUM_REPAY),(($DW42-SUM($E42:BR42))/BR$31),0),0),0),0)) -> 0 | BT42: =(IF($DW42>0,IF(BT$28<=(L_TENOR*L_NUM_REPAY),IF(BT$28<>0,IF(BT$28>(L_GRACE*L_NUM_REPAY),(($DW42-SUM($E42:BS42))/BS$31),0),0),0),0)) -> 0 | BU42: =(IF($DW42>0,IF(BU$28<=(L_TENOR*L_NUM_REPAY),IF(BU$28<>0,IF(BU$28>(L_GRACE*L_NUM_REPAY),(($DW42-SUM($E42:BT42))/BT$31),0),0),0),0)) -> 0 | BV42: =(IF($DW42>0,IF(BV$28<=(L_TENOR*L_NUM_REPAY),IF(BV$28<>0,IF(BV$28>(L_GRACE*L_NUM_REPAY),(($DW42-SUM($E42:BU42))/BU$31),0),0),0),0)) -> 0 | BW42: =(IF($DW42>0,IF(BW$28<=(L_TENOR*L_NUM_REPAY),IF(BW$28<>0,IF(BW$28>(L_GRACE*L_NUM_REPAY),(($DW42-SUM($E42:BV42))/BV$31),0),0),0),0)) -> 0 | BX42: =(IF($DW42>0,IF(BX$28<=(L_TENOR*L_NUM_REPAY),IF(BX$28<>0,IF(BX$28>(L_GRACE*L_NUM_REPAY),(($DW42-SUM($E42:BW42))/BW$31),0),0),0),0)) -> 0 | BY42: =(IF($DW42>0,IF(BY$28<=(L_TENOR*L_NUM_REPAY),IF(BY$28<>0,IF(BY$28>(L_GRACE*L_NUM_REPAY),(($DW42-SUM($E42:BX42))/BX$31),0),0),0),0)) -> 0 | BZ42: =(IF($DW42>0,IF(BZ$28<=(L_TENOR*L_NUM_REPAY),IF(BZ$28<>0,IF(BZ$28>(L_GRACE*L_NUM_REPAY),(($DW42-SUM($E42:BY42))/BY$31),0),0),0),0)) -> 0 | CA42: =(IF($DW42>0,IF(CA$28<=(L_TENOR*L_NUM_REPAY),IF(CA$28<>0,IF(CA$28>(L_GRACE*L_NUM_REPAY),(($DW42-SUM($E42:BZ42))/BZ$31),0),0),0),0)) -> 0 | CB42: =(IF($DW42>0,IF(CB$28<=(L_TENOR*L_NUM_REPAY),IF(CB$28<>0,IF(CB$28>(L_GRACE*L_NUM_REPAY),(($DW42-SUM($E42:CA42))/CA$31),0),0),0),0)) -> 0 | CC42: =(IF($DW42>0,IF(CC$28<=(L_TENOR*L_NUM_REPAY),IF(CC$28<>0,IF(CC$28>(L_GRACE*L_NUM_REPAY),(($DW42-SUM($E42:CB42))/CB$31),0),0),0),0)) -> 0 | CD42: =(IF($DW42>0,IF(CD$28<=(L_TENOR*L_NUM_REPAY),IF(CD$28<>0,IF(CD$28>(L_GRACE*L_NUM_REPAY),(($DW42-SUM($E42:CC42))/CC$31),0),0),0),0)) -> 0 | CE42: =(IF($DW42>0,IF(CE$28<=(L_TENOR*L_NUM_REPAY),IF(CE$28<>0,IF(CE$28>(L_GRACE*L_NUM_REPAY),(($DW42-SUM($E42:CD42))/CD$31),0),0),0),0)) -> 0 | CF42: =(IF($DW42>0,IF(CF$28<=(L_TENOR*L_NUM_REPAY),IF(CF$28<>0,IF(CF$28>(L_GRACE*L_NUM_REPAY),(($DW42-SUM($E42:CE42))/CE$31),0),0),0),0)) -> 0 | CG42: =(IF($DW42>0,IF(CG$28<=(L_TENOR*L_NUM_REPAY),IF(CG$28<>0,IF(CG$28>(L_GRACE*L_NUM_REPAY),(($DW42-SUM($E42:CF42))/CF$31),0),0),0),0)) -> 0 | CH42: =(IF($DW42>0,IF(CH$28<=(L_TENOR*L_NUM_REPAY),IF(CH$28<>0,IF(CH$28>(L_GRACE*L_NUM_REPAY),(($DW42-SUM($E42:CG42))/CG$31),0),0),0),0)) -> 0 | CI42: =(IF($DW42>0,IF(CI$28<=(L_TENOR*L_NUM_REPAY),IF(CI$28<>0,IF(CI$28>(L_GRACE*L_NUM_REPAY),(($DW42-SUM($E42:CH42))/CH$31),0),0),0),0)) -> 0 | CJ42: =(IF($DW42>0,IF(CJ$28<=(L_TENOR*L_NUM_REPAY),IF(CJ$28<>0,IF(CJ$28>(L_GRACE*L_NUM_REPAY),(($DW42-SUM($E42:CI42))/CI$31),0),0),0),0)) -> 0 | CK42: =(IF($DW42>0,IF(CK$28<=(L_TENOR*L_NUM_REPAY),IF(CK$28<>0,IF(CK$28>(L_GRACE*L_NUM_REPAY),(($DW42-SUM($E42:CJ42))/CJ$31),0),0),0),0)) -> 0 | CL42: =(IF($DW42>0,IF(CL$28<=(L_TENOR*L_NUM_REPAY),IF(CL$28<>0,IF(CL$28>(L_GRACE*L_NUM_REPAY),(($DW42-SUM($E42:CK42))/CK$31),0),0),0),0)) -> 0 | CM42: =(IF($DW42>0,IF(CM$28<=(L_TENOR*L_NUM_REPAY),IF(CM$28<>0,IF(CM$28>(L_GRACE*L_NUM_REPAY),(($DW42-SUM($E42:CL42))/CL$31),0),0),0),0)) -> 0 | CN42: =(IF($DW42>0,IF(CN$28<=(L_TENOR*L_NUM_REPAY),IF(CN$28<>0,IF(CN$28>(L_GRACE*L_NUM_REPAY),(($DW42-SUM($E42:CM42))/CM$31),0),0),0),0)) -> 0 | CO42: =(IF($DW42>0,IF(CO$28<=(L_TENOR*L_NUM_REPAY),IF(CO$28<>0,IF(CO$28>(L_GRACE*L_NUM_REPAY),(($DW42-SUM($E42:CN42))/CN$31),0),0),0),0)) -> 0 | CP42: =(IF($DW42>0,IF(CP$28<=(L_TENOR*L_NUM_REPAY),IF(CP$28<>0,IF(CP$28>(L_GRACE*L_NUM_REPAY),(($DW42-SUM($E42:CO42))/CO$31),0),0),0),0)) -> 0 | CQ42: =(IF($DW42>0,IF(CQ$28<=(L_TENOR*L_NUM_REPAY),IF(CQ$28<>0,IF(CQ$28>(L_GRACE*L_NUM_REPAY),(($DW42-SUM($E42:CP42))/CP$31),0),0),0),0)) -> 0 | CR42: =(IF($DW42>0,IF(CR$28<=(L_TENOR*L_NUM_REPAY),IF(CR$28<>0,IF(CR$28>(L_GRACE*L_NUM_REPAY),(($DW42-SUM($E42:CQ42))/CQ$31),0),0),0),0)) -> 0 | CS42: =(IF($DW42>0,IF(CS$28<=(L_TENOR*L_NUM_REPAY),IF(CS$28<>0,IF(CS$28>(L_GRACE*L_NUM_REPAY),(($DW42-SUM($E42:CR42))/CR$31),0),0),0),0)) -> 0 | CT42: =(IF($DW42>0,IF(CT$28<=(L_TENOR*L_NUM_REPAY),IF(CT$28<>0,IF(CT$28>(L_GRACE*L_NUM_REPAY),(($DW42-SUM($E42:CS42))/CS$31),0),0),0),0)) -> 0 | CU42: =(IF($DW42>0,IF(CU$28<=(L_TENOR*L_NUM_REPAY),IF(CU$28<>0,IF(CU$28>(L_GRACE*L_NUM_REPAY),(($DW42-SUM($E42:CT42))/CT$31),0),0),0),0)) -> 0 | CV42: =(IF($DW42>0,IF(CV$28<=(L_TENOR*L_NUM_REPAY),IF(CV$28<>0,IF(CV$28>(L_GRACE*L_NUM_REPAY),(($DW42-SUM($E42:CU42))/CU$31),0),0),0),0)) -> 0 | CW42: =(IF($DW42>0,IF(CW$28<=(L_TENOR*L_NUM_REPAY),IF(CW$28<>0,IF(CW$28>(L_GRACE*L_NUM_REPAY),(($DW42-SUM($E42:CV42))/CV$31),0),0),0),0)) -> 0 | CX42: =(IF($DW42>0,IF(CX$28<=(L_TENOR*L_NUM_REPAY),IF(CX$28<>0,IF(CX$28>(L_GRACE*L_NUM_REPAY),(($DW42-SUM($E42:CW42))/CW$31),0),0),0),0)) -> 0 | CY42: =(IF($DW42>0,IF(CY$28<=(L_TENOR*L_NUM_REPAY),IF(CY$28<>0,IF(CY$28>(L_GRACE*L_NUM_REPAY),(($DW42-SUM($E42:CX42))/CX$31),0),0),0),0)) -> 0 | CZ42: =(IF($DW42>0,IF(CZ$28<=(L_TENOR*L_NUM_REPAY),IF(CZ$28<>0,IF(CZ$28>(L_GRACE*L_NUM_REPAY),(($DW42-SUM($E42:CY42))/CY$31),0),0),0),0)) -> 0 | DA42: =(IF($DW42>0,IF(DA$28<=(L_TENOR*L_NUM_REPAY),IF(DA$28<>0,IF(DA$28>(L_GRACE*L_NUM_REPAY),(($DW42-SUM($E42:CZ42))/CZ$31),0),0),0),0)) -> 0 | DB42: =(IF($DW42>0,IF(DB$28<=(L_TENOR*L_NUM_REPAY),IF(DB$28<>0,IF(DB$28>(L_GRACE*L_NUM_REPAY),(($DW42-SUM($E42:DA42))/DA$31),0),0),0),0)) -> 0 | DC42: =(IF($DW42>0,IF(DC$28<=(L_TENOR*L_NUM_REPAY),IF(DC$28<>0,IF(DC$28>(L_GRACE*L_NUM_REPAY),(($DW42-SUM($E42:DB42))/DB$31),0),0),0),0)) -> 0 | DD42: =(IF($DW42>0,IF(DD$28<=(L_TENOR*L_NUM_REPAY),IF(DD$28<>0,IF(DD$28>(L_GRACE*L_NUM_REPAY),(($DW42-SUM($E42:DC42))/DC$31),0),0),0),0)) -> 0 | DE42: =(IF($DW42>0,IF(DE$28<=(L_TENOR*L_NUM_REPAY),IF(DE$28<>0,IF(DE$28>(L_GRACE*L_NUM_REPAY),(($DW42-SUM($E42:DD42))/DD$31),0),0),0),0)) -> 0 | DF42: =(IF($DW42>0,IF(DF$28<=(L_TENOR*L_NUM_REPAY),IF(DF$28<>0,IF(DF$28>(L_GRACE*L_NUM_REPAY),(($DW42-SUM($E42:DE42))/DE$31),0),0),0),0)) -> 0 | DG42: =(IF($DW42>0,IF(DG$28<=(L_TENOR*L_NUM_REPAY),IF(DG$28<>0,IF(DG$28>(L_GRACE*L_NUM_REPAY),(($DW42-SUM($E42:DF42))/DF$31),0),0),0),0)) -> 0 | DH42: =(IF($DW42>0,IF(DH$28<=(L_TENOR*L_NUM_REPAY),IF(DH$28<>0,IF(DH$28>(L_GRACE*L_NUM_REPAY),(($DW42-SUM($E42:DG42))/DG$31),0),0),0),0)) -> 0 | DI42: =(IF($DW42>0,IF(DI$28<=(L_TENOR*L_NUM_REPAY),IF(DI$28<>0,IF(DI$28>(L_GRACE*L_NUM_REPAY),(($DW42-SUM($E42:DH42))/DH$31),0),0),0),0)) -> 0 | DJ42: =(IF($DW42>0,IF(DJ$28<=(L_TENOR*L_NUM_REPAY),IF(DJ$28<>0,IF(DJ$28>(L_GRACE*L_NUM_REPAY),(($DW42-SUM($E42:DI42))/DI$31),0),0),0),0)) -> 0 | DK42: =(IF($DW42>0,IF(DK$28<=(L_TENOR*L_NUM_REPAY),IF(DK$28<>0,IF(DK$28>(L_GRACE*L_NUM_REPAY),(($DW42-SUM($E42:DJ42))/DJ$31),0),0),0),0)) -> 0 | DL42: =(IF($DW42>0,IF(DL$28<=(L_TENOR*L_NUM_REPAY),IF(DL$28<>0,IF(DL$28>(L_GRACE*L_NUM_REPAY),(($DW42-SUM($E42:DK42))/DK$31),0),0),0),0)) -> 0 | DM42: =(IF($DW42>0,IF(DM$28<=(L_TENOR*L_NUM_REPAY),IF(DM$28<>0,IF(DM$28>(L_GRACE*L_NUM_REPAY),(($DW42-SUM($E42:DL42))/DL$31),0),0),0),0)) -> 0 | DN42: =(IF($DW42>0,IF(DN$28<=(L_TENOR*L_NUM_REPAY),IF(DN$28<>0,IF(DN$28>(L_GRACE*L_NUM_REPAY),(($DW42-SUM($E42:DM42))/DM$31),0),0),0),0)) -> 0 | DO42: =(IF($DW42>0,IF(DO$28<=(L_TENOR*L_NUM_REPAY),IF(DO$28<>0,IF(DO$28>(L_GRACE*L_NUM_REPAY),(($DW42-SUM($E42:DN42))/DN$31),0),0),0),0)) -> 0 | DP42: =(IF($DW42>0,IF(DP$28<=(L_TENOR*L_NUM_REPAY),IF(DP$28<>0,IF(DP$28>(L_GRACE*L_NUM_REPAY),(($DW42-SUM($E42:DO42))/DO$31),0),0),0),0)) -> 0 | DQ42: =(IF($DW42>0,IF(DQ$28<=(L_TENOR*L_NUM_REPAY),IF(DQ$28<>0,IF(DQ$28>(L_GRACE*L_NUM_REPAY),(($DW42-SUM($E42:DP42))/DP$31),0),0),0),0)) -> 0 | DR42: =(IF($DW42>0,IF(DR$28<=(L_TENOR*L_NUM_REPAY),IF(DR$28<>0,IF(DR$28>(L_GRACE*L_NUM_REPAY),(($DW42-SUM($E42:DQ42))/DQ$31),0),0),0),0)) -> 0 | DS42: =(IF($DW42>0,IF(DS$28<=(L_TENOR*L_NUM_REPAY),IF(DS$28<>0,IF(DS$28>(L_GRACE*L_NUM_REPAY),(($DW42-SUM($E42:DR42))/DR$31),0),0),0),0)) -> 0 | DT42: =(IF($DW42>0,IF(DT$28<=(L_TENOR*L_NUM_REPAY),IF(DT$28<>0,IF(DT$28>(L_GRACE*L_NUM_REPAY),(($DW42-SUM($E42:DS42))/DS$31),0),0),0),0)) -> 0 | DU42: =(IF($DW42>0,IF(DU$28<=(L_TENOR*L_NUM_REPAY),IF(DU$28<>0,IF(DU$28>(L_GRACE*L_NUM_REPAY),(($DW42-SUM($E42:DT42))/DT$31),0),0),0),0)) -> 0 | DV42: 4 | DW42: =H106 -> 0
B43: Principal Tranche 4 | D43: 0 | E43: 0 | F43: 0 | G43: 0 | H43: 0 | I43: 0 | J43: =IF($DW43>0, IF(J$28<=(L_TENOR*L_NUM_REPAY),IF(J$28<>0,IF(J$28>(L_GRACE*L_NUM_REPAY),(($DW43-SUM($E43:I43))/I$31),0),0),0),0) -> 0 | K43: =(IF($DW43>0,IF(K$28<=(L_TENOR*L_NUM_REPAY),IF(K$28<>0,IF(K$28>(L_GRACE*L_NUM_REPAY),(($DW43-SUM($E43:J43))/J$31),0),0),0),0)) -> 0 | L43: =(IF($DW43>0,IF(L$28<=(L_TENOR*L_NUM_REPAY),IF(L$28<>0,IF(L$28>(L_GRACE*L_NUM_REPAY),(($DW43-SUM($E43:K43))/K$31),0),0),0),0)) -> 0 | M43: =(IF($DW43>0,IF(M$28<=(L_TENOR*L_NUM_REPAY),IF(M$28<>0,IF(M$28>(L_GRACE*L_NUM_REPAY),(($DW43-SUM($E43:L43))/L$31),0),0),0),0)) -> 0 | N43: =(IF($DW43>0,IF(N$28<=(L_TENOR*L_NUM_REPAY),IF(N$28<>0,IF(N$28>(L_GRACE*L_NUM_REPAY),(($DW43-SUM($E43:M43))/M$31),0),0),0),0)) -> 0 | O43: =(IF($DW43>0,IF(O$28<=(L_TENOR*L_NUM_REPAY),IF(O$28<>0,IF(O$28>(L_GRACE*L_NUM_REPAY),(($DW43-SUM($E43:N43))/N$31),0),0),0),0)) -> 0 | P43: =(IF($DW43>0,IF(P$28<=(L_TENOR*L_NUM_REPAY),IF(P$28<>0,IF(P$28>(L_GRACE*L_NUM_REPAY),(($DW43-SUM($E43:O43))/O$31),0),0),0),0)) -> 0 | Q43: =(IF($DW43>0,IF(Q$28<=(L_TENOR*L_NUM_REPAY),IF(Q$28<>0,IF(Q$28>(L_GRACE*L_NUM_REPAY),(($DW43-SUM($E43:P43))/P$31),0),0),0),0)) -> 0 | R43: =(IF($DW43>0,IF(R$28<=(L_TENOR*L_NUM_REPAY),IF(R$28<>0,IF(R$28>(L_GRACE*L_NUM_REPAY),(($DW43-SUM($E43:Q43))/Q$31),0),0),0),0)) -> 0 | S43: =(IF($DW43>0,IF(S$28<=(L_TENOR*L_NUM_REPAY),IF(S$28<>0,IF(S$28>(L_GRACE*L_NUM_REPAY),(($DW43-SUM($E43:R43))/R$31),0),0),0),0)) -> 0 | T43: =(IF($DW43>0,IF(T$28<=(L_TENOR*L_NUM_REPAY),IF(T$28<>0,IF(T$28>(L_GRACE*L_NUM_REPAY),(($DW43-SUM($E43:S43))/S$31),0),0),0),0)) -> 0 | U43: =(IF($DW43>0,IF(U$28<=(L_TENOR*L_NUM_REPAY),IF(U$28<>0,IF(U$28>(L_GRACE*L_NUM_REPAY),(($DW43-SUM($E43:T43))/T$31),0),0),0),0)) -> 0 | V43: =(IF($DW43>0,IF(V$28<=(L_TENOR*L_NUM_REPAY),IF(V$28<>0,IF(V$28>(L_GRACE*L_NUM_REPAY),(($DW43-SUM($E43:U43))/U$31),0),0),0),0)) -> 0 | W43: =(IF($DW43>0,IF(W$28<=(L_TENOR*L_NUM_REPAY),IF(W$28<>0,IF(W$28>(L_GRACE*L_NUM_REPAY),(($DW43-SUM($E43:V43))/V$31),0),0),0),0)) -> 0 | X43: =(IF($DW43>0,IF(X$28<=(L_TENOR*L_NUM_REPAY),IF(X$28<>0,IF(X$28>(L_GRACE*L_NUM_REPAY),(($DW43-SUM($E43:W43))/W$31),0),0),0),0)) -> 0 | Y43: =(IF($DW43>0,IF(Y$28<=(L_TENOR*L_NUM_REPAY),IF(Y$28<>0,IF(Y$28>(L_GRACE*L_NUM_REPAY),(($DW43-SUM($E43:X43))/X$31),0),0),0),0)) -> 0 | Z43: =(IF($DW43>0,IF(Z$28<=(L_TENOR*L_NUM_REPAY),IF(Z$28<>0,IF(Z$28>(L_GRACE*L_NUM_REPAY),(($DW43-SUM($E43:Y43))/Y$31),0),0),0),0)) -> 0 | AA43: =(IF($DW43>0,IF(AA$28<=(L_TENOR*L_NUM_REPAY),IF(AA$28<>0,IF(AA$28>(L_GRACE*L_NUM_REPAY),(($DW43-SUM($E43:Z43))/Z$31),0),0),0),0)) -> 0 | AB43: =(IF($DW43>0,IF(AB$28<=(L_TENOR*L_NUM_REPAY),IF(AB$28<>0,IF(AB$28>(L_GRACE*L_NUM_REPAY),(($DW43-SUM($E43:AA43))/AA$31),0),0),0),0)) -> 0 | AC43: =(IF($DW43>0,IF(AC$28<=(L_TENOR*L_NUM_REPAY),IF(AC$28<>0,IF(AC$28>(L_GRACE*L_NUM_REPAY),(($DW43-SUM($E43:AB43))/AB$31),0),0),0),0)) -> 0 | AD43: =(IF($DW43>0,IF(AD$28<=(L_TENOR*L_NUM_REPAY),IF(AD$28<>0,IF(AD$28>(L_GRACE*L_NUM_REPAY),(($DW43-SUM($E43:AC43))/AC$31),0),0),0),0)) -> 0 | AE43: =(IF($DW43>0,IF(AE$28<=(L_TENOR*L_NUM_REPAY),IF(AE$28<>0,IF(AE$28>(L_GRACE*L_NUM_REPAY),(($DW43-SUM($E43:AD43))/AD$31),0),0),0),0)) -> 0 | AF43: =(IF($DW43>0,IF(AF$28<=(L_TENOR*L_NUM_REPAY),IF(AF$28<>0,IF(AF$28>(L_GRACE*L_NUM_REPAY),(($DW43-SUM($E43:AE43))/AE$31),0),0),0),0)) -> 0 | AG43: =(IF($DW43>0,IF(AG$28<=(L_TENOR*L_NUM_REPAY),IF(AG$28<>0,IF(AG$28>(L_GRACE*L_NUM_REPAY),(($DW43-SUM($E43:AF43))/AF$31),0),0),0),0)) -> 0 | AH43: =(IF($DW43>0,IF(AH$28<=(L_TENOR*L_NUM_REPAY),IF(AH$28<>0,IF(AH$28>(L_GRACE*L_NUM_REPAY),(($DW43-SUM($E43:AG43))/AG$31),0),0),0),0)) -> 0 | AI43: =(IF($DW43>0,IF(AI$28<=(L_TENOR*L_NUM_REPAY),IF(AI$28<>0,IF(AI$28>(L_GRACE*L_NUM_REPAY),(($DW43-SUM($E43:AH43))/AH$31),0),0),0),0)) -> 0 | AJ43: =(IF($DW43>0,IF(AJ$28<=(L_TENOR*L_NUM_REPAY),IF(AJ$28<>0,IF(AJ$28>(L_GRACE*L_NUM_REPAY),(($DW43-SUM($E43:AI43))/AI$31),0),0),0),0)) -> 0 | AK43: =(IF($DW43>0,IF(AK$28<=(L_TENOR*L_NUM_REPAY),IF(AK$28<>0,IF(AK$28>(L_GRACE*L_NUM_REPAY),(($DW43-SUM($E43:AJ43))/AJ$31),0),0),0),0)) -> 0 | AL43: =(IF($DW43>0,IF(AL$28<=(L_TENOR*L_NUM_REPAY),IF(AL$28<>0,IF(AL$28>(L_GRACE*L_NUM_REPAY),(($DW43-SUM($E43:AK43))/AK$31),0),0),0),0)) -> 0 | AM43: =(IF($DW43>0,IF(AM$28<=(L_TENOR*L_NUM_REPAY),IF(AM$28<>0,IF(AM$28>(L_GRACE*L_NUM_REPAY),(($DW43-SUM($E43:AL43))/AL$31),0),0),0),0)) -> 0 | AN43: =(IF($DW43>0,IF(AN$28<=(L_TENOR*L_NUM_REPAY),IF(AN$28<>0,IF(AN$28>(L_GRACE*L_NUM_REPAY),(($DW43-SUM($E43:AM43))/AM$31),0),0),0),0)) -> 0 | AO43: =(IF($DW43>0,IF(AO$28<=(L_TENOR*L_NUM_REPAY),IF(AO$28<>0,IF(AO$28>(L_GRACE*L_NUM_REPAY),(($DW43-SUM($E43:AN43))/AN$31),0),0),0),0)) -> 0 | AP43: =(IF($DW43>0,IF(AP$28<=(L_TENOR*L_NUM_REPAY),IF(AP$28<>0,IF(AP$28>(L_GRACE*L_NUM_REPAY),(($DW43-SUM($E43:AO43))/AO$31),0),0),0),0)) -> 0 | AQ43: =(IF($DW43>0,IF(AQ$28<=(L_TENOR*L_NUM_REPAY),IF(AQ$28<>0,IF(AQ$28>(L_GRACE*L_NUM_REPAY),(($DW43-SUM($E43:AP43))/AP$31),0),0),0),0)) -> 0 | AR43: =(IF($DW43>0,IF(AR$28<=(L_TENOR*L_NUM_REPAY),IF(AR$28<>0,IF(AR$28>(L_GRACE*L_NUM_REPAY),(($DW43-SUM($E43:AQ43))/AQ$31),0),0),0),0)) -> 0 | AS43: =(IF($DW43>0,IF(AS$28<=(L_TENOR*L_NUM_REPAY),IF(AS$28<>0,IF(AS$28>(L_GRACE*L_NUM_REPAY),(($DW43-SUM($E43:AR43))/AR$31),0),0),0),0)) -> 0 | AT43: =(IF($DW43>0,IF(AT$28<=(L_TENOR*L_NUM_REPAY),IF(AT$28<>0,IF(AT$28>(L_GRACE*L_NUM_REPAY),(($DW43-SUM($E43:AS43))/AS$31),0),0),0),0)) -> 0 | AU43: =(IF($DW43>0,IF(AU$28<=(L_TENOR*L_NUM_REPAY),IF(AU$28<>0,IF(AU$28>(L_GRACE*L_NUM_REPAY),(($DW43-SUM($E43:AT43))/AT$31),0),0),0),0)) -> 0 | AV43: =(IF($DW43>0,IF(AV$28<=(L_TENOR*L_NUM_REPAY),IF(AV$28<>0,IF(AV$28>(L_GRACE*L_NUM_REPAY),(($DW43-SUM($E43:AU43))/AU$31),0),0),0),0)) -> 0 | AW43: =(IF($DW43>0,IF(AW$28<=(L_TENOR*L_NUM_REPAY),IF(AW$28<>0,IF(AW$28>(L_GRACE*L_NUM_REPAY),(($DW43-SUM($E43:AV43))/AV$31),0),0),0),0)) -> 0 | AX43: =(IF($DW43>0,IF(AX$28<=(L_TENOR*L_NUM_REPAY),IF(AX$28<>0,IF(AX$28>(L_GRACE*L_NUM_REPAY),(($DW43-SUM($E43:AW43))/AW$31),0),0),0),0)) -> 0 | AY43: =(IF($DW43>0,IF(AY$28<=(L_TENOR*L_NUM_REPAY),IF(AY$28<>0,IF(AY$28>(L_GRACE*L_NUM_REPAY),(($DW43-SUM($E43:AX43))/AX$31),0),0),0),0)) -> 0 | AZ43: =(IF($DW43>0,IF(AZ$28<=(L_TENOR*L_NUM_REPAY),IF(AZ$28<>0,IF(AZ$28>(L_GRACE*L_NUM_REPAY),(($DW43-SUM($E43:AY43))/AY$31),0),0),0),0)) -> 0 | BA43: =(IF($DW43>0,IF(BA$28<=(L_TENOR*L_NUM_REPAY),IF(BA$28<>0,IF(BA$28>(L_GRACE*L_NUM_REPAY),(($DW43-SUM($E43:AZ43))/AZ$31),0),0),0),0)) -> 0 | BB43: =(IF($DW43>0,IF(BB$28<=(L_TENOR*L_NUM_REPAY),IF(BB$28<>0,IF(BB$28>(L_GRACE*L_NUM_REPAY),(($DW43-SUM($E43:BA43))/BA$31),0),0),0),0)) -> 0 | BC43: =(IF($DW43>0,IF(BC$28<=(L_TENOR*L_NUM_REPAY),IF(BC$28<>0,IF(BC$28>(L_GRACE*L_NUM_REPAY),(($DW43-SUM($E43:BB43))/BB$31),0),0),0),0)) -> 0 | BD43: =(IF($DW43>0,IF(BD$28<=(L_TENOR*L_NUM_REPAY),IF(BD$28<>0,IF(BD$28>(L_GRACE*L_NUM_REPAY),(($DW43-SUM($E43:BC43))/BC$31),0),0),0),0)) -> 0 | BE43: =(IF($DW43>0,IF(BE$28<=(L_TENOR*L_NUM_REPAY),IF(BE$28<>0,IF(BE$28>(L_GRACE*L_NUM_REPAY),(($DW43-SUM($E43:BD43))/BD$31),0),0),0),0)) -> 0 | BF43: =(IF($DW43>0,IF(BF$28<=(L_TENOR*L_NUM_REPAY),IF(BF$28<>0,IF(BF$28>(L_GRACE*L_NUM_REPAY),(($DW43-SUM($E43:BE43))/BE$31),0),0),0),0)) -> 0 | BG43: =(IF($DW43>0,IF(BG$28<=(L_TENOR*L_NUM_REPAY),IF(BG$28<>0,IF(BG$28>(L_GRACE*L_NUM_REPAY),(($DW43-SUM($E43:BF43))/BF$31),0),0),0),0)) -> 0 | BH43: =(IF($DW43>0,IF(BH$28<=(L_TENOR*L_NUM_REPAY),IF(BH$28<>0,IF(BH$28>(L_GRACE*L_NUM_REPAY),(($DW43-SUM($E43:BG43))/BG$31),0),0),0),0)) -> 0 | BI43: =(IF($DW43>0,IF(BI$28<=(L_TENOR*L_NUM_REPAY),IF(BI$28<>0,IF(BI$28>(L_GRACE*L_NUM_REPAY),(($DW43-SUM($E43:BH43))/BH$31),0),0),0),0)) -> 0 | BJ43: =(IF($DW43>0,IF(BJ$28<=(L_TENOR*L_NUM_REPAY),IF(BJ$28<>0,IF(BJ$28>(L_GRACE*L_NUM_REPAY),(($DW43-SUM($E43:BI43))/BI$31),0),0),0),0)) -> 0 | BK43: =(IF($DW43>0,IF(BK$28<=(L_TENOR*L_NUM_REPAY),IF(BK$28<>0,IF(BK$28>(L_GRACE*L_NUM_REPAY),(($DW43-SUM($E43:BJ43))/BJ$31),0),0),0),0)) -> 0 | BL43: =(IF($DW43>0,IF(BL$28<=(L_TENOR*L_NUM_REPAY),IF(BL$28<>0,IF(BL$28>(L_GRACE*L_NUM_REPAY),(($DW43-SUM($E43:BK43))/BK$31),0),0),0),0)) -> 0 | BM43: =(IF($DW43>0,IF(BM$28<=(L_TENOR*L_NUM_REPAY),IF(BM$28<>0,IF(BM$28>(L_GRACE*L_NUM_REPAY),(($DW43-SUM($E43:BL43))/BL$31),0),0),0),0)) -> 0 | BN43: =(IF($DW43>0,IF(BN$28<=(L_TENOR*L_NUM_REPAY),IF(BN$28<>0,IF(BN$28>(L_GRACE*L_NUM_REPAY),(($DW43-SUM($E43:BM43))/BM$31),0),0),0),0)) -> 0 | BO43: =(IF($DW43>0,IF(BO$28<=(L_TENOR*L_NUM_REPAY),IF(BO$28<>0,IF(BO$28>(L_GRACE*L_NUM_REPAY),(($DW43-SUM($E43:BN43))/BN$31),0),0),0),0)) -> 0 | BP43: =(IF($DW43>0,IF(BP$28<=(L_TENOR*L_NUM_REPAY),IF(BP$28<>0,IF(BP$28>(L_GRACE*L_NUM_REPAY),(($DW43-SUM($E43:BO43))/BO$31),0),0),0),0)) -> 0 | BQ43: =(IF($DW43>0,IF(BQ$28<=(L_TENOR*L_NUM_REPAY),IF(BQ$28<>0,IF(BQ$28>(L_GRACE*L_NUM_REPAY),(($DW43-SUM($E43:BP43))/BP$31),0),0),0),0)) -> 0 | BR43: =(IF($DW43>0,IF(BR$28<=(L_TENOR*L_NUM_REPAY),IF(BR$28<>0,IF(BR$28>(L_GRACE*L_NUM_REPAY),(($DW43-SUM($E43:BQ43))/BQ$31),0),0),0),0)) -> 0 | BS43: =(IF($DW43>0,IF(BS$28<=(L_TENOR*L_NUM_REPAY),IF(BS$28<>0,IF(BS$28>(L_GRACE*L_NUM_REPAY),(($DW43-SUM($E43:BR43))/BR$31),0),0),0),0)) -> 0 | BT43: =(IF($DW43>0,IF(BT$28<=(L_TENOR*L_NUM_REPAY),IF(BT$28<>0,IF(BT$28>(L_GRACE*L_NUM_REPAY),(($DW43-SUM($E43:BS43))/BS$31),0),0),0),0)) -> 0 | BU43: =(IF($DW43>0,IF(BU$28<=(L_TENOR*L_NUM_REPAY),IF(BU$28<>0,IF(BU$28>(L_GRACE*L_NUM_REPAY),(($DW43-SUM($E43:BT43))/BT$31),0),0),0),0)) -> 0 | BV43: =(IF($DW43>0,IF(BV$28<=(L_TENOR*L_NUM_REPAY),IF(BV$28<>0,IF(BV$28>(L_GRACE*L_NUM_REPAY),(($DW43-SUM($E43:BU43))/BU$31),0),0),0),0)) -> 0 | BW43: =(IF($DW43>0,IF(BW$28<=(L_TENOR*L_NUM_REPAY),IF(BW$28<>0,IF(BW$28>(L_GRACE*L_NUM_REPAY),(($DW43-SUM($E43:BV43))/BV$31),0),0),0),0)) -> 0 | BX43: =(IF($DW43>0,IF(BX$28<=(L_TENOR*L_NUM_REPAY),IF(BX$28<>0,IF(BX$28>(L_GRACE*L_NUM_REPAY),(($DW43-SUM($E43:BW43))/BW$31),0),0),0),0)) -> 0 | BY43: =(IF($DW43>0,IF(BY$28<=(L_TENOR*L_NUM_REPAY),IF(BY$28<>0,IF(BY$28>(L_GRACE*L_NUM_REPAY),(($DW43-SUM($E43:BX43))/BX$31),0),0),0),0)) -> 0 | BZ43: =(IF($DW43>0,IF(BZ$28<=(L_TENOR*L_NUM_REPAY),IF(BZ$28<>0,IF(BZ$28>(L_GRACE*L_NUM_REPAY),(($DW43-SUM($E43:BY43))/BY$31),0),0),0),0)) -> 0 | CA43: =(IF($DW43>0,IF(CA$28<=(L_TENOR*L_NUM_REPAY),IF(CA$28<>0,IF(CA$28>(L_GRACE*L_NUM_REPAY),(($DW43-SUM($E43:BZ43))/BZ$31),0),0),0),0)) -> 0 | CB43: =(IF($DW43>0,IF(CB$28<=(L_TENOR*L_NUM_REPAY),IF(CB$28<>0,IF(CB$28>(L_GRACE*L_NUM_REPAY),(($DW43-SUM($E43:CA43))/CA$31),0),0),0),0)) -> 0 | CC43: =(IF($DW43>0,IF(CC$28<=(L_TENOR*L_NUM_REPAY),IF(CC$28<>0,IF(CC$28>(L_GRACE*L_NUM_REPAY),(($DW43-SUM($E43:CB43))/CB$31),0),0),0),0)) -> 0 | CD43: =(IF($DW43>0,IF(CD$28<=(L_TENOR*L_NUM_REPAY),IF(CD$28<>0,IF(CD$28>(L_GRACE*L_NUM_REPAY),(($DW43-SUM($E43:CC43))/CC$31),0),0),0),0)) -> 0 | CE43: =(IF($DW43>0,IF(CE$28<=(L_TENOR*L_NUM_REPAY),IF(CE$28<>0,IF(CE$28>(L_GRACE*L_NUM_REPAY),(($DW43-SUM($E43:CD43))/CD$31),0),0),0),0)) -> 0 | CF43: =(IF($DW43>0,IF(CF$28<=(L_TENOR*L_NUM_REPAY),IF(CF$28<>0,IF(CF$28>(L_GRACE*L_NUM_REPAY),(($DW43-SUM($E43:CE43))/CE$31),0),0),0),0)) -> 0 | CG43: =(IF($DW43>0,IF(CG$28<=(L_TENOR*L_NUM_REPAY),IF(CG$28<>0,IF(CG$28>(L_GRACE*L_NUM_REPAY),(($DW43-SUM($E43:CF43))/CF$31),0),0),0),0)) -> 0 | CH43: =(IF($DW43>0,IF(CH$28<=(L_TENOR*L_NUM_REPAY),IF(CH$28<>0,IF(CH$28>(L_GRACE*L_NUM_REPAY),(($DW43-SUM($E43:CG43))/CG$31),0),0),0),0)) -> 0 | CI43: =(IF($DW43>0,IF(CI$28<=(L_TENOR*L_NUM_REPAY),IF(CI$28<>0,IF(CI$28>(L_GRACE*L_NUM_REPAY),(($DW43-SUM($E43:CH43))/CH$31),0),0),0),0)) -> 0 | CJ43: =(IF($DW43>0,IF(CJ$28<=(L_TENOR*L_NUM_REPAY),IF(CJ$28<>0,IF(CJ$28>(L_GRACE*L_NUM_REPAY),(($DW43-SUM($E43:CI43))/CI$31),0),0),0),0)) -> 0 | CK43: =(IF($DW43>0,IF(CK$28<=(L_TENOR*L_NUM_REPAY),IF(CK$28<>0,IF(CK$28>(L_GRACE*L_NUM_REPAY),(($DW43-SUM($E43:CJ43))/CJ$31),0),0),0),0)) -> 0 | CL43: =(IF($DW43>0,IF(CL$28<=(L_TENOR*L_NUM_REPAY),IF(CL$28<>0,IF(CL$28>(L_GRACE*L_NUM_REPAY),(($DW43-SUM($E43:CK43))/CK$31),0),0),0),0)) -> 0 | CM43: =(IF($DW43>0,IF(CM$28<=(L_TENOR*L_NUM_REPAY),IF(CM$28<>0,IF(CM$28>(L_GRACE*L_NUM_REPAY),(($DW43-SUM($E43:CL43))/CL$31),0),0),0),0)) -> 0 | CN43: =(IF($DW43>0,IF(CN$28<=(L_TENOR*L_NUM_REPAY),IF(CN$28<>0,IF(CN$28>(L_GRACE*L_NUM_REPAY),(($DW43-SUM($E43:CM43))/CM$31),0),0),0),0)) -> 0 | CO43: =(IF($DW43>0,IF(CO$28<=(L_TENOR*L_NUM_REPAY),IF(CO$28<>0,IF(CO$28>(L_GRACE*L_NUM_REPAY),(($DW43-SUM($E43:CN43))/CN$31),0),0),0),0)) -> 0 | CP43: =(IF($DW43>0,IF(CP$28<=(L_TENOR*L_NUM_REPAY),IF(CP$28<>0,IF(CP$28>(L_GRACE*L_NUM_REPAY),(($DW43-SUM($E43:CO43))/CO$31),0),0),0),0)) -> 0 | CQ43: =(IF($DW43>0,IF(CQ$28<=(L_TENOR*L_NUM_REPAY),IF(CQ$28<>0,IF(CQ$28>(L_GRACE*L_NUM_REPAY),(($DW43-SUM($E43:CP43))/CP$31),0),0),0),0)) -> 0 | CR43: =(IF($DW43>0,IF(CR$28<=(L_TENOR*L_NUM_REPAY),IF(CR$28<>0,IF(CR$28>(L_GRACE*L_NUM_REPAY),(($DW43-SUM($E43:CQ43))/CQ$31),0),0),0),0)) -> 0 | CS43: =(IF($DW43>0,IF(CS$28<=(L_TENOR*L_NUM_REPAY),IF(CS$28<>0,IF(CS$28>(L_GRACE*L_NUM_REPAY),(($DW43-SUM($E43:CR43))/CR$31),0),0),0),0)) -> 0 | CT43: =(IF($DW43>0,IF(CT$28<=(L_TENOR*L_NUM_REPAY),IF(CT$28<>0,IF(CT$28>(L_GRACE*L_NUM_REPAY),(($DW43-SUM($E43:CS43))/CS$31),0),0),0),0)) -> 0 | CU43: =(IF($DW43>0,IF(CU$28<=(L_TENOR*L_NUM_REPAY),IF(CU$28<>0,IF(CU$28>(L_GRACE*L_NUM_REPAY),(($DW43-SUM($E43:CT43))/CT$31),0),0),0),0)) -> 0 | CV43: =(IF($DW43>0,IF(CV$28<=(L_TENOR*L_NUM_REPAY),IF(CV$28<>0,IF(CV$28>(L_GRACE*L_NUM_REPAY),(($DW43-SUM($E43:CU43))/CU$31),0),0),0),0)) -> 0 | CW43: =(IF($DW43>0,IF(CW$28<=(L_TENOR*L_NUM_REPAY),IF(CW$28<>0,IF(CW$28>(L_GRACE*L_NUM_REPAY),(($DW43-SUM($E43:CV43))/CV$31),0),0),0),0)) -> 0 | CX43: =(IF($DW43>0,IF(CX$28<=(L_TENOR*L_NUM_REPAY),IF(CX$28<>0,IF(CX$28>(L_GRACE*L_NUM_REPAY),(($DW43-SUM($E43:CW43))/CW$31),0),0),0),0)) -> 0 | CY43: =(IF($DW43>0,IF(CY$28<=(L_TENOR*L_NUM_REPAY),IF(CY$28<>0,IF(CY$28>(L_GRACE*L_NUM_REPAY),(($DW43-SUM($E43:CX43))/CX$31),0),0),0),0)) -> 0 | CZ43: =(IF($DW43>0,IF(CZ$28<=(L_TENOR*L_NUM_REPAY),IF(CZ$28<>0,IF(CZ$28>(L_GRACE*L_NUM_REPAY),(($DW43-SUM($E43:CY43))/CY$31),0),0),0),0)) -> 0 | DA43: =(IF($DW43>0,IF(DA$28<=(L_TENOR*L_NUM_REPAY),IF(DA$28<>0,IF(DA$28>(L_GRACE*L_NUM_REPAY),(($DW43-SUM($E43:CZ43))/CZ$31),0),0),0),0)) -> 0 | DB43: =(IF($DW43>0,IF(DB$28<=(L_TENOR*L_NUM_REPAY),IF(DB$28<>0,IF(DB$28>(L_GRACE*L_NUM_REPAY),(($DW43-SUM($E43:DA43))/DA$31),0),0),0),0)) -> 0 | DC43: =(IF($DW43>0,IF(DC$28<=(L_TENOR*L_NUM_REPAY),IF(DC$28<>0,IF(DC$28>(L_GRACE*L_NUM_REPAY),(($DW43-SUM($E43:DB43))/DB$31),0),0),0),0)) -> 0 | DD43: =(IF($DW43>0,IF(DD$28<=(L_TENOR*L_NUM_REPAY),IF(DD$28<>0,IF(DD$28>(L_GRACE*L_NUM_REPAY),(($DW43-SUM($E43:DC43))/DC$31),0),0),0),0)) -> 0 | DE43: =(IF($DW43>0,IF(DE$28<=(L_TENOR*L_NUM_REPAY),IF(DE$28<>0,IF(DE$28>(L_GRACE*L_NUM_REPAY),(($DW43-SUM($E43:DD43))/DD$31),0),0),0),0)) -> 0 | DF43: =(IF($DW43>0,IF(DF$28<=(L_TENOR*L_NUM_REPAY),IF(DF$28<>0,IF(DF$28>(L_GRACE*L_NUM_REPAY),(($DW43-SUM($E43:DE43))/DE$31),0),0),0),0)) -> 0 | DG43: =(IF($DW43>0,IF(DG$28<=(L_TENOR*L_NUM_REPAY),IF(DG$28<>0,IF(DG$28>(L_GRACE*L_NUM_REPAY),(($DW43-SUM($E43:DF43))/DF$31),0),0),0),0)) -> 0 | DH43: =(IF($DW43>0,IF(DH$28<=(L_TENOR*L_NUM_REPAY),IF(DH$28<>0,IF(DH$28>(L_GRACE*L_NUM_REPAY),(($DW43-SUM($E43:DG43))/DG$31),0),0),0),0)) -> 0 | DI43: =(IF($DW43>0,IF(DI$28<=(L_TENOR*L_NUM_REPAY),IF(DI$28<>0,IF(DI$28>(L_GRACE*L_NUM_REPAY),(($DW43-SUM($E43:DH43))/DH$31),0),0),0),0)) -> 0 | DJ43: =(IF($DW43>0,IF(DJ$28<=(L_TENOR*L_NUM_REPAY),IF(DJ$28<>0,IF(DJ$28>(L_GRACE*L_NUM_REPAY),(($DW43-SUM($E43:DI43))/DI$31),0),0),0),0)) -> 0 | DK43: =(IF($DW43>0,IF(DK$28<=(L_TENOR*L_NUM_REPAY),IF(DK$28<>0,IF(DK$28>(L_GRACE*L_NUM_REPAY),(($DW43-SUM($E43:DJ43))/DJ$31),0),0),0),0)) -> 0 | DL43: =(IF($DW43>0,IF(DL$28<=(L_TENOR*L_NUM_REPAY),IF(DL$28<>0,IF(DL$28>(L_GRACE*L_NUM_REPAY),(($DW43-SUM($E43:DK43))/DK$31),0),0),0),0)) -> 0 | DM43: =(IF($DW43>0,IF(DM$28<=(L_TENOR*L_NUM_REPAY),IF(DM$28<>0,IF(DM$28>(L_GRACE*L_NUM_REPAY),(($DW43-SUM($E43:DL43))/DL$31),0),0),0),0)) -> 0 | DN43: =(IF($DW43>0,IF(DN$28<=(L_TENOR*L_NUM_REPAY),IF(DN$28<>0,IF(DN$28>(L_GRACE*L_NUM_REPAY),(($DW43-SUM($E43:DM43))/DM$31),0),0),0),0)) -> 0 | DO43: =(IF($DW43>0,IF(DO$28<=(L_TENOR*L_NUM_REPAY),IF(DO$28<>0,IF(DO$28>(L_GRACE*L_NUM_REPAY),(($DW43-SUM($E43:DN43))/DN$31),0),0),0),0)) -> 0 | DP43: =(IF($DW43>0,IF(DP$28<=(L_TENOR*L_NUM_REPAY),IF(DP$28<>0,IF(DP$28>(L_GRACE*L_NUM_REPAY),(($DW43-SUM($E43:DO43))/DO$31),0),0),0),0)) -> 0 | DQ43: =(IF($DW43>0,IF(DQ$28<=(L_TENOR*L_NUM_REPAY),IF(DQ$28<>0,IF(DQ$28>(L_GRACE*L_NUM_REPAY),(($DW43-SUM($E43:DP43))/DP$31),0),0),0),0)) -> 0 | DR43: =(IF($DW43>0,IF(DR$28<=(L_TENOR*L_NUM_REPAY),IF(DR$28<>0,IF(DR$28>(L_GRACE*L_NUM_REPAY),(($DW43-SUM($E43:DQ43))/DQ$31),0),0),0),0)) -> 0 | DS43: =(IF($DW43>0,IF(DS$28<=(L_TENOR*L_NUM_REPAY),IF(DS$28<>0,IF(DS$28>(L_GRACE*L_NUM_REPAY),(($DW43-SUM($E43:DR43))/DR$31),0),0),0),0)) -> 0 | DT43: =(IF($DW43>0,IF(DT$28<=(L_TENOR*L_NUM_REPAY),IF(DT$28<>0,IF(DT$28>(L_GRACE*L_NUM_REPAY),(($DW43-SUM($E43:DS43))/DS$31),0),0),0),0)) -> 0 | DU43: =(IF($DW43>0,IF(DU$28<=(L_TENOR*L_NUM_REPAY),IF(DU$28<>0,IF(DU$28>(L_GRACE*L_NUM_REPAY),(($DW43-SUM($E43:DT43))/DT$31),0),0),0),0)) -> 0 | DV43: 5 | DW43: =I106 -> 0
B44: Principal Tranche 5 | D44: 0 | E44: 0 | F44: 0 | G44: 0 | H44: 0 | I44: 0 | J44: 0 | K44: =IF($DW44>0, IF(K$28<=(L_TENOR*L_NUM_REPAY),IF(K$28<>0,IF(K$28>(L_GRACE*L_NUM_REPAY),(($DW44-SUM($E44:J44))/J$31),0),0),0),0) -> 0 | L44: =(IF($DW44>0,IF(L$28<=(L_TENOR*L_NUM_REPAY),IF(L$28<>0,IF(L$28>(L_GRACE*L_NUM_REPAY),(($DW44-SUM($E44:K44))/K$31),0),0),0),0)) -> 0 | M44: =(IF($DW44>0,IF(M$28<=(L_TENOR*L_NUM_REPAY),IF(M$28<>0,IF(M$28>(L_GRACE*L_NUM_REPAY),(($DW44-SUM($E44:L44))/L$31),0),0),0),0)) -> 0 | N44: =(IF($DW44>0,IF(N$28<=(L_TENOR*L_NUM_REPAY),IF(N$28<>0,IF(N$28>(L_GRACE*L_NUM_REPAY),(($DW44-SUM($E44:M44))/M$31),0),0),0),0)) -> 0 | O44: =(IF($DW44>0,IF(O$28<=(L_TENOR*L_NUM_REPAY),IF(O$28<>0,IF(O$28>(L_GRACE*L_NUM_REPAY),(($DW44-SUM($E44:N44))/N$31),0),0),0),0)) -> 0 | P44: =(IF($DW44>0,IF(P$28<=(L_TENOR*L_NUM_REPAY),IF(P$28<>0,IF(P$28>(L_GRACE*L_NUM_REPAY),(($DW44-SUM($E44:O44))/O$31),0),0),0),0)) -> 0 | Q44: =(IF($DW44>0,IF(Q$28<=(L_TENOR*L_NUM_REPAY),IF(Q$28<>0,IF(Q$28>(L_GRACE*L_NUM_REPAY),(($DW44-SUM($E44:P44))/P$31),0),0),0),0)) -> 0 | R44: =(IF($DW44>0,IF(R$28<=(L_TENOR*L_NUM_REPAY),IF(R$28<>0,IF(R$28>(L_GRACE*L_NUM_REPAY),(($DW44-SUM($E44:Q44))/Q$31),0),0),0),0)) -> 0 | S44: =(IF($DW44>0,IF(S$28<=(L_TENOR*L_NUM_REPAY),IF(S$28<>0,IF(S$28>(L_GRACE*L_NUM_REPAY),(($DW44-SUM($E44:R44))/R$31),0),0),0),0)) -> 0 | T44: =(IF($DW44>0,IF(T$28<=(L_TENOR*L_NUM_REPAY),IF(T$28<>0,IF(T$28>(L_GRACE*L_NUM_REPAY),(($DW44-SUM($E44:S44))/S$31),0),0),0),0)) -> 0 | U44: =(IF($DW44>0,IF(U$28<=(L_TENOR*L_NUM_REPAY),IF(U$28<>0,IF(U$28>(L_GRACE*L_NUM_REPAY),(($DW44-SUM($E44:T44))/T$31),0),0),0),0)) -> 0 | V44: =(IF($DW44>0,IF(V$28<=(L_TENOR*L_NUM_REPAY),IF(V$28<>0,IF(V$28>(L_GRACE*L_NUM_REPAY),(($DW44-SUM($E44:U44))/U$31),0),0),0),0)) -> 0 | W44: =(IF($DW44>0,IF(W$28<=(L_TENOR*L_NUM_REPAY),IF(W$28<>0,IF(W$28>(L_GRACE*L_NUM_REPAY),(($DW44-SUM($E44:V44))/V$31),0),0),0),0)) -> 0 | X44: =(IF($DW44>0,IF(X$28<=(L_TENOR*L_NUM_REPAY),IF(X$28<>0,IF(X$28>(L_GRACE*L_NUM_REPAY),(($DW44-SUM($E44:W44))/W$31),0),0),0),0)) -> 0 | Y44: =(IF($DW44>0,IF(Y$28<=(L_TENOR*L_NUM_REPAY),IF(Y$28<>0,IF(Y$28>(L_GRACE*L_NUM_REPAY),(($DW44-SUM($E44:X44))/X$31),0),0),0),0)) -> 0 | Z44: =(IF($DW44>0,IF(Z$28<=(L_TENOR*L_NUM_REPAY),IF(Z$28<>0,IF(Z$28>(L_GRACE*L_NUM_REPAY),(($DW44-SUM($E44:Y44))/Y$31),0),0),0),0)) -> 0 | AA44: =(IF($DW44>0,IF(AA$28<=(L_TENOR*L_NUM_REPAY),IF(AA$28<>0,IF(AA$28>(L_GRACE*L_NUM_REPAY),(($DW44-SUM($E44:Z44))/Z$31),0),0),0),0)) -> 0 | AB44: =(IF($DW44>0,IF(AB$28<=(L_TENOR*L_NUM_REPAY),IF(AB$28<>0,IF(AB$28>(L_GRACE*L_NUM_REPAY),(($DW44-SUM($E44:AA44))/AA$31),0),0),0),0)) -> 0 | AC44: =(IF($DW44>0,IF(AC$28<=(L_TENOR*L_NUM_REPAY),IF(AC$28<>0,IF(AC$28>(L_GRACE*L_NUM_REPAY),(($DW44-SUM($E44:AB44))/AB$31),0),0),0),0)) -> 0 | AD44: =(IF($DW44>0,IF(AD$28<=(L_TENOR*L_NUM_REPAY),IF(AD$28<>0,IF(AD$28>(L_GRACE*L_NUM_REPAY),(($DW44-SUM($E44:AC44))/AC$31),0),0),0),0)) -> 0 | AE44: =(IF($DW44>0,IF(AE$28<=(L_TENOR*L_NUM_REPAY),IF(AE$28<>0,IF(AE$28>(L_GRACE*L_NUM_REPAY),(($DW44-SUM($E44:AD44))/AD$31),0),0),0),0)) -> 0 | AF44: =(IF($DW44>0,IF(AF$28<=(L_TENOR*L_NUM_REPAY),IF(AF$28<>0,IF(AF$28>(L_GRACE*L_NUM_REPAY),(($DW44-SUM($E44:AE44))/AE$31),0),0),0),0)) -> 0 | AG44: =(IF($DW44>0,IF(AG$28<=(L_TENOR*L_NUM_REPAY),IF(AG$28<>0,IF(AG$28>(L_GRACE*L_NUM_REPAY),(($DW44-SUM($E44:AF44))/AF$31),0),0),0),0)) -> 0 | AH44: =(IF($DW44>0,IF(AH$28<=(L_TENOR*L_NUM_REPAY),IF(AH$28<>0,IF(AH$28>(L_GRACE*L_NUM_REPAY),(($DW44-SUM($E44:AG44))/AG$31),0),0),0),0)) -> 0 | AI44: =(IF($DW44>0,IF(AI$28<=(L_TENOR*L_NUM_REPAY),IF(AI$28<>0,IF(AI$28>(L_GRACE*L_NUM_REPAY),(($DW44-SUM($E44:AH44))/AH$31),0),0),0),0)) -> 0 | AJ44: =(IF($DW44>0,IF(AJ$28<=(L_TENOR*L_NUM_REPAY),IF(AJ$28<>0,IF(AJ$28>(L_GRACE*L_NUM_REPAY),(($DW44-SUM($E44:AI44))/AI$31),0),0),0),0)) -> 0 | AK44: =(IF($DW44>0,IF(AK$28<=(L_TENOR*L_NUM_REPAY),IF(AK$28<>0,IF(AK$28>(L_GRACE*L_NUM_REPAY),(($DW44-SUM($E44:AJ44))/AJ$31),0),0),0),0)) -> 0 | AL44: =(IF($DW44>0,IF(AL$28<=(L_TENOR*L_NUM_REPAY),IF(AL$28<>0,IF(AL$28>(L_GRACE*L_NUM_REPAY),(($DW44-SUM($E44:AK44))/AK$31),0),0),0),0)) -> 0 | AM44: =(IF($DW44>0,IF(AM$28<=(L_TENOR*L_NUM_REPAY),IF(AM$28<>0,IF(AM$28>(L_GRACE*L_NUM_REPAY),(($DW44-SUM($E44:AL44))/AL$31),0),0),0),0)) -> 0 | AN44: =(IF($DW44>0,IF(AN$28<=(L_TENOR*L_NUM_REPAY),IF(AN$28<>0,IF(AN$28>(L_GRACE*L_NUM_REPAY),(($DW44-SUM($E44:AM44))/AM$31),0),0),0),0)) -> 0 | AO44: =(IF($DW44>0,IF(AO$28<=(L_TENOR*L_NUM_REPAY),IF(AO$28<>0,IF(AO$28>(L_GRACE*L_NUM_REPAY),(($DW44-SUM($E44:AN44))/AN$31),0),0),0),0)) -> 0 | AP44: =(IF($DW44>0,IF(AP$28<=(L_TENOR*L_NUM_REPAY),IF(AP$28<>0,IF(AP$28>(L_GRACE*L_NUM_REPAY),(($DW44-SUM($E44:AO44))/AO$31),0),0),0),0)) -> 0 | AQ44: =(IF($DW44>0,IF(AQ$28<=(L_TENOR*L_NUM_REPAY),IF(AQ$28<>0,IF(AQ$28>(L_GRACE*L_NUM_REPAY),(($DW44-SUM($E44:AP44))/AP$31),0),0),0),0)) -> 0 | AR44: =(IF($DW44>0,IF(AR$28<=(L_TENOR*L_NUM_REPAY),IF(AR$28<>0,IF(AR$28>(L_GRACE*L_NUM_REPAY),(($DW44-SUM($E44:AQ44))/AQ$31),0),0),0),0)) -> 0 | AS44: =(IF($DW44>0,IF(AS$28<=(L_TENOR*L_NUM_REPAY),IF(AS$28<>0,IF(AS$28>(L_GRACE*L_NUM_REPAY),(($DW44-SUM($E44:AR44))/AR$31),0),0),0),0)) -> 0 | AT44: =(IF($DW44>0,IF(AT$28<=(L_TENOR*L_NUM_REPAY),IF(AT$28<>0,IF(AT$28>(L_GRACE*L_NUM_REPAY),(($DW44-SUM($E44:AS44))/AS$31),0),0),0),0)) -> 0 | AU44: =(IF($DW44>0,IF(AU$28<=(L_TENOR*L_NUM_REPAY),IF(AU$28<>0,IF(AU$28>(L_GRACE*L_NUM_REPAY),(($DW44-SUM($E44:AT44))/AT$31),0),0),0),0)) -> 0 | AV44: =(IF($DW44>0,IF(AV$28<=(L_TENOR*L_NUM_REPAY),IF(AV$28<>0,IF(AV$28>(L_GRACE*L_NUM_REPAY),(($DW44-SUM($E44:AU44))/AU$31),0),0),0),0)) -> 0 | AW44: =(IF($DW44>0,IF(AW$28<=(L_TENOR*L_NUM_REPAY),IF(AW$28<>0,IF(AW$28>(L_GRACE*L_NUM_REPAY),(($DW44-SUM($E44:AV44))/AV$31),0),0),0),0)) -> 0 | AX44: =(IF($DW44>0,IF(AX$28<=(L_TENOR*L_NUM_REPAY),IF(AX$28<>0,IF(AX$28>(L_GRACE*L_NUM_REPAY),(($DW44-SUM($E44:AW44))/AW$31),0),0),0),0)) -> 0 | AY44: =(IF($DW44>0,IF(AY$28<=(L_TENOR*L_NUM_REPAY),IF(AY$28<>0,IF(AY$28>(L_GRACE*L_NUM_REPAY),(($DW44-SUM($E44:AX44))/AX$31),0),0),0),0)) -> 0 | AZ44: =(IF($DW44>0,IF(AZ$28<=(L_TENOR*L_NUM_REPAY),IF(AZ$28<>0,IF(AZ$28>(L_GRACE*L_NUM_REPAY),(($DW44-SUM($E44:AY44))/AY$31),0),0),0),0)) -> 0 | BA44: =(IF($DW44>0,IF(BA$28<=(L_TENOR*L_NUM_REPAY),IF(BA$28<>0,IF(BA$28>(L_GRACE*L_NUM_REPAY),(($DW44-SUM($E44:AZ44))/AZ$31),0),0),0),0)) -> 0 | BB44: =(IF($DW44>0,IF(BB$28<=(L_TENOR*L_NUM_REPAY),IF(BB$28<>0,IF(BB$28>(L_GRACE*L_NUM_REPAY),(($DW44-SUM($E44:BA44))/BA$31),0),0),0),0)) -> 0 | BC44: =(IF($DW44>0,IF(BC$28<=(L_TENOR*L_NUM_REPAY),IF(BC$28<>0,IF(BC$28>(L_GRACE*L_NUM_REPAY),(($DW44-SUM($E44:BB44))/BB$31),0),0),0),0)) -> 0 | BD44: =(IF($DW44>0,IF(BD$28<=(L_TENOR*L_NUM_REPAY),IF(BD$28<>0,IF(BD$28>(L_GRACE*L_NUM_REPAY),(($DW44-SUM($E44:BC44))/BC$31),0),0),0),0)) -> 0 | BE44: =(IF($DW44>0,IF(BE$28<=(L_TENOR*L_NUM_REPAY),IF(BE$28<>0,IF(BE$28>(L_GRACE*L_NUM_REPAY),(($DW44-SUM($E44:BD44))/BD$31),0),0),0),0)) -> 0 | BF44: =(IF($DW44>0,IF(BF$28<=(L_TENOR*L_NUM_REPAY),IF(BF$28<>0,IF(BF$28>(L_GRACE*L_NUM_REPAY),(($DW44-SUM($E44:BE44))/BE$31),0),0),0),0)) -> 0 | BG44: =(IF($DW44>0,IF(BG$28<=(L_TENOR*L_NUM_REPAY),IF(BG$28<>0,IF(BG$28>(L_GRACE*L_NUM_REPAY),(($DW44-SUM($E44:BF44))/BF$31),0),0),0),0)) -> 0 | BH44: =(IF($DW44>0,IF(BH$28<=(L_TENOR*L_NUM_REPAY),IF(BH$28<>0,IF(BH$28>(L_GRACE*L_NUM_REPAY),(($DW44-SUM($E44:BG44))/BG$31),0),0),0),0)) -> 0 | BI44: =(IF($DW44>0,IF(BI$28<=(L_TENOR*L_NUM_REPAY),IF(BI$28<>0,IF(BI$28>(L_GRACE*L_NUM_REPAY),(($DW44-SUM($E44:BH44))/BH$31),0),0),0),0)) -> 0 | BJ44: =(IF($DW44>0,IF(BJ$28<=(L_TENOR*L_NUM_REPAY),IF(BJ$28<>0,IF(BJ$28>(L_GRACE*L_NUM_REPAY),(($DW44-SUM($E44:BI44))/BI$31),0),0),0),0)) -> 0 | BK44: =(IF($DW44>0,IF(BK$28<=(L_TENOR*L_NUM_REPAY),IF(BK$28<>0,IF(BK$28>(L_GRACE*L_NUM_REPAY),(($DW44-SUM($E44:BJ44))/BJ$31),0),0),0),0)) -> 0 | BL44: =(IF($DW44>0,IF(BL$28<=(L_TENOR*L_NUM_REPAY),IF(BL$28<>0,IF(BL$28>(L_GRACE*L_NUM_REPAY),(($DW44-SUM($E44:BK44))/BK$31),0),0),0),0)) -> 0 | BM44: =(IF($DW44>0,IF(BM$28<=(L_TENOR*L_NUM_REPAY),IF(BM$28<>0,IF(BM$28>(L_GRACE*L_NUM_REPAY),(($DW44-SUM($E44:BL44))/BL$31),0),0),0),0)) -> 0 | BN44: =(IF($DW44>0,IF(BN$28<=(L_TENOR*L_NUM_REPAY),IF(BN$28<>0,IF(BN$28>(L_GRACE*L_NUM_REPAY),(($DW44-SUM($E44:BM44))/BM$31),0),0),0),0)) -> 0 | BO44: =(IF($DW44>0,IF(BO$28<=(L_TENOR*L_NUM_REPAY),IF(BO$28<>0,IF(BO$28>(L_GRACE*L_NUM_REPAY),(($DW44-SUM($E44:BN44))/BN$31),0),0),0),0)) -> 0 | BP44: =(IF($DW44>0,IF(BP$28<=(L_TENOR*L_NUM_REPAY),IF(BP$28<>0,IF(BP$28>(L_GRACE*L_NUM_REPAY),(($DW44-SUM($E44:BO44))/BO$31),0),0),0),0)) -> 0 | BQ44: =(IF($DW44>0,IF(BQ$28<=(L_TENOR*L_NUM_REPAY),IF(BQ$28<>0,IF(BQ$28>(L_GRACE*L_NUM_REPAY),(($DW44-SUM($E44:BP44))/BP$31),0),0),0),0)) -> 0 | BR44: =(IF($DW44>0,IF(BR$28<=(L_TENOR*L_NUM_REPAY),IF(BR$28<>0,IF(BR$28>(L_GRACE*L_NUM_REPAY),(($DW44-SUM($E44:BQ44))/BQ$31),0),0),0),0)) -> 0 | BS44: =(IF($DW44>0,IF(BS$28<=(L_TENOR*L_NUM_REPAY),IF(BS$28<>0,IF(BS$28>(L_GRACE*L_NUM_REPAY),(($DW44-SUM($E44:BR44))/BR$31),0),0),0),0)) -> 0 | BT44: =(IF($DW44>0,IF(BT$28<=(L_TENOR*L_NUM_REPAY),IF(BT$28<>0,IF(BT$28>(L_GRACE*L_NUM_REPAY),(($DW44-SUM($E44:BS44))/BS$31),0),0),0),0)) -> 0 | BU44: =(IF($DW44>0,IF(BU$28<=(L_TENOR*L_NUM_REPAY),IF(BU$28<>0,IF(BU$28>(L_GRACE*L_NUM_REPAY),(($DW44-SUM($E44:BT44))/BT$31),0),0),0),0)) -> 0 | BV44: =(IF($DW44>0,IF(BV$28<=(L_TENOR*L_NUM_REPAY),IF(BV$28<>0,IF(BV$28>(L_GRACE*L_NUM_REPAY),(($DW44-SUM($E44:BU44))/BU$31),0),0),0),0)) -> 0 | BW44: =(IF($DW44>0,IF(BW$28<=(L_TENOR*L_NUM_REPAY),IF(BW$28<>0,IF(BW$28>(L_GRACE*L_NUM_REPAY),(($DW44-SUM($E44:BV44))/BV$31),0),0),0),0)) -> 0 | BX44: =(IF($DW44>0,IF(BX$28<=(L_TENOR*L_NUM_REPAY),IF(BX$28<>0,IF(BX$28>(L_GRACE*L_NUM_REPAY),(($DW44-SUM($E44:BW44))/BW$31),0),0),0),0)) -> 0 | BY44: =(IF($DW44>0,IF(BY$28<=(L_TENOR*L_NUM_REPAY),IF(BY$28<>0,IF(BY$28>(L_GRACE*L_NUM_REPAY),(($DW44-SUM($E44:BX44))/BX$31),0),0),0),0)) -> 0 | BZ44: =(IF($DW44>0,IF(BZ$28<=(L_TENOR*L_NUM_REPAY),IF(BZ$28<>0,IF(BZ$28>(L_GRACE*L_NUM_REPAY),(($DW44-SUM($E44:BY44))/BY$31),0),0),0),0)) -> 0 | CA44: =(IF($DW44>0,IF(CA$28<=(L_TENOR*L_NUM_REPAY),IF(CA$28<>0,IF(CA$28>(L_GRACE*L_NUM_REPAY),(($DW44-SUM($E44:BZ44))/BZ$31),0),0),0),0)) -> 0 | CB44: =(IF($DW44>0,IF(CB$28<=(L_TENOR*L_NUM_REPAY),IF(CB$28<>0,IF(CB$28>(L_GRACE*L_NUM_REPAY),(($DW44-SUM($E44:CA44))/CA$31),0),0),0),0)) -> 0 | CC44: =(IF($DW44>0,IF(CC$28<=(L_TENOR*L_NUM_REPAY),IF(CC$28<>0,IF(CC$28>(L_GRACE*L_NUM_REPAY),(($DW44-SUM($E44:CB44))/CB$31),0),0),0),0)) -> 0 | CD44: =(IF($DW44>0,IF(CD$28<=(L_TENOR*L_NUM_REPAY),IF(CD$28<>0,IF(CD$28>(L_GRACE*L_NUM_REPAY),(($DW44-SUM($E44:CC44))/CC$31),0),0),0),0)) -> 0 | CE44: =(IF($DW44>0,IF(CE$28<=(L_TENOR*L_NUM_REPAY),IF(CE$28<>0,IF(CE$28>(L_GRACE*L_NUM_REPAY),(($DW44-SUM($E44:CD44))/CD$31),0),0),0),0)) -> 0 | CF44: =(IF($DW44>0,IF(CF$28<=(L_TENOR*L_NUM_REPAY),IF(CF$28<>0,IF(CF$28>(L_GRACE*L_NUM_REPAY),(($DW44-SUM($E44:CE44))/CE$31),0),0),0),0)) -> 0 | CG44: =(IF($DW44>0,IF(CG$28<=(L_TENOR*L_NUM_REPAY),IF(CG$28<>0,IF(CG$28>(L_GRACE*L_NUM_REPAY),(($DW44-SUM($E44:CF44))/CF$31),0),0),0),0)) -> 0 | CH44: =(IF($DW44>0,IF(CH$28<=(L_TENOR*L_NUM_REPAY),IF(CH$28<>0,IF(CH$28>(L_GRACE*L_NUM_REPAY),(($DW44-SUM($E44:CG44))/CG$31),0),0),0),0)) -> 0 | CI44: =(IF($DW44>0,IF(CI$28<=(L_TENOR*L_NUM_REPAY),IF(CI$28<>0,IF(CI$28>(L_GRACE*L_NUM_REPAY),(($DW44-SUM($E44:CH44))/CH$31),0),0),0),0)) -> 0 | CJ44: =(IF($DW44>0,IF(CJ$28<=(L_TENOR*L_NUM_REPAY),IF(CJ$28<>0,IF(CJ$28>(L_GRACE*L_NUM_REPAY),(($DW44-SUM($E44:CI44))/CI$31),0),0),0),0)) -> 0 | CK44: =(IF($DW44>0,IF(CK$28<=(L_TENOR*L_NUM_REPAY),IF(CK$28<>0,IF(CK$28>(L_GRACE*L_NUM_REPAY),(($DW44-SUM($E44:CJ44))/CJ$31),0),0),0),0)) -> 0 | CL44: =(IF($DW44>0,IF(CL$28<=(L_TENOR*L_NUM_REPAY),IF(CL$28<>0,IF(CL$28>(L_GRACE*L_NUM_REPAY),(($DW44-SUM($E44:CK44))/CK$31),0),0),0),0)) -> 0 | CM44: =(IF($DW44>0,IF(CM$28<=(L_TENOR*L_NUM_REPAY),IF(CM$28<>0,IF(CM$28>(L_GRACE*L_NUM_REPAY),(($DW44-SUM($E44:CL44))/CL$31),0),0),0),0)) -> 0 | CN44: =(IF($DW44>0,IF(CN$28<=(L_TENOR*L_NUM_REPAY),IF(CN$28<>0,IF(CN$28>(L_GRACE*L_NUM_REPAY),(($DW44-SUM($E44:CM44))/CM$31),0),0),0),0)) -> 0 | CO44: =(IF($DW44>0,IF(CO$28<=(L_TENOR*L_NUM_REPAY),IF(CO$28<>0,IF(CO$28>(L_GRACE*L_NUM_REPAY),(($DW44-SUM($E44:CN44))/CN$31),0),0),0),0)) -> 0 | CP44: =(IF($DW44>0,IF(CP$28<=(L_TENOR*L_NUM_REPAY),IF(CP$28<>0,IF(CP$28>(L_GRACE*L_NUM_REPAY),(($DW44-SUM($E44:CO44))/CO$31),0),0),0),0)) -> 0 | CQ44: =(IF($DW44>0,IF(CQ$28<=(L_TENOR*L_NUM_REPAY),IF(CQ$28<>0,IF(CQ$28>(L_GRACE*L_NUM_REPAY),(($DW44-SUM($E44:CP44))/CP$31),0),0),0),0)) -> 0 | CR44: =(IF($DW44>0,IF(CR$28<=(L_TENOR*L_NUM_REPAY),IF(CR$28<>0,IF(CR$28>(L_GRACE*L_NUM_REPAY),(($DW44-SUM($E44:CQ44))/CQ$31),0),0),0),0)) -> 0 | CS44: =(IF($DW44>0,IF(CS$28<=(L_TENOR*L_NUM_REPAY),IF(CS$28<>0,IF(CS$28>(L_GRACE*L_NUM_REPAY),(($DW44-SUM($E44:CR44))/CR$31),0),0),0),0)) -> 0 | CT44: =(IF($DW44>0,IF(CT$28<=(L_TENOR*L_NUM_REPAY),IF(CT$28<>0,IF(CT$28>(L_GRACE*L_NUM_REPAY),(($DW44-SUM($E44:CS44))/CS$31),0),0),0),0)) -> 0 | CU44: =(IF($DW44>0,IF(CU$28<=(L_TENOR*L_NUM_REPAY),IF(CU$28<>0,IF(CU$28>(L_GRACE*L_NUM_REPAY),(($DW44-SUM($E44:CT44))/CT$31),0),0),0),0)) -> 0 | CV44: =(IF($DW44>0,IF(CV$28<=(L_TENOR*L_NUM_REPAY),IF(CV$28<>0,IF(CV$28>(L_GRACE*L_NUM_REPAY),(($DW44-SUM($E44:CU44))/CU$31),0),0),0),0)) -> 0 | CW44: =(IF($DW44>0,IF(CW$28<=(L_TENOR*L_NUM_REPAY),IF(CW$28<>0,IF(CW$28>(L_GRACE*L_NUM_REPAY),(($DW44-SUM($E44:CV44))/CV$31),0),0),0),0)) -> 0 | CX44: =(IF($DW44>0,IF(CX$28<=(L_TENOR*L_NUM_REPAY),IF(CX$28<>0,IF(CX$28>(L_GRACE*L_NUM_REPAY),(($DW44-SUM($E44:CW44))/CW$31),0),0),0),0)) -> 0 | CY44: =(IF($DW44>0,IF(CY$28<=(L_TENOR*L_NUM_REPAY),IF(CY$28<>0,IF(CY$28>(L_GRACE*L_NUM_REPAY),(($DW44-SUM($E44:CX44))/CX$31),0),0),0),0)) -> 0 | CZ44: =(IF($DW44>0,IF(CZ$28<=(L_TENOR*L_NUM_REPAY),IF(CZ$28<>0,IF(CZ$28>(L_GRACE*L_NUM_REPAY),(($DW44-SUM($E44:CY44))/CY$31),0),0),0),0)) -> 0 | DA44: =(IF($DW44>0,IF(DA$28<=(L_TENOR*L_NUM_REPAY),IF(DA$28<>0,IF(DA$28>(L_GRACE*L_NUM_REPAY),(($DW44-SUM($E44:CZ44))/CZ$31),0),0),0),0)) -> 0 | DB44: =(IF($DW44>0,IF(DB$28<=(L_TENOR*L_NUM_REPAY),IF(DB$28<>0,IF(DB$28>(L_GRACE*L_NUM_REPAY),(($DW44-SUM($E44:DA44))/DA$31),0),0),0),0)) -> 0 | DC44: =(IF($DW44>0,IF(DC$28<=(L_TENOR*L_NUM_REPAY),IF(DC$28<>0,IF(DC$28>(L_GRACE*L_NUM_REPAY),(($DW44-SUM($E44:DB44))/DB$31),0),0),0),0)) -> 0 | DD44: =(IF($DW44>0,IF(DD$28<=(L_TENOR*L_NUM_REPAY),IF(DD$28<>0,IF(DD$28>(L_GRACE*L_NUM_REPAY),(($DW44-SUM($E44:DC44))/DC$31),0),0),0),0)) -> 0 | DE44: =(IF($DW44>0,IF(DE$28<=(L_TENOR*L_NUM_REPAY),IF(DE$28<>0,IF(DE$28>(L_GRACE*L_NUM_REPAY),(($DW44-SUM($E44:DD44))/DD$31),0),0),0),0)) -> 0 | DF44: =(IF($DW44>0,IF(DF$28<=(L_TENOR*L_NUM_REPAY),IF(DF$28<>0,IF(DF$28>(L_GRACE*L_NUM_REPAY),(($DW44-SUM($E44:DE44))/DE$31),0),0),0),0)) -> 0 | DG44: =(IF($DW44>0,IF(DG$28<=(L_TENOR*L_NUM_REPAY),IF(DG$28<>0,IF(DG$28>(L_GRACE*L_NUM_REPAY),(($DW44-SUM($E44:DF44))/DF$31),0),0),0),0)) -> 0 | DH44: =(IF($DW44>0,IF(DH$28<=(L_TENOR*L_NUM_REPAY),IF(DH$28<>0,IF(DH$28>(L_GRACE*L_NUM_REPAY),(($DW44-SUM($E44:DG44))/DG$31),0),0),0),0)) -> 0 | DI44: =(IF($DW44>0,IF(DI$28<=(L_TENOR*L_NUM_REPAY),IF(DI$28<>0,IF(DI$28>(L_GRACE*L_NUM_REPAY),(($DW44-SUM($E44:DH44))/DH$31),0),0),0),0)) -> 0 | DJ44: =(IF($DW44>0,IF(DJ$28<=(L_TENOR*L_NUM_REPAY),IF(DJ$28<>0,IF(DJ$28>(L_GRACE*L_NUM_REPAY),(($DW44-SUM($E44:DI44))/DI$31),0),0),0),0)) -> 0 | DK44: =(IF($DW44>0,IF(DK$28<=(L_TENOR*L_NUM_REPAY),IF(DK$28<>0,IF(DK$28>(L_GRACE*L_NUM_REPAY),(($DW44-SUM($E44:DJ44))/DJ$31),0),0),0),0)) -> 0 | DL44: =(IF($DW44>0,IF(DL$28<=(L_TENOR*L_NUM_REPAY),IF(DL$28<>0,IF(DL$28>(L_GRACE*L_NUM_REPAY),(($DW44-SUM($E44:DK44))/DK$31),0),0),0),0)) -> 0 | DM44: =(IF($DW44>0,IF(DM$28<=(L_TENOR*L_NUM_REPAY),IF(DM$28<>0,IF(DM$28>(L_GRACE*L_NUM_REPAY),(($DW44-SUM($E44:DL44))/DL$31),0),0),0),0)) -> 0 | DN44: =(IF($DW44>0,IF(DN$28<=(L_TENOR*L_NUM_REPAY),IF(DN$28<>0,IF(DN$28>(L_GRACE*L_NUM_REPAY),(($DW44-SUM($E44:DM44))/DM$31),0),0),0),0)) -> 0 | DO44: =(IF($DW44>0,IF(DO$28<=(L_TENOR*L_NUM_REPAY),IF(DO$28<>0,IF(DO$28>(L_GRACE*L_NUM_REPAY),(($DW44-SUM($E44:DN44))/DN$31),0),0),0),0)) -> 0 | DP44: =(IF($DW44>0,IF(DP$28<=(L_TENOR*L_NUM_REPAY),IF(DP$28<>0,IF(DP$28>(L_GRACE*L_NUM_REPAY),(($DW44-SUM($E44:DO44))/DO$31),0),0),0),0)) -> 0 | DQ44: =(IF($DW44>0,IF(DQ$28<=(L_TENOR*L_NUM_REPAY),IF(DQ$28<>0,IF(DQ$28>(L_GRACE*L_NUM_REPAY),(($DW44-SUM($E44:DP44))/DP$31),0),0),0),0)) -> 0 | DR44: =(IF($DW44>0,IF(DR$28<=(L_TENOR*L_NUM_REPAY),IF(DR$28<>0,IF(DR$28>(L_GRACE*L_NUM_REPAY),(($DW44-SUM($E44:DQ44))/DQ$31),0),0),0),0)) -> 0 | DS44: =(IF($DW44>0,IF(DS$28<=(L_TENOR*L_NUM_REPAY),IF(DS$28<>0,IF(DS$28>(L_GRACE*L_NUM_REPAY),(($DW44-SUM($E44:DR44))/DR$31),0),0),0),0)) -> 0 | DT44: =(IF($DW44>0,IF(DT$28<=(L_TENOR*L_NUM_REPAY),IF(DT$28<>0,IF(DT$28>(L_GRACE*L_NUM_REPAY),(($DW44-SUM($E44:DS44))/DS$31),0),0),0),0)) -> 0 | DU44: =(IF($DW44>0,IF(DU$28<=(L_TENOR*L_NUM_REPAY),IF(DU$28<>0,IF(DU$28>(L_GRACE*L_NUM_REPAY),(($DW44-SUM($E44:DT44))/DT$31),0),0),0),0)) -> 0 | DV44: 6 | DW44: =J106 -> 0
B45: Principal Tranche 6 | D45: 0 | E45: 0 | F45: 0 | G45: 0 | H45: 0 | I45: 0 | J45: 0 | K45: 0 | L45: =IF($DW45>0, IF(L$28<=(L_TENOR*L_NUM_REPAY),IF(L$28<>0,IF(L$28>(L_GRACE*L_NUM_REPAY),(($DW45-SUM($E45:K45))/K$31),0),0),0),0) -> 0 | M45: =(IF($DW45>0,IF(M$28<=(L_TENOR*L_NUM_REPAY),IF(M$28<>0,IF(M$28>(L_GRACE*L_NUM_REPAY),(($DW45-SUM($E45:L45))/L$31),0),0),0),0)) -> 0 | N45: =(IF($DW45>0,IF(N$28<=(L_TENOR*L_NUM_REPAY),IF(N$28<>0,IF(N$28>(L_GRACE*L_NUM_REPAY),(($DW45-SUM($E45:M45))/M$31),0),0),0),0)) -> 0 | O45: =(IF($DW45>0,IF(O$28<=(L_TENOR*L_NUM_REPAY),IF(O$28<>0,IF(O$28>(L_GRACE*L_NUM_REPAY),(($DW45-SUM($E45:N45))/N$31),0),0),0),0)) -> 0 | P45: =(IF($DW45>0,IF(P$28<=(L_TENOR*L_NUM_REPAY),IF(P$28<>0,IF(P$28>(L_GRACE*L_NUM_REPAY),(($DW45-SUM($E45:O45))/O$31),0),0),0),0)) -> 0 | Q45: =(IF($DW45>0,IF(Q$28<=(L_TENOR*L_NUM_REPAY),IF(Q$28<>0,IF(Q$28>(L_GRACE*L_NUM_REPAY),(($DW45-SUM($E45:P45))/P$31),0),0),0),0)) -> 0 | R45: =(IF($DW45>0,IF(R$28<=(L_TENOR*L_NUM_REPAY),IF(R$28<>0,IF(R$28>(L_GRACE*L_NUM_REPAY),(($DW45-SUM($E45:Q45))/Q$31),0),0),0),0)) -> 0 | S45: =(IF($DW45>0,IF(S$28<=(L_TENOR*L_NUM_REPAY),IF(S$28<>0,IF(S$28>(L_GRACE*L_NUM_REPAY),(($DW45-SUM($E45:R45))/R$31),0),0),0),0)) -> 0 | T45: =(IF($DW45>0,IF(T$28<=(L_TENOR*L_NUM_REPAY),IF(T$28<>0,IF(T$28>(L_GRACE*L_NUM_REPAY),(($DW45-SUM($E45:S45))/S$31),0),0),0),0)) -> 0 | U45: =(IF($DW45>0,IF(U$28<=(L_TENOR*L_NUM_REPAY),IF(U$28<>0,IF(U$28>(L_GRACE*L_NUM_REPAY),(($DW45-SUM($E45:T45))/T$31),0),0),0),0)) -> 0 | V45: =(IF($DW45>0,IF(V$28<=(L_TENOR*L_NUM_REPAY),IF(V$28<>0,IF(V$28>(L_GRACE*L_NUM_REPAY),(($DW45-SUM($E45:U45))/U$31),0),0),0),0)) -> 0 | W45: =(IF($DW45>0,IF(W$28<=(L_TENOR*L_NUM_REPAY),IF(W$28<>0,IF(W$28>(L_GRACE*L_NUM_REPAY),(($DW45-SUM($E45:V45))/V$31),0),0),0),0)) -> 0 | X45: =(IF($DW45>0,IF(X$28<=(L_TENOR*L_NUM_REPAY),IF(X$28<>0,IF(X$28>(L_GRACE*L_NUM_REPAY),(($DW45-SUM($E45:W45))/W$31),0),0),0),0)) -> 0 | Y45: =(IF($DW45>0,IF(Y$28<=(L_TENOR*L_NUM_REPAY),IF(Y$28<>0,IF(Y$28>(L_GRACE*L_NUM_REPAY),(($DW45-SUM($E45:X45))/X$31),0),0),0),0)) -> 0 | Z45: =(IF($DW45>0,IF(Z$28<=(L_TENOR*L_NUM_REPAY),IF(Z$28<>0,IF(Z$28>(L_GRACE*L_NUM_REPAY),(($DW45-SUM($E45:Y45))/Y$31),0),0),0),0)) -> 0 | AA45: =(IF($DW45>0,IF(AA$28<=(L_TENOR*L_NUM_REPAY),IF(AA$28<>0,IF(AA$28>(L_GRACE*L_NUM_REPAY),(($DW45-SUM($E45:Z45))/Z$31),0),0),0),0)) -> 0 | AB45: =(IF($DW45>0,IF(AB$28<=(L_TENOR*L_NUM_REPAY),IF(AB$28<>0,IF(AB$28>(L_GRACE*L_NUM_REPAY),(($DW45-SUM($E45:AA45))/AA$31),0),0),0),0)) -> 0 | AC45: =(IF($DW45>0,IF(AC$28<=(L_TENOR*L_NUM_REPAY),IF(AC$28<>0,IF(AC$28>(L_GRACE*L_NUM_REPAY),(($DW45-SUM($E45:AB45))/AB$31),0),0),0),0)) -> 0 | AD45: =(IF($DW45>0,IF(AD$28<=(L_TENOR*L_NUM_REPAY),IF(AD$28<>0,IF(AD$28>(L_GRACE*L_NUM_REPAY),(($DW45-SUM($E45:AC45))/AC$31),0),0),0),0)) -> 0 | AE45: =(IF($DW45>0,IF(AE$28<=(L_TENOR*L_NUM_REPAY),IF(AE$28<>0,IF(AE$28>(L_GRACE*L_NUM_REPAY),(($DW45-SUM($E45:AD45))/AD$31),0),0),0),0)) -> 0 | AF45: =(IF($DW45>0,IF(AF$28<=(L_TENOR*L_NUM_REPAY),IF(AF$28<>0,IF(AF$28>(L_GRACE*L_NUM_REPAY),(($DW45-SUM($E45:AE45))/AE$31),0),0),0),0)) -> 0 | AG45: =(IF($DW45>0,IF(AG$28<=(L_TENOR*L_NUM_REPAY),IF(AG$28<>0,IF(AG$28>(L_GRACE*L_NUM_REPAY),(($DW45-SUM($E45:AF45))/AF$31),0),0),0),0)) -> 0 | AH45: =(IF($DW45>0,IF(AH$28<=(L_TENOR*L_NUM_REPAY),IF(AH$28<>0,IF(AH$28>(L_GRACE*L_NUM_REPAY),(($DW45-SUM($E45:AG45))/AG$31),0),0),0),0)) -> 0 | AI45: =(IF($DW45>0,IF(AI$28<=(L_TENOR*L_NUM_REPAY),IF(AI$28<>0,IF(AI$28>(L_GRACE*L_NUM_REPAY),(($DW45-SUM($E45:AH45))/AH$31),0),0),0),0)) -> 0 | AJ45: =(IF($DW45>0,IF(AJ$28<=(L_TENOR*L_NUM_REPAY),IF(AJ$28<>0,IF(AJ$28>(L_GRACE*L_NUM_REPAY),(($DW45-SUM($E45:AI45))/AI$31),0),0),0),0)) -> 0 | AK45: =(IF($DW45>0,IF(AK$28<=(L_TENOR*L_NUM_REPAY),IF(AK$28<>0,IF(AK$28>(L_GRACE*L_NUM_REPAY),(($DW45-SUM($E45:AJ45))/AJ$31),0),0),0),0)) -> 0 | AL45: =(IF($DW45>0,IF(AL$28<=(L_TENOR*L_NUM_REPAY),IF(AL$28<>0,IF(AL$28>(L_GRACE*L_NUM_REPAY),(($DW45-SUM($E45:AK45))/AK$31),0),0),0),0)) -> 0 | AM45: =(IF($DW45>0,IF(AM$28<=(L_TENOR*L_NUM_REPAY),IF(AM$28<>0,IF(AM$28>(L_GRACE*L_NUM_REPAY),(($DW45-SUM($E45:AL45))/AL$31),0),0),0),0)) -> 0 | AN45: =(IF($DW45>0,IF(AN$28<=(L_TENOR*L_NUM_REPAY),IF(AN$28<>0,IF(AN$28>(L_GRACE*L_NUM_REPAY),(($DW45-SUM($E45:AM45))/AM$31),0),0),0),0)) -> 0 | AO45: =(IF($DW45>0,IF(AO$28<=(L_TENOR*L_NUM_REPAY),IF(AO$28<>0,IF(AO$28>(L_GRACE*L_NUM_REPAY),(($DW45-SUM($E45:AN45))/AN$31),0),0),0),0)) -> 0 | AP45: =(IF($DW45>0,IF(AP$28<=(L_TENOR*L_NUM_REPAY),IF(AP$28<>0,IF(AP$28>(L_GRACE*L_NUM_REPAY),(($DW45-SUM($E45:AO45))/AO$31),0),0),0),0)) -> 0 | AQ45: =(IF($DW45>0,IF(AQ$28<=(L_TENOR*L_NUM_REPAY),IF(AQ$28<>0,IF(AQ$28>(L_GRACE*L_NUM_REPAY),(($DW45-SUM($E45:AP45))/AP$31),0),0),0),0)) -> 0 | AR45: =(IF($DW45>0,IF(AR$28<=(L_TENOR*L_NUM_REPAY),IF(AR$28<>0,IF(AR$28>(L_GRACE*L_NUM_REPAY),(($DW45-SUM($E45:AQ45))/AQ$31),0),0),0),0)) -> 0 | AS45: =(IF($DW45>0,IF(AS$28<=(L_TENOR*L_NUM_REPAY),IF(AS$28<>0,IF(AS$28>(L_GRACE*L_NUM_REPAY),(($DW45-SUM($E45:AR45))/AR$31),0),0),0),0)) -> 0 | AT45: =(IF($DW45>0,IF(AT$28<=(L_TENOR*L_NUM_REPAY),IF(AT$28<>0,IF(AT$28>(L_GRACE*L_NUM_REPAY),(($DW45-SUM($E45:AS45))/AS$31),0),0),0),0)) -> 0 | AU45: =(IF($DW45>0,IF(AU$28<=(L_TENOR*L_NUM_REPAY),IF(AU$28<>0,IF(AU$28>(L_GRACE*L_NUM_REPAY),(($DW45-SUM($E45:AT45))/AT$31),0),0),0),0)) -> 0 | AV45: =(IF($DW45>0,IF(AV$28<=(L_TENOR*L_NUM_REPAY),IF(AV$28<>0,IF(AV$28>(L_GRACE*L_NUM_REPAY),(($DW45-SUM($E45:AU45))/AU$31),0),0),0),0)) -> 0 | AW45: =(IF($DW45>0,IF(AW$28<=(L_TENOR*L_NUM_REPAY),IF(AW$28<>0,IF(AW$28>(L_GRACE*L_NUM_REPAY),(($DW45-SUM($E45:AV45))/AV$31),0),0),0),0)) -> 0 | AX45: =(IF($DW45>0,IF(AX$28<=(L_TENOR*L_NUM_REPAY),IF(AX$28<>0,IF(AX$28>(L_GRACE*L_NUM_REPAY),(($DW45-SUM($E45:AW45))/AW$31),0),0),0),0)) -> 0 | AY45: =(IF($DW45>0,IF(AY$28<=(L_TENOR*L_NUM_REPAY),IF(AY$28<>0,IF(AY$28>(L_GRACE*L_NUM_REPAY),(($DW45-SUM($E45:AX45))/AX$31),0),0),0),0)) -> 0 | AZ45: =(IF($DW45>0,IF(AZ$28<=(L_TENOR*L_NUM_REPAY),IF(AZ$28<>0,IF(AZ$28>(L_GRACE*L_NUM_REPAY),(($DW45-SUM($E45:AY45))/AY$31),0),0),0),0)) -> 0 | BA45: =(IF($DW45>0,IF(BA$28<=(L_TENOR*L_NUM_REPAY),IF(BA$28<>0,IF(BA$28>(L_GRACE*L_NUM_REPAY),(($DW45-SUM($E45:AZ45))/AZ$31),0),0),0),0)) -> 0 | BB45: =(IF($DW45>0,IF(BB$28<=(L_TENOR*L_NUM_REPAY),IF(BB$28<>0,IF(BB$28>(L_GRACE*L_NUM_REPAY),(($DW45-SUM($E45:BA45))/BA$31),0),0),0),0)) -> 0 | BC45: =(IF($DW45>0,IF(BC$28<=(L_TENOR*L_NUM_REPAY),IF(BC$28<>0,IF(BC$28>(L_GRACE*L_NUM_REPAY),(($DW45-SUM($E45:BB45))/BB$31),0),0),0),0)) -> 0 | BD45: =(IF($DW45>0,IF(BD$28<=(L_TENOR*L_NUM_REPAY),IF(BD$28<>0,IF(BD$28>(L_GRACE*L_NUM_REPAY),(($DW45-SUM($E45:BC45))/BC$31),0),0),0),0)) -> 0 | BE45: =(IF($DW45>0,IF(BE$28<=(L_TENOR*L_NUM_REPAY),IF(BE$28<>0,IF(BE$28>(L_GRACE*L_NUM_REPAY),(($DW45-SUM($E45:BD45))/BD$31),0),0),0),0)) -> 0 | BF45: =(IF($DW45>0,IF(BF$28<=(L_TENOR*L_NUM_REPAY),IF(BF$28<>0,IF(BF$28>(L_GRACE*L_NUM_REPAY),(($DW45-SUM($E45:BE45))/BE$31),0),0),0),0)) -> 0 | BG45: =(IF($DW45>0,IF(BG$28<=(L_TENOR*L_NUM_REPAY),IF(BG$28<>0,IF(BG$28>(L_GRACE*L_NUM_REPAY),(($DW45-SUM($E45:BF45))/BF$31),0),0),0),0)) -> 0 | BH45: =(IF($DW45>0,IF(BH$28<=(L_TENOR*L_NUM_REPAY),IF(BH$28<>0,IF(BH$28>(L_GRACE*L_NUM_REPAY),(($DW45-SUM($E45:BG45))/BG$31),0),0),0),0)) -> 0 | BI45: =(IF($DW45>0,IF(BI$28<=(L_TENOR*L_NUM_REPAY),IF(BI$28<>0,IF(BI$28>(L_GRACE*L_NUM_REPAY),(($DW45-SUM($E45:BH45))/BH$31),0),0),0),0)) -> 0 | BJ45: =(IF($DW45>0,IF(BJ$28<=(L_TENOR*L_NUM_REPAY),IF(BJ$28<>0,IF(BJ$28>(L_GRACE*L_NUM_REPAY),(($DW45-SUM($E45:BI45))/BI$31),0),0),0),0)) -> 0 | BK45: =(IF($DW45>0,IF(BK$28<=(L_TENOR*L_NUM_REPAY),IF(BK$28<>0,IF(BK$28>(L_GRACE*L_NUM_REPAY),(($DW45-SUM($E45:BJ45))/BJ$31),0),0),0),0)) -> 0 | BL45: =(IF($DW45>0,IF(BL$28<=(L_TENOR*L_NUM_REPAY),IF(BL$28<>0,IF(BL$28>(L_GRACE*L_NUM_REPAY),(($DW45-SUM($E45:BK45))/BK$31),0),0),0),0)) -> 0 | BM45: =(IF($DW45>0,IF(BM$28<=(L_TENOR*L_NUM_REPAY),IF(BM$28<>0,IF(BM$28>(L_GRACE*L_NUM_REPAY),(($DW45-SUM($E45:BL45))/BL$31),0),0),0),0)) -> 0 | BN45: =(IF($DW45>0,IF(BN$28<=(L_TENOR*L_NUM_REPAY),IF(BN$28<>0,IF(BN$28>(L_GRACE*L_NUM_REPAY),(($DW45-SUM($E45:BM45))/BM$31),0),0),0),0)) -> 0 | BO45: =(IF($DW45>0,IF(BO$28<=(L_TENOR*L_NUM_REPAY),IF(BO$28<>0,IF(BO$28>(L_GRACE*L_NUM_REPAY),(($DW45-SUM($E45:BN45))/BN$31),0),0),0),0)) -> 0 | BP45: =(IF($DW45>0,IF(BP$28<=(L_TENOR*L_NUM_REPAY),IF(BP$28<>0,IF(BP$28>(L_GRACE*L_NUM_REPAY),(($DW45-SUM($E45:BO45))/BO$31),0),0),0),0)) -> 0 | BQ45: =(IF($DW45>0,IF(BQ$28<=(L_TENOR*L_NUM_REPAY),IF(BQ$28<>0,IF(BQ$28>(L_GRACE*L_NUM_REPAY),(($DW45-SUM($E45:BP45))/BP$31),0),0),0),0)) -> 0 | BR45: =(IF($DW45>0,IF(BR$28<=(L_TENOR*L_NUM_REPAY),IF(BR$28<>0,IF(BR$28>(L_GRACE*L_NUM_REPAY),(($DW45-SUM($E45:BQ45))/BQ$31),0),0),0),0)) -> 0 | BS45: =(IF($DW45>0,IF(BS$28<=(L_TENOR*L_NUM_REPAY),IF(BS$28<>0,IF(BS$28>(L_GRACE*L_NUM_REPAY),(($DW45-SUM($E45:BR45))/BR$31),0),0),0),0)) -> 0 | BT45: =(IF($DW45>0,IF(BT$28<=(L_TENOR*L_NUM_REPAY),IF(BT$28<>0,IF(BT$28>(L_GRACE*L_NUM_REPAY),(($DW45-SUM($E45:BS45))/BS$31),0),0),0),0)) -> 0 | BU45: =(IF($DW45>0,IF(BU$28<=(L_TENOR*L_NUM_REPAY),IF(BU$28<>0,IF(BU$28>(L_GRACE*L_NUM_REPAY),(($DW45-SUM($E45:BT45))/BT$31),0),0),0),0)) -> 0 | BV45: =(IF($DW45>0,IF(BV$28<=(L_TENOR*L_NUM_REPAY),IF(BV$28<>0,IF(BV$28>(L_GRACE*L_NUM_REPAY),(($DW45-SUM($E45:BU45))/BU$31),0),0),0),0)) -> 0 | BW45: =(IF($DW45>0,IF(BW$28<=(L_TENOR*L_NUM_REPAY),IF(BW$28<>0,IF(BW$28>(L_GRACE*L_NUM_REPAY),(($DW45-SUM($E45:BV45))/BV$31),0),0),0),0)) -> 0 | BX45: =(IF($DW45>0,IF(BX$28<=(L_TENOR*L_NUM_REPAY),IF(BX$28<>0,IF(BX$28>(L_GRACE*L_NUM_REPAY),(($DW45-SUM($E45:BW45))/BW$31),0),0),0),0)) -> 0 | BY45: =(IF($DW45>0,IF(BY$28<=(L_TENOR*L_NUM_REPAY),IF(BY$28<>0,IF(BY$28>(L_GRACE*L_NUM_REPAY),(($DW45-SUM($E45:BX45))/BX$31),0),0),0),0)) -> 0 | BZ45: =(IF($DW45>0,IF(BZ$28<=(L_TENOR*L_NUM_REPAY),IF(BZ$28<>0,IF(BZ$28>(L_GRACE*L_NUM_REPAY),(($DW45-SUM($E45:BY45))/BY$31),0),0),0),0)) -> 0 | CA45: =(IF($DW45>0,IF(CA$28<=(L_TENOR*L_NUM_REPAY),IF(CA$28<>0,IF(CA$28>(L_GRACE*L_NUM_REPAY),(($DW45-SUM($E45:BZ45))/BZ$31),0),0),0),0)) -> 0 | CB45: =(IF($DW45>0,IF(CB$28<=(L_TENOR*L_NUM_REPAY),IF(CB$28<>0,IF(CB$28>(L_GRACE*L_NUM_REPAY),(($DW45-SUM($E45:CA45))/CA$31),0),0),0),0)) -> 0 | CC45: =(IF($DW45>0,IF(CC$28<=(L_TENOR*L_NUM_REPAY),IF(CC$28<>0,IF(CC$28>(L_GRACE*L_NUM_REPAY),(($DW45-SUM($E45:CB45))/CB$31),0),0),0),0)) -> 0 | CD45: =(IF($DW45>0,IF(CD$28<=(L_TENOR*L_NUM_REPAY),IF(CD$28<>0,IF(CD$28>(L_GRACE*L_NUM_REPAY),(($DW45-SUM($E45:CC45))/CC$31),0),0),0),0)) -> 0 | CE45: =(IF($DW45>0,IF(CE$28<=(L_TENOR*L_NUM_REPAY),IF(CE$28<>0,IF(CE$28>(L_GRACE*L_NUM_REPAY),(($DW45-SUM($E45:CD45))/CD$31),0),0),0),0)) -> 0 | CF45: =(IF($DW45>0,IF(CF$28<=(L_TENOR*L_NUM_REPAY),IF(CF$28<>0,IF(CF$28>(L_GRACE*L_NUM_REPAY),(($DW45-SUM($E45:CE45))/CE$31),0),0),0),0)) -> 0 | CG45: =(IF($DW45>0,IF(CG$28<=(L_TENOR*L_NUM_REPAY),IF(CG$28<>0,IF(CG$28>(L_GRACE*L_NUM_REPAY),(($DW45-SUM($E45:CF45))/CF$31),0),0),0),0)) -> 0 | CH45: =(IF($DW45>0,IF(CH$28<=(L_TENOR*L_NUM_REPAY),IF(CH$28<>0,IF(CH$28>(L_GRACE*L_NUM_REPAY),(($DW45-SUM($E45:CG45))/CG$31),0),0),0),0)) -> 0 | CI45: =(IF($DW45>0,IF(CI$28<=(L_TENOR*L_NUM_REPAY),IF(CI$28<>0,IF(CI$28>(L_GRACE*L_NUM_REPAY),(($DW45-SUM($E45:CH45))/CH$31),0),0),0),0)) -> 0 | CJ45: =(IF($DW45>0,IF(CJ$28<=(L_TENOR*L_NUM_REPAY),IF(CJ$28<>0,IF(CJ$28>(L_GRACE*L_NUM_REPAY),(($DW45-SUM($E45:CI45))/CI$31),0),0),0),0)) -> 0 | CK45: =(IF($DW45>0,IF(CK$28<=(L_TENOR*L_NUM_REPAY),IF(CK$28<>0,IF(CK$28>(L_GRACE*L_NUM_REPAY),(($DW45-SUM($E45:CJ45))/CJ$31),0),0),0),0)) -> 0 | CL45: =(IF($DW45>0,IF(CL$28<=(L_TENOR*L_NUM_REPAY),IF(CL$28<>0,IF(CL$28>(L_GRACE*L_NUM_REPAY),(($DW45-SUM($E45:CK45))/CK$31),0),0),0),0)) -> 0 | CM45: =(IF($DW45>0,IF(CM$28<=(L_TENOR*L_NUM_REPAY),IF(CM$28<>0,IF(CM$28>(L_GRACE*L_NUM_REPAY),(($DW45-SUM($E45:CL45))/CL$31),0),0),0),0)) -> 0 | CN45: =(IF($DW45>0,IF(CN$28<=(L_TENOR*L_NUM_REPAY),IF(CN$28<>0,IF(CN$28>(L_GRACE*L_NUM_REPAY),(($DW45-SUM($E45:CM45))/CM$31),0),0),0),0)) -> 0 | CO45: =(IF($DW45>0,IF(CO$28<=(L_TENOR*L_NUM_REPAY),IF(CO$28<>0,IF(CO$28>(L_GRACE*L_NUM_REPAY),(($DW45-SUM($E45:CN45))/CN$31),0),0),0),0)) -> 0 | CP45: =(IF($DW45>0,IF(CP$28<=(L_TENOR*L_NUM_REPAY),IF(CP$28<>0,IF(CP$28>(L_GRACE*L_NUM_REPAY),(($DW45-SUM($E45:CO45))/CO$31),0),0),0),0)) -> 0 | CQ45: =(IF($DW45>0,IF(CQ$28<=(L_TENOR*L_NUM_REPAY),IF(CQ$28<>0,IF(CQ$28>(L_GRACE*L_NUM_REPAY),(($DW45-SUM($E45:CP45))/CP$31),0),0),0),0)) -> 0 | CR45: =(IF($DW45>0,IF(CR$28<=(L_TENOR*L_NUM_REPAY),IF(CR$28<>0,IF(CR$28>(L_GRACE*L_NUM_REPAY),(($DW45-SUM($E45:CQ45))/CQ$31),0),0),0),0)) -> 0 | CS45: =(IF($DW45>0,IF(CS$28<=(L_TENOR*L_NUM_REPAY),IF(CS$28<>0,IF(CS$28>(L_GRACE*L_NUM_REPAY),(($DW45-SUM($E45:CR45))/CR$31),0),0),0),0)) -> 0 | CT45: =(IF($DW45>0,IF(CT$28<=(L_TENOR*L_NUM_REPAY),IF(CT$28<>0,IF(CT$28>(L_GRACE*L_NUM_REPAY),(($DW45-SUM($E45:CS45))/CS$31),0),0),0),0)) -> 0 | CU45: =(IF($DW45>0,IF(CU$28<=(L_TENOR*L_NUM_REPAY),IF(CU$28<>0,IF(CU$28>(L_GRACE*L_NUM_REPAY),(($DW45-SUM($E45:CT45))/CT$31),0),0),0),0)) -> 0 | CV45: =(IF($DW45>0,IF(CV$28<=(L_TENOR*L_NUM_REPAY),IF(CV$28<>0,IF(CV$28>(L_GRACE*L_NUM_REPAY),(($DW45-SUM($E45:CU45))/CU$31),0),0),0),0)) -> 0 | CW45: =(IF($DW45>0,IF(CW$28<=(L_TENOR*L_NUM_REPAY),IF(CW$28<>0,IF(CW$28>(L_GRACE*L_NUM_REPAY),(($DW45-SUM($E45:CV45))/CV$31),0),0),0),0)) -> 0 | CX45: =(IF($DW45>0,IF(CX$28<=(L_TENOR*L_NUM_REPAY),IF(CX$28<>0,IF(CX$28>(L_GRACE*L_NUM_REPAY),(($DW45-SUM($E45:CW45))/CW$31),0),0),0),0)) -> 0 | CY45: =(IF($DW45>0,IF(CY$28<=(L_TENOR*L_NUM_REPAY),IF(CY$28<>0,IF(CY$28>(L_GRACE*L_NUM_REPAY),(($DW45-SUM($E45:CX45))/CX$31),0),0),0),0)) -> 0 | CZ45: =(IF($DW45>0,IF(CZ$28<=(L_TENOR*L_NUM_REPAY),IF(CZ$28<>0,IF(CZ$28>(L_GRACE*L_NUM_REPAY),(($DW45-SUM($E45:CY45))/CY$31),0),0),0),0)) -> 0 | DA45: =(IF($DW45>0,IF(DA$28<=(L_TENOR*L_NUM_REPAY),IF(DA$28<>0,IF(DA$28>(L_GRACE*L_NUM_REPAY),(($DW45-SUM($E45:CZ45))/CZ$31),0),0),0),0)) -> 0 | DB45: =(IF($DW45>0,IF(DB$28<=(L_TENOR*L_NUM_REPAY),IF(DB$28<>0,IF(DB$28>(L_GRACE*L_NUM_REPAY),(($DW45-SUM($E45:DA45))/DA$31),0),0),0),0)) -> 0 | DC45: =(IF($DW45>0,IF(DC$28<=(L_TENOR*L_NUM_REPAY),IF(DC$28<>0,IF(DC$28>(L_GRACE*L_NUM_REPAY),(($DW45-SUM($E45:DB45))/DB$31),0),0),0),0)) -> 0 | DD45: =(IF($DW45>0,IF(DD$28<=(L_TENOR*L_NUM_REPAY),IF(DD$28<>0,IF(DD$28>(L_GRACE*L_NUM_REPAY),(($DW45-SUM($E45:DC45))/DC$31),0),0),0),0)) -> 0 | DE45: =(IF($DW45>0,IF(DE$28<=(L_TENOR*L_NUM_REPAY),IF(DE$28<>0,IF(DE$28>(L_GRACE*L_NUM_REPAY),(($DW45-SUM($E45:DD45))/DD$31),0),0),0),0)) -> 0 | DF45: =(IF($DW45>0,IF(DF$28<=(L_TENOR*L_NUM_REPAY),IF(DF$28<>0,IF(DF$28>(L_GRACE*L_NUM_REPAY),(($DW45-SUM($E45:DE45))/DE$31),0),0),0),0)) -> 0 | DG45: =(IF($DW45>0,IF(DG$28<=(L_TENOR*L_NUM_REPAY),IF(DG$28<>0,IF(DG$28>(L_GRACE*L_NUM_REPAY),(($DW45-SUM($E45:DF45))/DF$31),0),0),0),0)) -> 0 | DH45: =(IF($DW45>0,IF(DH$28<=(L_TENOR*L_NUM_REPAY),IF(DH$28<>0,IF(DH$28>(L_GRACE*L_NUM_REPAY),(($DW45-SUM($E45:DG45))/DG$31),0),0),0),0)) -> 0 | DI45: =(IF($DW45>0,IF(DI$28<=(L_TENOR*L_NUM_REPAY),IF(DI$28<>0,IF(DI$28>(L_GRACE*L_NUM_REPAY),(($DW45-SUM($E45:DH45))/DH$31),0),0),0),0)) -> 0 | DJ45: =(IF($DW45>0,IF(DJ$28<=(L_TENOR*L_NUM_REPAY),IF(DJ$28<>0,IF(DJ$28>(L_GRACE*L_NUM_REPAY),(($DW45-SUM($E45:DI45))/DI$31),0),0),0),0)) -> 0 | DK45: =(IF($DW45>0,IF(DK$28<=(L_TENOR*L_NUM_REPAY),IF(DK$28<>0,IF(DK$28>(L_GRACE*L_NUM_REPAY),(($DW45-SUM($E45:DJ45))/DJ$31),0),0),0),0)) -> 0 | DL45: =(IF($DW45>0,IF(DL$28<=(L_TENOR*L_NUM_REPAY),IF(DL$28<>0,IF(DL$28>(L_GRACE*L_NUM_REPAY),(($DW45-SUM($E45:DK45))/DK$31),0),0),0),0)) -> 0 | DM45: =(IF($DW45>0,IF(DM$28<=(L_TENOR*L_NUM_REPAY),IF(DM$28<>0,IF(DM$28>(L_GRACE*L_NUM_REPAY),(($DW45-SUM($E45:DL45))/DL$31),0),0),0),0)) -> 0 | DN45: =(IF($DW45>0,IF(DN$28<=(L_TENOR*L_NUM_REPAY),IF(DN$28<>0,IF(DN$28>(L_GRACE*L_NUM_REPAY),(($DW45-SUM($E45:DM45))/DM$31),0),0),0),0)) -> 0 | DO45: =(IF($DW45>0,IF(DO$28<=(L_TENOR*L_NUM_REPAY),IF(DO$28<>0,IF(DO$28>(L_GRACE*L_NUM_REPAY),(($DW45-SUM($E45:DN45))/DN$31),0),0),0),0)) -> 0 | DP45: =(IF($DW45>0,IF(DP$28<=(L_TENOR*L_NUM_REPAY),IF(DP$28<>0,IF(DP$28>(L_GRACE*L_NUM_REPAY),(($DW45-SUM($E45:DO45))/DO$31),0),0),0),0)) -> 0 | DQ45: =(IF($DW45>0,IF(DQ$28<=(L_TENOR*L_NUM_REPAY),IF(DQ$28<>0,IF(DQ$28>(L_GRACE*L_NUM_REPAY),(($DW45-SUM($E45:DP45))/DP$31),0),0),0),0)) -> 0 | DR45: =(IF($DW45>0,IF(DR$28<=(L_TENOR*L_NUM_REPAY),IF(DR$28<>0,IF(DR$28>(L_GRACE*L_NUM_REPAY),(($DW45-SUM($E45:DQ45))/DQ$31),0),0),0),0)) -> 0 | DS45: =(IF($DW45>0,IF(DS$28<=(L_TENOR*L_NUM_REPAY),IF(DS$28<>0,IF(DS$28>(L_GRACE*L_NUM_REPAY),(($DW45-SUM($E45:DR45))/DR$31),0),0),0),0)) -> 0 | DT45: =(IF($DW45>0,IF(DT$28<=(L_TENOR*L_NUM_REPAY),IF(DT$28<>0,IF(DT$28>(L_GRACE*L_NUM_REPAY),(($DW45-SUM($E45:DS45))/DS$31),0),0),0),0)) -> 0 | DU45: =(IF($DW45>0,IF(DU$28<=(L_TENOR*L_NUM_REPAY),IF(DU$28<>0,IF(DU$28>(L_GRACE*L_NUM_REPAY),(($DW45-SUM($E45:DT45))/DT$31),0),0),0),0)) -> 0 | DV45: 7 | DW45: =K106 -> 0
B46: Principal Tranche 7 | D46: 0 | E46: 0 | F46: 0 | G46: 0 | H46: 0 | I46: 0 | J46: 0 | K46: 0 | L46: 0 | M46: =IF($DW46>0, IF(M$28<=(L_TENOR*L_NUM_REPAY),IF(M$28<>0,IF(M$28>(L_GRACE*L_NUM_REPAY),(($DW46-SUM($E46:L46))/L$31),0),0),0),0) -> 0 | N46: =(IF($DW46>0,IF(N$28<=(L_TENOR*L_NUM_REPAY),IF(N$28<>0,IF(N$28>(L_GRACE*L_NUM_REPAY),(($DW46-SUM($E46:M46))/M$31),0),0),0),0)) -> 0 | O46: =(IF($DW46>0,IF(O$28<=(L_TENOR*L_NUM_REPAY),IF(O$28<>0,IF(O$28>(L_GRACE*L_NUM_REPAY),(($DW46-SUM($E46:N46))/N$31),0),0),0),0)) -> 0 | P46: =(IF($DW46>0,IF(P$28<=(L_TENOR*L_NUM_REPAY),IF(P$28<>0,IF(P$28>(L_GRACE*L_NUM_REPAY),(($DW46-SUM($E46:O46))/O$31),0),0),0),0)) -> 0 | Q46: =(IF($DW46>0,IF(Q$28<=(L_TENOR*L_NUM_REPAY),IF(Q$28<>0,IF(Q$28>(L_GRACE*L_NUM_REPAY),(($DW46-SUM($E46:P46))/P$31),0),0),0),0)) -> 0 | R46: =(IF($DW46>0,IF(R$28<=(L_TENOR*L_NUM_REPAY),IF(R$28<>0,IF(R$28>(L_GRACE*L_NUM_REPAY),(($DW46-SUM($E46:Q46))/Q$31),0),0),0),0)) -> 0 | S46: =(IF($DW46>0,IF(S$28<=(L_TENOR*L_NUM_REPAY),IF(S$28<>0,IF(S$28>(L_GRACE*L_NUM_REPAY),(($DW46-SUM($E46:R46))/R$31),0),0),0),0)) -> 0 | T46: =(IF($DW46>0,IF(T$28<=(L_TENOR*L_NUM_REPAY),IF(T$28<>0,IF(T$28>(L_GRACE*L_NUM_REPAY),(($DW46-SUM($E46:S46))/S$31),0),0),0),0)) -> 0 | U46: =(IF($DW46>0,IF(U$28<=(L_TENOR*L_NUM_REPAY),IF(U$28<>0,IF(U$28>(L_GRACE*L_NUM_REPAY),(($DW46-SUM($E46:T46))/T$31),0),0),0),0)) -> 0 | V46: =(IF($DW46>0,IF(V$28<=(L_TENOR*L_NUM_REPAY),IF(V$28<>0,IF(V$28>(L_GRACE*L_NUM_REPAY),(($DW46-SUM($E46:U46))/U$31),0),0),0),0)) -> 0 | W46: =(IF($DW46>0,IF(W$28<=(L_TENOR*L_NUM_REPAY),IF(W$28<>0,IF(W$28>(L_GRACE*L_NUM_REPAY),(($DW46-SUM($E46:V46))/V$31),0),0),0),0)) -> 0 | X46: =(IF($DW46>0,IF(X$28<=(L_TENOR*L_NUM_REPAY),IF(X$28<>0,IF(X$28>(L_GRACE*L_NUM_REPAY),(($DW46-SUM($E46:W46))/W$31),0),0),0),0)) -> 0 | Y46: =(IF($DW46>0,IF(Y$28<=(L_TENOR*L_NUM_REPAY),IF(Y$28<>0,IF(Y$28>(L_GRACE*L_NUM_REPAY),(($DW46-SUM($E46:X46))/X$31),0),0),0),0)) -> 0 | Z46: =(IF($DW46>0,IF(Z$28<=(L_TENOR*L_NUM_REPAY),IF(Z$28<>0,IF(Z$28>(L_GRACE*L_NUM_REPAY),(($DW46-SUM($E46:Y46))/Y$31),0),0),0),0)) -> 0 | AA46: =(IF($DW46>0,IF(AA$28<=(L_TENOR*L_NUM_REPAY),IF(AA$28<>0,IF(AA$28>(L_GRACE*L_NUM_REPAY),(($DW46-SUM($E46:Z46))/Z$31),0),0),0),0)) -> 0 | AB46: =(IF($DW46>0,IF(AB$28<=(L_TENOR*L_NUM_REPAY),IF(AB$28<>0,IF(AB$28>(L_GRACE*L_NUM_REPAY),(($DW46-SUM($E46:AA46))/AA$31),0),0),0),0)) -> 0 | AC46: =(IF($DW46>0,IF(AC$28<=(L_TENOR*L_NUM_REPAY),IF(AC$28<>0,IF(AC$28>(L_GRACE*L_NUM_REPAY),(($DW46-SUM($E46:AB46))/AB$31),0),0),0),0)) -> 0 | AD46: =(IF($DW46>0,IF(AD$28<=(L_TENOR*L_NUM_REPAY),IF(AD$28<>0,IF(AD$28>(L_GRACE*L_NUM_REPAY),(($DW46-SUM($E46:AC46))/AC$31),0),0),0),0)) -> 0 | AE46: =(IF($DW46>0,IF(AE$28<=(L_TENOR*L_NUM_REPAY),IF(AE$28<>0,IF(AE$28>(L_GRACE*L_NUM_REPAY),(($DW46-SUM($E46:AD46))/AD$31),0),0),0),0)) -> 0 | AF46: =(IF($DW46>0,IF(AF$28<=(L_TENOR*L_NUM_REPAY),IF(AF$28<>0,IF(AF$28>(L_GRACE*L_NUM_REPAY),(($DW46-SUM($E46:AE46))/AE$31),0),0),0),0)) -> 0 | AG46: =(IF($DW46>0,IF(AG$28<=(L_TENOR*L_NUM_REPAY),IF(AG$28<>0,IF(AG$28>(L_GRACE*L_NUM_REPAY),(($DW46-SUM($E46:AF46))/AF$31),0),0),0),0)) -> 0 | AH46: =(IF($DW46>0,IF(AH$28<=(L_TENOR*L_NUM_REPAY),IF(AH$28<>0,IF(AH$28>(L_GRACE*L_NUM_REPAY),(($DW46-SUM($E46:AG46))/AG$31),0),0),0),0)) -> 0 | AI46: =(IF($DW46>0,IF(AI$28<=(L_TENOR*L_NUM_REPAY),IF(AI$28<>0,IF(AI$28>(L_GRACE*L_NUM_REPAY),(($DW46-SUM($E46:AH46))/AH$31),0),0),0),0)) -> 0 | AJ46: =(IF($DW46>0,IF(AJ$28<=(L_TENOR*L_NUM_REPAY),IF(AJ$28<>0,IF(AJ$28>(L_GRACE*L_NUM_REPAY),(($DW46-SUM($E46:AI46))/AI$31),0),0),0),0)) -> 0 | AK46: =(IF($DW46>0,IF(AK$28<=(L_TENOR*L_NUM_REPAY),IF(AK$28<>0,IF(AK$28>(L_GRACE*L_NUM_REPAY),(($DW46-SUM($E46:AJ46))/AJ$31),0),0),0),0)) -> 0 | AL46: =(IF($DW46>0,IF(AL$28<=(L_TENOR*L_NUM_REPAY),IF(AL$28<>0,IF(AL$28>(L_GRACE*L_NUM_REPAY),(($DW46-SUM($E46:AK46))/AK$31),0),0),0),0)) -> 0 | AM46: =(IF($DW46>0,IF(AM$28<=(L_TENOR*L_NUM_REPAY),IF(AM$28<>0,IF(AM$28>(L_GRACE*L_NUM_REPAY),(($DW46-SUM($E46:AL46))/AL$31),0),0),0),0)) -> 0 | AN46: =(IF($DW46>0,IF(AN$28<=(L_TENOR*L_NUM_REPAY),IF(AN$28<>0,IF(AN$28>(L_GRACE*L_NUM_REPAY),(($DW46-SUM($E46:AM46))/AM$31),0),0),0),0)) -> 0 | AO46: =(IF($DW46>0,IF(AO$28<=(L_TENOR*L_NUM_REPAY),IF(AO$28<>0,IF(AO$28>(L_GRACE*L_NUM_REPAY),(($DW46-SUM($E46:AN46))/AN$31),0),0),0),0)) -> 0 | AP46: =(IF($DW46>0,IF(AP$28<=(L_TENOR*L_NUM_REPAY),IF(AP$28<>0,IF(AP$28>(L_GRACE*L_NUM_REPAY),(($DW46-SUM($E46:AO46))/AO$31),0),0),0),0)) -> 0 | AQ46: =(IF($DW46>0,IF(AQ$28<=(L_TENOR*L_NUM_REPAY),IF(AQ$28<>0,IF(AQ$28>(L_GRACE*L_NUM_REPAY),(($DW46-SUM($E46:AP46))/AP$31),0),0),0),0)) -> 0 | AR46: =(IF($DW46>0,IF(AR$28<=(L_TENOR*L_NUM_REPAY),IF(AR$28<>0,IF(AR$28>(L_GRACE*L_NUM_REPAY),(($DW46-SUM($E46:AQ46))/AQ$31),0),0),0),0)) -> 0 | AS46: =(IF($DW46>0,IF(AS$28<=(L_TENOR*L_NUM_REPAY),IF(AS$28<>0,IF(AS$28>(L_GRACE*L_NUM_REPAY),(($DW46-SUM($E46:AR46))/AR$31),0),0),0),0)) -> 0 | AT46: =(IF($DW46>0,IF(AT$28<=(L_TENOR*L_NUM_REPAY),IF(AT$28<>0,IF(AT$28>(L_GRACE*L_NUM_REPAY),(($DW46-SUM($E46:AS46))/AS$31),0),0),0),0)) -> 0 | AU46: =(IF($DW46>0,IF(AU$28<=(L_TENOR*L_NUM_REPAY),IF(AU$28<>0,IF(AU$28>(L_GRACE*L_NUM_REPAY),(($DW46-SUM($E46:AT46))/AT$31),0),0),0),0)) -> 0 | AV46: =(IF($DW46>0,IF(AV$28<=(L_TENOR*L_NUM_REPAY),IF(AV$28<>0,IF(AV$28>(L_GRACE*L_NUM_REPAY),(($DW46-SUM($E46:AU46))/AU$31),0),0),0),0)) -> 0 | AW46: =(IF($DW46>0,IF(AW$28<=(L_TENOR*L_NUM_REPAY),IF(AW$28<>0,IF(AW$28>(L_GRACE*L_NUM_REPAY),(($DW46-SUM($E46:AV46))/AV$31),0),0),0),0)) -> 0 | AX46: =(IF($DW46>0,IF(AX$28<=(L_TENOR*L_NUM_REPAY),IF(AX$28<>0,IF(AX$28>(L_GRACE*L_NUM_REPAY),(($DW46-SUM($E46:AW46))/AW$31),0),0),0),0)) -> 0 | AY46: =(IF($DW46>0,IF(AY$28<=(L_TENOR*L_NUM_REPAY),IF(AY$28<>0,IF(AY$28>(L_GRACE*L_NUM_REPAY),(($DW46-SUM($E46:AX46))/AX$31),0),0),0),0)) -> 0 | AZ46: =(IF($DW46>0,IF(AZ$28<=(L_TENOR*L_NUM_REPAY),IF(AZ$28<>0,IF(AZ$28>(L_GRACE*L_NUM_REPAY),(($DW46-SUM($E46:AY46))/AY$31),0),0),0),0)) -> 0 | BA46: =(IF($DW46>0,IF(BA$28<=(L_TENOR*L_NUM_REPAY),IF(BA$28<>0,IF(BA$28>(L_GRACE*L_NUM_REPAY),(($DW46-SUM($E46:AZ46))/AZ$31),0),0),0),0)) -> 0 | BB46: =(IF($DW46>0,IF(BB$28<=(L_TENOR*L_NUM_REPAY),IF(BB$28<>0,IF(BB$28>(L_GRACE*L_NUM_REPAY),(($DW46-SUM($E46:BA46))/BA$31),0),0),0),0)) -> 0 | BC46: =(IF($DW46>0,IF(BC$28<=(L_TENOR*L_NUM_REPAY),IF(BC$28<>0,IF(BC$28>(L_GRACE*L_NUM_REPAY),(($DW46-SUM($E46:BB46))/BB$31),0),0),0),0)) -> 0 | BD46: =(IF($DW46>0,IF(BD$28<=(L_TENOR*L_NUM_REPAY),IF(BD$28<>0,IF(BD$28>(L_GRACE*L_NUM_REPAY),(($DW46-SUM($E46:BC46))/BC$31),0),0),0),0)) -> 0 | BE46: =(IF($DW46>0,IF(BE$28<=(L_TENOR*L_NUM_REPAY),IF(BE$28<>0,IF(BE$28>(L_GRACE*L_NUM_REPAY),(($DW46-SUM($E46:BD46))/BD$31),0),0),0),0)) -> 0 | BF46: =(IF($DW46>0,IF(BF$28<=(L_TENOR*L_NUM_REPAY),IF(BF$28<>0,IF(BF$28>(L_GRACE*L_NUM_REPAY),(($DW46-SUM($E46:BE46))/BE$31),0),0),0),0)) -> 0 | BG46: =(IF($DW46>0,IF(BG$28<=(L_TENOR*L_NUM_REPAY),IF(BG$28<>0,IF(BG$28>(L_GRACE*L_NUM_REPAY),(($DW46-SUM($E46:BF46))/BF$31),0),0),0),0)) -> 0 | BH46: =(IF($DW46>0,IF(BH$28<=(L_TENOR*L_NUM_REPAY),IF(BH$28<>0,IF(BH$28>(L_GRACE*L_NUM_REPAY),(($DW46-SUM($E46:BG46))/BG$31),0),0),0),0)) -> 0 | BI46: =(IF($DW46>0,IF(BI$28<=(L_TENOR*L_NUM_REPAY),IF(BI$28<>0,IF(BI$28>(L_GRACE*L_NUM_REPAY),(($DW46-SUM($E46:BH46))/BH$31),0),0),0),0)) -> 0 | BJ46: =(IF($DW46>0,IF(BJ$28<=(L_TENOR*L_NUM_REPAY),IF(BJ$28<>0,IF(BJ$28>(L_GRACE*L_NUM_REPAY),(($DW46-SUM($E46:BI46))/BI$31),0),0),0),0)) -> 0 | BK46: =(IF($DW46>0,IF(BK$28<=(L_TENOR*L_NUM_REPAY),IF(BK$28<>0,IF(BK$28>(L_GRACE*L_NUM_REPAY),(($DW46-SUM($E46:BJ46))/BJ$31),0),0),0),0)) -> 0 | BL46: =(IF($DW46>0,IF(BL$28<=(L_TENOR*L_NUM_REPAY),IF(BL$28<>0,IF(BL$28>(L_GRACE*L_NUM_REPAY),(($DW46-SUM($E46:BK46))/BK$31),0),0),0),0)) -> 0 | BM46: =(IF($DW46>0,IF(BM$28<=(L_TENOR*L_NUM_REPAY),IF(BM$28<>0,IF(BM$28>(L_GRACE*L_NUM_REPAY),(($DW46-SUM($E46:BL46))/BL$31),0),0),0),0)) -> 0 | BN46: =(IF($DW46>0,IF(BN$28<=(L_TENOR*L_NUM_REPAY),IF(BN$28<>0,IF(BN$28>(L_GRACE*L_NUM_REPAY),(($DW46-SUM($E46:BM46))/BM$31),0),0),0),0)) -> 0 | BO46: =(IF($DW46>0,IF(BO$28<=(L_TENOR*L_NUM_REPAY),IF(BO$28<>0,IF(BO$28>(L_GRACE*L_NUM_REPAY),(($DW46-SUM($E46:BN46))/BN$31),0),0),0),0)) -> 0 | BP46: =(IF($DW46>0,IF(BP$28<=(L_TENOR*L_NUM_REPAY),IF(BP$28<>0,IF(BP$28>(L_GRACE*L_NUM_REPAY),(($DW46-SUM($E46:BO46))/BO$31),0),0),0),0)) -> 0 | BQ46: =(IF($DW46>0,IF(BQ$28<=(L_TENOR*L_NUM_REPAY),IF(BQ$28<>0,IF(BQ$28>(L_GRACE*L_NUM_REPAY),(($DW46-SUM($E46:BP46))/BP$31),0),0),0),0)) -> 0 | BR46: =(IF($DW46>0,IF(BR$28<=(L_TENOR*L_NUM_REPAY),IF(BR$28<>0,IF(BR$28>(L_GRACE*L_NUM_REPAY),(($DW46-SUM($E46:BQ46))/BQ$31),0),0),0),0)) -> 0 | BS46: =(IF($DW46>0,IF(BS$28<=(L_TENOR*L_NUM_REPAY),IF(BS$28<>0,IF(BS$28>(L_GRACE*L_NUM_REPAY),(($DW46-SUM($E46:BR46))/BR$31),0),0),0),0)) -> 0 | BT46: =(IF($DW46>0,IF(BT$28<=(L_TENOR*L_NUM_REPAY),IF(BT$28<>0,IF(BT$28>(L_GRACE*L_NUM_REPAY),(($DW46-SUM($E46:BS46))/BS$31),0),0),0),0)) -> 0 | BU46: =(IF($DW46>0,IF(BU$28<=(L_TENOR*L_NUM_REPAY),IF(BU$28<>0,IF(BU$28>(L_GRACE*L_NUM_REPAY),(($DW46-SUM($E46:BT46))/BT$31),0),0),0),0)) -> 0 | BV46: =(IF($DW46>0,IF(BV$28<=(L_TENOR*L_NUM_REPAY),IF(BV$28<>0,IF(BV$28>(L_GRACE*L_NUM_REPAY),(($DW46-SUM($E46:BU46))/BU$31),0),0),0),0)) -> 0 | BW46: =(IF($DW46>0,IF(BW$28<=(L_TENOR*L_NUM_REPAY),IF(BW$28<>0,IF(BW$28>(L_GRACE*L_NUM_REPAY),(($DW46-SUM($E46:BV46))/BV$31),0),0),0),0)) -> 0 | BX46: =(IF($DW46>0,IF(BX$28<=(L_TENOR*L_NUM_REPAY),IF(BX$28<>0,IF(BX$28>(L_GRACE*L_NUM_REPAY),(($DW46-SUM($E46:BW46))/BW$31),0),0),0),0)) -> 0 | BY46: =(IF($DW46>0,IF(BY$28<=(L_TENOR*L_NUM_REPAY),IF(BY$28<>0,IF(BY$28>(L_GRACE*L_NUM_REPAY),(($DW46-SUM($E46:BX46))/BX$31),0),0),0),0)) -> 0 | BZ46: =(IF($DW46>0,IF(BZ$28<=(L_TENOR*L_NUM_REPAY),IF(BZ$28<>0,IF(BZ$28>(L_GRACE*L_NUM_REPAY),(($DW46-SUM($E46:BY46))/BY$31),0),0),0),0)) -> 0 | CA46: =(IF($DW46>0,IF(CA$28<=(L_TENOR*L_NUM_REPAY),IF(CA$28<>0,IF(CA$28>(L_GRACE*L_NUM_REPAY),(($DW46-SUM($E46:BZ46))/BZ$31),0),0),0),0)) -> 0 | CB46: =(IF($DW46>0,IF(CB$28<=(L_TENOR*L_NUM_REPAY),IF(CB$28<>0,IF(CB$28>(L_GRACE*L_NUM_REPAY),(($DW46-SUM($E46:CA46))/CA$31),0),0),0),0)) -> 0 | CC46: =(IF($DW46>0,IF(CC$28<=(L_TENOR*L_NUM_REPAY),IF(CC$28<>0,IF(CC$28>(L_GRACE*L_NUM_REPAY),(($DW46-SUM($E46:CB46))/CB$31),0),0),0),0)) -> 0 | CD46: =(IF($DW46>0,IF(CD$28<=(L_TENOR*L_NUM_REPAY),IF(CD$28<>0,IF(CD$28>(L_GRACE*L_NUM_REPAY),(($DW46-SUM($E46:CC46))/CC$31),0),0),0),0)) -> 0 | CE46: =(IF($DW46>0,IF(CE$28<=(L_TENOR*L_NUM_REPAY),IF(CE$28<>0,IF(CE$28>(L_GRACE*L_NUM_REPAY),(($DW46-SUM($E46:CD46))/CD$31),0),0),0),0)) -> 0 | CF46: =(IF($DW46>0,IF(CF$28<=(L_TENOR*L_NUM_REPAY),IF(CF$28<>0,IF(CF$28>(L_GRACE*L_NUM_REPAY),(($DW46-SUM($E46:CE46))/CE$31),0),0),0),0)) -> 0 | CG46: =(IF($DW46>0,IF(CG$28<=(L_TENOR*L_NUM_REPAY),IF(CG$28<>0,IF(CG$28>(L_GRACE*L_NUM_REPAY),(($DW46-SUM($E46:CF46))/CF$31),0),0),0),0)) -> 0 | CH46: =(IF($DW46>0,IF(CH$28<=(L_TENOR*L_NUM_REPAY),IF(CH$28<>0,IF(CH$28>(L_GRACE*L_NUM_REPAY),(($DW46-SUM($E46:CG46))/CG$31),0),0),0),0)) -> 0 | CI46: =(IF($DW46>0,IF(CI$28<=(L_TENOR*L_NUM_REPAY),IF(CI$28<>0,IF(CI$28>(L_GRACE*L_NUM_REPAY),(($DW46-SUM($E46:CH46))/CH$31),0),0),0),0)) -> 0 | CJ46: =(IF($DW46>0,IF(CJ$28<=(L_TENOR*L_NUM_REPAY),IF(CJ$28<>0,IF(CJ$28>(L_GRACE*L_NUM_REPAY),(($DW46-SUM($E46:CI46))/CI$31),0),0),0),0)) -> 0 | CK46: =(IF($DW46>0,IF(CK$28<=(L_TENOR*L_NUM_REPAY),IF(CK$28<>0,IF(CK$28>(L_GRACE*L_NUM_REPAY),(($DW46-SUM($E46:CJ46))/CJ$31),0),0),0),0)) -> 0 | CL46: =(IF($DW46>0,IF(CL$28<=(L_TENOR*L_NUM_REPAY),IF(CL$28<>0,IF(CL$28>(L_GRACE*L_NUM_REPAY),(($DW46-SUM($E46:CK46))/CK$31),0),0),0),0)) -> 0 | CM46: =(IF($DW46>0,IF(CM$28<=(L_TENOR*L_NUM_REPAY),IF(CM$28<>0,IF(CM$28>(L_GRACE*L_NUM_REPAY),(($DW46-SUM($E46:CL46))/CL$31),0),0),0),0)) -> 0 | CN46: =(IF($DW46>0,IF(CN$28<=(L_TENOR*L_NUM_REPAY),IF(CN$28<>0,IF(CN$28>(L_GRACE*L_NUM_REPAY),(($DW46-SUM($E46:CM46))/CM$31),0),0),0),0)) -> 0 | CO46: =(IF($DW46>0,IF(CO$28<=(L_TENOR*L_NUM_REPAY),IF(CO$28<>0,IF(CO$28>(L_GRACE*L_NUM_REPAY),(($DW46-SUM($E46:CN46))/CN$31),0),0),0),0)) -> 0 | CP46: =(IF($DW46>0,IF(CP$28<=(L_TENOR*L_NUM_REPAY),IF(CP$28<>0,IF(CP$28>(L_GRACE*L_NUM_REPAY),(($DW46-SUM($E46:CO46))/CO$31),0),0),0),0)) -> 0 | CQ46: =(IF($DW46>0,IF(CQ$28<=(L_TENOR*L_NUM_REPAY),IF(CQ$28<>0,IF(CQ$28>(L_GRACE*L_NUM_REPAY),(($DW46-SUM($E46:CP46))/CP$31),0),0),0),0)) -> 0 | CR46: =(IF($DW46>0,IF(CR$28<=(L_TENOR*L_NUM_REPAY),IF(CR$28<>0,IF(CR$28>(L_GRACE*L_NUM_REPAY),(($DW46-SUM($E46:CQ46))/CQ$31),0),0),0),0)) -> 0 | CS46: =(IF($DW46>0,IF(CS$28<=(L_TENOR*L_NUM_REPAY),IF(CS$28<>0,IF(CS$28>(L_GRACE*L_NUM_REPAY),(($DW46-SUM($E46:CR46))/CR$31),0),0),0),0)) -> 0 | CT46: =(IF($DW46>0,IF(CT$28<=(L_TENOR*L_NUM_REPAY),IF(CT$28<>0,IF(CT$28>(L_GRACE*L_NUM_REPAY),(($DW46-SUM($E46:CS46))/CS$31),0),0),0),0)) -> 0 | CU46: =(IF($DW46>0,IF(CU$28<=(L_TENOR*L_NUM_REPAY),IF(CU$28<>0,IF(CU$28>(L_GRACE*L_NUM_REPAY),(($DW46-SUM($E46:CT46))/CT$31),0),0),0),0)) -> 0 | CV46: =(IF($DW46>0,IF(CV$28<=(L_TENOR*L_NUM_REPAY),IF(CV$28<>0,IF(CV$28>(L_GRACE*L_NUM_REPAY),(($DW46-SUM($E46:CU46))/CU$31),0),0),0),0)) -> 0 | CW46: =(IF($DW46>0,IF(CW$28<=(L_TENOR*L_NUM_REPAY),IF(CW$28<>0,IF(CW$28>(L_GRACE*L_NUM_REPAY),(($DW46-SUM($E46:CV46))/CV$31),0),0),0),0)) -> 0 | CX46: =(IF($DW46>0,IF(CX$28<=(L_TENOR*L_NUM_REPAY),IF(CX$28<>0,IF(CX$28>(L_GRACE*L_NUM_REPAY),(($DW46-SUM($E46:CW46))/CW$31),0),0),0),0)) -> 0 | CY46: =(IF($DW46>0,IF(CY$28<=(L_TENOR*L_NUM_REPAY),IF(CY$28<>0,IF(CY$28>(L_GRACE*L_NUM_REPAY),(($DW46-SUM($E46:CX46))/CX$31),0),0),0),0)) -> 0 | CZ46: =(IF($DW46>0,IF(CZ$28<=(L_TENOR*L_NUM_REPAY),IF(CZ$28<>0,IF(CZ$28>(L_GRACE*L_NUM_REPAY),(($DW46-SUM($E46:CY46))/CY$31),0),0),0),0)) -> 0 | DA46: =(IF($DW46>0,IF(DA$28<=(L_TENOR*L_NUM_REPAY),IF(DA$28<>0,IF(DA$28>(L_GRACE*L_NUM_REPAY),(($DW46-SUM($E46:CZ46))/CZ$31),0),0),0),0)) -> 0 | DB46: =(IF($DW46>0,IF(DB$28<=(L_TENOR*L_NUM_REPAY),IF(DB$28<>0,IF(DB$28>(L_GRACE*L_NUM_REPAY),(($DW46-SUM($E46:DA46))/DA$31),0),0),0),0)) -> 0 | DC46: =(IF($DW46>0,IF(DC$28<=(L_TENOR*L_NUM_REPAY),IF(DC$28<>0,IF(DC$28>(L_GRACE*L_NUM_REPAY),(($DW46-SUM($E46:DB46))/DB$31),0),0),0),0)) -> 0 | DD46: =(IF($DW46>0,IF(DD$28<=(L_TENOR*L_NUM_REPAY),IF(DD$28<>0,IF(DD$28>(L_GRACE*L_NUM_REPAY),(($DW46-SUM($E46:DC46))/DC$31),0),0),0),0)) -> 0 | DE46: =(IF($DW46>0,IF(DE$28<=(L_TENOR*L_NUM_REPAY),IF(DE$28<>0,IF(DE$28>(L_GRACE*L_NUM_REPAY),(($DW46-SUM($E46:DD46))/DD$31),0),0),0),0)) -> 0 | DF46: =(IF($DW46>0,IF(DF$28<=(L_TENOR*L_NUM_REPAY),IF(DF$28<>0,IF(DF$28>(L_GRACE*L_NUM_REPAY),(($DW46-SUM($E46:DE46))/DE$31),0),0),0),0)) -> 0 | DG46: =(IF($DW46>0,IF(DG$28<=(L_TENOR*L_NUM_REPAY),IF(DG$28<>0,IF(DG$28>(L_GRACE*L_NUM_REPAY),(($DW46-SUM($E46:DF46))/DF$31),0),0),0),0)) -> 0 | DH46: =(IF($DW46>0,IF(DH$28<=(L_TENOR*L_NUM_REPAY),IF(DH$28<>0,IF(DH$28>(L_GRACE*L_NUM_REPAY),(($DW46-SUM($E46:DG46))/DG$31),0),0),0),0)) -> 0 | DI46: =(IF($DW46>0,IF(DI$28<=(L_TENOR*L_NUM_REPAY),IF(DI$28<>0,IF(DI$28>(L_GRACE*L_NUM_REPAY),(($DW46-SUM($E46:DH46))/DH$31),0),0),0),0)) -> 0 | DJ46: =(IF($DW46>0,IF(DJ$28<=(L_TENOR*L_NUM_REPAY),IF(DJ$28<>0,IF(DJ$28>(L_GRACE*L_NUM_REPAY),(($DW46-SUM($E46:DI46))/DI$31),0),0),0),0)) -> 0 | DK46: =(IF($DW46>0,IF(DK$28<=(L_TENOR*L_NUM_REPAY),IF(DK$28<>0,IF(DK$28>(L_GRACE*L_NUM_REPAY),(($DW46-SUM($E46:DJ46))/DJ$31),0),0),0),0)) -> 0 | DL46: =(IF($DW46>0,IF(DL$28<=(L_TENOR*L_NUM_REPAY),IF(DL$28<>0,IF(DL$28>(L_GRACE*L_NUM_REPAY),(($DW46-SUM($E46:DK46))/DK$31),0),0),0),0)) -> 0 | DM46: =(IF($DW46>0,IF(DM$28<=(L_TENOR*L_NUM_REPAY),IF(DM$28<>0,IF(DM$28>(L_GRACE*L_NUM_REPAY),(($DW46-SUM($E46:DL46))/DL$31),0),0),0),0)) -> 0 | DN46: =(IF($DW46>0,IF(DN$28<=(L_TENOR*L_NUM_REPAY),IF(DN$28<>0,IF(DN$28>(L_GRACE*L_NUM_REPAY),(($DW46-SUM($E46:DM46))/DM$31),0),0),0),0)) -> 0 | DO46: =(IF($DW46>0,IF(DO$28<=(L_TENOR*L_NUM_REPAY),IF(DO$28<>0,IF(DO$28>(L_GRACE*L_NUM_REPAY),(($DW46-SUM($E46:DN46))/DN$31),0),0),0),0)) -> 0 | DP46: =(IF($DW46>0,IF(DP$28<=(L_TENOR*L_NUM_REPAY),IF(DP$28<>0,IF(DP$28>(L_GRACE*L_NUM_REPAY),(($DW46-SUM($E46:DO46))/DO$31),0),0),0),0)) -> 0 | DQ46: =(IF($DW46>0,IF(DQ$28<=(L_TENOR*L_NUM_REPAY),IF(DQ$28<>0,IF(DQ$28>(L_GRACE*L_NUM_REPAY),(($DW46-SUM($E46:DP46))/DP$31),0),0),0),0)) -> 0 | DR46: =(IF($DW46>0,IF(DR$28<=(L_TENOR*L_NUM_REPAY),IF(DR$28<>0,IF(DR$28>(L_GRACE*L_NUM_REPAY),(($DW46-SUM($E46:DQ46))/DQ$31),0),0),0),0)) -> 0 | DS46: =(IF($DW46>0,IF(DS$28<=(L_TENOR*L_NUM_REPAY),IF(DS$28<>0,IF(DS$28>(L_GRACE*L_NUM_REPAY),(($DW46-SUM($E46:DR46))/DR$31),0),0),0),0)) -> 0 | DT46: =(IF($DW46>0,IF(DT$28<=(L_TENOR*L_NUM_REPAY),IF(DT$28<>0,IF(DT$28>(L_GRACE*L_NUM_REPAY),(($DW46-SUM($E46:DS46))/DS$31),0),0),0),0)) -> 0 | DU46: =(IF($DW46>0,IF(DU$28<=(L_TENOR*L_NUM_REPAY),IF(DU$28<>0,IF(DU$28>(L_GRACE*L_NUM_REPAY),(($DW46-SUM($E46:DT46))/DT$31),0),0),0),0)) -> 0 | DV46: 8 | DW46: =L106 -> 0
B47: Principal Tranche 8 | D47: 0 | E47: 0 | F47: 0 | G47: 0 | H47: 0 | I47: 0 | J47: 0 | K47: 0 | L47: 0 | M47: 0 | N47: =IF($DW47>0, IF(N$28<=(L_TENOR*L_NUM_REPAY),IF(N$28<>0,IF(N$28>(L_GRACE*L_NUM_REPAY),(($DW47-SUM($E47:M47))/M$31),0),0),0),0) -> 0 | O47: =(IF($DW47>0,IF(O$28<=(L_TENOR*L_NUM_REPAY),IF(O$28<>0,IF(O$28>(L_GRACE*L_NUM_REPAY),(($DW47-SUM($E47:N47))/N$31),0),0),0),0)) -> 0 | P47: =(IF($DW47>0,IF(P$28<=(L_TENOR*L_NUM_REPAY),IF(P$28<>0,IF(P$28>(L_GRACE*L_NUM_REPAY),(($DW47-SUM($E47:O47))/O$31),0),0),0),0)) -> 0 | Q47: =(IF($DW47>0,IF(Q$28<=(L_TENOR*L_NUM_REPAY),IF(Q$28<>0,IF(Q$28>(L_GRACE*L_NUM_REPAY),(($DW47-SUM($E47:P47))/P$31),0),0),0),0)) -> 0 | R47: =(IF($DW47>0,IF(R$28<=(L_TENOR*L_NUM_REPAY),IF(R$28<>0,IF(R$28>(L_GRACE*L_NUM_REPAY),(($DW47-SUM($E47:Q47))/Q$31),0),0),0),0)) -> 0 | S47: =(IF($DW47>0,IF(S$28<=(L_TENOR*L_NUM_REPAY),IF(S$28<>0,IF(S$28>(L_GRACE*L_NUM_REPAY),(($DW47-SUM($E47:R47))/R$31),0),0),0),0)) -> 0 | T47: =(IF($DW47>0,IF(T$28<=(L_TENOR*L_NUM_REPAY),IF(T$28<>0,IF(T$28>(L_GRACE*L_NUM_REPAY),(($DW47-SUM($E47:S47))/S$31),0),0),0),0)) -> 0 | U47: =(IF($DW47>0,IF(U$28<=(L_TENOR*L_NUM_REPAY),IF(U$28<>0,IF(U$28>(L_GRACE*L_NUM_REPAY),(($DW47-SUM($E47:T47))/T$31),0),0),0),0)) -> 0 | V47: =(IF($DW47>0,IF(V$28<=(L_TENOR*L_NUM_REPAY),IF(V$28<>0,IF(V$28>(L_GRACE*L_NUM_REPAY),(($DW47-SUM($E47:U47))/U$31),0),0),0),0)) -> 0 | W47: =(IF($DW47>0,IF(W$28<=(L_TENOR*L_NUM_REPAY),IF(W$28<>0,IF(W$28>(L_GRACE*L_NUM_REPAY),(($DW47-SUM($E47:V47))/V$31),0),0),0),0)) -> 0 | X47: =(IF($DW47>0,IF(X$28<=(L_TENOR*L_NUM_REPAY),IF(X$28<>0,IF(X$28>(L_GRACE*L_NUM_REPAY),(($DW47-SUM($E47:W47))/W$31),0),0),0),0)) -> 0 | Y47: =(IF($DW47>0,IF(Y$28<=(L_TENOR*L_NUM_REPAY),IF(Y$28<>0,IF(Y$28>(L_GRACE*L_NUM_REPAY),(($DW47-SUM($E47:X47))/X$31),0),0),0),0)) -> 0 | Z47: =(IF($DW47>0,IF(Z$28<=(L_TENOR*L_NUM_REPAY),IF(Z$28<>0,IF(Z$28>(L_GRACE*L_NUM_REPAY),(($DW47-SUM($E47:Y47))/Y$31),0),0),0),0)) -> 0 | AA47: =(IF($DW47>0,IF(AA$28<=(L_TENOR*L_NUM_REPAY),IF(AA$28<>0,IF(AA$28>(L_GRACE*L_NUM_REPAY),(($DW47-SUM($E47:Z47))/Z$31),0),0),0),0)) -> 0 | AB47: =(IF($DW47>0,IF(AB$28<=(L_TENOR*L_NUM_REPAY),IF(AB$28<>0,IF(AB$28>(L_GRACE*L_NUM_REPAY),(($DW47-SUM($E47:AA47))/AA$31),0),0),0),0)) -> 0 | AC47: =(IF($DW47>0,IF(AC$28<=(L_TENOR*L_NUM_REPAY),IF(AC$28<>0,IF(AC$28>(L_GRACE*L_NUM_REPAY),(($DW47-SUM($E47:AB47))/AB$31),0),0),0),0)) -> 0 | AD47: =(IF($DW47>0,IF(AD$28<=(L_TENOR*L_NUM_REPAY),IF(AD$28<>0,IF(AD$28>(L_GRACE*L_NUM_REPAY),(($DW47-SUM($E47:AC47))/AC$31),0),0),0),0)) -> 0 | AE47: =(IF($DW47>0,IF(AE$28<=(L_TENOR*L_NUM_REPAY),IF(AE$28<>0,IF(AE$28>(L_GRACE*L_NUM_REPAY),(($DW47-SUM($E47:AD47))/AD$31),0),0),0),0)) -> 0 | AF47: =(IF($DW47>0,IF(AF$28<=(L_TENOR*L_NUM_REPAY),IF(AF$28<>0,IF(AF$28>(L_GRACE*L_NUM_REPAY),(($DW47-SUM($E47:AE47))/AE$31),0),0),0),0)) -> 0 | AG47: =(IF($DW47>0,IF(AG$28<=(L_TENOR*L_NUM_REPAY),IF(AG$28<>0,IF(AG$28>(L_GRACE*L_NUM_REPAY),(($DW47-SUM($E47:AF47))/AF$31),0),0),0),0)) -> 0 | AH47: =(IF($DW47>0,IF(AH$28<=(L_TENOR*L_NUM_REPAY),IF(AH$28<>0,IF(AH$28>(L_GRACE*L_NUM_REPAY),(($DW47-SUM($E47:AG47))/AG$31),0),0),0),0)) -> 0 | AI47: =(IF($DW47>0,IF(AI$28<=(L_TENOR*L_NUM_REPAY),IF(AI$28<>0,IF(AI$28>(L_GRACE*L_NUM_REPAY),(($DW47-SUM($E47:AH47))/AH$31),0),0),0),0)) -> 0 | AJ47: =(IF($DW47>0,IF(AJ$28<=(L_TENOR*L_NUM_REPAY),IF(AJ$28<>0,IF(AJ$28>(L_GRACE*L_NUM_REPAY),(($DW47-SUM($E47:AI47))/AI$31),0),0),0),0)) -> 0 | AK47: =(IF($DW47>0,IF(AK$28<=(L_TENOR*L_NUM_REPAY),IF(AK$28<>0,IF(AK$28>(L_GRACE*L_NUM_REPAY),(($DW47-SUM($E47:AJ47))/AJ$31),0),0),0),0)) -> 0 | AL47: =(IF($DW47>0,IF(AL$28<=(L_TENOR*L_NUM_REPAY),IF(AL$28<>0,IF(AL$28>(L_GRACE*L_NUM_REPAY),(($DW47-SUM($E47:AK47))/AK$31),0),0),0),0)) -> 0 | AM47: =(IF($DW47>0,IF(AM$28<=(L_TENOR*L_NUM_REPAY),IF(AM$28<>0,IF(AM$28>(L_GRACE*L_NUM_REPAY),(($DW47-SUM($E47:AL47))/AL$31),0),0),0),0)) -> 0 | AN47: =(IF($DW47>0,IF(AN$28<=(L_TENOR*L_NUM_REPAY),IF(AN$28<>0,IF(AN$28>(L_GRACE*L_NUM_REPAY),(($DW47-SUM($E47:AM47))/AM$31),0),0),0),0)) -> 0 | AO47: =(IF($DW47>0,IF(AO$28<=(L_TENOR*L_NUM_REPAY),IF(AO$28<>0,IF(AO$28>(L_GRACE*L_NUM_REPAY),(($DW47-SUM($E47:AN47))/AN$31),0),0),0),0)) -> 0 | AP47: =(IF($DW47>0,IF(AP$28<=(L_TENOR*L_NUM_REPAY),IF(AP$28<>0,IF(AP$28>(L_GRACE*L_NUM_REPAY),(($DW47-SUM($E47:AO47))/AO$31),0),0),0),0)) -> 0 | AQ47: =(IF($DW47>0,IF(AQ$28<=(L_TENOR*L_NUM_REPAY),IF(AQ$28<>0,IF(AQ$28>(L_GRACE*L_NUM_REPAY),(($DW47-SUM($E47:AP47))/AP$31),0),0),0),0)) -> 0 | AR47: =(IF($DW47>0,IF(AR$28<=(L_TENOR*L_NUM_REPAY),IF(AR$28<>0,IF(AR$28>(L_GRACE*L_NUM_REPAY),(($DW47-SUM($E47:AQ47))/AQ$31),0),0),0),0)) -> 0 | AS47: =(IF($DW47>0,IF(AS$28<=(L_TENOR*L_NUM_REPAY),IF(AS$28<>0,IF(AS$28>(L_GRACE*L_NUM_REPAY),(($DW47-SUM($E47:AR47))/AR$31),0),0),0),0)) -> 0 | AT47: =(IF($DW47>0,IF(AT$28<=(L_TENOR*L_NUM_REPAY),IF(AT$28<>0,IF(AT$28>(L_GRACE*L_NUM_REPAY),(($DW47-SUM($E47:AS47))/AS$31),0),0),0),0)) -> 0 | AU47: =(IF($DW47>0,IF(AU$28<=(L_TENOR*L_NUM_REPAY),IF(AU$28<>0,IF(AU$28>(L_GRACE*L_NUM_REPAY),(($DW47-SUM($E47:AT47))/AT$31),0),0),0),0)) -> 0 | AV47: =(IF($DW47>0,IF(AV$28<=(L_TENOR*L_NUM_REPAY),IF(AV$28<>0,IF(AV$28>(L_GRACE*L_NUM_REPAY),(($DW47-SUM($E47:AU47))/AU$31),0),0),0),0)) -> 0 | AW47: =(IF($DW47>0,IF(AW$28<=(L_TENOR*L_NUM_REPAY),IF(AW$28<>0,IF(AW$28>(L_GRACE*L_NUM_REPAY),(($DW47-SUM($E47:AV47))/AV$31),0),0),0),0)) -> 0 | AX47: =(IF($DW47>0,IF(AX$28<=(L_TENOR*L_NUM_REPAY),IF(AX$28<>0,IF(AX$28>(L_GRACE*L_NUM_REPAY),(($DW47-SUM($E47:AW47))/AW$31),0),0),0),0)) -> 0 | AY47: =(IF($DW47>0,IF(AY$28<=(L_TENOR*L_NUM_REPAY),IF(AY$28<>0,IF(AY$28>(L_GRACE*L_NUM_REPAY),(($DW47-SUM($E47:AX47))/AX$31),0),0),0),0)) -> 0 | AZ47: =(IF($DW47>0,IF(AZ$28<=(L_TENOR*L_NUM_REPAY),IF(AZ$28<>0,IF(AZ$28>(L_GRACE*L_NUM_REPAY),(($DW47-SUM($E47:AY47))/AY$31),0),0),0),0)) -> 0 | BA47: =(IF($DW47>0,IF(BA$28<=(L_TENOR*L_NUM_REPAY),IF(BA$28<>0,IF(BA$28>(L_GRACE*L_NUM_REPAY),(($DW47-SUM($E47:AZ47))/AZ$31),0),0),0),0)) -> 0 | BB47: =(IF($DW47>0,IF(BB$28<=(L_TENOR*L_NUM_REPAY),IF(BB$28<>0,IF(BB$28>(L_GRACE*L_NUM_REPAY),(($DW47-SUM($E47:BA47))/BA$31),0),0),0),0)) -> 0 | BC47: =(IF($DW47>0,IF(BC$28<=(L_TENOR*L_NUM_REPAY),IF(BC$28<>0,IF(BC$28>(L_GRACE*L_NUM_REPAY),(($DW47-SUM($E47:BB47))/BB$31),0),0),0),0)) -> 0 | BD47: =(IF($DW47>0,IF(BD$28<=(L_TENOR*L_NUM_REPAY),IF(BD$28<>0,IF(BD$28>(L_GRACE*L_NUM_REPAY),(($DW47-SUM($E47:BC47))/BC$31),0),0),0),0)) -> 0 | BE47: =(IF($DW47>0,IF(BE$28<=(L_TENOR*L_NUM_REPAY),IF(BE$28<>0,IF(BE$28>(L_GRACE*L_NUM_REPAY),(($DW47-SUM($E47:BD47))/BD$31),0),0),0),0)) -> 0 | BF47: =(IF($DW47>0,IF(BF$28<=(L_TENOR*L_NUM_REPAY),IF(BF$28<>0,IF(BF$28>(L_GRACE*L_NUM_REPAY),(($DW47-SUM($E47:BE47))/BE$31),0),0),0),0)) -> 0 | BG47: =(IF($DW47>0,IF(BG$28<=(L_TENOR*L_NUM_REPAY),IF(BG$28<>0,IF(BG$28>(L_GRACE*L_NUM_REPAY),(($DW47-SUM($E47:BF47))/BF$31),0),0),0),0)) -> 0 | BH47: =(IF($DW47>0,IF(BH$28<=(L_TENOR*L_NUM_REPAY),IF(BH$28<>0,IF(BH$28>(L_GRACE*L_NUM_REPAY),(($DW47-SUM($E47:BG47))/BG$31),0),0),0),0)) -> 0 | BI47: =(IF($DW47>0,IF(BI$28<=(L_TENOR*L_NUM_REPAY),IF(BI$28<>0,IF(BI$28>(L_GRACE*L_NUM_REPAY),(($DW47-SUM($E47:BH47))/BH$31),0),0),0),0)) -> 0 | BJ47: =(IF($DW47>0,IF(BJ$28<=(L_TENOR*L_NUM_REPAY),IF(BJ$28<>0,IF(BJ$28>(L_GRACE*L_NUM_REPAY),(($DW47-SUM($E47:BI47))/BI$31),0),0),0),0)) -> 0 | BK47: =(IF($DW47>0,IF(BK$28<=(L_TENOR*L_NUM_REPAY),IF(BK$28<>0,IF(BK$28>(L_GRACE*L_NUM_REPAY),(($DW47-SUM($E47:BJ47))/BJ$31),0),0),0),0)) -> 0 | BL47: =(IF($DW47>0,IF(BL$28<=(L_TENOR*L_NUM_REPAY),IF(BL$28<>0,IF(BL$28>(L_GRACE*L_NUM_REPAY),(($DW47-SUM($E47:BK47))/BK$31),0),0),0),0)) -> 0 | BM47: =(IF($DW47>0,IF(BM$28<=(L_TENOR*L_NUM_REPAY),IF(BM$28<>0,IF(BM$28>(L_GRACE*L_NUM_REPAY),(($DW47-SUM($E47:BL47))/BL$31),0),0),0),0)) -> 0 | BN47: =(IF($DW47>0,IF(BN$28<=(L_TENOR*L_NUM_REPAY),IF(BN$28<>0,IF(BN$28>(L_GRACE*L_NUM_REPAY),(($DW47-SUM($E47:BM47))/BM$31),0),0),0),0)) -> 0 | BO47: =(IF($DW47>0,IF(BO$28<=(L_TENOR*L_NUM_REPAY),IF(BO$28<>0,IF(BO$28>(L_GRACE*L_NUM_REPAY),(($DW47-SUM($E47:BN47))/BN$31),0),0),0),0)) -> 0 | BP47: =(IF($DW47>0,IF(BP$28<=(L_TENOR*L_NUM_REPAY),IF(BP$28<>0,IF(BP$28>(L_GRACE*L_NUM_REPAY),(($DW47-SUM($E47:BO47))/BO$31),0),0),0),0)) -> 0 | BQ47: =(IF($DW47>0,IF(BQ$28<=(L_TENOR*L_NUM_REPAY),IF(BQ$28<>0,IF(BQ$28>(L_GRACE*L_NUM_REPAY),(($DW47-SUM($E47:BP47))/BP$31),0),0),0),0)) -> 0 | BR47: =(IF($DW47>0,IF(BR$28<=(L_TENOR*L_NUM_REPAY),IF(BR$28<>0,IF(BR$28>(L_GRACE*L_NUM_REPAY),(($DW47-SUM($E47:BQ47))/BQ$31),0),0),0),0)) -> 0 | BS47: =(IF($DW47>0,IF(BS$28<=(L_TENOR*L_NUM_REPAY),IF(BS$28<>0,IF(BS$28>(L_GRACE*L_NUM_REPAY),(($DW47-SUM($E47:BR47))/BR$31),0),0),0),0)) -> 0 | BT47: =(IF($DW47>0,IF(BT$28<=(L_TENOR*L_NUM_REPAY),IF(BT$28<>0,IF(BT$28>(L_GRACE*L_NUM_REPAY),(($DW47-SUM($E47:BS47))/BS$31),0),0),0),0)) -> 0 | BU47: =(IF($DW47>0,IF(BU$28<=(L_TENOR*L_NUM_REPAY),IF(BU$28<>0,IF(BU$28>(L_GRACE*L_NUM_REPAY),(($DW47-SUM($E47:BT47))/BT$31),0),0),0),0)) -> 0 | BV47: =(IF($DW47>0,IF(BV$28<=(L_TENOR*L_NUM_REPAY),IF(BV$28<>0,IF(BV$28>(L_GRACE*L_NUM_REPAY),(($DW47-SUM($E47:BU47))/BU$31),0),0),0),0)) -> 0 | BW47: =(IF($DW47>0,IF(BW$28<=(L_TENOR*L_NUM_REPAY),IF(BW$28<>0,IF(BW$28>(L_GRACE*L_NUM_REPAY),(($DW47-SUM($E47:BV47))/BV$31),0),0),0),0)) -> 0 | BX47: =(IF($DW47>0,IF(BX$28<=(L_TENOR*L_NUM_REPAY),IF(BX$28<>0,IF(BX$28>(L_GRACE*L_NUM_REPAY),(($DW47-SUM($E47:BW47))/BW$31),0),0),0),0)) -> 0 | BY47: =(IF($DW47>0,IF(BY$28<=(L_TENOR*L_NUM_REPAY),IF(BY$28<>0,IF(BY$28>(L_GRACE*L_NUM_REPAY),(($DW47-SUM($E47:BX47))/BX$31),0),0),0),0)) -> 0 | BZ47: =(IF($DW47>0,IF(BZ$28<=(L_TENOR*L_NUM_REPAY),IF(BZ$28<>0,IF(BZ$28>(L_GRACE*L_NUM_REPAY),(($DW47-SUM($E47:BY47))/BY$31),0),0),0),0)) -> 0 | CA47: =(IF($DW47>0,IF(CA$28<=(L_TENOR*L_NUM_REPAY),IF(CA$28<>0,IF(CA$28>(L_GRACE*L_NUM_REPAY),(($DW47-SUM($E47:BZ47))/BZ$31),0),0),0),0)) -> 0 | CB47: =(IF($DW47>0,IF(CB$28<=(L_TENOR*L_NUM_REPAY),IF(CB$28<>0,IF(CB$28>(L_GRACE*L_NUM_REPAY),(($DW47-SUM($E47:CA47))/CA$31),0),0),0),0)) -> 0 | CC47: =(IF($DW47>0,IF(CC$28<=(L_TENOR*L_NUM_REPAY),IF(CC$28<>0,IF(CC$28>(L_GRACE*L_NUM_REPAY),(($DW47-SUM($E47:CB47))/CB$31),0),0),0),0)) -> 0 | CD47: =(IF($DW47>0,IF(CD$28<=(L_TENOR*L_NUM_REPAY),IF(CD$28<>0,IF(CD$28>(L_GRACE*L_NUM_REPAY),(($DW47-SUM($E47:CC47))/CC$31),0),0),0),0)) -> 0 | CE47: =(IF($DW47>0,IF(CE$28<=(L_TENOR*L_NUM_REPAY),IF(CE$28<>0,IF(CE$28>(L_GRACE*L_NUM_REPAY),(($DW47-SUM($E47:CD47))/CD$31),0),0),0),0)) -> 0 | CF47: =(IF($DW47>0,IF(CF$28<=(L_TENOR*L_NUM_REPAY),IF(CF$28<>0,IF(CF$28>(L_GRACE*L_NUM_REPAY),(($DW47-SUM($E47:CE47))/CE$31),0),0),0),0)) -> 0 | CG47: =(IF($DW47>0,IF(CG$28<=(L_TENOR*L_NUM_REPAY),IF(CG$28<>0,IF(CG$28>(L_GRACE*L_NUM_REPAY),(($DW47-SUM($E47:CF47))/CF$31),0),0),0),0)) -> 0 | CH47: =(IF($DW47>0,IF(CH$28<=(L_TENOR*L_NUM_REPAY),IF(CH$28<>0,IF(CH$28>(L_GRACE*L_NUM_REPAY),(($DW47-SUM($E47:CG47))/CG$31),0),0),0),0)) -> 0 | CI47: =(IF($DW47>0,IF(CI$28<=(L_TENOR*L_NUM_REPAY),IF(CI$28<>0,IF(CI$28>(L_GRACE*L_NUM_REPAY),(($DW47-SUM($E47:CH47))/CH$31),0),0),0),0)) -> 0 | CJ47: =(IF($DW47>0,IF(CJ$28<=(L_TENOR*L_NUM_REPAY),IF(CJ$28<>0,IF(CJ$28>(L_GRACE*L_NUM_REPAY),(($DW47-SUM($E47:CI47))/CI$31),0),0),0),0)) -> 0 | CK47: =(IF($DW47>0,IF(CK$28<=(L_TENOR*L_NUM_REPAY),IF(CK$28<>0,IF(CK$28>(L_GRACE*L_NUM_REPAY),(($DW47-SUM($E47:CJ47))/CJ$31),0),0),0),0)) -> 0 | CL47: =(IF($DW47>0,IF(CL$28<=(L_TENOR*L_NUM_REPAY),IF(CL$28<>0,IF(CL$28>(L_GRACE*L_NUM_REPAY),(($DW47-SUM($E47:CK47))/CK$31),0),0),0),0)) -> 0 | CM47: =(IF($DW47>0,IF(CM$28<=(L_TENOR*L_NUM_REPAY),IF(CM$28<>0,IF(CM$28>(L_GRACE*L_NUM_REPAY),(($DW47-SUM($E47:CL47))/CL$31),0),0),0),0)) -> 0 | CN47: =(IF($DW47>0,IF(CN$28<=(L_TENOR*L_NUM_REPAY),IF(CN$28<>0,IF(CN$28>(L_GRACE*L_NUM_REPAY),(($DW47-SUM($E47:CM47))/CM$31),0),0),0),0)) -> 0 | CO47: =(IF($DW47>0,IF(CO$28<=(L_TENOR*L_NUM_REPAY),IF(CO$28<>0,IF(CO$28>(L_GRACE*L_NUM_REPAY),(($DW47-SUM($E47:CN47))/CN$31),0),0),0),0)) -> 0 | CP47: =(IF($DW47>0,IF(CP$28<=(L_TENOR*L_NUM_REPAY),IF(CP$28<>0,IF(CP$28>(L_GRACE*L_NUM_REPAY),(($DW47-SUM($E47:CO47))/CO$31),0),0),0),0)) -> 0 | CQ47: =(IF($DW47>0,IF(CQ$28<=(L_TENOR*L_NUM_REPAY),IF(CQ$28<>0,IF(CQ$28>(L_GRACE*L_NUM_REPAY),(($DW47-SUM($E47:CP47))/CP$31),0),0),0),0)) -> 0 | CR47: =(IF($DW47>0,IF(CR$28<=(L_TENOR*L_NUM_REPAY),IF(CR$28<>0,IF(CR$28>(L_GRACE*L_NUM_REPAY),(($DW47-SUM($E47:CQ47))/CQ$31),0),0),0),0)) -> 0 | CS47: =(IF($DW47>0,IF(CS$28<=(L_TENOR*L_NUM_REPAY),IF(CS$28<>0,IF(CS$28>(L_GRACE*L_NUM_REPAY),(($DW47-SUM($E47:CR47))/CR$31),0),0),0),0)) -> 0 | CT47: =(IF($DW47>0,IF(CT$28<=(L_TENOR*L_NUM_REPAY),IF(CT$28<>0,IF(CT$28>(L_GRACE*L_NUM_REPAY),(($DW47-SUM($E47:CS47))/CS$31),0),0),0),0)) -> 0 | CU47: =(IF($DW47>0,IF(CU$28<=(L_TENOR*L_NUM_REPAY),IF(CU$28<>0,IF(CU$28>(L_GRACE*L_NUM_REPAY),(($DW47-SUM($E47:CT47))/CT$31),0),0),0),0)) -> 0 | CV47: =(IF($DW47>0,IF(CV$28<=(L_TENOR*L_NUM_REPAY),IF(CV$28<>0,IF(CV$28>(L_GRACE*L_NUM_REPAY),(($DW47-SUM($E47:CU47))/CU$31),0),0),0),0)) -> 0 | CW47: =(IF($DW47>0,IF(CW$28<=(L_TENOR*L_NUM_REPAY),IF(CW$28<>0,IF(CW$28>(L_GRACE*L_NUM_REPAY),(($DW47-SUM($E47:CV47))/CV$31),0),0),0),0)) -> 0 | CX47: =(IF($DW47>0,IF(CX$28<=(L_TENOR*L_NUM_REPAY),IF(CX$28<>0,IF(CX$28>(L_GRACE*L_NUM_REPAY),(($DW47-SUM($E47:CW47))/CW$31),0),0),0),0)) -> 0 | CY47: =(IF($DW47>0,IF(CY$28<=(L_TENOR*L_NUM_REPAY),IF(CY$28<>0,IF(CY$28>(L_GRACE*L_NUM_REPAY),(($DW47-SUM($E47:CX47))/CX$31),0),0),0),0)) -> 0 | CZ47: =(IF($DW47>0,IF(CZ$28<=(L_TENOR*L_NUM_REPAY),IF(CZ$28<>0,IF(CZ$28>(L_GRACE*L_NUM_REPAY),(($DW47-SUM($E47:CY47))/CY$31),0),0),0),0)) -> 0 | DA47: =(IF($DW47>0,IF(DA$28<=(L_TENOR*L_NUM_REPAY),IF(DA$28<>0,IF(DA$28>(L_GRACE*L_NUM_REPAY),(($DW47-SUM($E47:CZ47))/CZ$31),0),0),0),0)) -> 0 | DB47: =(IF($DW47>0,IF(DB$28<=(L_TENOR*L_NUM_REPAY),IF(DB$28<>0,IF(DB$28>(L_GRACE*L_NUM_REPAY),(($DW47-SUM($E47:DA47))/DA$31),0),0),0),0)) -> 0 | DC47: =(IF($DW47>0,IF(DC$28<=(L_TENOR*L_NUM_REPAY),IF(DC$28<>0,IF(DC$28>(L_GRACE*L_NUM_REPAY),(($DW47-SUM($E47:DB47))/DB$31),0),0),0),0)) -> 0 | DD47: =(IF($DW47>0,IF(DD$28<=(L_TENOR*L_NUM_REPAY),IF(DD$28<>0,IF(DD$28>(L_GRACE*L_NUM_REPAY),(($DW47-SUM($E47:DC47))/DC$31),0),0),0),0)) -> 0 | DE47: =(IF($DW47>0,IF(DE$28<=(L_TENOR*L_NUM_REPAY),IF(DE$28<>0,IF(DE$28>(L_GRACE*L_NUM_REPAY),(($DW47-SUM($E47:DD47))/DD$31),0),0),0),0)) -> 0 | DF47: =(IF($DW47>0,IF(DF$28<=(L_TENOR*L_NUM_REPAY),IF(DF$28<>0,IF(DF$28>(L_GRACE*L_NUM_REPAY),(($DW47-SUM($E47:DE47))/DE$31),0),0),0),0)) -> 0 | DG47: =(IF($DW47>0,IF(DG$28<=(L_TENOR*L_NUM_REPAY),IF(DG$28<>0,IF(DG$28>(L_GRACE*L_NUM_REPAY),(($DW47-SUM($E47:DF47))/DF$31),0),0),0),0)) -> 0 | DH47: =(IF($DW47>0,IF(DH$28<=(L_TENOR*L_NUM_REPAY),IF(DH$28<>0,IF(DH$28>(L_GRACE*L_NUM_REPAY),(($DW47-SUM($E47:DG47))/DG$31),0),0),0),0)) -> 0 | DI47: =(IF($DW47>0,IF(DI$28<=(L_TENOR*L_NUM_REPAY),IF(DI$28<>0,IF(DI$28>(L_GRACE*L_NUM_REPAY),(($DW47-SUM($E47:DH47))/DH$31),0),0),0),0)) -> 0 | DJ47: =(IF($DW47>0,IF(DJ$28<=(L_TENOR*L_NUM_REPAY),IF(DJ$28<>0,IF(DJ$28>(L_GRACE*L_NUM_REPAY),(($DW47-SUM($E47:DI47))/DI$31),0),0),0),0)) -> 0 | DK47: =(IF($DW47>0,IF(DK$28<=(L_TENOR*L_NUM_REPAY),IF(DK$28<>0,IF(DK$28>(L_GRACE*L_NUM_REPAY),(($DW47-SUM($E47:DJ47))/DJ$31),0),0),0),0)) -> 0 | DL47: =(IF($DW47>0,IF(DL$28<=(L_TENOR*L_NUM_REPAY),IF(DL$28<>0,IF(DL$28>(L_GRACE*L_NUM_REPAY),(($DW47-SUM($E47:DK47))/DK$31),0),0),0),0)) -> 0 | DM47: =(IF($DW47>0,IF(DM$28<=(L_TENOR*L_NUM_REPAY),IF(DM$28<>0,IF(DM$28>(L_GRACE*L_NUM_REPAY),(($DW47-SUM($E47:DL47))/DL$31),0),0),0),0)) -> 0 | DN47: =(IF($DW47>0,IF(DN$28<=(L_TENOR*L_NUM_REPAY),IF(DN$28<>0,IF(DN$28>(L_GRACE*L_NUM_REPAY),(($DW47-SUM($E47:DM47))/DM$31),0),0),0),0)) -> 0 | DO47: =(IF($DW47>0,IF(DO$28<=(L_TENOR*L_NUM_REPAY),IF(DO$28<>0,IF(DO$28>(L_GRACE*L_NUM_REPAY),(($DW47-SUM($E47:DN47))/DN$31),0),0),0),0)) -> 0 | DP47: =(IF($DW47>0,IF(DP$28<=(L_TENOR*L_NUM_REPAY),IF(DP$28<>0,IF(DP$28>(L_GRACE*L_NUM_REPAY),(($DW47-SUM($E47:DO47))/DO$31),0),0),0),0)) -> 0 | DQ47: =(IF($DW47>0,IF(DQ$28<=(L_TENOR*L_NUM_REPAY),IF(DQ$28<>0,IF(DQ$28>(L_GRACE*L_NUM_REPAY),(($DW47-SUM($E47:DP47))/DP$31),0),0),0),0)) -> 0 | DR47: =(IF($DW47>0,IF(DR$28<=(L_TENOR*L_NUM_REPAY),IF(DR$28<>0,IF(DR$28>(L_GRACE*L_NUM_REPAY),(($DW47-SUM($E47:DQ47))/DQ$31),0),0),0),0)) -> 0 | DS47: =(IF($DW47>0,IF(DS$28<=(L_TENOR*L_NUM_REPAY),IF(DS$28<>0,IF(DS$28>(L_GRACE*L_NUM_REPAY),(($DW47-SUM($E47:DR47))/DR$31),0),0),0),0)) -> 0 | DT47: =(IF($DW47>0,IF(DT$28<=(L_TENOR*L_NUM_REPAY),IF(DT$28<>0,IF(DT$28>(L_GRACE*L_NUM_REPAY),(($DW47-SUM($E47:DS47))/DS$31),0),0),0),0)) -> 0 | DU47: =(IF($DW47>0,IF(DU$28<=(L_TENOR*L_NUM_REPAY),IF(DU$28<>0,IF(DU$28>(L_GRACE*L_NUM_REPAY),(($DW47-SUM($E47:DT47))/DT$31),0),0),0),0)) -> 0 | DV47: 9 | DW47: =M106 -> 0
B48: Principal Tranche 9 | D48: 0 | E48: 0 | F48: 0 | G48: 0 | H48: 0 | I48: 0 | J48: 0 | K48: 0 | L48: 0 | M48: 0 | N48: 0 | O48: =IF($DW48>0, IF(O$28<=(L_TENOR*L_NUM_REPAY),IF(O$28<>0,IF(O$28>(L_GRACE*L_NUM_REPAY),(($DW48-SUM($E48:N48))/N$31),0),0),0),0) -> 0 | P48: =(IF($DW48>0,IF(P$28<=(L_TENOR*L_NUM_REPAY),IF(P$28<>0,IF(P$28>(L_GRACE*L_NUM_REPAY),(($DW48-SUM($E48:O48))/O$31),0),0),0),0)) -> 0 | Q48: =(IF($DW48>0,IF(Q$28<=(L_TENOR*L_NUM_REPAY),IF(Q$28<>0,IF(Q$28>(L_GRACE*L_NUM_REPAY),(($DW48-SUM($E48:P48))/P$31),0),0),0),0)) -> 0 | R48: =(IF($DW48>0,IF(R$28<=(L_TENOR*L_NUM_REPAY),IF(R$28<>0,IF(R$28>(L_GRACE*L_NUM_REPAY),(($DW48-SUM($E48:Q48))/Q$31),0),0),0),0)) -> 0 | S48: =(IF($DW48>0,IF(S$28<=(L_TENOR*L_NUM_REPAY),IF(S$28<>0,IF(S$28>(L_GRACE*L_NUM_REPAY),(($DW48-SUM($E48:R48))/R$31),0),0),0),0)) -> 0 | T48: =(IF($DW48>0,IF(T$28<=(L_TENOR*L_NUM_REPAY),IF(T$28<>0,IF(T$28>(L_GRACE*L_NUM_REPAY),(($DW48-SUM($E48:S48))/S$31),0),0),0),0)) -> 0 | U48: =(IF($DW48>0,IF(U$28<=(L_TENOR*L_NUM_REPAY),IF(U$28<>0,IF(U$28>(L_GRACE*L_NUM_REPAY),(($DW48-SUM($E48:T48))/T$31),0),0),0),0)) -> 0 | V48: =(IF($DW48>0,IF(V$28<=(L_TENOR*L_NUM_REPAY),IF(V$28<>0,IF(V$28>(L_GRACE*L_NUM_REPAY),(($DW48-SUM($E48:U48))/U$31),0),0),0),0)) -> 0 | W48: =(IF($DW48>0,IF(W$28<=(L_TENOR*L_NUM_REPAY),IF(W$28<>0,IF(W$28>(L_GRACE*L_NUM_REPAY),(($DW48-SUM($E48:V48))/V$31),0),0),0),0)) -> 0 | X48: =(IF($DW48>0,IF(X$28<=(L_TENOR*L_NUM_REPAY),IF(X$28<>0,IF(X$28>(L_GRACE*L_NUM_REPAY),(($DW48-SUM($E48:W48))/W$31),0),0),0),0)) -> 0 | Y48: =(IF($DW48>0,IF(Y$28<=(L_TENOR*L_NUM_REPAY),IF(Y$28<>0,IF(Y$28>(L_GRACE*L_NUM_REPAY),(($DW48-SUM($E48:X48))/X$31),0),0),0),0)) -> 0 | Z48: =(IF($DW48>0,IF(Z$28<=(L_TENOR*L_NUM_REPAY),IF(Z$28<>0,IF(Z$28>(L_GRACE*L_NUM_REPAY),(($DW48-SUM($E48:Y48))/Y$31),0),0),0),0)) -> 0 | AA48: =(IF($DW48>0,IF(AA$28<=(L_TENOR*L_NUM_REPAY),IF(AA$28<>0,IF(AA$28>(L_GRACE*L_NUM_REPAY),(($DW48-SUM($E48:Z48))/Z$31),0),0),0),0)) -> 0 | AB48: =(IF($DW48>0,IF(AB$28<=(L_TENOR*L_NUM_REPAY),IF(AB$28<>0,IF(AB$28>(L_GRACE*L_NUM_REPAY),(($DW48-SUM($E48:AA48))/AA$31),0),0),0),0)) -> 0 | AC48: =(IF($DW48>0,IF(AC$28<=(L_TENOR*L_NUM_REPAY),IF(AC$28<>0,IF(AC$28>(L_GRACE*L_NUM_REPAY),(($DW48-SUM($E48:AB48))/AB$31),0),0),0),0)) -> 0 | AD48: =(IF($DW48>0,IF(AD$28<=(L_TENOR*L_NUM_REPAY),IF(AD$28<>0,IF(AD$28>(L_GRACE*L_NUM_REPAY),(($DW48-SUM($E48:AC48))/AC$31),0),0),0),0)) -> 0 | AE48: =(IF($DW48>0,IF(AE$28<=(L_TENOR*L_NUM_REPAY),IF(AE$28<>0,IF(AE$28>(L_GRACE*L_NUM_REPAY),(($DW48-SUM($E48:AD48))/AD$31),0),0),0),0)) -> 0 | AF48: =(IF($DW48>0,IF(AF$28<=(L_TENOR*L_NUM_REPAY),IF(AF$28<>0,IF(AF$28>(L_GRACE*L_NUM_REPAY),(($DW48-SUM($E48:AE48))/AE$31),0),0),0),0)) -> 0 | AG48: =(IF($DW48>0,IF(AG$28<=(L_TENOR*L_NUM_REPAY),IF(AG$28<>0,IF(AG$28>(L_GRACE*L_NUM_REPAY),(($DW48-SUM($E48:AF48))/AF$31),0),0),0),0)) -> 0 | AH48: =(IF($DW48>0,IF(AH$28<=(L_TENOR*L_NUM_REPAY),IF(AH$28<>0,IF(AH$28>(L_GRACE*L_NUM_REPAY),(($DW48-SUM($E48:AG48))/AG$31),0),0),0),0)) -> 0 | AI48: =(IF($DW48>0,IF(AI$28<=(L_TENOR*L_NUM_REPAY),IF(AI$28<>0,IF(AI$28>(L_GRACE*L_NUM_REPAY),(($DW48-SUM($E48:AH48))/AH$31),0),0),0),0)) -> 0 | AJ48: =(IF($DW48>0,IF(AJ$28<=(L_TENOR*L_NUM_REPAY),IF(AJ$28<>0,IF(AJ$28>(L_GRACE*L_NUM_REPAY),(($DW48-SUM($E48:AI48))/AI$31),0),0),0),0)) -> 0 | AK48: =(IF($DW48>0,IF(AK$28<=(L_TENOR*L_NUM_REPAY),IF(AK$28<>0,IF(AK$28>(L_GRACE*L_NUM_REPAY),(($DW48-SUM($E48:AJ48))/AJ$31),0),0),0),0)) -> 0 | AL48: =(IF($DW48>0,IF(AL$28<=(L_TENOR*L_NUM_REPAY),IF(AL$28<>0,IF(AL$28>(L_GRACE*L_NUM_REPAY),(($DW48-SUM($E48:AK48))/AK$31),0),0),0),0)) -> 0 | AM48: =(IF($DW48>0,IF(AM$28<=(L_TENOR*L_NUM_REPAY),IF(AM$28<>0,IF(AM$28>(L_GRACE*L_NUM_REPAY),(($DW48-SUM($E48:AL48))/AL$31),0),0),0),0)) -> 0 | AN48: =(IF($DW48>0,IF(AN$28<=(L_TENOR*L_NUM_REPAY),IF(AN$28<>0,IF(AN$28>(L_GRACE*L_NUM_REPAY),(($DW48-SUM($E48:AM48))/AM$31),0),0),0),0)) -> 0 | AO48: =(IF($DW48>0,IF(AO$28<=(L_TENOR*L_NUM_REPAY),IF(AO$28<>0,IF(AO$28>(L_GRACE*L_NUM_REPAY),(($DW48-SUM($E48:AN48))/AN$31),0),0),0),0)) -> 0 | AP48: =(IF($DW48>0,IF(AP$28<=(L_TENOR*L_NUM_REPAY),IF(AP$28<>0,IF(AP$28>(L_GRACE*L_NUM_REPAY),(($DW48-SUM($E48:AO48))/AO$31),0),0),0),0)) -> 0 | AQ48: =(IF($DW48>0,IF(AQ$28<=(L_TENOR*L_NUM_REPAY),IF(AQ$28<>0,IF(AQ$28>(L_GRACE*L_NUM_REPAY),(($DW48-SUM($E48:AP48))/AP$31),0),0),0),0)) -> 0 | AR48: =(IF($DW48>0,IF(AR$28<=(L_TENOR*L_NUM_REPAY),IF(AR$28<>0,IF(AR$28>(L_GRACE*L_NUM_REPAY),(($DW48-SUM($E48:AQ48))/AQ$31),0),0),0),0)) -> 0 | AS48: =(IF($DW48>0,IF(AS$28<=(L_TENOR*L_NUM_REPAY),IF(AS$28<>0,IF(AS$28>(L_GRACE*L_NUM_REPAY),(($DW48-SUM($E48:AR48))/AR$31),0),0),0),0)) -> 0 | AT48: =(IF($DW48>0,IF(AT$28<=(L_TENOR*L_NUM_REPAY),IF(AT$28<>0,IF(AT$28>(L_GRACE*L_NUM_REPAY),(($DW48-SUM($E48:AS48))/AS$31),0),0),0),0)) -> 0 | AU48: =(IF($DW48>0,IF(AU$28<=(L_TENOR*L_NUM_REPAY),IF(AU$28<>0,IF(AU$28>(L_GRACE*L_NUM_REPAY),(($DW48-SUM($E48:AT48))/AT$31),0),0),0),0)) -> 0 | AV48: =(IF($DW48>0,IF(AV$28<=(L_TENOR*L_NUM_REPAY),IF(AV$28<>0,IF(AV$28>(L_GRACE*L_NUM_REPAY),(($DW48-SUM($E48:AU48))/AU$31),0),0),0),0)) -> 0 | AW48: =(IF($DW48>0,IF(AW$28<=(L_TENOR*L_NUM_REPAY),IF(AW$28<>0,IF(AW$28>(L_GRACE*L_NUM_REPAY),(($DW48-SUM($E48:AV48))/AV$31),0),0),0),0)) -> 0 | AX48: =(IF($DW48>0,IF(AX$28<=(L_TENOR*L_NUM_REPAY),IF(AX$28<>0,IF(AX$28>(L_GRACE*L_NUM_REPAY),(($DW48-SUM($E48:AW48))/AW$31),0),0),0),0)) -> 0 | AY48: =(IF($DW48>0,IF(AY$28<=(L_TENOR*L_NUM_REPAY),IF(AY$28<>0,IF(AY$28>(L_GRACE*L_NUM_REPAY),(($DW48-SUM($E48:AX48))/AX$31),0),0),0),0)) -> 0 | AZ48: =(IF($DW48>0,IF(AZ$28<=(L_TENOR*L_NUM_REPAY),IF(AZ$28<>0,IF(AZ$28>(L_GRACE*L_NUM_REPAY),(($DW48-SUM($E48:AY48))/AY$31),0),0),0),0)) -> 0 | BA48: =(IF($DW48>0,IF(BA$28<=(L_TENOR*L_NUM_REPAY),IF(BA$28<>0,IF(BA$28>(L_GRACE*L_NUM_REPAY),(($DW48-SUM($E48:AZ48))/AZ$31),0),0),0),0)) -> 0 | BB48: =(IF($DW48>0,IF(BB$28<=(L_TENOR*L_NUM_REPAY),IF(BB$28<>0,IF(BB$28>(L_GRACE*L_NUM_REPAY),(($DW48-SUM($E48:BA48))/BA$31),0),0),0),0)) -> 0 | BC48: =(IF($DW48>0,IF(BC$28<=(L_TENOR*L_NUM_REPAY),IF(BC$28<>0,IF(BC$28>(L_GRACE*L_NUM_REPAY),(($DW48-SUM($E48:BB48))/BB$31),0),0),0),0)) -> 0 | BD48: =(IF($DW48>0,IF(BD$28<=(L_TENOR*L_NUM_REPAY),IF(BD$28<>0,IF(BD$28>(L_GRACE*L_NUM_REPAY),(($DW48-SUM($E48:BC48))/BC$31),0),0),0),0)) -> 0 | BE48: =(IF($DW48>0,IF(BE$28<=(L_TENOR*L_NUM_REPAY),IF(BE$28<>0,IF(BE$28>(L_GRACE*L_NUM_REPAY),(($DW48-SUM($E48:BD48))/BD$31),0),0),0),0)) -> 0 | BF48: =(IF($DW48>0,IF(BF$28<=(L_TENOR*L_NUM_REPAY),IF(BF$28<>0,IF(BF$28>(L_GRACE*L_NUM_REPAY),(($DW48-SUM($E48:BE48))/BE$31),0),0),0),0)) -> 0 | BG48: =(IF($DW48>0,IF(BG$28<=(L_TENOR*L_NUM_REPAY),IF(BG$28<>0,IF(BG$28>(L_GRACE*L_NUM_REPAY),(($DW48-SUM($E48:BF48))/BF$31),0),0),0),0)) -> 0 | BH48: =(IF($DW48>0,IF(BH$28<=(L_TENOR*L_NUM_REPAY),IF(BH$28<>0,IF(BH$28>(L_GRACE*L_NUM_REPAY),(($DW48-SUM($E48:BG48))/BG$31),0),0),0),0)) -> 0 | BI48: =(IF($DW48>0,IF(BI$28<=(L_TENOR*L_NUM_REPAY),IF(BI$28<>0,IF(BI$28>(L_GRACE*L_NUM_REPAY),(($DW48-SUM($E48:BH48))/BH$31),0),0),0),0)) -> 0 | BJ48: =(IF($DW48>0,IF(BJ$28<=(L_TENOR*L_NUM_REPAY),IF(BJ$28<>0,IF(BJ$28>(L_GRACE*L_NUM_REPAY),(($DW48-SUM($E48:BI48))/BI$31),0),0),0),0)) -> 0 | BK48: =(IF($DW48>0,IF(BK$28<=(L_TENOR*L_NUM_REPAY),IF(BK$28<>0,IF(BK$28>(L_GRACE*L_NUM_REPAY),(($DW48-SUM($E48:BJ48))/BJ$31),0),0),0),0)) -> 0 | BL48: =(IF($DW48>0,IF(BL$28<=(L_TENOR*L_NUM_REPAY),IF(BL$28<>0,IF(BL$28>(L_GRACE*L_NUM_REPAY),(($DW48-SUM($E48:BK48))/BK$31),0),0),0),0)) -> 0 | BM48: =(IF($DW48>0,IF(BM$28<=(L_TENOR*L_NUM_REPAY),IF(BM$28<>0,IF(BM$28>(L_GRACE*L_NUM_REPAY),(($DW48-SUM($E48:BL48))/BL$31),0),0),0),0)) -> 0 | BN48: =(IF($DW48>0,IF(BN$28<=(L_TENOR*L_NUM_REPAY),IF(BN$28<>0,IF(BN$28>(L_GRACE*L_NUM_REPAY),(($DW48-SUM($E48:BM48))/BM$31),0),0),0),0)) -> 0 | BO48: =(IF($DW48>0,IF(BO$28<=(L_TENOR*L_NUM_REPAY),IF(BO$28<>0,IF(BO$28>(L_GRACE*L_NUM_REPAY),(($DW48-SUM($E48:BN48))/BN$31),0),0),0),0)) -> 0 | BP48: =(IF($DW48>0,IF(BP$28<=(L_TENOR*L_NUM_REPAY),IF(BP$28<>0,IF(BP$28>(L_GRACE*L_NUM_REPAY),(($DW48-SUM($E48:BO48))/BO$31),0),0),0),0)) -> 0 | BQ48: =(IF($DW48>0,IF(BQ$28<=(L_TENOR*L_NUM_REPAY),IF(BQ$28<>0,IF(BQ$28>(L_GRACE*L_NUM_REPAY),(($DW48-SUM($E48:BP48))/BP$31),0),0),0),0)) -> 0 | BR48: =(IF($DW48>0,IF(BR$28<=(L_TENOR*L_NUM_REPAY),IF(BR$28<>0,IF(BR$28>(L_GRACE*L_NUM_REPAY),(($DW48-SUM($E48:BQ48))/BQ$31),0),0),0),0)) -> 0 | BS48: =(IF($DW48>0,IF(BS$28<=(L_TENOR*L_NUM_REPAY),IF(BS$28<>0,IF(BS$28>(L_GRACE*L_NUM_REPAY),(($DW48-SUM($E48:BR48))/BR$31),0),0),0),0)) -> 0 | BT48: =(IF($DW48>0,IF(BT$28<=(L_TENOR*L_NUM_REPAY),IF(BT$28<>0,IF(BT$28>(L_GRACE*L_NUM_REPAY),(($DW48-SUM($E48:BS48))/BS$31),0),0),0),0)) -> 0 | BU48: =(IF($DW48>0,IF(BU$28<=(L_TENOR*L_NUM_REPAY),IF(BU$28<>0,IF(BU$28>(L_GRACE*L_NUM_REPAY),(($DW48-SUM($E48:BT48))/BT$31),0),0),0),0)) -> 0 | BV48: =(IF($DW48>0,IF(BV$28<=(L_TENOR*L_NUM_REPAY),IF(BV$28<>0,IF(BV$28>(L_GRACE*L_NUM_REPAY),(($DW48-SUM($E48:BU48))/BU$31),0),0),0),0)) -> 0 | BW48: =(IF($DW48>0,IF(BW$28<=(L_TENOR*L_NUM_REPAY),IF(BW$28<>0,IF(BW$28>(L_GRACE*L_NUM_REPAY),(($DW48-SUM($E48:BV48))/BV$31),0),0),0),0)) -> 0 | BX48: =(IF($DW48>0,IF(BX$28<=(L_TENOR*L_NUM_REPAY),IF(BX$28<>0,IF(BX$28>(L_GRACE*L_NUM_REPAY),(($DW48-SUM($E48:BW48))/BW$31),0),0),0),0)) -> 0 | BY48: =(IF($DW48>0,IF(BY$28<=(L_TENOR*L_NUM_REPAY),IF(BY$28<>0,IF(BY$28>(L_GRACE*L_NUM_REPAY),(($DW48-SUM($E48:BX48))/BX$31),0),0),0),0)) -> 0 | BZ48: =(IF($DW48>0,IF(BZ$28<=(L_TENOR*L_NUM_REPAY),IF(BZ$28<>0,IF(BZ$28>(L_GRACE*L_NUM_REPAY),(($DW48-SUM($E48:BY48))/BY$31),0),0),0),0)) -> 0 | CA48: =(IF($DW48>0,IF(CA$28<=(L_TENOR*L_NUM_REPAY),IF(CA$28<>0,IF(CA$28>(L_GRACE*L_NUM_REPAY),(($DW48-SUM($E48:BZ48))/BZ$31),0),0),0),0)) -> 0 | CB48: =(IF($DW48>0,IF(CB$28<=(L_TENOR*L_NUM_REPAY),IF(CB$28<>0,IF(CB$28>(L_GRACE*L_NUM_REPAY),(($DW48-SUM($E48:CA48))/CA$31),0),0),0),0)) -> 0 | CC48: =(IF($DW48>0,IF(CC$28<=(L_TENOR*L_NUM_REPAY),IF(CC$28<>0,IF(CC$28>(L_GRACE*L_NUM_REPAY),(($DW48-SUM($E48:CB48))/CB$31),0),0),0),0)) -> 0 | CD48: =(IF($DW48>0,IF(CD$28<=(L_TENOR*L_NUM_REPAY),IF(CD$28<>0,IF(CD$28>(L_GRACE*L_NUM_REPAY),(($DW48-SUM($E48:CC48))/CC$31),0),0),0),0)) -> 0 | CE48: =(IF($DW48>0,IF(CE$28<=(L_TENOR*L_NUM_REPAY),IF(CE$28<>0,IF(CE$28>(L_GRACE*L_NUM_REPAY),(($DW48-SUM($E48:CD48))/CD$31),0),0),0),0)) -> 0 | CF48: =(IF($DW48>0,IF(CF$28<=(L_TENOR*L_NUM_REPAY),IF(CF$28<>0,IF(CF$28>(L_GRACE*L_NUM_REPAY),(($DW48-SUM($E48:CE48))/CE$31),0),0),0),0)) -> 0 | CG48: =(IF($DW48>0,IF(CG$28<=(L_TENOR*L_NUM_REPAY),IF(CG$28<>0,IF(CG$28>(L_GRACE*L_NUM_REPAY),(($DW48-SUM($E48:CF48))/CF$31),0),0),0),0)) -> 0 | CH48: =(IF($DW48>0,IF(CH$28<=(L_TENOR*L_NUM_REPAY),IF(CH$28<>0,IF(CH$28>(L_GRACE*L_NUM_REPAY),(($DW48-SUM($E48:CG48))/CG$31),0),0),0),0)) -> 0 | CI48: =(IF($DW48>0,IF(CI$28<=(L_TENOR*L_NUM_REPAY),IF(CI$28<>0,IF(CI$28>(L_GRACE*L_NUM_REPAY),(($DW48-SUM($E48:CH48))/CH$31),0),0),0),0)) -> 0 | CJ48: =(IF($DW48>0,IF(CJ$28<=(L_TENOR*L_NUM_REPAY),IF(CJ$28<>0,IF(CJ$28>(L_GRACE*L_NUM_REPAY),(($DW48-SUM($E48:CI48))/CI$31),0),0),0),0)) -> 0 | CK48: =(IF($DW48>0,IF(CK$28<=(L_TENOR*L_NUM_REPAY),IF(CK$28<>0,IF(CK$28>(L_GRACE*L_NUM_REPAY),(($DW48-SUM($E48:CJ48))/CJ$31),0),0),0),0)) -> 0 | CL48: =(IF($DW48>0,IF(CL$28<=(L_TENOR*L_NUM_REPAY),IF(CL$28<>0,IF(CL$28>(L_GRACE*L_NUM_REPAY),(($DW48-SUM($E48:CK48))/CK$31),0),0),0),0)) -> 0 | CM48: =(IF($DW48>0,IF(CM$28<=(L_TENOR*L_NUM_REPAY),IF(CM$28<>0,IF(CM$28>(L_GRACE*L_NUM_REPAY),(($DW48-SUM($E48:CL48))/CL$31),0),0),0),0)) -> 0 | CN48: =(IF($DW48>0,IF(CN$28<=(L_TENOR*L_NUM_REPAY),IF(CN$28<>0,IF(CN$28>(L_GRACE*L_NUM_REPAY),(($DW48-SUM($E48:CM48))/CM$31),0),0),0),0)) -> 0 | CO48: =(IF($DW48>0,IF(CO$28<=(L_TENOR*L_NUM_REPAY),IF(CO$28<>0,IF(CO$28>(L_GRACE*L_NUM_REPAY),(($DW48-SUM($E48:CN48))/CN$31),0),0),0),0)) -> 0 | CP48: =(IF($DW48>0,IF(CP$28<=(L_TENOR*L_NUM_REPAY),IF(CP$28<>0,IF(CP$28>(L_GRACE*L_NUM_REPAY),(($DW48-SUM($E48:CO48))/CO$31),0),0),0),0)) -> 0 | CQ48: =(IF($DW48>0,IF(CQ$28<=(L_TENOR*L_NUM_REPAY),IF(CQ$28<>0,IF(CQ$28>(L_GRACE*L_NUM_REPAY),(($DW48-SUM($E48:CP48))/CP$31),0),0),0),0)) -> 0 | CR48: =(IF($DW48>0,IF(CR$28<=(L_TENOR*L_NUM_REPAY),IF(CR$28<>0,IF(CR$28>(L_GRACE*L_NUM_REPAY),(($DW48-SUM($E48:CQ48))/CQ$31),0),0),0),0)) -> 0 | CS48: =(IF($DW48>0,IF(CS$28<=(L_TENOR*L_NUM_REPAY),IF(CS$28<>0,IF(CS$28>(L_GRACE*L_NUM_REPAY),(($DW48-SUM($E48:CR48))/CR$31),0),0),0),0)) -> 0 | CT48: =(IF($DW48>0,IF(CT$28<=(L_TENOR*L_NUM_REPAY),IF(CT$28<>0,IF(CT$28>(L_GRACE*L_NUM_REPAY),(($DW48-SUM($E48:CS48))/CS$31),0),0),0),0)) -> 0 | CU48: =(IF($DW48>0,IF(CU$28<=(L_TENOR*L_NUM_REPAY),IF(CU$28<>0,IF(CU$28>(L_GRACE*L_NUM_REPAY),(($DW48-SUM($E48:CT48))/CT$31),0),0),0),0)) -> 0 | CV48: =(IF($DW48>0,IF(CV$28<=(L_TENOR*L_NUM_REPAY),IF(CV$28<>0,IF(CV$28>(L_GRACE*L_NUM_REPAY),(($DW48-SUM($E48:CU48))/CU$31),0),0),0),0)) -> 0 | CW48: =(IF($DW48>0,IF(CW$28<=(L_TENOR*L_NUM_REPAY),IF(CW$28<>0,IF(CW$28>(L_GRACE*L_NUM_REPAY),(($DW48-SUM($E48:CV48))/CV$31),0),0),0),0)) -> 0 | CX48: =(IF($DW48>0,IF(CX$28<=(L_TENOR*L_NUM_REPAY),IF(CX$28<>0,IF(CX$28>(L_GRACE*L_NUM_REPAY),(($DW48-SUM($E48:CW48))/CW$31),0),0),0),0)) -> 0 | CY48: =(IF($DW48>0,IF(CY$28<=(L_TENOR*L_NUM_REPAY),IF(CY$28<>0,IF(CY$28>(L_GRACE*L_NUM_REPAY),(($DW48-SUM($E48:CX48))/CX$31),0),0),0),0)) -> 0 | CZ48: =(IF($DW48>0,IF(CZ$28<=(L_TENOR*L_NUM_REPAY),IF(CZ$28<>0,IF(CZ$28>(L_GRACE*L_NUM_REPAY),(($DW48-SUM($E48:CY48))/CY$31),0),0),0),0)) -> 0 | DA48: =(IF($DW48>0,IF(DA$28<=(L_TENOR*L_NUM_REPAY),IF(DA$28<>0,IF(DA$28>(L_GRACE*L_NUM_REPAY),(($DW48-SUM($E48:CZ48))/CZ$31),0),0),0),0)) -> 0 | DB48: =(IF($DW48>0,IF(DB$28<=(L_TENOR*L_NUM_REPAY),IF(DB$28<>0,IF(DB$28>(L_GRACE*L_NUM_REPAY),(($DW48-SUM($E48:DA48))/DA$31),0),0),0),0)) -> 0 | DC48: =(IF($DW48>0,IF(DC$28<=(L_TENOR*L_NUM_REPAY),IF(DC$28<>0,IF(DC$28>(L_GRACE*L_NUM_REPAY),(($DW48-SUM($E48:DB48))/DB$31),0),0),0),0)) -> 0 | DD48: =(IF($DW48>0,IF(DD$28<=(L_TENOR*L_NUM_REPAY),IF(DD$28<>0,IF(DD$28>(L_GRACE*L_NUM_REPAY),(($DW48-SUM($E48:DC48))/DC$31),0),0),0),0)) -> 0 | DE48: =(IF($DW48>0,IF(DE$28<=(L_TENOR*L_NUM_REPAY),IF(DE$28<>0,IF(DE$28>(L_GRACE*L_NUM_REPAY),(($DW48-SUM($E48:DD48))/DD$31),0),0),0),0)) -> 0 | DF48: =(IF($DW48>0,IF(DF$28<=(L_TENOR*L_NUM_REPAY),IF(DF$28<>0,IF(DF$28>(L_GRACE*L_NUM_REPAY),(($DW48-SUM($E48:DE48))/DE$31),0),0),0),0)) -> 0 | DG48: =(IF($DW48>0,IF(DG$28<=(L_TENOR*L_NUM_REPAY),IF(DG$28<>0,IF(DG$28>(L_GRACE*L_NUM_REPAY),(($DW48-SUM($E48:DF48))/DF$31),0),0),0),0)) -> 0 | DH48: =(IF($DW48>0,IF(DH$28<=(L_TENOR*L_NUM_REPAY),IF(DH$28<>0,IF(DH$28>(L_GRACE*L_NUM_REPAY),(($DW48-SUM($E48:DG48))/DG$31),0),0),0),0)) -> 0 | DI48: =(IF($DW48>0,IF(DI$28<=(L_TENOR*L_NUM_REPAY),IF(DI$28<>0,IF(DI$28>(L_GRACE*L_NUM_REPAY),(($DW48-SUM($E48:DH48))/DH$31),0),0),0),0)) -> 0 | DJ48: =(IF($DW48>0,IF(DJ$28<=(L_TENOR*L_NUM_REPAY),IF(DJ$28<>0,IF(DJ$28>(L_GRACE*L_NUM_REPAY),(($DW48-SUM($E48:DI48))/DI$31),0),0),0),0)) -> 0 | DK48: =(IF($DW48>0,IF(DK$28<=(L_TENOR*L_NUM_REPAY),IF(DK$28<>0,IF(DK$28>(L_GRACE*L_NUM_REPAY),(($DW48-SUM($E48:DJ48))/DJ$31),0),0),0),0)) -> 0 | DL48: =(IF($DW48>0,IF(DL$28<=(L_TENOR*L_NUM_REPAY),IF(DL$28<>0,IF(DL$28>(L_GRACE*L_NUM_REPAY),(($DW48-SUM($E48:DK48))/DK$31),0),0),0),0)) -> 0 | DM48: =(IF($DW48>0,IF(DM$28<=(L_TENOR*L_NUM_REPAY),IF(DM$28<>0,IF(DM$28>(L_GRACE*L_NUM_REPAY),(($DW48-SUM($E48:DL48))/DL$31),0),0),0),0)) -> 0 | DN48: =(IF($DW48>0,IF(DN$28<=(L_TENOR*L_NUM_REPAY),IF(DN$28<>0,IF(DN$28>(L_GRACE*L_NUM_REPAY),(($DW48-SUM($E48:DM48))/DM$31),0),0),0),0)) -> 0 | DO48: =(IF($DW48>0,IF(DO$28<=(L_TENOR*L_NUM_REPAY),IF(DO$28<>0,IF(DO$28>(L_GRACE*L_NUM_REPAY),(($DW48-SUM($E48:DN48))/DN$31),0),0),0),0)) -> 0 | DP48: =(IF($DW48>0,IF(DP$28<=(L_TENOR*L_NUM_REPAY),IF(DP$28<>0,IF(DP$28>(L_GRACE*L_NUM_REPAY),(($DW48-SUM($E48:DO48))/DO$31),0),0),0),0)) -> 0 | DQ48: =(IF($DW48>0,IF(DQ$28<=(L_TENOR*L_NUM_REPAY),IF(DQ$28<>0,IF(DQ$28>(L_GRACE*L_NUM_REPAY),(($DW48-SUM($E48:DP48))/DP$31),0),0),0),0)) -> 0 | DR48: =(IF($DW48>0,IF(DR$28<=(L_TENOR*L_NUM_REPAY),IF(DR$28<>0,IF(DR$28>(L_GRACE*L_NUM_REPAY),(($DW48-SUM($E48:DQ48))/DQ$31),0),0),0),0)) -> 0 | DS48: =(IF($DW48>0,IF(DS$28<=(L_TENOR*L_NUM_REPAY),IF(DS$28<>0,IF(DS$28>(L_GRACE*L_NUM_REPAY),(($DW48-SUM($E48:DR48))/DR$31),0),0),0),0)) -> 0 | DT48: =(IF($DW48>0,IF(DT$28<=(L_TENOR*L_NUM_REPAY),IF(DT$28<>0,IF(DT$28>(L_GRACE*L_NUM_REPAY),(($DW48-SUM($E48:DS48))/DS$31),0),0),0),0)) -> 0 | DU48: =(IF($DW48>0,IF(DU$28<=(L_TENOR*L_NUM_REPAY),IF(DU$28<>0,IF(DU$28>(L_GRACE*L_NUM_REPAY),(($DW48-SUM($E48:DT48))/DT$31),0),0),0),0)) -> 0 | DV48: 10 | DW48: =N106 -> 0
B49: Principal Tranche 10 | D49: 0 | E49: 0 | F49: 0 | G49: 0 | H49: 0 | I49: 0 | J49: 0 | K49: 0 | L49: 0 | M49: 0 | N49: 0 | O49: 0 | P49: =IF($DW49>0, IF(P$28<=(L_TENOR*L_NUM_REPAY),IF(P$28<>0,IF(P$28>(L_GRACE*L_NUM_REPAY),(($DW49-SUM($E49:O49))/O$31),0),0),0),0) -> 0 | Q49: =(IF($DW49>0,IF(Q$28<=(L_TENOR*L_NUM_REPAY),IF(Q$28<>0,IF(Q$28>(L_GRACE*L_NUM_REPAY),(($DW49-SUM($E49:P49))/P$31),0),0),0),0)) -> 0 | R49: =(IF($DW49>0,IF(R$28<=(L_TENOR*L_NUM_REPAY),IF(R$28<>0,IF(R$28>(L_GRACE*L_NUM_REPAY),(($DW49-SUM($E49:Q49))/Q$31),0),0),0),0)) -> 0 | S49: =(IF($DW49>0,IF(S$28<=(L_TENOR*L_NUM_REPAY),IF(S$28<>0,IF(S$28>(L_GRACE*L_NUM_REPAY),(($DW49-SUM($E49:R49))/R$31),0),0),0),0)) -> 0 | T49: =(IF($DW49>0,IF(T$28<=(L_TENOR*L_NUM_REPAY),IF(T$28<>0,IF(T$28>(L_GRACE*L_NUM_REPAY),(($DW49-SUM($E49:S49))/S$31),0),0),0),0)) -> 0 | U49: =(IF($DW49>0,IF(U$28<=(L_TENOR*L_NUM_REPAY),IF(U$28<>0,IF(U$28>(L_GRACE*L_NUM_REPAY),(($DW49-SUM($E49:T49))/T$31),0),0),0),0)) -> 0 | V49: =(IF($DW49>0,IF(V$28<=(L_TENOR*L_NUM_REPAY),IF(V$28<>0,IF(V$28>(L_GRACE*L_NUM_REPAY),(($DW49-SUM($E49:U49))/U$31),0),0),0),0)) -> 0 | W49: =(IF($DW49>0,IF(W$28<=(L_TENOR*L_NUM_REPAY),IF(W$28<>0,IF(W$28>(L_GRACE*L_NUM_REPAY),(($DW49-SUM($E49:V49))/V$31),0),0),0),0)) -> 0 | X49: =(IF($DW49>0,IF(X$28<=(L_TENOR*L_NUM_REPAY),IF(X$28<>0,IF(X$28>(L_GRACE*L_NUM_REPAY),(($DW49-SUM($E49:W49))/W$31),0),0),0),0)) -> 0 | Y49: =(IF($DW49>0,IF(Y$28<=(L_TENOR*L_NUM_REPAY),IF(Y$28<>0,IF(Y$28>(L_GRACE*L_NUM_REPAY),(($DW49-SUM($E49:X49))/X$31),0),0),0),0)) -> 0 | Z49: =(IF($DW49>0,IF(Z$28<=(L_TENOR*L_NUM_REPAY),IF(Z$28<>0,IF(Z$28>(L_GRACE*L_NUM_REPAY),(($DW49-SUM($E49:Y49))/Y$31),0),0),0),0)) -> 0 | AA49: =(IF($DW49>0,IF(AA$28<=(L_TENOR*L_NUM_REPAY),IF(AA$28<>0,IF(AA$28>(L_GRACE*L_NUM_REPAY),(($DW49-SUM($E49:Z49))/Z$31),0),0),0),0)) -> 0 | AB49: =(IF($DW49>0,IF(AB$28<=(L_TENOR*L_NUM_REPAY),IF(AB$28<>0,IF(AB$28>(L_GRACE*L_NUM_REPAY),(($DW49-SUM($E49:AA49))/AA$31),0),0),0),0)) -> 0 | AC49: =(IF($DW49>0,IF(AC$28<=(L_TENOR*L_NUM_REPAY),IF(AC$28<>0,IF(AC$28>(L_GRACE*L_NUM_REPAY),(($DW49-SUM($E49:AB49))/AB$31),0),0),0),0)) -> 0 | AD49: =(IF($DW49>0,IF(AD$28<=(L_TENOR*L_NUM_REPAY),IF(AD$28<>0,IF(AD$28>(L_GRACE*L_NUM_REPAY),(($DW49-SUM($E49:AC49))/AC$31),0),0),0),0)) -> 0 | AE49: =(IF($DW49>0,IF(AE$28<=(L_TENOR*L_NUM_REPAY),IF(AE$28<>0,IF(AE$28>(L_GRACE*L_NUM_REPAY),(($DW49-SUM($E49:AD49))/AD$31),0),0),0),0)) -> 0 | AF49: =(IF($DW49>0,IF(AF$28<=(L_TENOR*L_NUM_REPAY),IF(AF$28<>0,IF(AF$28>(L_GRACE*L_NUM_REPAY),(($DW49-SUM($E49:AE49))/AE$31),0),0),0),0)) -> 0 | AG49: =(IF($DW49>0,IF(AG$28<=(L_TENOR*L_NUM_REPAY),IF(AG$28<>0,IF(AG$28>(L_GRACE*L_NUM_REPAY),(($DW49-SUM($E49:AF49))/AF$31),0),0),0),0)) -> 0 | AH49: =(IF($DW49>0,IF(AH$28<=(L_TENOR*L_NUM_REPAY),IF(AH$28<>0,IF(AH$28>(L_GRACE*L_NUM_REPAY),(($DW49-SUM($E49:AG49))/AG$31),0),0),0),0)) -> 0 | AI49: =(IF($DW49>0,IF(AI$28<=(L_TENOR*L_NUM_REPAY),IF(AI$28<>0,IF(AI$28>(L_GRACE*L_NUM_REPAY),(($DW49-SUM($E49:AH49))/AH$31),0),0),0),0)) -> 0 | AJ49: =(IF($DW49>0,IF(AJ$28<=(L_TENOR*L_NUM_REPAY),IF(AJ$28<>0,IF(AJ$28>(L_GRACE*L_NUM_REPAY),(($DW49-SUM($E49:AI49))/AI$31),0),0),0),0)) -> 0 | AK49: =(IF($DW49>0,IF(AK$28<=(L_TENOR*L_NUM_REPAY),IF(AK$28<>0,IF(AK$28>(L_GRACE*L_NUM_REPAY),(($DW49-SUM($E49:AJ49))/AJ$31),0),0),0),0)) -> 0 | AL49: =(IF($DW49>0,IF(AL$28<=(L_TENOR*L_NUM_REPAY),IF(AL$28<>0,IF(AL$28>(L_GRACE*L_NUM_REPAY),(($DW49-SUM($E49:AK49))/AK$31),0),0),0),0)) -> 0 | AM49: =(IF($DW49>0,IF(AM$28<=(L_TENOR*L_NUM_REPAY),IF(AM$28<>0,IF(AM$28>(L_GRACE*L_NUM_REPAY),(($DW49-SUM($E49:AL49))/AL$31),0),0),0),0)) -> 0 | AN49: =(IF($DW49>0,IF(AN$28<=(L_TENOR*L_NUM_REPAY),IF(AN$28<>0,IF(AN$28>(L_GRACE*L_NUM_REPAY),(($DW49-SUM($E49:AM49))/AM$31),0),0),0),0)) -> 0 | AO49: =(IF($DW49>0,IF(AO$28<=(L_TENOR*L_NUM_REPAY),IF(AO$28<>0,IF(AO$28>(L_GRACE*L_NUM_REPAY),(($DW49-SUM($E49:AN49))/AN$31),0),0),0),0)) -> 0 | AP49: =(IF($DW49>0,IF(AP$28<=(L_TENOR*L_NUM_REPAY),IF(AP$28<>0,IF(AP$28>(L_GRACE*L_NUM_REPAY),(($DW49-SUM($E49:AO49))/AO$31),0),0),0),0)) -> 0 | AQ49: =(IF($DW49>0,IF(AQ$28<=(L_TENOR*L_NUM_REPAY),IF(AQ$28<>0,IF(AQ$28>(L_GRACE*L_NUM_REPAY),(($DW49-SUM($E49:AP49))/AP$31),0),0),0),0)) -> 0 | AR49: =(IF($DW49>0,IF(AR$28<=(L_TENOR*L_NUM_REPAY),IF(AR$28<>0,IF(AR$28>(L_GRACE*L_NUM_REPAY),(($DW49-SUM($E49:AQ49))/AQ$31),0),0),0),0)) -> 0 | AS49: =(IF($DW49>0,IF(AS$28<=(L_TENOR*L_NUM_REPAY),IF(AS$28<>0,IF(AS$28>(L_GRACE*L_NUM_REPAY),(($DW49-SUM($E49:AR49))/AR$31),0),0),0),0)) -> 0 | AT49: =(IF($DW49>0,IF(AT$28<=(L_TENOR*L_NUM_REPAY),IF(AT$28<>0,IF(AT$28>(L_GRACE*L_NUM_REPAY),(($DW49-SUM($E49:AS49))/AS$31),0),0),0),0)) -> 0 | AU49: =(IF($DW49>0,IF(AU$28<=(L_TENOR*L_NUM_REPAY),IF(AU$28<>0,IF(AU$28>(L_GRACE*L_NUM_REPAY),(($DW49-SUM($E49:AT49))/AT$31),0),0),0),0)) -> 0 | AV49: =(IF($DW49>0,IF(AV$28<=(L_TENOR*L_NUM_REPAY),IF(AV$28<>0,IF(AV$28>(L_GRACE*L_NUM_REPAY),(($DW49-SUM($E49:AU49))/AU$31),0),0),0),0)) -> 0 | AW49: =(IF($DW49>0,IF(AW$28<=(L_TENOR*L_NUM_REPAY),IF(AW$28<>0,IF(AW$28>(L_GRACE*L_NUM_REPAY),(($DW49-SUM($E49:AV49))/AV$31),0),0),0),0)) -> 0 | AX49: =(IF($DW49>0,IF(AX$28<=(L_TENOR*L_NUM_REPAY),IF(AX$28<>0,IF(AX$28>(L_GRACE*L_NUM_REPAY),(($DW49-SUM($E49:AW49))/AW$31),0),0),0),0)) -> 0 | AY49: =(IF($DW49>0,IF(AY$28<=(L_TENOR*L_NUM_REPAY),IF(AY$28<>0,IF(AY$28>(L_GRACE*L_NUM_REPAY),(($DW49-SUM($E49:AX49))/AX$31),0),0),0),0)) -> 0 | AZ49: =(IF($DW49>0,IF(AZ$28<=(L_TENOR*L_NUM_REPAY),IF(AZ$28<>0,IF(AZ$28>(L_GRACE*L_NUM_REPAY),(($DW49-SUM($E49:AY49))/AY$31),0),0),0),0)) -> 0 | BA49: =(IF($DW49>0,IF(BA$28<=(L_TENOR*L_NUM_REPAY),IF(BA$28<>0,IF(BA$28>(L_GRACE*L_NUM_REPAY),(($DW49-SUM($E49:AZ49))/AZ$31),0),0),0),0)) -> 0 | BB49: =(IF($DW49>0,IF(BB$28<=(L_TENOR*L_NUM_REPAY),IF(BB$28<>0,IF(BB$28>(L_GRACE*L_NUM_REPAY),(($DW49-SUM($E49:BA49))/BA$31),0),0),0),0)) -> 0 | BC49: =(IF($DW49>0,IF(BC$28<=(L_TENOR*L_NUM_REPAY),IF(BC$28<>0,IF(BC$28>(L_GRACE*L_NUM_REPAY),(($DW49-SUM($E49:BB49))/BB$31),0),0),0),0)) -> 0 | BD49: =(IF($DW49>0,IF(BD$28<=(L_TENOR*L_NUM_REPAY),IF(BD$28<>0,IF(BD$28>(L_GRACE*L_NUM_REPAY),(($DW49-SUM($E49:BC49))/BC$31),0),0),0),0)) -> 0 | BE49: =(IF($DW49>0,IF(BE$28<=(L_TENOR*L_NUM_REPAY),IF(BE$28<>0,IF(BE$28>(L_GRACE*L_NUM_REPAY),(($DW49-SUM($E49:BD49))/BD$31),0),0),0),0)) -> 0 | BF49: =(IF($DW49>0,IF(BF$28<=(L_TENOR*L_NUM_REPAY),IF(BF$28<>0,IF(BF$28>(L_GRACE*L_NUM_REPAY),(($DW49-SUM($E49:BE49))/BE$31),0),0),0),0)) -> 0 | BG49: =(IF($DW49>0,IF(BG$28<=(L_TENOR*L_NUM_REPAY),IF(BG$28<>0,IF(BG$28>(L_GRACE*L_NUM_REPAY),(($DW49-SUM($E49:BF49))/BF$31),0),0),0),0)) -> 0 | BH49: =(IF($DW49>0,IF(BH$28<=(L_TENOR*L_NUM_REPAY),IF(BH$28<>0,IF(BH$28>(L_GRACE*L_NUM_REPAY),(($DW49-SUM($E49:BG49))/BG$31),0),0),0),0)) -> 0 | BI49: =(IF($DW49>0,IF(BI$28<=(L_TENOR*L_NUM_REPAY),IF(BI$28<>0,IF(BI$28>(L_GRACE*L_NUM_REPAY),(($DW49-SUM($E49:BH49))/BH$31),0),0),0),0)) -> 0 | BJ49: =(IF($DW49>0,IF(BJ$28<=(L_TENOR*L_NUM_REPAY),IF(BJ$28<>0,IF(BJ$28>(L_GRACE*L_NUM_REPAY),(($DW49-SUM($E49:BI49))/BI$31),0),0),0),0)) -> 0 | BK49: =(IF($DW49>0,IF(BK$28<=(L_TENOR*L_NUM_REPAY),IF(BK$28<>0,IF(BK$28>(L_GRACE*L_NUM_REPAY),(($DW49-SUM($E49:BJ49))/BJ$31),0),0),0),0)) -> 0 | BL49: =(IF($DW49>0,IF(BL$28<=(L_TENOR*L_NUM_REPAY),IF(BL$28<>0,IF(BL$28>(L_GRACE*L_NUM_REPAY),(($DW49-SUM($E49:BK49))/BK$31),0),0),0),0)) -> 0 | BM49: =(IF($DW49>0,IF(BM$28<=(L_TENOR*L_NUM_REPAY),IF(BM$28<>0,IF(BM$28>(L_GRACE*L_NUM_REPAY),(($DW49-SUM($E49:BL49))/BL$31),0),0),0),0)) -> 0 | BN49: =(IF($DW49>0,IF(BN$28<=(L_TENOR*L_NUM_REPAY),IF(BN$28<>0,IF(BN$28>(L_GRACE*L_NUM_REPAY),(($DW49-SUM($E49:BM49))/BM$31),0),0),0),0)) -> 0 | BO49: =(IF($DW49>0,IF(BO$28<=(L_TENOR*L_NUM_REPAY),IF(BO$28<>0,IF(BO$28>(L_GRACE*L_NUM_REPAY),(($DW49-SUM($E49:BN49))/BN$31),0),0),0),0)) -> 0 | BP49: =(IF($DW49>0,IF(BP$28<=(L_TENOR*L_NUM_REPAY),IF(BP$28<>0,IF(BP$28>(L_GRACE*L_NUM_REPAY),(($DW49-SUM($E49:BO49))/BO$31),0),0),0),0)) -> 0 | BQ49: =(IF($DW49>0,IF(BQ$28<=(L_TENOR*L_NUM_REPAY),IF(BQ$28<>0,IF(BQ$28>(L_GRACE*L_NUM_REPAY),(($DW49-SUM($E49:BP49))/BP$31),0),0),0),0)) -> 0 | BR49: =(IF($DW49>0,IF(BR$28<=(L_TENOR*L_NUM_REPAY),IF(BR$28<>0,IF(BR$28>(L_GRACE*L_NUM_REPAY),(($DW49-SUM($E49:BQ49))/BQ$31),0),0),0),0)) -> 0 | BS49: =(IF($DW49>0,IF(BS$28<=(L_TENOR*L_NUM_REPAY),IF(BS$28<>0,IF(BS$28>(L_GRACE*L_NUM_REPAY),(($DW49-SUM($E49:BR49))/BR$31),0),0),0),0)) -> 0 | BT49: =(IF($DW49>0,IF(BT$28<=(L_TENOR*L_NUM_REPAY),IF(BT$28<>0,IF(BT$28>(L_GRACE*L_NUM_REPAY),(($DW49-SUM($E49:BS49))/BS$31),0),0),0),0)) -> 0 | BU49: =(IF($DW49>0,IF(BU$28<=(L_TENOR*L_NUM_REPAY),IF(BU$28<>0,IF(BU$28>(L_GRACE*L_NUM_REPAY),(($DW49-SUM($E49:BT49))/BT$31),0),0),0),0)) -> 0 | BV49: =(IF($DW49>0,IF(BV$28<=(L_TENOR*L_NUM_REPAY),IF(BV$28<>0,IF(BV$28>(L_GRACE*L_NUM_REPAY),(($DW49-SUM($E49:BU49))/BU$31),0),0),0),0)) -> 0 | BW49: =(IF($DW49>0,IF(BW$28<=(L_TENOR*L_NUM_REPAY),IF(BW$28<>0,IF(BW$28>(L_GRACE*L_NUM_REPAY),(($DW49-SUM($E49:BV49))/BV$31),0),0),0),0)) -> 0 | BX49: =(IF($DW49>0,IF(BX$28<=(L_TENOR*L_NUM_REPAY),IF(BX$28<>0,IF(BX$28>(L_GRACE*L_NUM_REPAY),(($DW49-SUM($E49:BW49))/BW$31),0),0),0),0)) -> 0 | BY49: =(IF($DW49>0,IF(BY$28<=(L_TENOR*L_NUM_REPAY),IF(BY$28<>0,IF(BY$28>(L_GRACE*L_NUM_REPAY),(($DW49-SUM($E49:BX49))/BX$31),0),0),0),0)) -> 0 | BZ49: =(IF($DW49>0,IF(BZ$28<=(L_TENOR*L_NUM_REPAY),IF(BZ$28<>0,IF(BZ$28>(L_GRACE*L_NUM_REPAY),(($DW49-SUM($E49:BY49))/BY$31),0),0),0),0)) -> 0 | CA49: =(IF($DW49>0,IF(CA$28<=(L_TENOR*L_NUM_REPAY),IF(CA$28<>0,IF(CA$28>(L_GRACE*L_NUM_REPAY),(($DW49-SUM($E49:BZ49))/BZ$31),0),0),0),0)) -> 0 | CB49: =(IF($DW49>0,IF(CB$28<=(L_TENOR*L_NUM_REPAY),IF(CB$28<>0,IF(CB$28>(L_GRACE*L_NUM_REPAY),(($DW49-SUM($E49:CA49))/CA$31),0),0),0),0)) -> 0 | CC49: =(IF($DW49>0,IF(CC$28<=(L_TENOR*L_NUM_REPAY),IF(CC$28<>0,IF(CC$28>(L_GRACE*L_NUM_REPAY),(($DW49-SUM($E49:CB49))/CB$31),0),0),0),0)) -> 0 | CD49: =(IF($DW49>0,IF(CD$28<=(L_TENOR*L_NUM_REPAY),IF(CD$28<>0,IF(CD$28>(L_GRACE*L_NUM_REPAY),(($DW49-SUM($E49:CC49))/CC$31),0),0),0),0)) -> 0 | CE49: =(IF($DW49>0,IF(CE$28<=(L_TENOR*L_NUM_REPAY),IF(CE$28<>0,IF(CE$28>(L_GRACE*L_NUM_REPAY),(($DW49-SUM($E49:CD49))/CD$31),0),0),0),0)) -> 0 | CF49: =(IF($DW49>0,IF(CF$28<=(L_TENOR*L_NUM_REPAY),IF(CF$28<>0,IF(CF$28>(L_GRACE*L_NUM_REPAY),(($DW49-SUM($E49:CE49))/CE$31),0),0),0),0)) -> 0 | CG49: =(IF($DW49>0,IF(CG$28<=(L_TENOR*L_NUM_REPAY),IF(CG$28<>0,IF(CG$28>(L_GRACE*L_NUM_REPAY),(($DW49-SUM($E49:CF49))/CF$31),0),0),0),0)) -> 0 | CH49: =(IF($DW49>0,IF(CH$28<=(L_TENOR*L_NUM_REPAY),IF(CH$28<>0,IF(CH$28>(L_GRACE*L_NUM_REPAY),(($DW49-SUM($E49:CG49))/CG$31),0),0),0),0)) -> 0 | CI49: =(IF($DW49>0,IF(CI$28<=(L_TENOR*L_NUM_REPAY),IF(CI$28<>0,IF(CI$28>(L_GRACE*L_NUM_REPAY),(($DW49-SUM($E49:CH49))/CH$31),0),0),0),0)) -> 0 | CJ49: =(IF($DW49>0,IF(CJ$28<=(L_TENOR*L_NUM_REPAY),IF(CJ$28<>0,IF(CJ$28>(L_GRACE*L_NUM_REPAY),(($DW49-SUM($E49:CI49))/CI$31),0),0),0),0)) -> 0 | CK49: =(IF($DW49>0,IF(CK$28<=(L_TENOR*L_NUM_REPAY),IF(CK$28<>0,IF(CK$28>(L_GRACE*L_NUM_REPAY),(($DW49-SUM($E49:CJ49))/CJ$31),0),0),0),0)) -> 0 | CL49: =(IF($DW49>0,IF(CL$28<=(L_TENOR*L_NUM_REPAY),IF(CL$28<>0,IF(CL$28>(L_GRACE*L_NUM_REPAY),(($DW49-SUM($E49:CK49))/CK$31),0),0),0),0)) -> 0 | CM49: =(IF($DW49>0,IF(CM$28<=(L_TENOR*L_NUM_REPAY),IF(CM$28<>0,IF(CM$28>(L_GRACE*L_NUM_REPAY),(($DW49-SUM($E49:CL49))/CL$31),0),0),0),0)) -> 0 | CN49: =(IF($DW49>0,IF(CN$28<=(L_TENOR*L_NUM_REPAY),IF(CN$28<>0,IF(CN$28>(L_GRACE*L_NUM_REPAY),(($DW49-SUM($E49:CM49))/CM$31),0),0),0),0)) -> 0 | CO49: =(IF($DW49>0,IF(CO$28<=(L_TENOR*L_NUM_REPAY),IF(CO$28<>0,IF(CO$28>(L_GRACE*L_NUM_REPAY),(($DW49-SUM($E49:CN49))/CN$31),0),0),0),0)) -> 0 | CP49: =(IF($DW49>0,IF(CP$28<=(L_TENOR*L_NUM_REPAY),IF(CP$28<>0,IF(CP$28>(L_GRACE*L_NUM_REPAY),(($DW49-SUM($E49:CO49))/CO$31),0),0),0),0)) -> 0 | CQ49: =(IF($DW49>0,IF(CQ$28<=(L_TENOR*L_NUM_REPAY),IF(CQ$28<>0,IF(CQ$28>(L_GRACE*L_NUM_REPAY),(($DW49-SUM($E49:CP49))/CP$31),0),0),0),0)) -> 0 | CR49: =(IF($DW49>0,IF(CR$28<=(L_TENOR*L_NUM_REPAY),IF(CR$28<>0,IF(CR$28>(L_GRACE*L_NUM_REPAY),(($DW49-SUM($E49:CQ49))/CQ$31),0),0),0),0)) -> 0 | CS49: =(IF($DW49>0,IF(CS$28<=(L_TENOR*L_NUM_REPAY),IF(CS$28<>0,IF(CS$28>(L_GRACE*L_NUM_REPAY),(($DW49-SUM($E49:CR49))/CR$31),0),0),0),0)) -> 0 | CT49: =(IF($DW49>0,IF(CT$28<=(L_TENOR*L_NUM_REPAY),IF(CT$28<>0,IF(CT$28>(L_GRACE*L_NUM_REPAY),(($DW49-SUM($E49:CS49))/CS$31),0),0),0),0)) -> 0 | CU49: =(IF($DW49>0,IF(CU$28<=(L_TENOR*L_NUM_REPAY),IF(CU$28<>0,IF(CU$28>(L_GRACE*L_NUM_REPAY),(($DW49-SUM($E49:CT49))/CT$31),0),0),0),0)) -> 0 | CV49: =(IF($DW49>0,IF(CV$28<=(L_TENOR*L_NUM_REPAY),IF(CV$28<>0,IF(CV$28>(L_GRACE*L_NUM_REPAY),(($DW49-SUM($E49:CU49))/CU$31),0),0),0),0)) -> 0 | CW49: =(IF($DW49>0,IF(CW$28<=(L_TENOR*L_NUM_REPAY),IF(CW$28<>0,IF(CW$28>(L_GRACE*L_NUM_REPAY),(($DW49-SUM($E49:CV49))/CV$31),0),0),0),0)) -> 0 | CX49: =(IF($DW49>0,IF(CX$28<=(L_TENOR*L_NUM_REPAY),IF(CX$28<>0,IF(CX$28>(L_GRACE*L_NUM_REPAY),(($DW49-SUM($E49:CW49))/CW$31),0),0),0),0)) -> 0 | CY49: =(IF($DW49>0,IF(CY$28<=(L_TENOR*L_NUM_REPAY),IF(CY$28<>0,IF(CY$28>(L_GRACE*L_NUM_REPAY),(($DW49-SUM($E49:CX49))/CX$31),0),0),0),0)) -> 0 | CZ49: =(IF($DW49>0,IF(CZ$28<=(L_TENOR*L_NUM_REPAY),IF(CZ$28<>0,IF(CZ$28>(L_GRACE*L_NUM_REPAY),(($DW49-SUM($E49:CY49))/CY$31),0),0),0),0)) -> 0 | DA49: =(IF($DW49>0,IF(DA$28<=(L_TENOR*L_NUM_REPAY),IF(DA$28<>0,IF(DA$28>(L_GRACE*L_NUM_REPAY),(($DW49-SUM($E49:CZ49))/CZ$31),0),0),0),0)) -> 0 | DB49: =(IF($DW49>0,IF(DB$28<=(L_TENOR*L_NUM_REPAY),IF(DB$28<>0,IF(DB$28>(L_GRACE*L_NUM_REPAY),(($DW49-SUM($E49:DA49))/DA$31),0),0),0),0)) -> 0 | DC49: =(IF($DW49>0,IF(DC$28<=(L_TENOR*L_NUM_REPAY),IF(DC$28<>0,IF(DC$28>(L_GRACE*L_NUM_REPAY),(($DW49-SUM($E49:DB49))/DB$31),0),0),0),0)) -> 0 | DD49: =(IF($DW49>0,IF(DD$28<=(L_TENOR*L_NUM_REPAY),IF(DD$28<>0,IF(DD$28>(L_GRACE*L_NUM_REPAY),(($DW49-SUM($E49:DC49))/DC$31),0),0),0),0)) -> 0 | DE49: =(IF($DW49>0,IF(DE$28<=(L_TENOR*L_NUM_REPAY),IF(DE$28<>0,IF(DE$28>(L_GRACE*L_NUM_REPAY),(($DW49-SUM($E49:DD49))/DD$31),0),0),0),0)) -> 0 | DF49: =(IF($DW49>0,IF(DF$28<=(L_TENOR*L_NUM_REPAY),IF(DF$28<>0,IF(DF$28>(L_GRACE*L_NUM_REPAY),(($DW49-SUM($E49:DE49))/DE$31),0),0),0),0)) -> 0 | DG49: =(IF($DW49>0,IF(DG$28<=(L_TENOR*L_NUM_REPAY),IF(DG$28<>0,IF(DG$28>(L_GRACE*L_NUM_REPAY),(($DW49-SUM($E49:DF49))/DF$31),0),0),0),0)) -> 0 | DH49: =(IF($DW49>0,IF(DH$28<=(L_TENOR*L_NUM_REPAY),IF(DH$28<>0,IF(DH$28>(L_GRACE*L_NUM_REPAY),(($DW49-SUM($E49:DG49))/DG$31),0),0),0),0)) -> 0 | DI49: =(IF($DW49>0,IF(DI$28<=(L_TENOR*L_NUM_REPAY),IF(DI$28<>0,IF(DI$28>(L_GRACE*L_NUM_REPAY),(($DW49-SUM($E49:DH49))/DH$31),0),0),0),0)) -> 0 | DJ49: =(IF($DW49>0,IF(DJ$28<=(L_TENOR*L_NUM_REPAY),IF(DJ$28<>0,IF(DJ$28>(L_GRACE*L_NUM_REPAY),(($DW49-SUM($E49:DI49))/DI$31),0),0),0),0)) -> 0 | DK49: =(IF($DW49>0,IF(DK$28<=(L_TENOR*L_NUM_REPAY),IF(DK$28<>0,IF(DK$28>(L_GRACE*L_NUM_REPAY),(($DW49-SUM($E49:DJ49))/DJ$31),0),0),0),0)) -> 0 | DL49: =(IF($DW49>0,IF(DL$28<=(L_TENOR*L_NUM_REPAY),IF(DL$28<>0,IF(DL$28>(L_GRACE*L_NUM_REPAY),(($DW49-SUM($E49:DK49))/DK$31),0),0),0),0)) -> 0 | DM49: =(IF($DW49>0,IF(DM$28<=(L_TENOR*L_NUM_REPAY),IF(DM$28<>0,IF(DM$28>(L_GRACE*L_NUM_REPAY),(($DW49-SUM($E49:DL49))/DL$31),0),0),0),0)) -> 0 | DN49: =(IF($DW49>0,IF(DN$28<=(L_TENOR*L_NUM_REPAY),IF(DN$28<>0,IF(DN$28>(L_GRACE*L_NUM_REPAY),(($DW49-SUM($E49:DM49))/DM$31),0),0),0),0)) -> 0 | DO49: =(IF($DW49>0,IF(DO$28<=(L_TENOR*L_NUM_REPAY),IF(DO$28<>0,IF(DO$28>(L_GRACE*L_NUM_REPAY),(($DW49-SUM($E49:DN49))/DN$31),0),0),0),0)) -> 0 | DP49: =(IF($DW49>0,IF(DP$28<=(L_TENOR*L_NUM_REPAY),IF(DP$28<>0,IF(DP$28>(L_GRACE*L_NUM_REPAY),(($DW49-SUM($E49:DO49))/DO$31),0),0),0),0)) -> 0 | DQ49: =(IF($DW49>0,IF(DQ$28<=(L_TENOR*L_NUM_REPAY),IF(DQ$28<>0,IF(DQ$28>(L_GRACE*L_NUM_REPAY),(($DW49-SUM($E49:DP49))/DP$31),0),0),0),0)) -> 0 | DR49: =(IF($DW49>0,IF(DR$28<=(L_TENOR*L_NUM_REPAY),IF(DR$28<>0,IF(DR$28>(L_GRACE*L_NUM_REPAY),(($DW49-SUM($E49:DQ49))/DQ$31),0),0),0),0)) -> 0 | DS49: =(IF($DW49>0,IF(DS$28<=(L_TENOR*L_NUM_REPAY),IF(DS$28<>0,IF(DS$28>(L_GRACE*L_NUM_REPAY),(($DW49-SUM($E49:DR49))/DR$31),0),0),0),0)) -> 0 | DT49: =(IF($DW49>0,IF(DT$28<=(L_TENOR*L_NUM_REPAY),IF(DT$28<>0,IF(DT$28>(L_GRACE*L_NUM_REPAY),(($DW49-SUM($E49:DS49))/DS$31),0),0),0),0)) -> 0 | DU49: =(IF($DW49>0,IF(DU$28<=(L_TENOR*L_NUM_REPAY),IF(DU$28<>0,IF(DU$28>(L_GRACE*L_NUM_REPAY),(($DW49-SUM($E49:DT49))/DT$31),0),0),0),0)) -> 0 | DV49: 11 | DW49: =O106 -> 0
B51: EQUAL PRINCIPAL PAYMENT, EACH TRANCHE WITH OWN GRACE AND TENOR | DV51: Repayment start year | DW51: Disbursement
B53: Repayment period tranche 0 | E53: =IF(OR(E$28<L_GRACE+$DV52+1,E$28>L_TENOR+$DV52),0,1) -> 0 | F53: =IF(OR(F$28<L_GRACE+$DV52+1,F$28>L_TENOR+$DV52),0,1) -> 0 | G53: =IF(OR(G$28<L_GRACE+$DV52+1,G$28>L_TENOR+$DV52),0,1) -> 0 | H53: =IF(OR(H$28<L_GRACE+$DV52+1,H$28>L_TENOR+$DV52),0,1) -> 1 | I53: =IF(OR(I$28<L_GRACE+$DV52+1,I$28>L_TENOR+$DV52),0,1) -> 1 | J53: =IF(OR(J$28<L_GRACE+$DV52+1,J$28>L_TENOR+$DV52),0,1) -> 1 | K53: =IF(OR(K$28<L_GRACE+$DV52+1,K$28>L_TENOR+$DV52),0,1) -> 1 | L53: =IF(OR(L$28<L_GRACE+$DV52+1,L$28>L_TENOR+$DV52),0,1) -> 1 | M53: =IF(OR(M$28<L_GRACE+$DV52+1,M$28>L_TENOR+$DV52),0,1) -> 1 | N53: =IF(OR(N$28<L_GRACE+$DV52+1,N$28>L_TENOR+$DV52),0,1) -> 1 | O53: =IF(OR(O$28<L_GRACE+$DV52+1,O$28>L_TENOR+$DV52),0,1) -> 1 | P53: =IF(OR(P$28<L_GRACE+$DV52+1,P$28>L_TENOR+$DV52),0,1) -> 1 | Q53: =IF(OR(Q$28<L_GRACE+$DV52+1,Q$28>L_TENOR+$DV52),0,1) -> 1 | R53: =IF(OR(R$28<L_GRACE+$DV52+1,R$28>L_TENOR+$DV52),0,1) -> 1 | S53: =IF(OR(S$28<L_GRACE+$DV52+1,S$28>L_TENOR+$DV52),0,1) -> 1 | T53: =IF(OR(T$28<L_GRACE+$DV52+1,T$28>L_TENOR+$DV52),0,1) -> 1 | U53: =IF(OR(U$28<L_GRACE+$DV52+1,U$28>L_TENOR+$DV52),0,1) -> 1 | V53: =IF(OR(V$28<L_GRACE+$DV52+1,V$28>L_TENOR+$DV52),0,1) -> 1 | W53: =IF(OR(W$28<L_GRACE+$DV52+1,W$28>L_TENOR+$DV52),0,1) -> 1 | X53: =IF(OR(X$28<L_GRACE+$DV52+1,X$28>L_TENOR+$DV52),0,1) -> 1 | Y53: =IF(OR(Y$28<L_GRACE+$DV52+1,Y$28>L_TENOR+$DV52),0,1) -> 1 | Z53: =IF(OR(Z$28<L_GRACE+$DV52+1,Z$28>L_TENOR+$DV52),0,1) -> 0 | AA53: =IF(OR(AA$28<L_GRACE+$DV52+1,AA$28>L_TENOR+$DV52),0,1) -> 0 | AB53: =IF(OR(AB$28<L_GRACE+$DV52+1,AB$28>L_TENOR+$DV52),0,1) -> 0 | AC53: =IF(OR(AC$28<L_GRACE+$DV52+1,AC$28>L_TENOR+$DV52),0,1) -> 0 | AD53: =IF(OR(AD$28<L_GRACE+$DV52+1,AD$28>L_TENOR+$DV52),0,1) -> 0 | AE53: =IF(OR(AE$28<L_GRACE+$DV52+1,AE$28>L_TENOR+$DV52),0,1) -> 0 | AF53: =IF(OR(AF$28<L_GRACE+$DV52+1,AF$28>L_TENOR+$DV52),0,1) -> 0 | AG53: =IF(OR(AG$28<L_GRACE+$DV52+1,AG$28>L_TENOR+$DV52),0,1) -> 0 | AH53: =IF(OR(AH$28<L_GRACE+$DV52+1,AH$28>L_TENOR+$DV52),0,1) -> 0 | AI53: =IF(OR(AI$28<L_GRACE+$DV52+1,AI$28>L_TENOR+$DV52),0,1) -> 0 | AJ53: =IF(OR(AJ$28<L_GRACE+$DV52+1,AJ$28>L_TENOR+$DV52),0,1) -> 0 | AK53: =IF(OR(AK$28<L_GRACE+$DV52+1,AK$28>L_TENOR+$DV52),0,1) -> 0 | AL53: =IF(OR(AL$28<L_GRACE+$DV52+1,AL$28>L_TENOR+$DV52),0,1) -> 0 | AM53: =IF(OR(AM$28<L_GRACE+$DV52+1,AM$28>L_TENOR+$DV52),0,1) -> 0 | AN53: =IF(OR(AN$28<L_GRACE+$DV52+1,AN$28>L_TENOR+$DV52),0,1) -> 0 | AO53: =IF(OR(AO$28<L_GRACE+$DV52+1,AO$28>L_TENOR+$DV52),0,1) -> 0 | AP53: =IF(OR(AP$28<L_GRACE+$DV52+1,AP$28>L_TENOR+$DV52),0,1) -> 0 | AQ53: =IF(OR(AQ$28<L_GRACE+$DV52+1,AQ$28>L_TENOR+$DV52),0,1) -> 0 | AR53: =IF(OR(AR$28<L_GRACE+$DV52+1,AR$28>L_TENOR+$DV52),0,1) -> 0 | AS53: =IF(OR(AS$28<L_GRACE+$DV52+1,AS$28>L_TENOR+$DV52),0,1) -> 0 | AT53: =IF(OR(AT$28<L_GRACE+$DV52+1,AT$28>L_TENOR+$DV52),0,1) -> 0 | AU53: =IF(OR(AU$28<L_GRACE+$DV52+1,AU$28>L_TENOR+$DV52),0,1) -> 0 | AV53: =IF(OR(AV$28<L_GRACE+$DV52+1,AV$28>L_TENOR+$DV52),0,1) -> 0 | AW53: =IF(OR(AW$28<L_GRACE+$DV52+1,AW$28>L_TENOR+$DV52),0,1) -> 0 | AX53: =IF(OR(AX$28<L_GRACE+$DV52+1,AX$28>L_TENOR+$DV52),0,1) -> 0 | AY53: =IF(OR(AY$28<L_GRACE+$DV52+1,AY$28>L_TENOR+$DV52),0,1) -> 0 | AZ53: =IF(OR(AZ$28<L_GRACE+$DV52+1,AZ$28>L_TENOR+$DV52),0,1) -> 0 | BA53: =IF(OR(BA$28<L_GRACE+$DV52+1,BA$28>L_TENOR+$DV52),0,1) -> 0 | BB53: =IF(OR(BB$28<L_GRACE+$DV52+1,BB$28>L_TENOR+$DV52),0,1) -> 0 | BC53: =IF(OR(BC$28<L_GRACE+$DV52+1,BC$28>L_TENOR+$DV52),0,1) -> 0 | BD53: =IF(OR(BD$28<L_GRACE+$DV52+1,BD$28>L_TENOR+$DV52),0,1) -> 0 | BE53: =IF(OR(BE$28<L_GRACE+$DV52+1,BE$28>L_TENOR+$DV52),0,1) -> 0 | BF53: =IF(OR(BF$28<L_GRACE+$DV52+1,BF$28>L_TENOR+$DV52),0,1) -> 0 | BG53: =IF(OR(BG$28<L_GRACE+$DV52+1,BG$28>L_TENOR+$DV52),0,1) -> 0 | BH53: =IF(OR(BH$28<L_GRACE+$DV52+1,BH$28>L_TENOR+$DV52),0,1) -> 0 | BI53: =IF(OR(BI$28<L_GRACE+$DV52+1,BI$28>L_TENOR+$DV52),0,1) -> 0 | BJ53: =IF(OR(BJ$28<L_GRACE+$DV52+1,BJ$28>L_TENOR+$DV52),0,1) -> 0 | BK53: =IF(OR(BK$28<L_GRACE+$DV52+1,BK$28>L_TENOR+$DV52),0,1) -> 0 | BL53: =IF(OR(BL$28<L_GRACE+$DV52+1,BL$28>L_TENOR+$DV52),0,1) -> 0 | BM53: =IF(OR(BM$28<L_GRACE+$DV52+1,BM$28>L_TENOR+$DV52),0,1) -> 0 | BN53: =IF(OR(BN$28<L_GRACE+$DV52+1,BN$28>L_TENOR+$DV52),0,1) -> 0 | BO53: =IF(OR(BO$28<L_GRACE+$DV52+1,BO$28>L_TENOR+$DV52),0,1) -> 0 | BP53: =IF(OR(BP$28<L_GRACE+$DV52+1,BP$28>L_TENOR+$DV52),0,1) -> 0 | BQ53: =IF(OR(BQ$28<L_GRACE+$DV52+1,BQ$28>L_TENOR+$DV52),0,1) -> 0 | BR53: =IF(OR(BR$28<L_GRACE+$DV52+1,BR$28>L_TENOR+$DV52),0,1) -> 0 | BS53: =IF(OR(BS$28<L_GRACE+$DV52+1,BS$28>L_TENOR+$DV52),0,1) -> 0 | BT53: =IF(OR(BT$28<L_GRACE+$DV52+1,BT$28>L_TENOR+$DV52),0,1) -> 0 | BU53: =IF(OR(BU$28<L_GRACE+$DV52+1,BU$28>L_TENOR+$DV52),0,1) -> 0 | BV53: =IF(OR(BV$28<L_GRACE+$DV52+1,BV$28>L_TENOR+$DV52),0,1) -> 0 | BW53: =IF(OR(BW$28<L_GRACE+$DV52+1,BW$28>L_TENOR+$DV52),0,1) -> 0 | BX53: =IF(OR(BX$28<L_GRACE+$DV52+1,BX$28>L_TENOR+$DV52),0,1) -> 0 | BY53: =IF(OR(BY$28<L_GRACE+$DV52+1,BY$28>L_TENOR+$DV52),0,1) -> 0 | BZ53: =IF(OR(BZ$28<L_GRACE+$DV52+1,BZ$28>L_TENOR+$DV52),0,1) -> 0 | CA53: =IF(OR(CA$28<L_GRACE+$DV52+1,CA$28>L_TENOR+$DV52),0,1) -> 0 | CB53: =IF(OR(CB$28<L_GRACE+$DV52+1,CB$28>L_TENOR+$DV52),0,1) -> 0 | CC53: =IF(OR(CC$28<L_GRACE+$DV52+1,CC$28>L_TENOR+$DV52),0,1) -> 0 | CD53: =IF(OR(CD$28<L_GRACE+$DV52+1,CD$28>L_TENOR+$DV52),0,1) -> 0 | CE53: =IF(OR(CE$28<L_GRACE+$DV52+1,CE$28>L_TENOR+$DV52),0,1) -> 0 | CF53: =IF(OR(CF$28<L_GRACE+$DV52+1,CF$28>L_TENOR+$DV52),0,1) -> 0 | CG53: =IF(OR(CG$28<L_GRACE+$DV52+1,CG$28>L_TENOR+$DV52),0,1) -> 0 | CH53: =IF(OR(CH$28<L_GRACE+$DV52+1,CH$28>L_TENOR+$DV52),0,1) -> 0 | CI53: =IF(OR(CI$28<L_GRACE+$DV52+1,CI$28>L_TENOR+$DV52),0,1) -> 0 | CJ53: =IF(OR(CJ$28<L_GRACE+$DV52+1,CJ$28>L_TENOR+$DV52),0,1) -> 0 | CK53: =IF(OR(CK$28<L_GRACE+$DV52+1,CK$28>L_TENOR+$DV52),0,1) -> 0 | CL53: =IF(OR(CL$28<L_GRACE+$DV52+1,CL$28>L_TENOR+$DV52),0,1) -> 0 | CM53: =IF(OR(CM$28<L_GRACE+$DV52+1,CM$28>L_TENOR+$DV52),0,1) -> 0 | CN53: =IF(OR(CN$28<L_GRACE+$DV52+1,CN$28>L_TENOR+$DV52),0,1) -> 0 | CO53: =IF(OR(CO$28<L_GRACE+$DV52+1,CO$28>L_TENOR+$DV52),0,1) -> 0 | CP53: =IF(OR(CP$28<L_GRACE+$DV52+1,CP$28>L_TENOR+$DV52),0,1) -> 0 | CQ53: =IF(OR(CQ$28<L_GRACE+$DV52+1,CQ$28>L_TENOR+$DV52),0,1) -> 0 | CR53: =IF(OR(CR$28<L_GRACE+$DV52+1,CR$28>L_TENOR+$DV52),0,1) -> 0 | CS53: =IF(OR(CS$28<L_GRACE+$DV52+1,CS$28>L_TENOR+$DV52),0,1) -> 0 | CT53: =IF(OR(CT$28<L_GRACE+$DV52+1,CT$28>L_TENOR+$DV52),0,1) -> 0 | CU53: =IF(OR(CU$28<L_GRACE+$DV52+1,CU$28>L_TENOR+$DV52),0,1) -> 0 | CV53: =IF(OR(CV$28<L_GRACE+$DV52+1,CV$28>L_TENOR+$DV52),0,1) -> 0 | CW53: =IF(OR(CW$28<L_GRACE+$DV52+1,CW$28>L_TENOR+$DV52),0,1) -> 0 | CX53: =IF(OR(CX$28<L_GRACE+$DV52+1,CX$28>L_TENOR+$DV52),0,1) -> 0 | CY53: =IF(OR(CY$28<L_GRACE+$DV52+1,CY$28>L_TENOR+$DV52),0,1) -> 0 | CZ53: =IF(OR(CZ$28<L_GRACE+$DV52+1,CZ$28>L_TENOR+$DV52),0,1) -> 0 | DA53: =IF(OR(DA$28<L_GRACE+$DV52+1,DA$28>L_TENOR+$DV52),0,1) -> 0 | DB53: =IF(OR(DB$28<L_GRACE+$DV52+1,DB$28>L_TENOR+$DV52),0,1) -> 0 | DC53: =IF(OR(DC$28<L_GRACE+$DV52+1,DC$28>L_TENOR+$DV52),0,1) -> 0 | DD53: =IF(OR(DD$28<L_GRACE+$DV52+1,DD$28>L_TENOR+$DV52),0,1) -> 0 | DE53: =IF(OR(DE$28<L_GRACE+$DV52+1,DE$28>L_TENOR+$DV52),0,1) -> 0 | DF53: =IF(OR(DF$28<L_GRACE+$DV52+1,DF$28>L_TENOR+$DV52),0,1) -> 0 | DG53: =IF(OR(DG$28<L_GRACE+$DV52+1,DG$28>L_TENOR+$DV52),0,1) -> 0 | DH53: =IF(OR(DH$28<L_GRACE+$DV52+1,DH$28>L_TENOR+$DV52),0,1) -> 0 | DI53: =IF(OR(DI$28<L_GRACE+$DV52+1,DI$28>L_TENOR+$DV52),0,1) -> 0 | DJ53: =IF(OR(DJ$28<L_GRACE+$DV52+1,DJ$28>L_TENOR+$DV52),0,1) -> 0 | DK53: =IF(OR(DK$28<L_GRACE+$DV52+1,DK$28>L_TENOR+$DV52),0,1) -> 0 | DL53: =IF(OR(DL$28<L_GRACE+$DV52+1,DL$28>L_TENOR+$DV52),0,1) -> 0 | DM53: =IF(OR(DM$28<L_GRACE+$DV52+1,DM$28>L_TENOR+$DV52),0,1) -> 0 | DN53: =IF(OR(DN$28<L_GRACE+$DV52+1,DN$28>L_TENOR+$DV52),0,1) -> 0 | DO53: =IF(OR(DO$28<L_GRACE+$DV52+1,DO$28>L_TENOR+$DV52),0,1) -> 0 | DP53: =IF(OR(DP$28<L_GRACE+$DV52+1,DP$28>L_TENOR+$DV52),0,1) -> 0 | DQ53: =IF(OR(DQ$28<L_GRACE+$DV52+1,DQ$28>L_TENOR+$DV52),0,1) -> 0 | DR53: =IF(OR(DR$28<L_GRACE+$DV52+1,DR$28>L_TENOR+$DV52),0,1) -> 0 | DS53: =IF(OR(DS$28<L_GRACE+$DV52+1,DS$28>L_TENOR+$DV52),0,1) -> 0 | DT53: =IF(OR(DT$28<L_GRACE+$DV52+1,DT$28>L_TENOR+$DV52),0,1) -> 0 | DU53: =IF(OR(DU$28<L_GRACE+$DV52+1,DU$28>L_TENOR+$DV52),0,1) -> 0 | DV53: 1
B54: Repayment period tranche 1 | E54: 0 | F54: 0 | G54: 0 | H54: 0 | I54: 1 | J54: 1 | K54: 1 | L54: 1 | M54: 1 | N54: 1 | O54: 1 | P54: 1 | Q54: 1 | R54: 1 | S54: 1 | T54: 1 | U54: 1 | V54: 1 | W54: 1 | X54: 1 | Y54: 1 | Z54: 1 | AA54: 0 | AB54: 0 | AC54: 0 | AD54: 0 | AE54: 0 | AF54: 0 | AG54: 0 | AH54: 0 | AI54: 0 | AJ54: 0 | AK54: 0 | AL54: 0 | AM54: 0 | AN54: 0 | AO54: 0 | AP54: 0 | AQ54: 0 | AR54: 0 | AS54: 0 | AT54: 0 | AU54: 0 | AV54: 0 | AW54: 0 | AX54: 0 | AY54: 0 | AZ54: 0 | BA54: 0 | BB54: 0 | BC54: 0 | BD54: 0 | BE54: 0 | BF54: 0 | BG54: 0 | BH54: 0 | BI54: 0 | BJ54: 0 | BK54: 0 | BL54: 0 | BM54: 0 | BN54: 0 | BO54: 0 | BP54: 0 | BQ54: 0 | BR54: 0 | BS54: 0 | BT54: 0 | BU54: 0 | BV54: 0 | BW54: 0 | BX54: 0 | BY54: 0 | BZ54: 0 | CA54: 0 | CB54: 0 | CC54: 0 | CD54: 0 | CE54: 0 | CF54: 0 | CG54: 0 | CH54: 0 | CI54: 0 | CJ54: 0 | CK54: 0 | CL54: 0 | CM54: 0 | CN54: 0 | CO54: 0 | CP54: 0 | CQ54: 0 | CR54: 0 | CS54: 0 | CT54: 0 | CU54: 0 | CV54: 0 | CW54: 0 | CX54: 0 | CY54: 0 | CZ54: 0 | DA54: 0 | DB54: 0 | DC54: 0 | DD54: 0 | DE54: 0 | DF54: 0 | DG54: 0 | DH54: 0 | DI54: 0 | DJ54: 0 | DK54: 0 | DL54: 0 | DM54: 0 | DN54: 0 | DO54: 0 | DP54: 0 | DQ54: 0 | DR54: 0 | DS54: 0 | DT54: 0 | DU54: 0 | DV54: 2
B55: Repayment period tranche 2 | E55: 0 | F55: 0 | G55: 0 | H55: 0 | I55: 0 | J55: 1 | K55: 1 | L55: 1 | M55: 1 | N55: 1 | O55: 1 | P55: 1 | Q55: 1 | R55: 1 | S55: 1 | T55: 1 | U55: 1 | V55: 1 | W55: 1 | X55: 1 | Y55: 1 | Z55: 1 | AA55: 1 | AB55: 0 | AC55: 0 | AD55: 0 | AE55: 0 | AF55: 0 | AG55: 0 | AH55: 0 | AI55: 0 | AJ55: 0 | AK55: 0 | AL55: 0 | AM55: 0 | AN55: 0 | AO55: 0 | AP55: 0 | AQ55: 0 | AR55: 0 | AS55: 0 | AT55: 0 | AU55: 0 | AV55: 0 | AW55: 0 | AX55: 0 | AY55: 0 | AZ55: 0 | BA55: 0 | BB55: 0 | BC55: 0 | BD55: 0 | BE55: 0 | BF55: 0 | BG55: 0 | BH55: 0 | BI55: 0 | BJ55: 0 | BK55: 0 | BL55: 0 | BM55: 0 | BN55: 0 | BO55: 0 | BP55: 0 | BQ55: 0 | BR55: 0 | BS55: 0 | BT55: 0 | BU55: 0 | BV55: 0 | BW55: 0 | BX55: 0 | BY55: 0 | BZ55: 0 | CA55: 0 | CB55: 0 | CC55: 0 | CD55: 0 | CE55: 0 | CF55: 0 | CG55: 0 | CH55: 0 | CI55: 0 | CJ55: 0 | CK55: 0 | CL55: 0 | CM55: 0 | CN55: 0 | CO55: 0 | CP55: 0 | CQ55: 0 | CR55: 0 | CS55: 0 | CT55: 0 | CU55: 0 | CV55: 0 | CW55: 0 | CX55: 0 | CY55: 0 | CZ55: 0 | DA55: 0 | DB55: 0 | DC55: 0 | DD55: 0 | DE55: 0 | DF55: 0 | DG55: 0 | DH55: 0 | DI55: 0 | DJ55: 0 | DK55: 0 | DL55: 0 | DM55: 0 | DN55: 0 | DO55: 0 | DP55: 0 | DQ55: 0 | DR55: 0 | DS55: 0 | DT55: 0 | DU55: 0 | DV55: 3
B56: Repayment period tranche 3 | E56: 0 | F56: 0 | G56: 0 | H56: 0 | I56: 0 | J56: 0 | K56: 1 | L56: 1 | M56: 1 | N56: 1 | O56: 1 | P56: 1 | Q56: 1 | R56: 1 | S56: 1 | T56: 1 | U56: 1 | V56: 1 | W56: 1 | X56: 1 | Y56: 1 | Z56: 1 | AA56: 1 | AB56: 1 | AC56: 0 | AD56: 0 | AE56: 0 | AF56: 0 | AG56: 0 | AH56: 0 | AI56: 0 | AJ56: 0 | AK56: 0 | AL56: 0 | AM56: 0 | AN56: 0 | AO56: 0 | AP56: 0 | AQ56: 0 | AR56: 0 | AS56: 0 | AT56: 0 | AU56: 0 | AV56: 0 | AW56: 0 | AX56: 0 | AY56: 0 | AZ56: 0 | BA56: 0 | BB56: 0 | BC56: 0 | BD56: 0 | BE56: 0 | BF56: 0 | BG56: 0 | BH56: 0 | BI56: 0 | BJ56: 0 | BK56: 0 | BL56: 0 | BM56: 0 | BN56: 0 | BO56: 0 | BP56: 0 | BQ56: 0 | BR56: 0 | BS56: 0 | BT56: 0 | BU56: 0 | BV56: 0 | BW56: 0 | BX56: 0 | BY56: 0 | BZ56: 0 | CA56: 0 | CB56: 0 | CC56: 0 | CD56: 0 | CE56: 0 | CF56: 0 | CG56: 0 | CH56: 0 | CI56: 0 | CJ56: 0 | CK56: 0 | CL56: 0 | CM56: 0 | CN56: 0 | CO56: 0 | CP56: 0 | CQ56: 0 | CR56: 0 | CS56: 0 | CT56: 0 | CU56: 0 | CV56: 0 | CW56: 0 | CX56: 0 | CY56: 0 | CZ56: 0 | DA56: 0 | DB56: 0 | DC56: 0 | DD56: 0 | DE56: 0 | DF56: 0 | DG56: 0 | DH56: 0 | DI56: 0 | DJ56: 0 | DK56: 0 | DL56: 0 | DM56: 0 | DN56: 0 | DO56: 0 | DP56: 0 | DQ56: 0 | DR56: 0 | DS56: 0 | DT56: 0 | DU56: 0 | DV56: 4
B57: Repayment period tranche 4 | E57: 0 | F57: 0 | G57: 0 | H57: 0 | I57: 0 | J57: 0 | K57: 0 | L57: 1 | M57: 1 | N57: 1 | O57: 1 | P57: 1 | Q57: 1 | R57: 1 | S57: 1 | T57: 1 | U57: 1 | V57: 1 | W57: 1 | X57: 1 | Y57: 1 | Z57: 1 | AA57: 1 | AB57: 1 | AC57: 1 | AD57: 0 | AE57: 0 | AF57: 0 | AG57: 0 | AH57: 0 | AI57: 0 | AJ57: 0 | AK57: 0 | AL57: 0 | AM57: 0 | AN57: 0 | AO57: 0 | AP57: 0 | AQ57: 0 | AR57: 0 | AS57: 0 | AT57: 0 | AU57: 0 | AV57: 0 | AW57: 0 | AX57: 0 | AY57: 0 | AZ57: 0 | BA57: 0 | BB57: 0 | BC57: 0 | BD57: 0 | BE57: 0 | BF57: 0 | BG57: 0 | BH57: 0 | BI57: 0 | BJ57: 0 | BK57: 0 | BL57: 0 | BM57: 0 | BN57: 0 | BO57: 0 | BP57: 0 | BQ57: 0 | BR57: 0 | BS57: 0 | BT57: 0 | BU57: 0 | BV57: 0 | BW57: 0 | BX57: 0 | BY57: 0 | BZ57: 0 | CA57: 0 | CB57: 0 | CC57: 0 | CD57: 0 | CE57: 0 | CF57: 0 | CG57: 0 | CH57: 0 | CI57: 0 | CJ57: 0 | CK57: 0 | CL57: 0 | CM57: 0 | CN57: 0 | CO57: 0 | CP57: 0 | CQ57: 0 | CR57: 0 | CS57: 0 | CT57: 0 | CU57: 0 | CV57: 0 | CW57: 0 | CX57: 0 | CY57: 0 | CZ57: 0 | DA57: 0 | DB57: 0 | DC57: 0 | DD57: 0 | DE57: 0 | DF57: 0 | DG57: 0 | DH57: 0 | DI57: 0 | DJ57: 0 | DK57: 0 | DL57: 0 | DM57: 0 | DN57: 0 | DO57: 0 | DP57: 0 | DQ57: 0 | DR57: 0 | DS57: 0 | DT57: 0 | DU57: 0 | DV57: 5
B58: Repayment period tranche 5 | E58: 0 | F58: 0 | G58: 0 | H58: 0 | I58: 0 | J58: 0 | K58: 0 | L58: 0 | M58: 1 | N58: 1 | O58: 1 | P58: 1 | Q58: 1 | R58: 1 | S58: 1 | T58: 1 | U58: 1 | V58: 1 | W58: 1 | X58: 1 | Y58: 1 | Z58: 1 | AA58: 1 | AB58: 1 | AC58: 1 | AD58: 1 | AE58: 0 | AF58: 0 | AG58: 0 | AH58: 0 | AI58: 0 | AJ58: 0 | AK58: 0 | AL58: 0 | AM58: 0 | AN58: 0 | AO58: 0 | AP58: 0 | AQ58: 0 | AR58: 0 | AS58: 0 | AT58: 0 | AU58: 0 | AV58: 0 | AW58: 0 | AX58: 0 | AY58: 0 | AZ58: 0 | BA58: 0 | BB58: 0 | BC58: 0 | BD58: 0 | BE58: 0 | BF58: 0 | BG58: 0 | BH58: 0 | BI58: 0 | BJ58: 0 | BK58: 0 | BL58: 0 | BM58: 0 | BN58: 0 | BO58: 0 | BP58: 0 | BQ58: 0 | BR58: 0 | BS58: 0 | BT58: 0 | BU58: 0 | BV58: 0 | BW58: 0 | BX58: 0 | BY58: 0 | BZ58: 0 | CA58: 0 | CB58: 0 | CC58: 0 | CD58: 0 | CE58: 0 | CF58: 0 | CG58: 0 | CH58: 0 | CI58: 0 | CJ58: 0 | CK58: 0 | CL58: 0 | CM58: 0 | CN58: 0 | CO58: 0 | CP58: 0 | CQ58: 0 | CR58: 0 | CS58: 0 | CT58: 0 | CU58: 0 | CV58: 0 | CW58: 0 | CX58: 0 | CY58: 0 | CZ58: 0 | DA58: 0 | DB58: 0 | DC58: 0 | DD58: 0 | DE58: 0 | DF58: 0 | DG58: 0 | DH58: 0 | DI58: 0 | DJ58: 0 | DK58: 0 | DL58: 0 | DM58: 0 | DN58: 0 | DO58: 0 | DP58: 0 | DQ58: 0 | DR58: 0 | DS58: 0 | DT58: 0 | DU58: 0 | DV58: 6
B59: Repayment period tranche 6 | E59: 0 | F59: 0 | G59: 0 | H59: 0 | I59: 0 | J59: 0 | K59: 0 | L59: 0 | M59: 0 | N59: 1 | O59: 1 | P59: 1 | Q59: 1 | R59: 1 | S59: 1 | T59: 1 | U59: 1 | V59: 1 | W59: 1 | X59: 1 | Y59: 1 | Z59: 1 | AA59: 1 | AB59: 1 | AC59: 1 | AD59: 1 | AE59: 1 | AF59: 0 | AG59: 0 | AH59: 0 | AI59: 0 | AJ59: 0 | AK59: 0 | AL59: 0 | AM59: 0 | AN59: 0 | AO59: 0 | AP59: 0 | AQ59: 0 | AR59: 0 | AS59: 0 | AT59: 0 | AU59: 0 | AV59: 0 | AW59: 0 | AX59: 0 | AY59: 0 | AZ59: 0 | BA59: 0 | BB59: 0 | BC59: 0 | BD59: 0 | BE59: 0 | BF59: 0 | BG59: 0 | BH59: 0 | BI59: 0 | BJ59: 0 | BK59: 0 | BL59: 0 | BM59: 0 | BN59: 0 | BO59: 0 | BP59: 0 | BQ59: 0 | BR59: 0 | BS59: 0 | BT59: 0 | BU59: 0 | BV59: 0 | BW59: 0 | BX59: 0 | BY59: 0 | BZ59: 0 | CA59: 0 | CB59: 0 | CC59: 0 | CD59: 0 | CE59: 0 | CF59: 0 | CG59: 0 | CH59: 0 | CI59: 0 | CJ59: 0 | CK59: 0 | CL59: 0 | CM59: 0 | CN59: 0 | CO59: 0 | CP59: 0 | CQ59: 0 | CR59: 0 | CS59: 0 | CT59: 0 | CU59: 0 | CV59: 0 | CW59: 0 | CX59: 0 | CY59: 0 | CZ59: 0 | DA59: 0 | DB59: 0 | DC59: 0 | DD59: 0 | DE59: 0 | DF59: 0 | DG59: 0 | DH59: 0 | DI59: 0 | DJ59: 0 | DK59: 0 | DL59: 0 | DM59: 0 | DN59: 0 | DO59: 0 | DP59: 0 | DQ59: 0 | DR59: 0 | DS59: 0 | DT59: 0 | DU59: 0 | DV59: 7
B60: Repayment period tranche 7 | E60: 0 | F60: 0 | G60: 0 | H60: 0 | I60: 0 | J60: 0 | K60: 0 | L60: 0 | M60: 0 | N60: 0 | O60: 1 | P60: 1 | Q60: 1 | R60: 1 | S60: 1 | T60: 1 | U60: 1 | V60: 1 | W60: 1 | X60: 1 | Y60: 1 | Z60: 1 | AA60: 1 | AB60: 1 | AC60: 1 | AD60: 1 | AE60: 1 | AF60: 1 | AG60: 0 | AH60: 0 | AI60: 0 | AJ60: 0 | AK60: 0 | AL60: 0 | AM60: 0 | AN60: 0 | AO60: 0 | AP60: 0 | AQ60: 0 | AR60: 0 | AS60: 0 | AT60: 0 | AU60: 0 | AV60: 0 | AW60: 0 | AX60: 0 | AY60: 0 | AZ60: 0 | BA60: 0 | BB60: 0 | BC60: 0 | BD60: 0 | BE60: 0 | BF60: 0 | BG60: 0 | BH60: 0 | BI60: 0 | BJ60: 0 | BK60: 0 | BL60: 0 | BM60: 0 | BN60: 0 | BO60: 0 | BP60: 0 | BQ60: 0 | BR60: 0 | BS60: 0 | BT60: 0 | BU60: 0 | BV60: 0 | BW60: 0 | BX60: 0 | BY60: 0 | BZ60: 0 | CA60: 0 | CB60: 0 | CC60: 0 | CD60: 0 | CE60: 0 | CF60: 0 | CG60: 0 | CH60: 0 | CI60: 0 | CJ60: 0 | CK60: 0 | CL60: 0 | CM60: 0 | CN60: 0 | CO60: 0 | CP60: 0 | CQ60: 0 | CR60: 0 | CS60: 0 | CT60: 0 | CU60: 0 | CV60: 0 | CW60: 0 | CX60: 0 | CY60: 0 | CZ60: 0 | DA60: 0 | DB60: 0 | DC60: 0 | DD60: 0 | DE60: 0 | DF60: 0 | DG60: 0 | DH60: 0 | DI60: 0 | DJ60: 0 | DK60: 0 | DL60: 0 | DM60: 0 | DN60: 0 | DO60: 0 | DP60: 0 | DQ60: 0 | DR60: 0 | DS60: 0 | DT60: 0 | DU60: 0 | DV60: 8
B61: Repayment period tranche 8 | E61: 0 | F61: 0 | G61: 0 | H61: 0 | I61: 0 | J61: 0 | K61: 0 | L61: 0 | M61: 0 | N61: 0 | O61: 0 | P61: 1 | Q61: 1 | R61: 1 | S61: 1 | T61: 1 | U61: 1 | V61: 1 | W61: 1 | X61: 1 | Y61: 1 | Z61: 1 | AA61: 1 | AB61: 1 | AC61: 1 | AD61: 1 | AE61: 1 | AF61: 1 | AG61: 1 | AH61: 0 | AI61: 0 | AJ61: 0 | AK61: 0 | AL61: 0 | AM61: 0 | AN61: 0 | AO61: 0 | AP61: 0 | AQ61: 0 | AR61: 0 | AS61: 0 | AT61: 0 | AU61: 0 | AV61: 0 | AW61: 0 | AX61: 0 | AY61: 0 | AZ61: 0 | BA61: 0 | BB61: 0 | BC61: 0 | BD61: 0 | BE61: 0 | BF61: 0 | BG61: 0 | BH61: 0 | BI61: 0 | BJ61: 0 | BK61: 0 | BL61: 0 | BM61: 0 | BN61: 0 | BO61: 0 | BP61: 0 | BQ61: 0 | BR61: 0 | BS61: 0 | BT61: 0 | BU61: 0 | BV61: 0 | BW61: 0 | BX61: 0 | BY61: 0 | BZ61: 0 | CA61: 0 | CB61: 0 | CC61: 0 | CD61: 0 | CE61: 0 | CF61: 0 | CG61: 0 | CH61: 0 | CI61: 0 | CJ61: 0 | CK61: 0 | CL61: 0 | CM61: 0 | CN61: 0 | CO61: 0 | CP61: 0 | CQ61: 0 | CR61: 0 | CS61: 0 | CT61: 0 | CU61: 0 | CV61: 0 | CW61: 0 | CX61: 0 | CY61: 0 | CZ61: 0 | DA61: 0 | DB61: 0 | DC61: 0 | DD61: 0 | DE61: 0 | DF61: 0 | DG61: 0 | DH61: 0 | DI61: 0 | DJ61: 0 | DK61: 0 | DL61: 0 | DM61: 0 | DN61: 0 | DO61: 0 | DP61: 0 | DQ61: 0 | DR61: 0 | DS61: 0 | DT61: 0 | DU61: 0 | DV61: 9
B62: Repayment period tranche 9 | E62: 0 | F62: 0 | G62: 0 | H62: 0 | I62: 0 | J62: 0 | K62: 0 | L62: 0 | M62: 0 | N62: 0 | O62: 0 | P62: 0 | Q62: 1 | R62: 1 | S62: 1 | T62: 1 | U62: 1 | V62: 1 | W62: 1 | X62: 1 | Y62: 1 | Z62: 1 | AA62: 1 | AB62: 1 | AC62: 1 | AD62: 1 | AE62: 1 | AF62: 1 | AG62: 1 | AH62: 1 | AI62: 0 | AJ62: 0 | AK62: 0 | AL62: 0 | AM62: 0 | AN62: 0 | AO62: 0 | AP62: 0 | AQ62: 0 | AR62: 0 | AS62: 0 | AT62: 0 | AU62: 0 | AV62: 0 | AW62: 0 | AX62: 0 | AY62: 0 | AZ62: 0 | BA62: 0 | BB62: 0 | BC62: 0 | BD62: 0 | BE62: 0 | BF62: 0 | BG62: 0 | BH62: 0 | BI62: 0 | BJ62: 0 | BK62: 0 | BL62: 0 | BM62: 0 | BN62: 0 | BO62: 0 | BP62: 0 | BQ62: 0 | BR62: 0 | BS62: 0 | BT62: 0 | BU62: 0 | BV62: 0 | BW62: 0 | BX62: 0 | BY62: 0 | BZ62: 0 | CA62: 0 | CB62: 0 | CC62: 0 | CD62: 0 | CE62: 0 | CF62: 0 | CG62: 0 | CH62: 0 | CI62: 0 | CJ62: 0 | CK62: 0 | CL62: 0 | CM62: 0 | CN62: 0 | CO62: 0 | CP62: 0 | CQ62: 0 | CR62: 0 | CS62: 0 | CT62: 0 | CU62: 0 | CV62: 0 | CW62: 0 | CX62: 0 | CY62: 0 | CZ62: 0 | DA62: 0 | DB62: 0 | DC62: 0 | DD62: 0 | DE62: 0 | DF62: 0 | DG62: 0 | DH62: 0 | DI62: 0 | DJ62: 0 | DK62: 0 | DL62: 0 | DM62: 0 | DN62: 0 | DO62: 0 | DP62: 0 | DQ62: 0 | DR62: 0 | DS62: 0 | DT62: 0 | DU62: 0 | DV62: 10
B63: Repayment period tranche 10 | E63: 0 | F63: 0 | G63: 0 | H63: 0 | I63: 0 | J63: 0 | K63: 0 | L63: 0 | M63: 0 | N63: 0 | O63: 0 | P63: 0 | Q63: 0 | R63: 1 | S63: 1 | T63: 1 | U63: 1 | V63: 1 | W63: 1 | X63: 1 | Y63: 1 | Z63: 1 | AA63: 1 | AB63: 1 | AC63: 1 | AD63: 1 | AE63: 1 | AF63: 1 | AG63: 1 | AH63: 1 | AI63: 1 | AJ63: 0 | AK63: 0 | AL63: 0 | AM63: 0 | AN63: 0 | AO63: 0 | AP63: 0 | AQ63: 0 | AR63: 0 | AS63: 0 | AT63: 0 | AU63: 0 | AV63: 0 | AW63: 0 | AX63: 0 | AY63: 0 | AZ63: 0 | BA63: 0 | BB63: 0 | BC63: 0 | BD63: 0 | BE63: 0 | BF63: 0 | BG63: 0 | BH63: 0 | BI63: 0 | BJ63: 0 | BK63: 0 | BL63: 0 | BM63: 0 | BN63: 0 | BO63: 0 | BP63: 0 | BQ63: 0 | BR63: 0 | BS63: 0 | BT63: 0 | BU63: 0 | BV63: 0 | BW63: 0 | BX63: 0 | BY63: 0 | BZ63: 0 | CA63: 0 | CB63: 0 | CC63: 0 | CD63: 0 | CE63: 0 | CF63: 0 | CG63: 0 | CH63: 0 | CI63: 0 | CJ63: 0 | CK63: 0 | CL63: 0 | CM63: 0 | CN63: 0 | CO63: 0 | CP63: 0 | CQ63: 0 | CR63: 0 | CS63: 0 | CT63: 0 | CU63: 0 | CV63: 0 | CW63: 0 | CX63: 0 | CY63: 0 | CZ63: 0 | DA63: 0 | DB63: 0 | DC63: 0 | DD63: 0 | DE63: 0 | DF63: 0 | DG63: 0 | DH63: 0 | DI63: 0 | DJ63: 0 | DK63: 0 | DL63: 0 | DM63: 0 | DN63: 0 | DO63: 0 | DP63: 0 | DQ63: 0 | DR63: 0 | DS63: 0 | DT63: 0 | DU63: 0 | DV63: 11
B64: Is there active repayment? | E64: =IF(MAX(E65:E75)>0,1,0) -> 0 | F64: =IF(MAX(F65:F75)>0,1,0) -> 0 | G64: 0 | H64: 1 | I64: 1 | J64: 1 | K64: 1 | L64: 1 | M64: 1 | N64: 1 | O64: 1 | P64: =IF(MAX(P65:P75)>0,1,0) -> 1 | Q64: 1 | R64: 1 | S64: 1 | T64: 1 | U64: 1 | V64: 1 | W64: 1 | X64: 1 | Y64: 1 | Z64: 1 | AA64: 0 | AB64: 0 | AC64: 0 | AD64: 0 | AE64: 0 | AF64: 0 | AG64: 0 | AH64: 0 | AI64: 0 | AJ64: 0 | AK64: 0 | AL64: 0 | AM64: 0 | AN64: 0 | AO64: 0 | AP64: 0 | AQ64: 0 | AR64: 0 | AS64: 0 | AT64: 0 | AU64: 0 | AV64: =IF(MAX(AV65:AV75)>0,1,0) -> 0 | AW64: 0 | AX64: 0 | AY64: 0 | AZ64: 0 | BA64: 0 | BB64: 0 | BC64: 0 | BD64: 0 | BE64: 0 | BF64: 0 | BG64: 0 | BH64: 0 | BI64: 0 | BJ64: 0 | BK64: 0 | BL64: 0 | BM64: 0 | BN64: 0 | BO64: 0 | BP64: 0 | BQ64: 0 | BR64: 0 | BS64: 0 | BT64: 0 | BU64: 0 | BV64: 0 | BW64: 0 | BX64: 0 | BY64: 0 | BZ64: 0 | CA64: 0 | CB64: =IF(MAX(CB65:CB75)>0,1,0) -> 0 | CC64: 0 | CD64: 0 | CE64: 0 | CF64: 0 | CG64: 0 | CH64: 0 | CI64: 0 | CJ64: 0 | CK64: 0 | CL64: 0 | CM64: 0 | CN64: 0 | CO64: 0 | CP64: 0 | CQ64: 0 | CR64: 0 | CS64: 0 | CT64: 0 | CU64: 0 | CV64: 0 | CW64: 0 | CX64: 0 | CY64: 0 | CZ64: 0 | DA64: 0 | DB64: 0 | DC64: 0 | DD64: 0 | DE64: 0 | DF64: 0 | DG64: 0 | DH64: =IF(MAX(DH65:DH75)>0,1,0) -> 0 | DI64: 0 | DJ64: 0 | DK64: 0 | DL64: 0 | DM64: 0 | DN64: 0 | DO64: 0 | DP64: 0 | DQ64: 0 | DR64: 0 | DS64: 0 | DT64: 0 | DU64: 0
B65: Principal Tranche 0 | D65: =SUM(E65:DU65) -> 30 | E65: 0 | F65: =IF($DW65>0, IF(F53=1,(($DW65-SUM($E65:E65))/SUM(F53:$DU53)),0),0) -> 0 | G65: =IF($DW65>0, IF(G53=1,(($DW65-SUM($E65:F65))/SUM(G53:$DU53)),0),0) -> 0 | H65: =IF($DW65>0, IF(H53=1,(($DW65-SUM($E65:G65))/SUM(H53:$DU53)),0),0) -> 1.666666667 | I65: =IF($DW65>0, IF(I53=1,(($DW65-SUM($E65:H65))/SUM(I53:$DU53)),0),0) -> 1.666666667 | J65: =IF($DW65>0, IF(J53=1,(($DW65-SUM($E65:I65))/SUM(J53:$DU53)),0),0) -> 1.666666667 | K65: =IF($DW65>0, IF(K53=1,(($DW65-SUM($E65:J65))/SUM(K53:$DU53)),0),0) -> 1.666666667 | L65: =IF($DW65>0, IF(L53=1,(($DW65-SUM($E65:K65))/SUM(L53:$DU53)),0),0) -> 1.666666667 | M65: =IF($DW65>0, IF(M53=1,(($DW65-SUM($E65:L65))/SUM(M53:$DU53)),0),0) -> 1.666666667 | N65: =IF($DW65>0, IF(N53=1,(($DW65-SUM($E65:M65))/SUM(N53:$DU53)),0),0) -> 1.666666667 | O65: =IF($DW65>0, IF(O53=1,(($DW65-SUM($E65:N65))/SUM(O53:$DU53)),0),0) -> 1.666666667 | P65: =IF($DW65>0, IF(P53=1,(($DW65-SUM($E65:O65))/SUM(P53:$DU53)),0),0) -> 1.666666667 | Q65: =IF($DW65>0, IF(Q53=1,(($DW65-SUM($E65:P65))/SUM(Q53:$DU53)),0),0) -> 1.666666667 | R65: =IF($DW65>0, IF(R53=1,(($DW65-SUM($E65:Q65))/SUM(R53:$DU53)),0),0) -> 1.666666667 | S65: =IF($DW65>0, IF(S53=1,(($DW65-SUM($E65:R65))/SUM(S53:$DU53)),0),0) -> 1.666666667 | T65: =IF($DW65>0, IF(T53=1,(($DW65-SUM($E65:S65))/SUM(T53:$DU53)),0),0) -> 1.666666667 | U65: =IF($DW65>0, IF(U53=1,(($DW65-SUM($E65:T65))/SUM(U53:$DU53)),0),0) -> 1.666666667 | V65: =IF($DW65>0, IF(V53=1,(($DW65-SUM($E65:U65))/SUM(V53:$DU53)),0),0) -> 1.666666667 | W65: =IF($DW65>0, IF(W53=1,(($DW65-SUM($E65:V65))/SUM(W53:$DU53)),0),0) -> 1.666666667 | X65: =IF($DW65>0, IF(X53=1,(($DW65-SUM($E65:W65))/SUM(X53:$DU53)),0),0) -> 1.666666667 | Y65: =IF($DW65>0, IF(Y53=1,(($DW65-SUM($E65:X65))/SUM(Y53:$DU53)),0),0) -> 1.666666667 | Z65: =IF($DW65>0, IF(Z53=1,(($DW65-SUM($E65:Y65))/SUM(Z53:$DU53)),0),0) -> 0 | AA65: =IF($DW65>0, IF(AA53=1,(($DW65-SUM($E65:Z65))/SUM(AA53:$DU53)),0),0) -> 0 | AB65: =IF($DW65>0, IF(AB53=1,(($DW65-SUM($E65:AA65))/SUM(AB53:$DU53)),0),0) -> 0 | AC65: =IF($DW65>0, IF(AC53=1,(($DW65-SUM($E65:AB65))/SUM(AC53:$DU53)),0),0) -> 0 | AD65: =IF($DW65>0, IF(AD53=1,(($DW65-SUM($E65:AC65))/SUM(AD53:$DU53)),0),0) -> 0 | AE65: =IF($DW65>0, IF(AE53=1,(($DW65-SUM($E65:AD65))/SUM(AE53:$DU53)),0),0) -> 0 | AF65: =IF($DW65>0, IF(AF53=1,(($DW65-SUM($E65:AE65))/SUM(AF53:$DU53)),0),0) -> 0 | AG65: =IF($DW65>0, IF(AG53=1,(($DW65-SUM($E65:AF65))/SUM(AG53:$DU53)),0),0) -> 0 | AH65: =IF($DW65>0, IF(AH53=1,(($DW65-SUM($E65:AG65))/SUM(AH53:$DU53)),0),0) -> 0 | AI65: =IF($DW65>0, IF(AI53=1,(($DW65-SUM($E65:AH65))/SUM(AI53:$DU53)),0),0) -> 0 | AJ65: =IF($DW65>0, IF(AJ53=1,(($DW65-SUM($E65:AI65))/SUM(AJ53:$DU53)),0),0) -> 0 | AK65: =IF($DW65>0, IF(AK53=1,(($DW65-SUM($E65:AJ65))/SUM(AK53:$DU53)),0),0) -> 0 | AL65: =IF($DW65>0, IF(AL53=1,(($DW65-SUM($E65:AK65))/SUM(AL53:$DU53)),0),0) -> 0 | AM65: =IF($DW65>0, IF(AM53=1,(($DW65-SUM($E65:AL65))/SUM(AM53:$DU53)),0),0) -> 0 | AN65: =IF($DW65>0, IF(AN53=1,(($DW65-SUM($E65:AM65))/SUM(AN53:$DU53)),0),0) -> 0 | AO65: =IF($DW65>0, IF(AO53=1,(($DW65-SUM($E65:AN65))/SUM(AO53:$DU53)),0),0) -> 0 | AP65: =IF($DW65>0, IF(AP53=1,(($DW65-SUM($E65:AO65))/SUM(AP53:$DU53)),0),0) -> 0 | AQ65: =IF($DW65>0, IF(AQ53=1,(($DW65-SUM($E65:AP65))/SUM(AQ53:$DU53)),0),0) -> 0 | AR65: =IF($DW65>0, IF(AR53=1,(($DW65-SUM($E65:AQ65))/SUM(AR53:$DU53)),0),0) -> 0 | AS65: =IF($DW65>0, IF(AS53=1,(($DW65-SUM($E65:AR65))/SUM(AS53:$DU53)),0),0) -> 0 | AT65: =IF($DW65>0, IF(AT53=1,(($DW65-SUM($E65:AS65))/SUM(AT53:$DU53)),0),0) -> 0 | AU65: =IF($DW65>0, IF(AU53=1,(($DW65-SUM($E65:AT65))/SUM(AU53:$DU53)),0),0) -> 0 | AV65: =IF($DW65>0, IF(AV53=1,(($DW65-SUM($E65:AU65))/SUM(AV53:$DU53)),0),0) -> 0 | AW65: =IF($DW65>0, IF(AW53=1,(($DW65-SUM($E65:AV65))/SUM(AW53:$DU53)),0),0) -> 0 | AX65: =IF($DW65>0, IF(AX53=1,(($DW65-SUM($E65:AW65))/SUM(AX53:$DU53)),0),0) -> 0 | AY65: =IF($DW65>0, IF(AY53=1,(($DW65-SUM($E65:AX65))/SUM(AY53:$DU53)),0),0) -> 0 | AZ65: =IF($DW65>0, IF(AZ53=1,(($DW65-SUM($E65:AY65))/SUM(AZ53:$DU53)),0),0) -> 0 | BA65: =IF($DW65>0, IF(BA53=1,(($DW65-SUM($E65:AZ65))/SUM(BA53:$DU53)),0),0) -> 0 | BB65: =IF($DW65>0, IF(BB53=1,(($DW65-SUM($E65:BA65))/SUM(BB53:$DU53)),0),0) -> 0 | BC65: =IF($DW65>0, IF(BC53=1,(($DW65-SUM($E65:BB65))/SUM(BC53:$DU53)),0),0) -> 0 | BD65: =IF($DW65>0, IF(BD53=1,(($DW65-SUM($E65:BC65))/SUM(BD53:$DU53)),0),0) -> 0 | BE65: =IF($DW65>0, IF(BE53=1,(($DW65-SUM($E65:BD65))/SUM(BE53:$DU53)),0),0) -> 0 | BF65: =IF($DW65>0, IF(BF53=1,(($DW65-SUM($E65:BE65))/SUM(BF53:$DU53)),0),0) -> 0 | BG65: =IF($DW65>0, IF(BG53=1,(($DW65-SUM($E65:BF65))/SUM(BG53:$DU53)),0),0) -> 0 | BH65: =IF($DW65>0, IF(BH53=1,(($DW65-SUM($E65:BG65))/SUM(BH53:$DU53)),0),0) -> 0 | BI65: =IF($DW65>0, IF(BI53=1,(($DW65-SUM($E65:BH65))/SUM(BI53:$DU53)),0),0) -> 0 | BJ65: =IF($DW65>0, IF(BJ53=1,(($DW65-SUM($E65:BI65))/SUM(BJ53:$DU53)),0),0) -> 0 | BK65: =IF($DW65>0, IF(BK53=1,(($DW65-SUM($E65:BJ65))/SUM(BK53:$DU53)),0),0) -> 0 | BL65: =IF($DW65>0, IF(BL53=1,(($DW65-SUM($E65:BK65))/SUM(BL53:$DU53)),0),0) -> 0 | BM65: =IF($DW65>0, IF(BM53=1,(($DW65-SUM($E65:BL65))/SUM(BM53:$DU53)),0),0) -> 0 | BN65: =IF($DW65>0, IF(BN53=1,(($DW65-SUM($E65:BM65))/SUM(BN53:$DU53)),0),0) -> 0 | BO65: =IF($DW65>0, IF(BO53=1,(($DW65-SUM($E65:BN65))/SUM(BO53:$DU53)),0),0) -> 0 | BP65: =IF($DW65>0, IF(BP53=1,(($DW65-SUM($E65:BO65))/SUM(BP53:$DU53)),0),0) -> 0 | BQ65: =IF($DW65>0, IF(BQ53=1,(($DW65-SUM($E65:BP65))/SUM(BQ53:$DU53)),0),0) -> 0 | BR65: =IF($DW65>0, IF(BR53=1,(($DW65-SUM($E65:BQ65))/SUM(BR53:$DU53)),0),0) -> 0 | BS65: =IF($DW65>0, IF(BS53=1,(($DW65-SUM($E65:BR65))/SUM(BS53:$DU53)),0),0) -> 0 | BT65: =IF($DW65>0, IF(BT53=1,(($DW65-SUM($E65:BS65))/SUM(BT53:$DU53)),0),0) -> 0 | BU65: =IF($DW65>0, IF(BU53=1,(($DW65-SUM($E65:BT65))/SUM(BU53:$DU53)),0),0) -> 0 | BV65: =IF($DW65>0, IF(BV53=1,(($DW65-SUM($E65:BU65))/SUM(BV53:$DU53)),0),0) -> 0 | BW65: =IF($DW65>0, IF(BW53=1,(($DW65-SUM($E65:BV65))/SUM(BW53:$DU53)),0),0) -> 0 | BX65: =IF($DW65>0, IF(BX53=1,(($DW65-SUM($E65:BW65))/SUM(BX53:$DU53)),0),0) -> 0 | BY65: =IF($DW65>0, IF(BY53=1,(($DW65-SUM($E65:BX65))/SUM(BY53:$DU53)),0),0) -> 0 | BZ65: =IF($DW65>0, IF(BZ53=1,(($DW65-SUM($E65:BY65))/SUM(BZ53:$DU53)),0),0) -> 0 | CA65: =IF($DW65>0, IF(CA53=1,(($DW65-SUM($E65:BZ65))/SUM(CA53:$DU53)),0),0) -> 0 | CB65: =IF($DW65>0, IF(CB53=1,(($DW65-SUM($E65:CA65))/SUM(CB53:$DU53)),0),0) -> 0 | CC65: =IF($DW65>0, IF(CC53=1,(($DW65-SUM($E65:CB65))/SUM(CC53:$DU53)),0),0) -> 0 | CD65: =IF($DW65>0, IF(CD53=1,(($DW65-SUM($E65:CC65))/SUM(CD53:$DU53)),0),0) -> 0 | CE65: =IF($DW65>0, IF(CE53=1,(($DW65-SUM($E65:CD65))/SUM(CE53:$DU53)),0),0) -> 0 | CF65: =IF($DW65>0, IF(CF53=1,(($DW65-SUM($E65:CE65))/SUM(CF53:$DU53)),0),0) -> 0 | CG65: =IF($DW65>0, IF(CG53=1,(($DW65-SUM($E65:CF65))/SUM(CG53:$DU53)),0),0) -> 0 | CH65: =IF($DW65>0, IF(CH53=1,(($DW65-SUM($E65:CG65))/SUM(CH53:$DU53)),0),0) -> 0 | CI65: =IF($DW65>0, IF(CI53=1,(($DW65-SUM($E65:CH65))/SUM(CI53:$DU53)),0),0) -> 0 | CJ65: =IF($DW65>0, IF(CJ53=1,(($DW65-SUM($E65:CI65))/SUM(CJ53:$DU53)),0),0) -> 0 | CK65: =IF($DW65>0, IF(CK53=1,(($DW65-SUM($E65:CJ65))/SUM(CK53:$DU53)),0),0) -> 0 | CL65: =IF($DW65>0, IF(CL53=1,(($DW65-SUM($E65:CK65))/SUM(CL53:$DU53)),0),0) -> 0 | CM65: =IF($DW65>0, IF(CM53=1,(($DW65-SUM($E65:CL65))/SUM(CM53:$DU53)),0),0) -> 0 | CN65: =IF($DW65>0, IF(CN53=1,(($DW65-SUM($E65:CM65))/SUM(CN53:$DU53)),0),0) -> 0 | CO65: =IF($DW65>0, IF(CO53=1,(($DW65-SUM($E65:CN65))/SUM(CO53:$DU53)),0),0) -> 0 | CP65: =IF($DW65>0, IF(CP53=1,(($DW65-SUM($E65:CO65))/SUM(CP53:$DU53)),0),0) -> 0 | CQ65: =IF($DW65>0, IF(CQ53=1,(($DW65-SUM($E65:CP65))/SUM(CQ53:$DU53)),0),0) -> 0 | CR65: =IF($DW65>0, IF(CR53=1,(($DW65-SUM($E65:CQ65))/SUM(CR53:$DU53)),0),0) -> 0 | CS65: =IF($DW65>0, IF(CS53=1,(($DW65-SUM($E65:CR65))/SUM(CS53:$DU53)),0),0) -> 0 | CT65: =IF($DW65>0, IF(CT53=1,(($DW65-SUM($E65:CS65))/SUM(CT53:$DU53)),0),0) -> 0 | CU65: =IF($DW65>0, IF(CU53=1,(($DW65-SUM($E65:CT65))/SUM(CU53:$DU53)),0),0) -> 0 | CV65: =IF($DW65>0, IF(CV53=1,(($DW65-SUM($E65:CU65))/SUM(CV53:$DU53)),0),0) -> 0 | CW65: =IF($DW65>0, IF(CW53=1,(($DW65-SUM($E65:CV65))/SUM(CW53:$DU53)),0),0) -> 0 | CX65: =IF($DW65>0, IF(CX53=1,(($DW65-SUM($E65:CW65))/SUM(CX53:$DU53)),0),0) -> 0 | CY65: =IF($DW65>0, IF(CY53=1,(($DW65-SUM($E65:CX65))/SUM(CY53:$DU53)),0),0) -> 0 | CZ65: =IF($DW65>0, IF(CZ53=1,(($DW65-SUM($E65:CY65))/SUM(CZ53:$DU53)),0),0) -> 0 | DA65: =IF($DW65>0, IF(DA53=1,(($DW65-SUM($E65:CZ65))/SUM(DA53:$DU53)),0),0) -> 0 | DB65: =IF($DW65>0, IF(DB53=1,(($DW65-SUM($E65:DA65))/SUM(DB53:$DU53)),0),0) -> 0 | DC65: =IF($DW65>0, IF(DC53=1,(($DW65-SUM($E65:DB65))/SUM(DC53:$DU53)),0),0) -> 0 | DD65: =IF($DW65>0, IF(DD53=1,(($DW65-SUM($E65:DC65))/SUM(DD53:$DU53)),0),0) -> 0 | DE65: =IF($DW65>0, IF(DE53=1,(($DW65-SUM($E65:DD65))/SUM(DE53:$DU53)),0),0) -> 0 | DF65: =IF($DW65>0, IF(DF53=1,(($DW65-SUM($E65:DE65))/SUM(DF53:$DU53)),0),0) -> 0 | DG65: =IF($DW65>0, IF(DG53=1,(($DW65-SUM($E65:DF65))/SUM(DG53:$DU53)),0),0) -> 0 | DH65: =IF($DW65>0, IF(DH53=1,(($DW65-SUM($E65:DG65))/SUM(DH53:$DU53)),0),0) -> 0 | DI65: =IF($DW65>0, IF(DI53=1,(($DW65-SUM($E65:DH65))/SUM(DI53:$DU53)),0),0) -> 0 | DJ65: =IF($DW65>0, IF(DJ53=1,(($DW65-SUM($E65:DI65))/SUM(DJ53:$DU53)),0),0) -> 0 | DK65: =IF($DW65>0, IF(DK53=1,(($DW65-SUM($E65:DJ65))/SUM(DK53:$DU53)),0),0) -> 0 | DL65: =IF($DW65>0, IF(DL53=1,(($DW65-SUM($E65:DK65))/SUM(DL53:$DU53)),0),0) -> 0 | DM65: =IF($DW65>0, IF(DM53=1,(($DW65-SUM($E65:DL65))/SUM(DM53:$DU53)),0),0) -> 0 | DN65: =IF($DW65>0, IF(DN53=1,(($DW65-SUM($E65:DM65))/SUM(DN53:$DU53)),0),0) -> 0 | DO65: =IF($DW65>0, IF(DO53=1,(($DW65-SUM($E65:DN65))/SUM(DO53:$DU53)),0),0) -> 0 | DP65: =IF($DW65>0, IF(DP53=1,(($DW65-SUM($E65:DO65))/SUM(DP53:$DU53)),0),0) -> 0 | DQ65: =IF($DW65>0, IF(DQ53=1,(($DW65-SUM($E65:DP65))/SUM(DQ53:$DU53)),0),0) -> 0 | DR65: =IF($DW65>0, IF(DR53=1,(($DW65-SUM($E65:DQ65))/SUM(DR53:$DU53)),0),0) -> 0 | DS65: =IF($DW65>0, IF(DS53=1,(($DW65-SUM($E65:DR65))/SUM(DS53:$DU53)),0),0) -> 0 | DT65: =IF($DW65>0, IF(DT53=1,(($DW65-SUM($E65:DS65))/SUM(DT53:$DU53)),0),0) -> 0 | DU65: =IF($DW65>0, IF(DU53=1,(($DW65-SUM($E65:DT65))/SUM(DU53:$DU53)),0),0) -> 0 | DV65: 1 | DW65: =E130 -> 30
B66: Principal Tranche 1 | D66: 70 | E66: 0 | F66: 0 | G66: =IF($DW66>0, IF(G54=1,(($DW66-SUM($E66:F66))/SUM(G54:$DU54)),0),0) -> 0 | H66: =IF($DW66>0, IF(H54=1,(($DW66-SUM($E66:G66))/SUM(H54:$DU54)),0),0) -> 0 | I66: =IF($DW66>0, IF(I54=1,(($DW66-SUM($E66:H66))/SUM(I54:$DU54)),0),0) -> 3.888888889 | J66: =IF($DW66>0, IF(J54=1,(($DW66-SUM($E66:I66))/SUM(J54:$DU54)),0),0) -> 3.888888889 | K66: =IF($DW66>0, IF(K54=1,(($DW66-SUM($E66:J66))/SUM(K54:$DU54)),0),0) -> 3.888888889 | L66: =IF($DW66>0, IF(L54=1,(($DW66-SUM($E66:K66))/SUM(L54:$DU54)),0),0) -> 3.888888889 | M66: =IF($DW66>0, IF(M54=1,(($DW66-SUM($E66:L66))/SUM(M54:$DU54)),0),0) -> 3.888888889 | N66: =IF($DW66>0, IF(N54=1,(($DW66-SUM($E66:M66))/SUM(N54:$DU54)),0),0) -> 3.888888889 | O66: =IF($DW66>0, IF(O54=1,(($DW66-SUM($E66:N66))/SUM(O54:$DU54)),0),0) -> 3.888888889 | P66: =IF($DW66>0, IF(P54=1,(($DW66-SUM($E66:O66))/SUM(P54:$DU54)),0),0) -> 3.888888889 | Q66: =IF($DW66>0, IF(Q54=1,(($DW66-SUM($E66:P66))/SUM(Q54:$DU54)),0),0) -> 3.888888889 | R66: =IF($DW66>0, IF(R54=1,(($DW66-SUM($E66:Q66))/SUM(R54:$DU54)),0),0) -> 3.888888889 | S66: =IF($DW66>0, IF(S54=1,(($DW66-SUM($E66:R66))/SUM(S54:$DU54)),0),0) -> 3.888888889 | T66: =IF($DW66>0, IF(T54=1,(($DW66-SUM($E66:S66))/SUM(T54:$DU54)),0),0) -> 3.888888889 | U66: =IF($DW66>0, IF(U54=1,(($DW66-SUM($E66:T66))/SUM(U54:$DU54)),0),0) -> 3.888888889 | V66: =IF($DW66>0, IF(V54=1,(($DW66-SUM($E66:U66))/SUM(V54:$DU54)),0),0) -> 3.888888889 | W66: =IF($DW66>0, IF(W54=1,(($DW66-SUM($E66:V66))/SUM(W54:$DU54)),0),0) -> 3.888888889 | X66: =IF($DW66>0, IF(X54=1,(($DW66-SUM($E66:W66))/SUM(X54:$DU54)),0),0) -> 3.888888889 | Y66: =IF($DW66>0, IF(Y54=1,(($DW66-SUM($E66:X66))/SUM(Y54:$DU54)),0),0) -> 3.888888889 | Z66: =IF($DW66>0, IF(Z54=1,(($DW66-SUM($E66:Y66))/SUM(Z54:$DU54)),0),0) -> 3.888888889 | AA66: =IF($DW66>0, IF(AA54=1,(($DW66-SUM($E66:Z66))/SUM(AA54:$DU54)),0),0) -> 0 | AB66: =IF($DW66>0, IF(AB54=1,(($DW66-SUM($E66:AA66))/SUM(AB54:$DU54)),0),0) -> 0 | AC66: =IF($DW66>0, IF(AC54=1,(($DW66-SUM($E66:AB66))/SUM(AC54:$DU54)),0),0) -> 0 | AD66: =IF($DW66>0, IF(AD54=1,(($DW66-SUM($E66:AC66))/SUM(AD54:$DU54)),0),0) -> 0 | AE66: =IF($DW66>0, IF(AE54=1,(($DW66-SUM($E66:AD66))/SUM(AE54:$DU54)),0),0) -> 0 | AF66: =IF($DW66>0, IF(AF54=1,(($DW66-SUM($E66:AE66))/SUM(AF54:$DU54)),0),0) -> 0 | AG66: =IF($DW66>0, IF(AG54=1,(($DW66-SUM($E66:AF66))/SUM(AG54:$DU54)),0),0) -> 0 | AH66: =IF($DW66>0, IF(AH54=1,(($DW66-SUM($E66:AG66))/SUM(AH54:$DU54)),0),0) -> 0 | AI66: =IF($DW66>0, IF(AI54=1,(($DW66-SUM($E66:AH66))/SUM(AI54:$DU54)),0),0) -> 0 | AJ66: =IF($DW66>0, IF(AJ54=1,(($DW66-SUM($E66:AI66))/SUM(AJ54:$DU54)),0),0) -> 0 | AK66: =IF($DW66>0, IF(AK54=1,(($DW66-SUM($E66:AJ66))/SUM(AK54:$DU54)),0),0) -> 0 | AL66: =IF($DW66>0, IF(AL54=1,(($DW66-SUM($E66:AK66))/SUM(AL54:$DU54)),0),0) -> 0 | AM66: =IF($DW66>0, IF(AM54=1,(($DW66-SUM($E66:AL66))/SUM(AM54:$DU54)),0),0) -> 0 | AN66: =IF($DW66>0, IF(AN54=1,(($DW66-SUM($E66:AM66))/SUM(AN54:$DU54)),0),0) -> 0 | AO66: =IF($DW66>0, IF(AO54=1,(($DW66-SUM($E66:AN66))/SUM(AO54:$DU54)),0),0) -> 0 | AP66: =IF($DW66>0, IF(AP54=1,(($DW66-SUM($E66:AO66))/SUM(AP54:$DU54)),0),0) -> 0 | AQ66: =IF($DW66>0, IF(AQ54=1,(($DW66-SUM($E66:AP66))/SUM(AQ54:$DU54)),0),0) -> 0 | AR66: =IF($DW66>0, IF(AR54=1,(($DW66-SUM($E66:AQ66))/SUM(AR54:$DU54)),0),0) -> 0 | AS66: =IF($DW66>0, IF(AS54=1,(($DW66-SUM($E66:AR66))/SUM(AS54:$DU54)),0),0) -> 0 | AT66: =IF($DW66>0, IF(AT54=1,(($DW66-SUM($E66:AS66))/SUM(AT54:$DU54)),0),0) -> 0 | AU66: =IF($DW66>0, IF(AU54=1,(($DW66-SUM($E66:AT66))/SUM(AU54:$DU54)),0),0) -> 0 | AV66: =IF($DW66>0, IF(AV54=1,(($DW66-SUM($E66:AU66))/SUM(AV54:$DU54)),0),0) -> 0 | AW66: =IF($DW66>0, IF(AW54=1,(($DW66-SUM($E66:AV66))/SUM(AW54:$DU54)),0),0) -> 0 | AX66: =IF($DW66>0, IF(AX54=1,(($DW66-SUM($E66:AW66))/SUM(AX54:$DU54)),0),0) -> 0 | AY66: =IF($DW66>0, IF(AY54=1,(($DW66-SUM($E66:AX66))/SUM(AY54:$DU54)),0),0) -> 0 | AZ66: =IF($DW66>0, IF(AZ54=1,(($DW66-SUM($E66:AY66))/SUM(AZ54:$DU54)),0),0) -> 0 | BA66: =IF($DW66>0, IF(BA54=1,(($DW66-SUM($E66:AZ66))/SUM(BA54:$DU54)),0),0) -> 0 | BB66: =IF($DW66>0, IF(BB54=1,(($DW66-SUM($E66:BA66))/SUM(BB54:$DU54)),0),0) -> 0 | BC66: =IF($DW66>0, IF(BC54=1,(($DW66-SUM($E66:BB66))/SUM(BC54:$DU54)),0),0) -> 0 | BD66: =IF($DW66>0, IF(BD54=1,(($DW66-SUM($E66:BC66))/SUM(BD54:$DU54)),0),0) -> 0 | BE66: =IF($DW66>0, IF(BE54=1,(($DW66-SUM($E66:BD66))/SUM(BE54:$DU54)),0),0) -> 0 | BF66: =IF($DW66>0, IF(BF54=1,(($DW66-SUM($E66:BE66))/SUM(BF54:$DU54)),0),0) -> 0 | BG66: =IF($DW66>0, IF(BG54=1,(($DW66-SUM($E66:BF66))/SUM(BG54:$DU54)),0),0) -> 0 | BH66: =IF($DW66>0, IF(BH54=1,(($DW66-SUM($E66:BG66))/SUM(BH54:$DU54)),0),0) -> 0 | BI66: =IF($DW66>0, IF(BI54=1,(($DW66-SUM($E66:BH66))/SUM(BI54:$DU54)),0),0) -> 0 | BJ66: =IF($DW66>0, IF(BJ54=1,(($DW66-SUM($E66:BI66))/SUM(BJ54:$DU54)),0),0) -> 0 | BK66: =IF($DW66>0, IF(BK54=1,(($DW66-SUM($E66:BJ66))/SUM(BK54:$DU54)),0),0) -> 0 | BL66: =IF($DW66>0, IF(BL54=1,(($DW66-SUM($E66:BK66))/SUM(BL54:$DU54)),0),0) -> 0 | BM66: =IF($DW66>0, IF(BM54=1,(($DW66-SUM($E66:BL66))/SUM(BM54:$DU54)),0),0) -> 0 | BN66: =IF($DW66>0, IF(BN54=1,(($DW66-SUM($E66:BM66))/SUM(BN54:$DU54)),0),0) -> 0 | BO66: =IF($DW66>0, IF(BO54=1,(($DW66-SUM($E66:BN66))/SUM(BO54:$DU54)),0),0) -> 0 | BP66: =IF($DW66>0, IF(BP54=1,(($DW66-SUM($E66:BO66))/SUM(BP54:$DU54)),0),0) -> 0 | BQ66: =IF($DW66>0, IF(BQ54=1,(($DW66-SUM($E66:BP66))/SUM(BQ54:$DU54)),0),0) -> 0 | BR66: =IF($DW66>0, IF(BR54=1,(($DW66-SUM($E66:BQ66))/SUM(BR54:$DU54)),0),0) -> 0 | BS66: =IF($DW66>0, IF(BS54=1,(($DW66-SUM($E66:BR66))/SUM(BS54:$DU54)),0),0) -> 0 | BT66: =IF($DW66>0, IF(BT54=1,(($DW66-SUM($E66:BS66))/SUM(BT54:$DU54)),0),0) -> 0 | BU66: =IF($DW66>0, IF(BU54=1,(($DW66-SUM($E66:BT66))/SUM(BU54:$DU54)),0),0) -> 0 | BV66: =IF($DW66>0, IF(BV54=1,(($DW66-SUM($E66:BU66))/SUM(BV54:$DU54)),0),0) -> 0 | BW66: =IF($DW66>0, IF(BW54=1,(($DW66-SUM($E66:BV66))/SUM(BW54:$DU54)),0),0) -> 0 | BX66: =IF($DW66>0, IF(BX54=1,(($DW66-SUM($E66:BW66))/SUM(BX54:$DU54)),0),0) -> 0 | BY66: =IF($DW66>0, IF(BY54=1,(($DW66-SUM($E66:BX66))/SUM(BY54:$DU54)),0),0) -> 0 | BZ66: =IF($DW66>0, IF(BZ54=1,(($DW66-SUM($E66:BY66))/SUM(BZ54:$DU54)),0),0) -> 0 | CA66: =IF($DW66>0, IF(CA54=1,(($DW66-SUM($E66:BZ66))/SUM(CA54:$DU54)),0),0) -> 0 | CB66: =IF($DW66>0, IF(CB54=1,(($DW66-SUM($E66:CA66))/SUM(CB54:$DU54)),0),0) -> 0 | CC66: =IF($DW66>0, IF(CC54=1,(($DW66-SUM($E66:CB66))/SUM(CC54:$DU54)),0),0) -> 0 | CD66: =IF($DW66>0, IF(CD54=1,(($DW66-SUM($E66:CC66))/SUM(CD54:$DU54)),0),0) -> 0 | CE66: =IF($DW66>0, IF(CE54=1,(($DW66-SUM($E66:CD66))/SUM(CE54:$DU54)),0),0) -> 0 | CF66: =IF($DW66>0, IF(CF54=1,(($DW66-SUM($E66:CE66))/SUM(CF54:$DU54)),0),0) -> 0 | CG66: =IF($DW66>0, IF(CG54=1,(($DW66-SUM($E66:CF66))/SUM(CG54:$DU54)),0),0) -> 0 | CH66: =IF($DW66>0, IF(CH54=1,(($DW66-SUM($E66:CG66))/SUM(CH54:$DU54)),0),0) -> 0 | CI66: =IF($DW66>0, IF(CI54=1,(($DW66-SUM($E66:CH66))/SUM(CI54:$DU54)),0),0) -> 0 | CJ66: =IF($DW66>0, IF(CJ54=1,(($DW66-SUM($E66:CI66))/SUM(CJ54:$DU54)),0),0) -> 0 | CK66: =IF($DW66>0, IF(CK54=1,(($DW66-SUM($E66:CJ66))/SUM(CK54:$DU54)),0),0) -> 0 | CL66: =IF($DW66>0, IF(CL54=1,(($DW66-SUM($E66:CK66))/SUM(CL54:$DU54)),0),0) -> 0 | CM66: =IF($DW66>0, IF(CM54=1,(($DW66-SUM($E66:CL66))/SUM(CM54:$DU54)),0),0) -> 0 | CN66: =IF($DW66>0, IF(CN54=1,(($DW66-SUM($E66:CM66))/SUM(CN54:$DU54)),0),0) -> 0 | CO66: =IF($DW66>0, IF(CO54=1,(($DW66-SUM($E66:CN66))/SUM(CO54:$DU54)),0),0) -> 0 | CP66: =IF($DW66>0, IF(CP54=1,(($DW66-SUM($E66:CO66))/SUM(CP54:$DU54)),0),0) -> 0 | CQ66: =IF($DW66>0, IF(CQ54=1,(($DW66-SUM($E66:CP66))/SUM(CQ54:$DU54)),0),0) -> 0 | CR66: =IF($DW66>0, IF(CR54=1,(($DW66-SUM($E66:CQ66))/SUM(CR54:$DU54)),0),0) -> 0 | CS66: =IF($DW66>0, IF(CS54=1,(($DW66-SUM($E66:CR66))/SUM(CS54:$DU54)),0),0) -> 0 | CT66: =IF($DW66>0, IF(CT54=1,(($DW66-SUM($E66:CS66))/SUM(CT54:$DU54)),0),0) -> 0 | CU66: =IF($DW66>0, IF(CU54=1,(($DW66-SUM($E66:CT66))/SUM(CU54:$DU54)),0),0) -> 0 | CV66: =IF($DW66>0, IF(CV54=1,(($DW66-SUM($E66:CU66))/SUM(CV54:$DU54)),0),0) -> 0 | CW66: =IF($DW66>0, IF(CW54=1,(($DW66-SUM($E66:CV66))/SUM(CW54:$DU54)),0),0) -> 0 | CX66: =IF($DW66>0, IF(CX54=1,(($DW66-SUM($E66:CW66))/SUM(CX54:$DU54)),0),0) -> 0 | CY66: =IF($DW66>0, IF(CY54=1,(($DW66-SUM($E66:CX66))/SUM(CY54:$DU54)),0),0) -> 0 | CZ66: =IF($DW66>0, IF(CZ54=1,(($DW66-SUM($E66:CY66))/SUM(CZ54:$DU54)),0),0) -> 0 | DA66: =IF($DW66>0, IF(DA54=1,(($DW66-SUM($E66:CZ66))/SUM(DA54:$DU54)),0),0) -> 0 | DB66: =IF($DW66>0, IF(DB54=1,(($DW66-SUM($E66:DA66))/SUM(DB54:$DU54)),0),0) -> 0 | DC66: =IF($DW66>0, IF(DC54=1,(($DW66-SUM($E66:DB66))/SUM(DC54:$DU54)),0),0) -> 0 | DD66: =IF($DW66>0, IF(DD54=1,(($DW66-SUM($E66:DC66))/SUM(DD54:$DU54)),0),0) -> 0 | DE66: =IF($DW66>0, IF(DE54=1,(($DW66-SUM($E66:DD66))/SUM(DE54:$DU54)),0),0) -> 0 | DF66: =IF($DW66>0, IF(DF54=1,(($DW66-SUM($E66:DE66))/SUM(DF54:$DU54)),0),0) -> 0 | DG66: =IF($DW66>0, IF(DG54=1,(($DW66-SUM($E66:DF66))/SUM(DG54:$DU54)),0),0) -> 0 | DH66: =IF($DW66>0, IF(DH54=1,(($DW66-SUM($E66:DG66))/SUM(DH54:$DU54)),0),0) -> 0 | DI66: =IF($DW66>0, IF(DI54=1,(($DW66-SUM($E66:DH66))/SUM(DI54:$DU54)),0),0) -> 0 | DJ66: =IF($DW66>0, IF(DJ54=1,(($DW66-SUM($E66:DI66))/SUM(DJ54:$DU54)),0),0) -> 0 | DK66: =IF($DW66>0, IF(DK54=1,(($DW66-SUM($E66:DJ66))/SUM(DK54:$DU54)),0),0) -> 0 | DL66: =IF($DW66>0, IF(DL54=1,(($DW66-SUM($E66:DK66))/SUM(DL54:$DU54)),0),0) -> 0 | DM66: =IF($DW66>0, IF(DM54=1,(($DW66-SUM($E66:DL66))/SUM(DM54:$DU54)),0),0) -> 0 | DN66: =IF($DW66>0, IF(DN54=1,(($DW66-SUM($E66:DM66))/SUM(DN54:$DU54)),0),0) -> 0 | DO66: =IF($DW66>0, IF(DO54=1,(($DW66-SUM($E66:DN66))/SUM(DO54:$DU54)),0),0) -> 0 | DP66: =IF($DW66>0, IF(DP54=1,(($DW66-SUM($E66:DO66))/SUM(DP54:$DU54)),0),0) -> 0 | DQ66: =IF($DW66>0, IF(DQ54=1,(($DW66-SUM($E66:DP66))/SUM(DQ54:$DU54)),0),0) -> 0 | DR66: =IF($DW66>0, IF(DR54=1,(($DW66-SUM($E66:DQ66))/SUM(DR54:$DU54)),0),0) -> 0 | DS66: =IF($DW66>0, IF(DS54=1,(($DW66-SUM($E66:DR66))/SUM(DS54:$DU54)),0),0) -> 0 | DT66: =IF($DW66>0, IF(DT54=1,(($DW66-SUM($E66:DS66))/SUM(DT54:$DU54)),0),0) -> 0 | DU66: =IF($DW66>0, IF(DU54=1,(($DW66-SUM($E66:DT66))/SUM(DU54:$DU54)),0),0) -> 0 | DV66: 2 | DW66: =F130 -> 70
B67: Principal Tranche 2 | D67: 0 | E67: 0 | F67: 0 | G67: 0 | H67: =IF($DW67>0, IF(H55=1,(($DW67-SUM($E67:G67))/SUM(H55:$DU55)),0),0) -> 0 | I67: =IF($DW67>0, IF(I55=1,(($DW67-SUM($E67:H67))/SUM(I55:$DU55)),0),0) -> 0 | J67: =IF($DW67>0, IF(J55=1,(($DW67-SUM($E67:I67))/SUM(J55:$DU55)),0),0) -> 0 | K67: =IF($DW67>0, IF(K55=1,(($DW67-SUM($E67:J67))/SUM(K55:$DU55)),0),0) -> 0 | L67: =IF($DW67>0, IF(L55=1,(($DW67-SUM($E67:K67))/SUM(L55:$DU55)),0),0) -> 0 | M67: =IF($DW67>0, IF(M55=1,(($DW67-SUM($E67:L67))/SUM(M55:$DU55)),0),0) -> 0 | N67: =IF($DW67>0, IF(N55=1,(($DW67-SUM($E67:M67))/SUM(N55:$DU55)),0),0) -> 0 | O67: =IF($DW67>0, IF(O55=1,(($DW67-SUM($E67:N67))/SUM(O55:$DU55)),0),0) -> 0 | P67: =IF($DW67>0, IF(P55=1,(($DW67-SUM($E67:O67))/SUM(P55:$DU55)),0),0) -> 0 | Q67: =IF($DW67>0, IF(Q55=1,(($DW67-SUM($E67:P67))/SUM(Q55:$DU55)),0),0) -> 0 | R67: =IF($DW67>0, IF(R55=1,(($DW67-SUM($E67:Q67))/SUM(R55:$DU55)),0),0) -> 0 | S67: =IF($DW67>0, IF(S55=1,(($DW67-SUM($E67:R67))/SUM(S55:$DU55)),0),0) -> 0 | T67: =IF($DW67>0, IF(T55=1,(($DW67-SUM($E67:S67))/SUM(T55:$DU55)),0),0) -> 0 | U67: =IF($DW67>0, IF(U55=1,(($DW67-SUM($E67:T67))/SUM(U55:$DU55)),0),0) -> 0 | V67: =IF($DW67>0, IF(V55=1,(($DW67-SUM($E67:U67))/SUM(V55:$DU55)),0),0) -> 0 | W67: =IF($DW67>0, IF(W55=1,(($DW67-SUM($E67:V67))/SUM(W55:$DU55)),0),0) -> 0 | X67: =IF($DW67>0, IF(X55=1,(($DW67-SUM($E67:W67))/SUM(X55:$DU55)),0),0) -> 0 | Y67: =IF($DW67>0, IF(Y55=1,(($DW67-SUM($E67:X67))/SUM(Y55:$DU55)),0),0) -> 0 | Z67: =IF($DW67>0, IF(Z55=1,(($DW67-SUM($E67:Y67))/SUM(Z55:$DU55)),0),0) -> 0 | AA67: =IF($DW67>0, IF(AA55=1,(($DW67-SUM($E67:Z67))/SUM(AA55:$DU55)),0),0) -> 0 | AB67: =IF($DW67>0, IF(AB55=1,(($DW67-SUM($E67:AA67))/SUM(AB55:$DU55)),0),0) -> 0 | AC67: =IF($DW67>0, IF(AC55=1,(($DW67-SUM($E67:AB67))/SUM(AC55:$DU55)),0),0) -> 0 | AD67: =IF($DW67>0, IF(AD55=1,(($DW67-SUM($E67:AC67))/SUM(AD55:$DU55)),0),0) -> 0 | AE67: =IF($DW67>0, IF(AE55=1,(($DW67-SUM($E67:AD67))/SUM(AE55:$DU55)),0),0) -> 0 | AF67: =IF($DW67>0, IF(AF55=1,(($DW67-SUM($E67:AE67))/SUM(AF55:$DU55)),0),0) -> 0 | AG67: =IF($DW67>0, IF(AG55=1,(($DW67-SUM($E67:AF67))/SUM(AG55:$DU55)),0),0) -> 0 | AH67: =IF($DW67>0, IF(AH55=1,(($DW67-SUM($E67:AG67))/SUM(AH55:$DU55)),0),0) -> 0 | AI67: =IF($DW67>0, IF(AI55=1,(($DW67-SUM($E67:AH67))/SUM(AI55:$DU55)),0),0) -> 0 | AJ67: =IF($DW67>0, IF(AJ55=1,(($DW67-SUM($E67:AI67))/SUM(AJ55:$DU55)),0),0) -> 0 | AK67: =IF($DW67>0, IF(AK55=1,(($DW67-SUM($E67:AJ67))/SUM(AK55:$DU55)),0),0) -> 0 | AL67: =IF($DW67>0, IF(AL55=1,(($DW67-SUM($E67:AK67))/SUM(AL55:$DU55)),0),0) -> 0 | AM67: =IF($DW67>0, IF(AM55=1,(($DW67-SUM($E67:AL67))/SUM(AM55:$DU55)),0),0) -> 0 | AN67: =IF($DW67>0, IF(AN55=1,(($DW67-SUM($E67:AM67))/SUM(AN55:$DU55)),0),0) -> 0 | AO67: =IF($DW67>0, IF(AO55=1,(($DW67-SUM($E67:AN67))/SUM(AO55:$DU55)),0),0) -> 0 | AP67: =IF($DW67>0, IF(AP55=1,(($DW67-SUM($E67:AO67))/SUM(AP55:$DU55)),0),0) -> 0 | AQ67: =IF($DW67>0, IF(AQ55=1,(($DW67-SUM($E67:AP67))/SUM(AQ55:$DU55)),0),0) -> 0 | AR67: =IF($DW67>0, IF(AR55=1,(($DW67-SUM($E67:AQ67))/SUM(AR55:$DU55)),0),0) -> 0 | AS67: =IF($DW67>0, IF(AS55=1,(($DW67-SUM($E67:AR67))/SUM(AS55:$DU55)),0),0) -> 0 | AT67: =IF($DW67>0, IF(AT55=1,(($DW67-SUM($E67:AS67))/SUM(AT55:$DU55)),0),0) -> 0 | AU67: =IF($DW67>0, IF(AU55=1,(($DW67-SUM($E67:AT67))/SUM(AU55:$DU55)),0),0) -> 0 | AV67: =IF($DW67>0, IF(AV55=1,(($DW67-SUM($E67:AU67))/SUM(AV55:$DU55)),0),0) -> 0 | AW67: =IF($DW67>0, IF(AW55=1,(($DW67-SUM($E67:AV67))/SUM(AW55:$DU55)),0),0) -> 0 | AX67: =IF($DW67>0, IF(AX55=1,(($DW67-SUM($E67:AW67))/SUM(AX55:$DU55)),0),0) -> 0 | AY67: =IF($DW67>0, IF(AY55=1,(($DW67-SUM($E67:AX67))/SUM(AY55:$DU55)),0),0) -> 0 | AZ67: =IF($DW67>0, IF(AZ55=1,(($DW67-SUM($E67:AY67))/SUM(AZ55:$DU55)),0),0) -> 0 | BA67: =IF($DW67>0, IF(BA55=1,(($DW67-SUM($E67:AZ67))/SUM(BA55:$DU55)),0),0) -> 0 | BB67: =IF($DW67>0, IF(BB55=1,(($DW67-SUM($E67:BA67))/SUM(BB55:$DU55)),0),0) -> 0 | BC67: =IF($DW67>0, IF(BC55=1,(($DW67-SUM($E67:BB67))/SUM(BC55:$DU55)),0),0) -> 0 | BD67: =IF($DW67>0, IF(BD55=1,(($DW67-SUM($E67:BC67))/SUM(BD55:$DU55)),0),0) -> 0 | BE67: =IF($DW67>0, IF(BE55=1,(($DW67-SUM($E67:BD67))/SUM(BE55:$DU55)),0),0) -> 0 | BF67: =IF($DW67>0, IF(BF55=1,(($DW67-SUM($E67:BE67))/SUM(BF55:$DU55)),0),0) -> 0 | BG67: =IF($DW67>0, IF(BG55=1,(($DW67-SUM($E67:BF67))/SUM(BG55:$DU55)),0),0) -> 0 | BH67: =IF($DW67>0, IF(BH55=1,(($DW67-SUM($E67:BG67))/SUM(BH55:$DU55)),0),0) -> 0 | BI67: =IF($DW67>0, IF(BI55=1,(($DW67-SUM($E67:BH67))/SUM(BI55:$DU55)),0),0) -> 0 | BJ67: =IF($DW67>0, IF(BJ55=1,(($DW67-SUM($E67:BI67))/SUM(BJ55:$DU55)),0),0) -> 0 | BK67: =IF($DW67>0, IF(BK55=1,(($DW67-SUM($E67:BJ67))/SUM(BK55:$DU55)),0),0) -> 0 | BL67: =IF($DW67>0, IF(BL55=1,(($DW67-SUM($E67:BK67))/SUM(BL55:$DU55)),0),0) -> 0 | BM67: =IF($DW67>0, IF(BM55=1,(($DW67-SUM($E67:BL67))/SUM(BM55:$DU55)),0),0) -> 0 | BN67: =IF($DW67>0, IF(BN55=1,(($DW67-SUM($E67:BM67))/SUM(BN55:$DU55)),0),0) -> 0 | BO67: =IF($DW67>0, IF(BO55=1,(($DW67-SUM($E67:BN67))/SUM(BO55:$DU55)),0),0) -> 0 | BP67: =IF($DW67>0, IF(BP55=1,(($DW67-SUM($E67:BO67))/SUM(BP55:$DU55)),0),0) -> 0 | BQ67: =IF($DW67>0, IF(BQ55=1,(($DW67-SUM($E67:BP67))/SUM(BQ55:$DU55)),0),0) -> 0 | BR67: =IF($DW67>0, IF(BR55=1,(($DW67-SUM($E67:BQ67))/SUM(BR55:$DU55)),0),0) -> 0 | BS67: =IF($DW67>0, IF(BS55=1,(($DW67-SUM($E67:BR67))/SUM(BS55:$DU55)),0),0) -> 0 | BT67: =IF($DW67>0, IF(BT55=1,(($DW67-SUM($E67:BS67))/SUM(BT55:$DU55)),0),0) -> 0 | BU67: =IF($DW67>0, IF(BU55=1,(($DW67-SUM($E67:BT67))/SUM(BU55:$DU55)),0),0) -> 0 | BV67: =IF($DW67>0, IF(BV55=1,(($DW67-SUM($E67:BU67))/SUM(BV55:$DU55)),0),0) -> 0 | BW67: =IF($DW67>0, IF(BW55=1,(($DW67-SUM($E67:BV67))/SUM(BW55:$DU55)),0),0) -> 0 | BX67: =IF($DW67>0, IF(BX55=1,(($DW67-SUM($E67:BW67))/SUM(BX55:$DU55)),0),0) -> 0 | BY67: =IF($DW67>0, IF(BY55=1,(($DW67-SUM($E67:BX67))/SUM(BY55:$DU55)),0),0) -> 0 | BZ67: =IF($DW67>0, IF(BZ55=1,(($DW67-SUM($E67:BY67))/SUM(BZ55:$DU55)),0),0) -> 0 | CA67: =IF($DW67>0, IF(CA55=1,(($DW67-SUM($E67:BZ67))/SUM(CA55:$DU55)),0),0) -> 0 | CB67: =IF($DW67>0, IF(CB55=1,(($DW67-SUM($E67:CA67))/SUM(CB55:$DU55)),0),0) -> 0 | CC67: =IF($DW67>0, IF(CC55=1,(($DW67-SUM($E67:CB67))/SUM(CC55:$DU55)),0),0) -> 0 | CD67: =IF($DW67>0, IF(CD55=1,(($DW67-SUM($E67:CC67))/SUM(CD55:$DU55)),0),0) -> 0 | CE67: =IF($DW67>0, IF(CE55=1,(($DW67-SUM($E67:CD67))/SUM(CE55:$DU55)),0),0) -> 0 | CF67: =IF($DW67>0, IF(CF55=1,(($DW67-SUM($E67:CE67))/SUM(CF55:$DU55)),0),0) -> 0 | CG67: =IF($DW67>0, IF(CG55=1,(($DW67-SUM($E67:CF67))/SUM(CG55:$DU55)),0),0) -> 0 | CH67: =IF($DW67>0, IF(CH55=1,(($DW67-SUM($E67:CG67))/SUM(CH55:$DU55)),0),0) -> 0 | CI67: =IF($DW67>0, IF(CI55=1,(($DW67-SUM($E67:CH67))/SUM(CI55:$DU55)),0),0) -> 0 | CJ67: =IF($DW67>0, IF(CJ55=1,(($DW67-SUM($E67:CI67))/SUM(CJ55:$DU55)),0),0) -> 0 | CK67: =IF($DW67>0, IF(CK55=1,(($DW67-SUM($E67:CJ67))/SUM(CK55:$DU55)),0),0) -> 0 | CL67: =IF($DW67>0, IF(CL55=1,(($DW67-SUM($E67:CK67))/SUM(CL55:$DU55)),0),0) -> 0 | CM67: =IF($DW67>0, IF(CM55=1,(($DW67-SUM($E67:CL67))/SUM(CM55:$DU55)),0),0) -> 0 | CN67: =IF($DW67>0, IF(CN55=1,(($DW67-SUM($E67:CM67))/SUM(CN55:$DU55)),0),0) -> 0 | CO67: =IF($DW67>0, IF(CO55=1,(($DW67-SUM($E67:CN67))/SUM(CO55:$DU55)),0),0) -> 0 | CP67: =IF($DW67>0, IF(CP55=1,(($DW67-SUM($E67:CO67))/SUM(CP55:$DU55)),0),0) -> 0 | CQ67: =IF($DW67>0, IF(CQ55=1,(($DW67-SUM($E67:CP67))/SUM(CQ55:$DU55)),0),0) -> 0 | CR67: =IF($DW67>0, IF(CR55=1,(($DW67-SUM($E67:CQ67))/SUM(CR55:$DU55)),0),0) -> 0 | CS67: =IF($DW67>0, IF(CS55=1,(($DW67-SUM($E67:CR67))/SUM(CS55:$DU55)),0),0) -> 0 | CT67: =IF($DW67>0, IF(CT55=1,(($DW67-SUM($E67:CS67))/SUM(CT55:$DU55)),0),0) -> 0 | CU67: =IF($DW67>0, IF(CU55=1,(($DW67-SUM($E67:CT67))/SUM(CU55:$DU55)),0),0) -> 0 | CV67: =IF($DW67>0, IF(CV55=1,(($DW67-SUM($E67:CU67))/SUM(CV55:$DU55)),0),0) -> 0 | CW67: =IF($DW67>0, IF(CW55=1,(($DW67-SUM($E67:CV67))/SUM(CW55:$DU55)),0),0) -> 0 | CX67: =IF($DW67>0, IF(CX55=1,(($DW67-SUM($E67:CW67))/SUM(CX55:$DU55)),0),0) -> 0 | CY67: =IF($DW67>0, IF(CY55=1,(($DW67-SUM($E67:CX67))/SUM(CY55:$DU55)),0),0) -> 0 | CZ67: =IF($DW67>0, IF(CZ55=1,(($DW67-SUM($E67:CY67))/SUM(CZ55:$DU55)),0),0) -> 0 | DA67: =IF($DW67>0, IF(DA55=1,(($DW67-SUM($E67:CZ67))/SUM(DA55:$DU55)),0),0) -> 0 | DB67: =IF($DW67>0, IF(DB55=1,(($DW67-SUM($E67:DA67))/SUM(DB55:$DU55)),0),0) -> 0 | DC67: =IF($DW67>0, IF(DC55=1,(($DW67-SUM($E67:DB67))/SUM(DC55:$DU55)),0),0) -> 0 | DD67: =IF($DW67>0, IF(DD55=1,(($DW67-SUM($E67:DC67))/SUM(DD55:$DU55)),0),0) -> 0 | DE67: =IF($DW67>0, IF(DE55=1,(($DW67-SUM($E67:DD67))/SUM(DE55:$DU55)),0),0) -> 0 | DF67: =IF($DW67>0, IF(DF55=1,(($DW67-SUM($E67:DE67))/SUM(DF55:$DU55)),0),0) -> 0 | DG67: =IF($DW67>0, IF(DG55=1,(($DW67-SUM($E67:DF67))/SUM(DG55:$DU55)),0),0) -> 0 | DH67: =IF($DW67>0, IF(DH55=1,(($DW67-SUM($E67:DG67))/SUM(DH55:$DU55)),0),0) -> 0 | DI67: =IF($DW67>0, IF(DI55=1,(($DW67-SUM($E67:DH67))/SUM(DI55:$DU55)),0),0) -> 0 | DJ67: =IF($DW67>0, IF(DJ55=1,(($DW67-SUM($E67:DI67))/SUM(DJ55:$DU55)),0),0) -> 0 | DK67: =IF($DW67>0, IF(DK55=1,(($DW67-SUM($E67:DJ67))/SUM(DK55:$DU55)),0),0) -> 0 | DL67: =IF($DW67>0, IF(DL55=1,(($DW67-SUM($E67:DK67))/SUM(DL55:$DU55)),0),0) -> 0 | DM67: =IF($DW67>0, IF(DM55=1,(($DW67-SUM($E67:DL67))/SUM(DM55:$DU55)),0),0) -> 0 | DN67: =IF($DW67>0, IF(DN55=1,(($DW67-SUM($E67:DM67))/SUM(DN55:$DU55)),0),0) -> 0 | DO67: =IF($DW67>0, IF(DO55=1,(($DW67-SUM($E67:DN67))/SUM(DO55:$DU55)),0),0) -> 0 | DP67: =IF($DW67>0, IF(DP55=1,(($DW67-SUM($E67:DO67))/SUM(DP55:$DU55)),0),0) -> 0 | DQ67: =IF($DW67>0, IF(DQ55=1,(($DW67-SUM($E67:DP67))/SUM(DQ55:$DU55)),0),0) -> 0 | DR67: =IF($DW67>0, IF(DR55=1,(($DW67-SUM($E67:DQ67))/SUM(DR55:$DU55)),0),0) -> 0 | DS67: =IF($DW67>0, IF(DS55=1,(($DW67-SUM($E67:DR67))/SUM(DS55:$DU55)),0),0) -> 0 | DT67: =IF($DW67>0, IF(DT55=1,(($DW67-SUM($E67:DS67))/SUM(DT55:$DU55)),0),0) -> 0 | DU67: =IF($DW67>0, IF(DU55=1,(($DW67-SUM($E67:DT67))/SUM(DU55:$DU55)),0),0) -> 0 | DV67: 3 | DW67: =G130 -> 0
B68: Principal Tranche 3 | D68: 0 | E68: 0 | F68: 0 | G68: 0 | H68: 0 | I68: =IF($DW68>0, IF(I56=1,(($DW68-SUM($E68:H68))/SUM(I56:$DU56)),0),0) -> 0 | J68: =IF($DW68>0, IF(J56=1,(($DW68-SUM($E68:I68))/SUM(J56:$DU56)),0),0) -> 0 | K68: =IF($DW68>0, IF(K56=1,(($DW68-SUM($E68:J68))/SUM(K56:$DU56)),0),0) -> 0 | L68: =IF($DW68>0, IF(L56=1,(($DW68-SUM($E68:K68))/SUM(L56:$DU56)),0),0) -> 0 | M68: =IF($DW68>0, IF(M56=1,(($DW68-SUM($E68:L68))/SUM(M56:$DU56)),0),0) -> 0 | N68: =IF($DW68>0, IF(N56=1,(($DW68-SUM($E68:M68))/SUM(N56:$DU56)),0),0) -> 0 | O68: =IF($DW68>0, IF(O56=1,(($DW68-SUM($E68:N68))/SUM(O56:$DU56)),0),0) -> 0 | P68: =IF($DW68>0, IF(P56=1,(($DW68-SUM($E68:O68))/SUM(P56:$DU56)),0),0) -> 0 | Q68: =IF($DW68>0, IF(Q56=1,(($DW68-SUM($E68:P68))/SUM(Q56:$DU56)),0),0) -> 0 | R68: =IF($DW68>0, IF(R56=1,(($DW68-SUM($E68:Q68))/SUM(R56:$DU56)),0),0) -> 0 | S68: =IF($DW68>0, IF(S56=1,(($DW68-SUM($E68:R68))/SUM(S56:$DU56)),0),0) -> 0 | T68: =IF($DW68>0, IF(T56=1,(($DW68-SUM($E68:S68))/SUM(T56:$DU56)),0),0) -> 0 | U68: =IF($DW68>0, IF(U56=1,(($DW68-SUM($E68:T68))/SUM(U56:$DU56)),0),0) -> 0 | V68: =IF($DW68>0, IF(V56=1,(($DW68-SUM($E68:U68))/SUM(V56:$DU56)),0),0) -> 0 | W68: =IF($DW68>0, IF(W56=1,(($DW68-SUM($E68:V68))/SUM(W56:$DU56)),0),0) -> 0 | X68: =IF($DW68>0, IF(X56=1,(($DW68-SUM($E68:W68))/SUM(X56:$DU56)),0),0) -> 0 | Y68: =IF($DW68>0, IF(Y56=1,(($DW68-SUM($E68:X68))/SUM(Y56:$DU56)),0),0) -> 0 | Z68: =IF($DW68>0, IF(Z56=1,(($DW68-SUM($E68:Y68))/SUM(Z56:$DU56)),0),0) -> 0 | AA68: =IF($DW68>0, IF(AA56=1,(($DW68-SUM($E68:Z68))/SUM(AA56:$DU56)),0),0) -> 0 | AB68: =IF($DW68>0, IF(AB56=1,(($DW68-SUM($E68:AA68))/SUM(AB56:$DU56)),0),0) -> 0 | AC68: =IF($DW68>0, IF(AC56=1,(($DW68-SUM($E68:AB68))/SUM(AC56:$DU56)),0),0) -> 0 | AD68: =IF($DW68>0, IF(AD56=1,(($DW68-SUM($E68:AC68))/SUM(AD56:$DU56)),0),0) -> 0 | AE68: =IF($DW68>0, IF(AE56=1,(($DW68-SUM($E68:AD68))/SUM(AE56:$DU56)),0),0) -> 0 | AF68: =IF($DW68>0, IF(AF56=1,(($DW68-SUM($E68:AE68))/SUM(AF56:$DU56)),0),0) -> 0 | AG68: =IF($DW68>0, IF(AG56=1,(($DW68-SUM($E68:AF68))/SUM(AG56:$DU56)),0),0) -> 0 | AH68: =IF($DW68>0, IF(AH56=1,(($DW68-SUM($E68:AG68))/SUM(AH56:$DU56)),0),0) -> 0 | AI68: =IF($DW68>0, IF(AI56=1,(($DW68-SUM($E68:AH68))/SUM(AI56:$DU56)),0),0) -> 0 | AJ68: =IF($DW68>0, IF(AJ56=1,(($DW68-SUM($E68:AI68))/SUM(AJ56:$DU56)),0),0) -> 0 | AK68: =IF($DW68>0, IF(AK56=1,(($DW68-SUM($E68:AJ68))/SUM(AK56:$DU56)),0),0) -> 0 | AL68: =IF($DW68>0, IF(AL56=1,(($DW68-SUM($E68:AK68))/SUM(AL56:$DU56)),0),0) -> 0 | AM68: =IF($DW68>0, IF(AM56=1,(($DW68-SUM($E68:AL68))/SUM(AM56:$DU56)),0),0) -> 0 | AN68: =IF($DW68>0, IF(AN56=1,(($DW68-SUM($E68:AM68))/SUM(AN56:$DU56)),0),0) -> 0 | AO68: =IF($DW68>0, IF(AO56=1,(($DW68-SUM($E68:AN68))/SUM(AO56:$DU56)),0),0) -> 0 | AP68: =IF($DW68>0, IF(AP56=1,(($DW68-SUM($E68:AO68))/SUM(AP56:$DU56)),0),0) -> 0 | AQ68: =IF($DW68>0, IF(AQ56=1,(($DW68-SUM($E68:AP68))/SUM(AQ56:$DU56)),0),0) -> 0 | AR68: =IF($DW68>0, IF(AR56=1,(($DW68-SUM($E68:AQ68))/SUM(AR56:$DU56)),0),0) -> 0 | AS68: =IF($DW68>0, IF(AS56=1,(($DW68-SUM($E68:AR68))/SUM(AS56:$DU56)),0),0) -> 0 | AT68: =IF($DW68>0, IF(AT56=1,(($DW68-SUM($E68:AS68))/SUM(AT56:$DU56)),0),0) -> 0 | AU68: =IF($DW68>0, IF(AU56=1,(($DW68-SUM($E68:AT68))/SUM(AU56:$DU56)),0),0) -> 0 | AV68: =IF($DW68>0, IF(AV56=1,(($DW68-SUM($E68:AU68))/SUM(AV56:$DU56)),0),0) -> 0 | AW68: =IF($DW68>0, IF(AW56=1,(($DW68-SUM($E68:AV68))/SUM(AW56:$DU56)),0),0) -> 0 | AX68: =IF($DW68>0, IF(AX56=1,(($DW68-SUM($E68:AW68))/SUM(AX56:$DU56)),0),0) -> 0 | AY68: =IF($DW68>0, IF(AY56=1,(($DW68-SUM($E68:AX68))/SUM(AY56:$DU56)),0),0) -> 0 | AZ68: =IF($DW68>0, IF(AZ56=1,(($DW68-SUM($E68:AY68))/SUM(AZ56:$DU56)),0),0) -> 0 | BA68: =IF($DW68>0, IF(BA56=1,(($DW68-SUM($E68:AZ68))/SUM(BA56:$DU56)),0),0) -> 0 | BB68: =IF($DW68>0, IF(BB56=1,(($DW68-SUM($E68:BA68))/SUM(BB56:$DU56)),0),0) -> 0 | BC68: =IF($DW68>0, IF(BC56=1,(($DW68-SUM($E68:BB68))/SUM(BC56:$DU56)),0),0) -> 0 | BD68: =IF($DW68>0, IF(BD56=1,(($DW68-SUM($E68:BC68))/SUM(BD56:$DU56)),0),0) -> 0 | BE68: =IF($DW68>0, IF(BE56=1,(($DW68-SUM($E68:BD68))/SUM(BE56:$DU56)),0),0) -> 0 | BF68: =IF($DW68>0, IF(BF56=1,(($DW68-SUM($E68:BE68))/SUM(BF56:$DU56)),0),0) -> 0 | BG68: =IF($DW68>0, IF(BG56=1,(($DW68-SUM($E68:BF68))/SUM(BG56:$DU56)),0),0) -> 0 | BH68: =IF($DW68>0, IF(BH56=1,(($DW68-SUM($E68:BG68))/SUM(BH56:$DU56)),0),0) -> 0 | BI68: =IF($DW68>0, IF(BI56=1,(($DW68-SUM($E68:BH68))/SUM(BI56:$DU56)),0),0) -> 0 | BJ68: =IF($DW68>0, IF(BJ56=1,(($DW68-SUM($E68:BI68))/SUM(BJ56:$DU56)),0),0) -> 0 | BK68: =IF($DW68>0, IF(BK56=1,(($DW68-SUM($E68:BJ68))/SUM(BK56:$DU56)),0),0) -> 0 | BL68: =IF($DW68>0, IF(BL56=1,(($DW68-SUM($E68:BK68))/SUM(BL56:$DU56)),0),0) -> 0 | BM68: =IF($DW68>0, IF(BM56=1,(($DW68-SUM($E68:BL68))/SUM(BM56:$DU56)),0),0) -> 0 | BN68: =IF($DW68>0, IF(BN56=1,(($DW68-SUM($E68:BM68))/SUM(BN56:$DU56)),0),0) -> 0 | BO68: =IF($DW68>0, IF(BO56=1,(($DW68-SUM($E68:BN68))/SUM(BO56:$DU56)),0),0) -> 0 | BP68: =IF($DW68>0, IF(BP56=1,(($DW68-SUM($E68:BO68))/SUM(BP56:$DU56)),0),0) -> 0 | BQ68: =IF($DW68>0, IF(BQ56=1,(($DW68-SUM($E68:BP68))/SUM(BQ56:$DU56)),0),0) -> 0 | BR68: =IF($DW68>0, IF(BR56=1,(($DW68-SUM($E68:BQ68))/SUM(BR56:$DU56)),0),0) -> 0 | BS68: =IF($DW68>0, IF(BS56=1,(($DW68-SUM($E68:BR68))/SUM(BS56:$DU56)),0),0) -> 0 | BT68: =IF($DW68>0, IF(BT56=1,(($DW68-SUM($E68:BS68))/SUM(BT56:$DU56)),0),0) -> 0 | BU68: =IF($DW68>0, IF(BU56=1,(($DW68-SUM($E68:BT68))/SUM(BU56:$DU56)),0),0) -> 0 | BV68: =IF($DW68>0, IF(BV56=1,(($DW68-SUM($E68:BU68))/SUM(BV56:$DU56)),0),0) -> 0 | BW68: =IF($DW68>0, IF(BW56=1,(($DW68-SUM($E68:BV68))/SUM(BW56:$DU56)),0),0) -> 0 | BX68: =IF($DW68>0, IF(BX56=1,(($DW68-SUM($E68:BW68))/SUM(BX56:$DU56)),0),0) -> 0 | BY68: =IF($DW68>0, IF(BY56=1,(($DW68-SUM($E68:BX68))/SUM(BY56:$DU56)),0),0) -> 0 | BZ68: =IF($DW68>0, IF(BZ56=1,(($DW68-SUM($E68:BY68))/SUM(BZ56:$DU56)),0),0) -> 0 | CA68: =IF($DW68>0, IF(CA56=1,(($DW68-SUM($E68:BZ68))/SUM(CA56:$DU56)),0),0) -> 0 | CB68: =IF($DW68>0, IF(CB56=1,(($DW68-SUM($E68:CA68))/SUM(CB56:$DU56)),0),0) -> 0 | CC68: =IF($DW68>0, IF(CC56=1,(($DW68-SUM($E68:CB68))/SUM(CC56:$DU56)),0),0) -> 0 | CD68: =IF($DW68>0, IF(CD56=1,(($DW68-SUM($E68:CC68))/SUM(CD56:$DU56)),0),0) -> 0 | CE68: =IF($DW68>0, IF(CE56=1,(($DW68-SUM($E68:CD68))/SUM(CE56:$DU56)),0),0) -> 0 | CF68: =IF($DW68>0, IF(CF56=1,(($DW68-SUM($E68:CE68))/SUM(CF56:$DU56)),0),0) -> 0 | CG68: =IF($DW68>0, IF(CG56=1,(($DW68-SUM($E68:CF68))/SUM(CG56:$DU56)),0),0) -> 0 | CH68: =IF($DW68>0, IF(CH56=1,(($DW68-SUM($E68:CG68))/SUM(CH56:$DU56)),0),0) -> 0 | CI68: =IF($DW68>0, IF(CI56=1,(($DW68-SUM($E68:CH68))/SUM(CI56:$DU56)),0),0) -> 0 | CJ68: =IF($DW68>0, IF(CJ56=1,(($DW68-SUM($E68:CI68))/SUM(CJ56:$DU56)),0),0) -> 0 | CK68: =IF($DW68>0, IF(CK56=1,(($DW68-SUM($E68:CJ68))/SUM(CK56:$DU56)),0),0) -> 0 | CL68: =IF($DW68>0, IF(CL56=1,(($DW68-SUM($E68:CK68))/SUM(CL56:$DU56)),0),0) -> 0 | CM68: =IF($DW68>0, IF(CM56=1,(($DW68-SUM($E68:CL68))/SUM(CM56:$DU56)),0),0) -> 0 | CN68: =IF($DW68>0, IF(CN56=1,(($DW68-SUM($E68:CM68))/SUM(CN56:$DU56)),0),0) -> 0 | CO68: =IF($DW68>0, IF(CO56=1,(($DW68-SUM($E68:CN68))/SUM(CO56:$DU56)),0),0) -> 0 | CP68: =IF($DW68>0, IF(CP56=1,(($DW68-SUM($E68:CO68))/SUM(CP56:$DU56)),0),0) -> 0 | CQ68: =IF($DW68>0, IF(CQ56=1,(($DW68-SUM($E68:CP68))/SUM(CQ56:$DU56)),0),0) -> 0 | CR68: =IF($DW68>0, IF(CR56=1,(($DW68-SUM($E68:CQ68))/SUM(CR56:$DU56)),0),0) -> 0 | CS68: =IF($DW68>0, IF(CS56=1,(($DW68-SUM($E68:CR68))/SUM(CS56:$DU56)),0),0) -> 0 | CT68: =IF($DW68>0, IF(CT56=1,(($DW68-SUM($E68:CS68))/SUM(CT56:$DU56)),0),0) -> 0 | CU68: =IF($DW68>0, IF(CU56=1,(($DW68-SUM($E68:CT68))/SUM(CU56:$DU56)),0),0) -> 0 | CV68: =IF($DW68>0, IF(CV56=1,(($DW68-SUM($E68:CU68))/SUM(CV56:$DU56)),0),0) -> 0 | CW68: =IF($DW68>0, IF(CW56=1,(($DW68-SUM($E68:CV68))/SUM(CW56:$DU56)),0),0) -> 0 | CX68: =IF($DW68>0, IF(CX56=1,(($DW68-SUM($E68:CW68))/SUM(CX56:$DU56)),0),0) -> 0 | CY68: =IF($DW68>0, IF(CY56=1,(($DW68-SUM($E68:CX68))/SUM(CY56:$DU56)),0),0) -> 0 | CZ68: =IF($DW68>0, IF(CZ56=1,(($DW68-SUM($E68:CY68))/SUM(CZ56:$DU56)),0),0) -> 0 | DA68: =IF($DW68>0, IF(DA56=1,(($DW68-SUM($E68:CZ68))/SUM(DA56:$DU56)),0),0) -> 0 | DB68: =IF($DW68>0, IF(DB56=1,(($DW68-SUM($E68:DA68))/SUM(DB56:$DU56)),0),0) -> 0 | DC68: =IF($DW68>0, IF(DC56=1,(($DW68-SUM($E68:DB68))/SUM(DC56:$DU56)),0),0) -> 0 | DD68: =IF($DW68>0, IF(DD56=1,(($DW68-SUM($E68:DC68))/SUM(DD56:$DU56)),0),0) -> 0 | DE68: =IF($DW68>0, IF(DE56=1,(($DW68-SUM($E68:DD68))/SUM(DE56:$DU56)),0),0) -> 0 | DF68: =IF($DW68>0, IF(DF56=1,(($DW68-SUM($E68:DE68))/SUM(DF56:$DU56)),0),0) -> 0 | DG68: =IF($DW68>0, IF(DG56=1,(($DW68-SUM($E68:DF68))/SUM(DG56:$DU56)),0),0) -> 0 | DH68: =IF($DW68>0, IF(DH56=1,(($DW68-SUM($E68:DG68))/SUM(DH56:$DU56)),0),0) -> 0 | DI68: =IF($DW68>0, IF(DI56=1,(($DW68-SUM($E68:DH68))/SUM(DI56:$DU56)),0),0) -> 0 | DJ68: =IF($DW68>0, IF(DJ56=1,(($DW68-SUM($E68:DI68))/SUM(DJ56:$DU56)),0),0) -> 0 | DK68: =IF($DW68>0, IF(DK56=1,(($DW68-SUM($E68:DJ68))/SUM(DK56:$DU56)),0),0) -> 0 | DL68: =IF($DW68>0, IF(DL56=1,(($DW68-SUM($E68:DK68))/SUM(DL56:$DU56)),0),0) -> 0 | DM68: =IF($DW68>0, IF(DM56=1,(($DW68-SUM($E68:DL68))/SUM(DM56:$DU56)),0),0) -> 0 | DN68: =IF($DW68>0, IF(DN56=1,(($DW68-SUM($E68:DM68))/SUM(DN56:$DU56)),0),0) -> 0 | DO68: =IF($DW68>0, IF(DO56=1,(($DW68-SUM($E68:DN68))/SUM(DO56:$DU56)),0),0) -> 0 | DP68: =IF($DW68>0, IF(DP56=1,(($DW68-SUM($E68:DO68))/SUM(DP56:$DU56)),0),0) -> 0 | DQ68: =IF($DW68>0, IF(DQ56=1,(($DW68-SUM($E68:DP68))/SUM(DQ56:$DU56)),0),0) -> 0 | DR68: =IF($DW68>0, IF(DR56=1,(($DW68-SUM($E68:DQ68))/SUM(DR56:$DU56)),0),0) -> 0 | DS68: =IF($DW68>0, IF(DS56=1,(($DW68-SUM($E68:DR68))/SUM(DS56:$DU56)),0),0) -> 0 | DT68: =IF($DW68>0, IF(DT56=1,(($DW68-SUM($E68:DS68))/SUM(DT56:$DU56)),0),0) -> 0 | DU68: =IF($DW68>0, IF(DU56=1,(($DW68-SUM($E68:DT68))/SUM(DU56:$DU56)),0),0) -> 0 | DV68: 4 | DW68: =H130 -> 0
B69: Principal Tranche 4 | D69: 0 | E69: 0 | F69: 0 | G69: 0 | H69: 0 | I69: 0 | J69: =IF($DW69>0, IF(J57=1,(($DW69-SUM($E69:I69))/SUM(J57:$DU57)),0),0) -> 0 | K69: =IF($DW69>0, IF(K57=1,(($DW69-SUM($E69:J69))/SUM(K57:$DU57)),0),0) -> 0 | L69: =IF($DW69>0, IF(L57=1,(($DW69-SUM($E69:K69))/SUM(L57:$DU57)),0),0) -> 0 | M69: =IF($DW69>0, IF(M57=1,(($DW69-SUM($E69:L69))/SUM(M57:$DU57)),0),0) -> 0 | N69: =IF($DW69>0, IF(N57=1,(($DW69-SUM($E69:M69))/SUM(N57:$DU57)),0),0) -> 0 | O69: =IF($DW69>0, IF(O57=1,(($DW69-SUM($E69:N69))/SUM(O57:$DU57)),0),0) -> 0 | P69: =IF($DW69>0, IF(P57=1,(($DW69-SUM($E69:O69))/SUM(P57:$DU57)),0),0) -> 0 | Q69: =IF($DW69>0, IF(Q57=1,(($DW69-SUM($E69:P69))/SUM(Q57:$DU57)),0),0) -> 0 | R69: =IF($DW69>0, IF(R57=1,(($DW69-SUM($E69:Q69))/SUM(R57:$DU57)),0),0) -> 0 | S69: =IF($DW69>0, IF(S57=1,(($DW69-SUM($E69:R69))/SUM(S57:$DU57)),0),0) -> 0 | T69: =IF($DW69>0, IF(T57=1,(($DW69-SUM($E69:S69))/SUM(T57:$DU57)),0),0) -> 0 | U69: =IF($DW69>0, IF(U57=1,(($DW69-SUM($E69:T69))/SUM(U57:$DU57)),0),0) -> 0 | V69: =IF($DW69>0, IF(V57=1,(($DW69-SUM($E69:U69))/SUM(V57:$DU57)),0),0) -> 0 | W69: =IF($DW69>0, IF(W57=1,(($DW69-SUM($E69:V69))/SUM(W57:$DU57)),0),0) -> 0 | X69: =IF($DW69>0, IF(X57=1,(($DW69-SUM($E69:W69))/SUM(X57:$DU57)),0),0) -> 0 | Y69: =IF($DW69>0, IF(Y57=1,(($DW69-SUM($E69:X69))/SUM(Y57:$DU57)),0),0) -> 0 | Z69: =IF($DW69>0, IF(Z57=1,(($DW69-SUM($E69:Y69))/SUM(Z57:$DU57)),0),0) -> 0 | AA69: =IF($DW69>0, IF(AA57=1,(($DW69-SUM($E69:Z69))/SUM(AA57:$DU57)),0),0) -> 0 | AB69: =IF($DW69>0, IF(AB57=1,(($DW69-SUM($E69:AA69))/SUM(AB57:$DU57)),0),0) -> 0 | AC69: =IF($DW69>0, IF(AC57=1,(($DW69-SUM($E69:AB69))/SUM(AC57:$DU57)),0),0) -> 0 | AD69: =IF($DW69>0, IF(AD57=1,(($DW69-SUM($E69:AC69))/SUM(AD57:$DU57)),0),0) -> 0 | AE69: =IF($DW69>0, IF(AE57=1,(($DW69-SUM($E69:AD69))/SUM(AE57:$DU57)),0),0) -> 0 | AF69: =IF($DW69>0, IF(AF57=1,(($DW69-SUM($E69:AE69))/SUM(AF57:$DU57)),0),0) -> 0 | AG69: =IF($DW69>0, IF(AG57=1,(($DW69-SUM($E69:AF69))/SUM(AG57:$DU57)),0),0) -> 0 | AH69: =IF($DW69>0, IF(AH57=1,(($DW69-SUM($E69:AG69))/SUM(AH57:$DU57)),0),0) -> 0 | AI69: =IF($DW69>0, IF(AI57=1,(($DW69-SUM($E69:AH69))/SUM(AI57:$DU57)),0),0) -> 0 | AJ69: =IF($DW69>0, IF(AJ57=1,(($DW69-SUM($E69:AI69))/SUM(AJ57:$DU57)),0),0) -> 0 | AK69: =IF($DW69>0, IF(AK57=1,(($DW69-SUM($E69:AJ69))/SUM(AK57:$DU57)),0),0) -> 0 | AL69: =IF($DW69>0, IF(AL57=1,(($DW69-SUM($E69:AK69))/SUM(AL57:$DU57)),0),0) -> 0 | AM69: =IF($DW69>0, IF(AM57=1,(($DW69-SUM($E69:AL69))/SUM(AM57:$DU57)),0),0) -> 0 | AN69: =IF($DW69>0, IF(AN57=1,(($DW69-SUM($E69:AM69))/SUM(AN57:$DU57)),0),0) -> 0 | AO69: =IF($DW69>0, IF(AO57=1,(($DW69-SUM($E69:AN69))/SUM(AO57:$DU57)),0),0) -> 0 | AP69: =IF($DW69>0, IF(AP57=1,(($DW69-SUM($E69:AO69))/SUM(AP57:$DU57)),0),0) -> 0 | AQ69: =IF($DW69>0, IF(AQ57=1,(($DW69-SUM($E69:AP69))/SUM(AQ57:$DU57)),0),0) -> 0 | AR69: =IF($DW69>0, IF(AR57=1,(($DW69-SUM($E69:AQ69))/SUM(AR57:$DU57)),0),0) -> 0 | AS69: =IF($DW69>0, IF(AS57=1,(($DW69-SUM($E69:AR69))/SUM(AS57:$DU57)),0),0) -> 0 | AT69: =IF($DW69>0, IF(AT57=1,(($DW69-SUM($E69:AS69))/SUM(AT57:$DU57)),0),0) -> 0 | AU69: =IF($DW69>0, IF(AU57=1,(($DW69-SUM($E69:AT69))/SUM(AU57:$DU57)),0),0) -> 0 | AV69: =IF($DW69>0, IF(AV57=1,(($DW69-SUM($E69:AU69))/SUM(AV57:$DU57)),0),0) -> 0 | AW69: =IF($DW69>0, IF(AW57=1,(($DW69-SUM($E69:AV69))/SUM(AW57:$DU57)),0),0) -> 0 | AX69: =IF($DW69>0, IF(AX57=1,(($DW69-SUM($E69:AW69))/SUM(AX57:$DU57)),0),0) -> 0 | AY69: =IF($DW69>0, IF(AY57=1,(($DW69-SUM($E69:AX69))/SUM(AY57:$DU57)),0),0) -> 0 | AZ69: =IF($DW69>0, IF(AZ57=1,(($DW69-SUM($E69:AY69))/SUM(AZ57:$DU57)),0),0) -> 0 | BA69: =IF($DW69>0, IF(BA57=1,(($DW69-SUM($E69:AZ69))/SUM(BA57:$DU57)),0),0) -> 0 | BB69: =IF($DW69>0, IF(BB57=1,(($DW69-SUM($E69:BA69))/SUM(BB57:$DU57)),0),0) -> 0 | BC69: =IF($DW69>0, IF(BC57=1,(($DW69-SUM($E69:BB69))/SUM(BC57:$DU57)),0),0) -> 0 | BD69: =IF($DW69>0, IF(BD57=1,(($DW69-SUM($E69:BC69))/SUM(BD57:$DU57)),0),0) -> 0 | BE69: =IF($DW69>0, IF(BE57=1,(($DW69-SUM($E69:BD69))/SUM(BE57:$DU57)),0),0) -> 0 | BF69: =IF($DW69>0, IF(BF57=1,(($DW69-SUM($E69:BE69))/SUM(BF57:$DU57)),0),0) -> 0 | BG69: =IF($DW69>0, IF(BG57=1,(($DW69-SUM($E69:BF69))/SUM(BG57:$DU57)),0),0) -> 0 | BH69: =IF($DW69>0, IF(BH57=1,(($DW69-SUM($E69:BG69))/SUM(BH57:$DU57)),0),0) -> 0 | BI69: =IF($DW69>0, IF(BI57=1,(($DW69-SUM($E69:BH69))/SUM(BI57:$DU57)),0),0) -> 0 | BJ69: =IF($DW69>0, IF(BJ57=1,(($DW69-SUM($E69:BI69))/SUM(BJ57:$DU57)),0),0) -> 0 | BK69: =IF($DW69>0, IF(BK57=1,(($DW69-SUM($E69:BJ69))/SUM(BK57:$DU57)),0),0) -> 0 | BL69: =IF($DW69>0, IF(BL57=1,(($DW69-SUM($E69:BK69))/SUM(BL57:$DU57)),0),0) -> 0 | BM69: =IF($DW69>0, IF(BM57=1,(($DW69-SUM($E69:BL69))/SUM(BM57:$DU57)),0),0) -> 0 | BN69: =IF($DW69>0, IF(BN57=1,(($DW69-SUM($E69:BM69))/SUM(BN57:$DU57)),0),0) -> 0 | BO69: =IF($DW69>0, IF(BO57=1,(($DW69-SUM($E69:BN69))/SUM(BO57:$DU57)),0),0) -> 0 | BP69: =IF($DW69>0, IF(BP57=1,(($DW69-SUM($E69:BO69))/SUM(BP57:$DU57)),0),0) -> 0 | BQ69: =IF($DW69>0, IF(BQ57=1,(($DW69-SUM($E69:BP69))/SUM(BQ57:$DU57)),0),0) -> 0 | BR69: =IF($DW69>0, IF(BR57=1,(($DW69-SUM($E69:BQ69))/SUM(BR57:$DU57)),0),0) -> 0 | BS69: =IF($DW69>0, IF(BS57=1,(($DW69-SUM($E69:BR69))/SUM(BS57:$DU57)),0),0) -> 0 | BT69: =IF($DW69>0, IF(BT57=1,(($DW69-SUM($E69:BS69))/SUM(BT57:$DU57)),0),0) -> 0 | BU69: =IF($DW69>0, IF(BU57=1,(($DW69-SUM($E69:BT69))/SUM(BU57:$DU57)),0),0) -> 0 | BV69: =IF($DW69>0, IF(BV57=1,(($DW69-SUM($E69:BU69))/SUM(BV57:$DU57)),0),0) -> 0 | BW69: =IF($DW69>0, IF(BW57=1,(($DW69-SUM($E69:BV69))/SUM(BW57:$DU57)),0),0) -> 0 | BX69: =IF($DW69>0, IF(BX57=1,(($DW69-SUM($E69:BW69))/SUM(BX57:$DU57)),0),0) -> 0 | BY69: =IF($DW69>0, IF(BY57=1,(($DW69-SUM($E69:BX69))/SUM(BY57:$DU57)),0),0) -> 0 | BZ69: =IF($DW69>0, IF(BZ57=1,(($DW69-SUM($E69:BY69))/SUM(BZ57:$DU57)),0),0) -> 0 | CA69: =IF($DW69>0, IF(CA57=1,(($DW69-SUM($E69:BZ69))/SUM(CA57:$DU57)),0),0) -> 0 | CB69: =IF($DW69>0, IF(CB57=1,(($DW69-SUM($E69:CA69))/SUM(CB57:$DU57)),0),0) -> 0 | CC69: =IF($DW69>0, IF(CC57=1,(($DW69-SUM($E69:CB69))/SUM(CC57:$DU57)),0),0) -> 0 | CD69: =IF($DW69>0, IF(CD57=1,(($DW69-SUM($E69:CC69))/SUM(CD57:$DU57)),0),0) -> 0 | CE69: =IF($DW69>0, IF(CE57=1,(($DW69-SUM($E69:CD69))/SUM(CE57:$DU57)),0),0) -> 0 | CF69: =IF($DW69>0, IF(CF57=1,(($DW69-SUM($E69:CE69))/SUM(CF57:$DU57)),0),0) -> 0 | CG69: =IF($DW69>0, IF(CG57=1,(($DW69-SUM($E69:CF69))/SUM(CG57:$DU57)),0),0) -> 0 | CH69: =IF($DW69>0, IF(CH57=1,(($DW69-SUM($E69:CG69))/SUM(CH57:$DU57)),0),0) -> 0 | CI69: =IF($DW69>0, IF(CI57=1,(($DW69-SUM($E69:CH69))/SUM(CI57:$DU57)),0),0) -> 0 | CJ69: =IF($DW69>0, IF(CJ57=1,(($DW69-SUM($E69:CI69))/SUM(CJ57:$DU57)),0),0) -> 0 | CK69: =IF($DW69>0, IF(CK57=1,(($DW69-SUM($E69:CJ69))/SUM(CK57:$DU57)),0),0) -> 0 | CL69: =IF($DW69>0, IF(CL57=1,(($DW69-SUM($E69:CK69))/SUM(CL57:$DU57)),0),0) -> 0 | CM69: =IF($DW69>0, IF(CM57=1,(($DW69-SUM($E69:CL69))/SUM(CM57:$DU57)),0),0) -> 0 | CN69: =IF($DW69>0, IF(CN57=1,(($DW69-SUM($E69:CM69))/SUM(CN57:$DU57)),0),0) -> 0 | CO69: =IF($DW69>0, IF(CO57=1,(($DW69-SUM($E69:CN69))/SUM(CO57:$DU57)),0),0) -> 0 | CP69: =IF($DW69>0, IF(CP57=1,(($DW69-SUM($E69:CO69))/SUM(CP57:$DU57)),0),0) -> 0 | CQ69: =IF($DW69>0, IF(CQ57=1,(($DW69-SUM($E69:CP69))/SUM(CQ57:$DU57)),0),0) -> 0 | CR69: =IF($DW69>0, IF(CR57=1,(($DW69-SUM($E69:CQ69))/SUM(CR57:$DU57)),0),0) -> 0 | CS69: =IF($DW69>0, IF(CS57=1,(($DW69-SUM($E69:CR69))/SUM(CS57:$DU57)),0),0) -> 0 | CT69: =IF($DW69>0, IF(CT57=1,(($DW69-SUM($E69:CS69))/SUM(CT57:$DU57)),0),0) -> 0 | CU69: =IF($DW69>0, IF(CU57=1,(($DW69-SUM($E69:CT69))/SUM(CU57:$DU57)),0),0) -> 0 | CV69: =IF($DW69>0, IF(CV57=1,(($DW69-SUM($E69:CU69))/SUM(CV57:$DU57)),0),0) -> 0 | CW69: =IF($DW69>0, IF(CW57=1,(($DW69-SUM($E69:CV69))/SUM(CW57:$DU57)),0),0) -> 0 | CX69: =IF($DW69>0, IF(CX57=1,(($DW69-SUM($E69:CW69))/SUM(CX57:$DU57)),0),0) -> 0 | CY69: =IF($DW69>0, IF(CY57=1,(($DW69-SUM($E69:CX69))/SUM(CY57:$DU57)),0),0) -> 0 | CZ69: =IF($DW69>0, IF(CZ57=1,(($DW69-SUM($E69:CY69))/SUM(CZ57:$DU57)),0),0) -> 0 | DA69: =IF($DW69>0, IF(DA57=1,(($DW69-SUM($E69:CZ69))/SUM(DA57:$DU57)),0),0) -> 0 | DB69: =IF($DW69>0, IF(DB57=1,(($DW69-SUM($E69:DA69))/SUM(DB57:$DU57)),0),0) -> 0 | DC69: =IF($DW69>0, IF(DC57=1,(($DW69-SUM($E69:DB69))/SUM(DC57:$DU57)),0),0) -> 0 | DD69: =IF($DW69>0, IF(DD57=1,(($DW69-SUM($E69:DC69))/SUM(DD57:$DU57)),0),0) -> 0 | DE69: =IF($DW69>0, IF(DE57=1,(($DW69-SUM($E69:DD69))/SUM(DE57:$DU57)),0),0) -> 0 | DF69: =IF($DW69>0, IF(DF57=1,(($DW69-SUM($E69:DE69))/SUM(DF57:$DU57)),0),0) -> 0 | DG69: =IF($DW69>0, IF(DG57=1,(($DW69-SUM($E69:DF69))/SUM(DG57:$DU57)),0),0) -> 0 | DH69: =IF($DW69>0, IF(DH57=1,(($DW69-SUM($E69:DG69))/SUM(DH57:$DU57)),0),0) -> 0 | DI69: =IF($DW69>0, IF(DI57=1,(($DW69-SUM($E69:DH69))/SUM(DI57:$DU57)),0),0) -> 0 | DJ69: =IF($DW69>0, IF(DJ57=1,(($DW69-SUM($E69:DI69))/SUM(DJ57:$DU57)),0),0) -> 0 | DK69: =IF($DW69>0, IF(DK57=1,(($DW69-SUM($E69:DJ69))/SUM(DK57:$DU57)),0),0) -> 0 | DL69: =IF($DW69>0, IF(DL57=1,(($DW69-SUM($E69:DK69))/SUM(DL57:$DU57)),0),0) -> 0 | DM69: =IF($DW69>0, IF(DM57=1,(($DW69-SUM($E69:DL69))/SUM(DM57:$DU57)),0),0) -> 0 | DN69: =IF($DW69>0, IF(DN57=1,(($DW69-SUM($E69:DM69))/SUM(DN57:$DU57)),0),0) -> 0 | DO69: =IF($DW69>0, IF(DO57=1,(($DW69-SUM($E69:DN69))/SUM(DO57:$DU57)),0),0) -> 0 | DP69: =IF($DW69>0, IF(DP57=1,(($DW69-SUM($E69:DO69))/SUM(DP57:$DU57)),0),0) -> 0 | DQ69: =IF($DW69>0, IF(DQ57=1,(($DW69-SUM($E69:DP69))/SUM(DQ57:$DU57)),0),0) -> 0 | DR69: =IF($DW69>0, IF(DR57=1,(($DW69-SUM($E69:DQ69))/SUM(DR57:$DU57)),0),0) -> 0 | DS69: =IF($DW69>0, IF(DS57=1,(($DW69-SUM($E69:DR69))/SUM(DS57:$DU57)),0),0) -> 0 | DT69: =IF($DW69>0, IF(DT57=1,(($DW69-SUM($E69:DS69))/SUM(DT57:$DU57)),0),0) -> 0 | DU69: =IF($DW69>0, IF(DU57=1,(($DW69-SUM($E69:DT69))/SUM(DU57:$DU57)),0),0) -> 0 | DV69: 5 | DW69: =I130 -> 0
